Workbook

Sheet Tiedote
B3: METSÄTALOUDEN KIRJANPITO-OHJELMA
B4: Versio 25.10
B5: Version päiväys 14.10.2025 | E5: © Mette järjestelmät Oy
B8: Mette ohjelman saat ladattua verkkokaupastamme www.metsavero.fi
B9: Maksettuasi lisenssimaksun verkkokaupassa, saat latauslinkin, josta voit ladata ohjelman.
B10: Verkkokaupassa oston yhteydessä rekisteröimilläsi käyttäjätunnuksilla voit ladata mahdolliset tulevat saman verovuoden ohjelman päivitysversiot.
B11: Päivitykset ovat ladattavissa verkkosivultamme metsavero.fi kohdasta "Kirjaudu".
B12: Suosittelemme, että tilaat uutiskerjeemme, jolla kerromme Metteen verovuoden aikana julkaistavista päivityksistä.
B13: Uutiskirjeen voi tilata verkkosivujemme alareunan linkistä tai Metten oston yhteydessä.
B14: Yhden käyttäjän lisenssi oikeuttaa käyttämään ohjelmaa yhden verovuoden maksajan metsätiloilla ja kattaa kaikki päivitykset verovuoden ajalta.
B16: Mette metsätalouden kirjanpito-ohjelma on ostettavissa osoitteesta www.metsavero.fi tai www.mette.fi
B18: Tämän kirjanpitotaulukon käyttäjä käyttää kirjanpitotaulukkoa omalla vastuullaan.
B19: Mette Järjestelmät Oy ei vastaa tämän Mette metsätalouden kirjanpito-ohjelman mahdollisista virheistä ja puutteista aiheutuvista vahingoista.
B21: Kehittämisehdotuksia ja palautetta voi lähettää sähköpostitse osoitteeseen info@metsavero.fi
B23: Yhden käyttäjän lisenssillä ohjelmaa voi käyttää verovuoden ajan seuraavasti:
B24: - puolisoiden kaikilla tiloilla, joista tehdään yksi veroilmoitus vaikka puolisot omistaisivat tilat erikseen.
B25: - kaikilla tiloilla, joissa lisenssin maksajalla on omistusosuuksia
B27: Mette-ohjelma on tekijänoikeuksien alainen, eikä ole muutettavissa ilman lupaa.
B28: Kaikissa artikkelissa, jossa tätä työkirjaa esitetään tai lainataan, on mainittava alkuperäinen tiedoston lähde: www.metsavero.fi
B29: Internet -linkityksessä on käytettävä hyperlinkin kohteena verkko-osoitetta metsavero.fi
B31: Ohjelmaan on lisätty ohjeita, jotka on merkitty pienellä punaisella kolmiolla
B32: Ohje tulee näkyville viemällä hiiri merkityn solun päälle.
B34: Muutokset edellisistä versioista:
B35: 25.10
B36: - Pieniä muutoksia sähköisessä ilmoittamisessa.
B38: 25.00
B39: - Verovuoden ensiversio, jossa ei ole vielä verottajan vahvistamaa verolomaketta eikä uusia verotuksessa käytettäviä arvoja (km, hankintatyö ym.)
B40: - Vuosilukumuutokset
B146: 24.20
B147: - Lisätty verottajan vahvistamat hankintatöiden arvot, matkakulujen arvot ja omasta metsästä otetun puutavaran arvot.
B148: - Lähde: yhtenäistmisohje vuodelta 2024 toimitettavasta verotuksesta.
B149: 24.11
B150: - Alv-prosentin muutoskohtiin, jossa Mette ehdottaa 1.9.2024 alkaen korotettua alv-% on lisätty huomioväri, jonka tarkoitus on ottaa huomioon se, että
B151: alv-prosentti voi olla muutospäivän jälkeenkin 24 %, mikäli tuote tai palvelu on toimitettu ennen 1.9.2024. Kirjaa silloin kuitissa tai laskulla näkyvä alv-prosentti.
B152: https://www.vero.fi/yritykset-ja-yhteisot/verot-ja-maksut/arvonlisaverotus/arvonlisaveroprosentit/Yleinen-arvonlisaverokanta-nousee-syyskuussa/
B153: 24.10
B154: - Alv-prosentin muutos 1.9.2024 huomioitu. Mette käyttää kuiteille, joiden päiväys on 1.9.2024 tai sen jälkeen automaattisesti korotettua 25,5 % arvonlisäveroa.
B155: 24.00
B156: - Verovuoden ensiversio, jossa ei ole vielä verottajan vahvistamaa verolomaketta.
B157: - Vuosilukumuutokset
B158: 23.21
B159: - Korjattu kaavavirhe, jonka vuoksi aiemmin Tulot taulussa riveillä 26-27 syötetyt hankintakauppatulot eivät siirtyneet hankintatyön laskentaan.
B160: 23.20
B161: - Lisätty metsälahjavähennyksen laskentaan 2023 verotuksessa käytettävät arvot.
B162: 23.10
B163: - Lisätty verovuoden vahvistetut hankintatyön arvot, omaan käyttöön otetun puun arvot, työhuonevähennyksen arvot.
B164: - Ajopäiväkirjan arvot on muutettu vastaamaan 2023 vuoden yhtenäistämisohjeita ja verohallinnon päätöstä verovapaista matkakustannusten korvauksista.
B165: -2C-lomake päivitetty vastaamaan 2023 verovuoden lomaketta.
B166: - Uinuvat hankintatyöt osiossa ollut vika korjattu.
B167: 23.00
B168: - Verovuoden ensiversio, jossa ei ole vielä verottajan vahvistamaa verolomaketta.
B169: - Ulkoasumuutokset
B170: 22.20
B171: Lisätty verovuoden 2022 yhtenäistämistohjeiden mukaiset hankintatyön arvot ja matkakulujen arvot sekä omaan käyttöön otetun puun arvot.
B172: 22.10
B173: Metteen on lisätty tiliönnin mahdollisuus. Sen avulla menoja ja tuloja voi ryhmitellä aiempaa tarkemmin oman tarpeen mukaan. (Käyttäjävinkki)
B174: Metteen on lisätty ja ohjeistettu mahdollisuus liittää tulo- ja menokutit upotettuina objekteina mukaan tiedostoon. Tällä tavoin sähköiset kuitit säilyvät kirjanpidon mukana. (EXCEL) (Käyttäjävinkki)
B175: Vuodenvaihteen siirtyvien tietojen siirto on ohjeistettu etusivulla helpottamaan tietojen siirtoa.
B176: Metsälahjavähennyksen taulukossa muutettu seurantataulukon toimintaa.
B177: Vahvistus hankintatyön arvoiksi, matkakulujen määrät ja työhuonevähennys tulee verottajalta vasta vuoden lopussa.
B178: 22.00
B179: Verovuoden ensiversio, jossa ei ole vielä verottajan vahvistamaa verolomaketta.
B180: Metteen on lisätty omavero -välilehti, jolle 2C ja Alv:n verotiedot kootaan samaan järjestykseen, kuin niitä käsitellään omaverossa.
B181: Poistot-taulukkoon on tehty mahdollisuus muuttaa poistettavaa määrää Euro-määrään tai prosenttimäärään perustuvaksi.
B182: Hankintatyön arvot, omaan käyttöön oton arvot, ajopäiväkirjan arvot ym ovat vielä 2021 mukaisia tässä versiossa
B183: 21.24
B184: Kauneusvirheiden korjailua. Mm poistojen ohjetekstit, hankintamenotaulukon tekstejä, metsälahjan seuranta, ym pientä.
B185: 21.23
B186: Metsävähennyksen laskentaan, ennen verovuotta 2021 luovutusvoittoihin lisätyn metsävähennyksen määrä muutettu niin että tilakohtainen kohdetaminen on taas mahdollista.
B187: 21.22
B188: Sähköisen alv ilmoittamisen verosuosi oli väärä. Arvo korjattu 2021.
B189: 21.21
B190: Metsätalouden tulos välilehdellä ollut virhe korjattu. Ohjelma laski kahteen kertaan tuloutetun menovarauksen tulokseen.
B191: 21.20
B192: Hankintatyön ja omaan käyttöön otettavan puutaran arvoiksi on muutettu verottajan yhtenäistämisohjeiden mukaiset arvot verovuodelle 2021.
B193: Työhuonevähennyksen 2021 vuoden arvo on lisätty arvionvaraiset sivulle ohjeeseen.
B194: 21.10
B195: Muotoilullisia muutoksia tehty kaikilla sivuilla.
B196: Puun oma käyttö eritelty omalle välilehdelle.
B197: Ohjetekstejä lisätty taulukoihin.
B198: Metsälahjavähennyksen metsämaan tuottoluvut päivitetty 2021 verotuksen mukaisiksi.
B199: Pieniä korjauksia taulukoihin.
B200: Meno- ja tuhovarausten ksittelyä selkeytetty.
B201: Tulostusasetuksia määritetty sopimaan A4 tulosteisiin.
B202: 21.00
B203: Verovuoden ensiversio, jossa ei ole vielä verottajan vahvistamaa verolomaketta.
B204: Lisätty hankintatyön tekijöiden tietojen tallennus etusivulle.
B205: Tuloslaskelmaan lisätty ennakkoverojen palautuksen määrä.
B206: Taulukoiden tulostusasetuksia parannettu.
B207: Mette poistaa alle 600 euron menojäännökset kerralla verottajan uuden ohjeen mukaisesti.
B208: 20.03
B209: Menovarauksen laskennassa ilmennyt virhe korjattu. Vaikutusta metsävähennyksen käytön yhteydessä.
B210: 20.02
B211: Poistot taulukko palautetettu alkuperäiseksi. Omaveron 2C-lomakkeen puutteista johtuen verottaja suositteli välillä kirjaamaan alle 200 e poistot suoraan menokirjauksena.
B212: 20.00
B213: Verovuoden ensiversio, jossa ei ole vielä verottajan vahvistamaa verolomaketta.
B214: Lisätty mahdollisuus kirjata metsätalouden sivutuloja ja niihin liittyviä menoja, jotka ilmoitetaan maatalouden verolomakkeella 2.
B215: Korjattu harvinaisessa tilanteessa esiintulevat kaavavirheet menovarauksen laskennassa ja hankintatyön laskennassa.
B216: Muutettu metsätalouden tuloksen laskennassa tulojen ja hankintatöiden kulujen esittämistapa.
B217: 19.21
B218: Tietuekuvausmuutoksen takia muutettu hankintatyön määrät kokonaisluvuiksi.
B219: 19.20
B220: Verohallinnon ythtenäistämisohjeiden mukaiset hankintatyön arvot, matkakustannukset ja työhuonevähennys lisätty.
B221: Maatalouteen käytetyn omasta metsästä otetun puun arvot päivitetty.
B222: Lisätty Poistot taulukkoon koneille lisää erittelyrivejä ja Menot taulukkoon menokirjausrivejä (piilotetut-toiminnot).
B223: 19.10
B224: Pieniä muutoksia 2C -verolomakkeella
B225: Metsälahjavähennyksen laskennassa käytettävät metsän keskimääräisen vuotuisen tuoton arvot päivitetty.
B226: 19.00
B227: Verovuoden ensiversio, jossa ei ole vialä verottajan vahvistamaa verolomaketta.
B228: Lisätty tuloslaskelmaan yhteisomistustilojen verovaikutusten laskenta niin, että laskelma huomioi tulojen todellisen jakautumisen osakkaille ja sen vaikutuksen veroprogressioon ja siten kokonaisveron määrään.
B229: Muutettu uinumaan jäävän hankintatyn kaavaa niin, että se tulee huomioiduksi menovarauksen laskennasa.
B230: 18.21
B231: Menovarauksen laskentakaavaa muutettu. Ottaa huomioon myös uinuvista hankintatöistä tulevat hankintatöiden arvot.
B232: 18.20
B233: Verotuksen yhtenäistämisohjeiden mukaiset arvot lisätty
B234: - mm. hankintatyön arvot, kilometrikorvausten arvot, päivärahat, työhuonevähennyksen arvo, maataloudessa käytetyn omasta metsästä otetun puutavaran arvot.
B235: Arvonlisäveron sähköisen siirtiedoston tietuekuvausmuutos alarajahuojennuksen osalta.
B236: 18.10
B237: Merkittäviä muutoksia 2C -verolomakkeeseen
B238: Merkittäviä muutoksia sähköisen ilmoittamisen tietueiden muodostamiseen
B239: Metsälahjavähennyksen laskentaan lisätty 2L-verolomakkeen koontitiedot ja uudet metsätalouden tuottoluvut kunnittain
B240: 18.00
B241: Verovuoden 2018 ensiversio. Tässä versiossa on vielä verovuoden 2017 2C-lomake.
B242: Syksyllä verottajan julkaistua uuden 2C lomakkeen, Mettestä julkaistaan päivitys.
B243: 17.21
B244: Alv siirtotiedoston tekoon lisätty siirtotiedoston tekoaika
B245: 17.20
B246: Yhtenäistämisohjeiden mukaiset arvot lisätty hankintatyön laskentaan ja työhuonevähennykseen.
B247: Muita pieniä kauneusvirhekorjauksia
B248: 17.10
B249: Verovuoden 2017 2C-lomake ja siihen liittyvät tarkastukset tehty Metteen.
B250: 17.00
B251: Verovuoden 2017 ensiversio. Tässä versiossa on vielä verovuoden 2016 2C-lomake.
B252: Syksyllä verottajan julkaistua uuden 2C lomakkeen, Mettestä julkaistaan päivitys.
B253: Ulkoasua on uudistettu, mukaan on otettu metsälahjavähennyksen laskeminen ja menoihin on lisätty tuotteen erittelymahdollisuus.
B254: Menovarauksen voi kaavaa rikkomatta pakottaa haluamaansa alle 15% euromääräiseen arvoon.
B255: 16.21
B256: Alv sähköisen siirtotiedoston tietuekuvauksen muutoksen vuoksi tietueen muotoa korjattu.
B257: 16.20
B258: Kilometrikorvaus ja hankintatyön arvot muutettu vastaamaan 2.1.2017 julkaistun verottajan yhtenäistämisohjeen arvoja.
B259: Ohjeistuksia muutettu verotilipalvelun muututua omaveropalveluksi.
B260: 16.10
B261: Verolomake 2C on muutettu vastaamaan verottajan vahvistamaa 2016 vuoden lomakketta.
B262: 16.00
B263: Verovuoden 2016 ensiversio. Tässä versiossa on vielä verovuoden 2015 2C-lomake.
B264: Syksyllä verottajan julkaistua uuden 2C lomakkeen, Mettestä julkaistaan päivitys.
B265: 15.12
B266: Hankintatyö 2 osiosta korjattu kaavavirhe solusta E9. Kaava laski virheellisesti maatilalle 2 maatilan 1 hakkuumäärän.
B267: Sähköiestä ilmoittamisesta poistettu rivit joilla saattoi ilmoittaa asianhoitajan ja ulkomaan nimen. Ko tietokohdat eivät ole enää 2015 käytössä.
B268: 15.11
B269: Hankintatyön arvot 2015, matkakustannusten arvot, Maataloudessa käytetyn puun arvot.
B270: Työhuonevähennyksen arvon tarkistus.
B271: 15.10
B272: Tässä versiossa on uusi 2C verolomake verovuodelle 2015
B273: Alv-kausiveroilmoitukseen lisätty sähköisen siirtotiedoston tekemisen mahdollisuus.
B274: 15.00
B275: Verovuoden 2015 ensiversio. Tässä versiossa on vielä verovuoden 2014 2C-lomake.
B276: Syksyllä verottajan julkaistua uuden 2C lomakkeen, Mettestä lulkaistaan päivitys.
B277: 14.21
B278: Metsävähennyksen laskentaan lisätty kohta, jossa käyttäjä voi määritellä käytettävän metsävähennyksen maksimivähennystä pienemmäksi.
B279: Pieniä kauneusvirheitä korjattu.
B280: 14.20
B281: Sisältää 9.1.2015 verottajan julkaiseman yhtenäistämisohjeen sisältämät hankintatyön arvon, kilometrikorvaukset, maatalouden käyttöön otetun puun arvostuksen
B282: 14.10
B283: Sisältää 2014 vuoden 2C-lomakkeen
B284: Päivämäärien automaattinen kelpoisuuden tarkastaminen poistettu.
B285: 14.00
B286: Verovuoden ensiversio. Sisältää vielä vanhan 2C-lomakkeen
B287: Uinumaan jätetyn hankintatyön arvon laskentaa tarkennettu ja lisätty oma laskenta-alue.
B288: Ajopäiväkirjaan on lisätty traktorin tuntihinta
B289: 13.16
B290: Hankintatyön uinumaan jäävän ja uinumassa olleen arvon laskenta korjattu. Lisätty sitä varten uusia taulukoita hankintatyön laskentojen välilehdille.
B291: 13.15
B292: Menovarauksen laskennassa ilmennyt virhe korjattu. Koskee vain Pohjois-Suomen osaa, jos tuloutettavaa vuodelta 2007 sekä 2008.
B293: 13.14
B294: Sähköisen ilmoittamisen taulukkoon lisätty puuttuvat kaavat soluihin O67-O76.
B295: 13.13
B296: Menot tauluun lisätty alv-% sarakkeeseen pudotusvalikko 24%, 10% ja 0% verokannoille.
B297: Käytetyn metsävähennyksen laskentaa korjattu, tilanteessa, jossa osa metsävähennystiloista luovutettu verovuoden aikana.
B298: 13.12
B299: Lisätty hankintatyön ja konekustannusarvot.
B300: 13.11
B301: Tuhovarauksen siirtyminen oikein 2C-lomakkeelle korjattu.
B302: 13.10
B303: Sisältää verottajan julkaiseman uuden 2C -verolomakkeen 2013.
B304: 13.00
B305: Verovuoden ensiversio. Sisältää vielä vanhan 2C-lomakkeen
B306: Meno- ja tuhovaraustaulukkoa muutettu selkeämmäksi ja automaattisemmaksi
B307: Metsävähennystaulukossa tiloittainen erittely otetty uudelleen näkyville
B308: 12.11
B309: Hankintatyön arvot muutettu 2012 arvoiksi ja laskentaan tehty korjaus, joka voi vaikuttaa yli 125 m3 hankintatyötä tehneillä.
B310: Metsävähennyksen osalta muutettu lomaketta selkeämmäksi. Vaikuttaa, jos metsävähennystila luovutettu ja metsävähennysmetsää jää vielä omistukseen.
B311: Kilometrikorvaukset 2012 verottajan yhtenäistämisohjeista (julkaistu 10.1.2013)
B312: 12.10
B313: Verovuoden 2012 2C-lomake
B314: Tulot lomakkeelle lisätty poltto-ja joulupuiden hankintakaupan erottelu
B315: Lisätty "Hankintatyö 2" -lomake poltto-ja joulupuiden hankintatyön erottelua varten
B316: Muotoilumuutoksia
B317: 12.01
... 131 more rows

Sheet Etusivu
A1: 17
B3: METSÄTALOUDEN KIRJANPITO
B4: Mette 25.10 Mette Järjestelmät Oy
B6: =vuosi -> 2025
B8: Verovuosi | C8: 2025 | F8: Metsätilat
B9: HENKILÖTIEDOT | F9: METSÄTILAT | K9: OHJEITA | X9: Kyllä | Y9: Kerran vuodessa
B10: Omistaja(t) / yhtymän nimi | C10: Matti Metsänen | F10: Nimet päivittyvät metsävähennyksen laskentaan tästä | X10: Ei | Y10: 4 kertaa vuodessa
B11: Puoliso | E11: 1 | F11: Mäntynen | G11: 10 | K11: o Edellisen vuoden Mettestä siirrettäviä tietoja: | Y11: Kuukausittain
B12: Oma erillinen ilmoitus (puoliso) | C12: Ei | E12: 2 | G12: 11 | K12: o Etusivun tiedot | X12: Ei | Y12: Ei
B13: Osoite | E13: 3 | G13: 12 | K13: o Uinumaan jääneet hankintatyöt (Soluista Y16-AC16 soluihin Y7-AC7) | X13: Kyllä
B14: Postinumero | C14: 100 | E14: 4 | G14: 13 | K14: o Poistojen menojäännökset (Sarakkelta L sarakkeelle E)
B15: Postitoimipaikka | E15: 5 | G15: 14 | K15: o Menovaraukset (Saman vuosiluvun kohdalle soluihin C20-C25)
B16: Henkilö- tai Y-tunnus | C16: 123456-7 | E16: 6 | G16: 15 | K16: o Tuhovaraukset (Saman vuosiluvun kohdalle soluihin H20-H25)
E17: 7 | G17: 16 | K17: o Metsävähennyksen tiedot (Tilatiedot sarakkeille E-V. Käytettävissä olevan metsävähennyksen määrä tilakohtaisesti riviltä 26 riville 16)
E18: 8 | G18: 17 | K18: o Metsälahjavähennyksen tiedot (Lahjoitusvuosi, metsävähennyspohja ja käyttötiedot)
B19: TÄYDENTÄVIÄ TIETOJA | E19: 9 | G19: 18 | K19: o Tietoja voi kopioda niiltä alueilta, joille itse on tietoja kirjannut. Kaavojen tuottamia arvioja ei tule suoraan kopioida.
B20: Tietoja tarvitaan mm. sähköisessä ilmoittamisessa ja tuloksen laskennassa | E20: =IF(C22="ei","",IF(C22="kyllä","","<- tarkista")) ->  | I20: =IF(C23="kerran vuodessa","V",IF(C23="4 kertaa vuodessa","Q",IF(C23="kuukausittain","K",""))) -> V | J20: =IF(C22="ei","",IF(C22="kyllä","","<- tarkista arvonlisäverovelvollisuus, Kyllä tai Ei")) -> 
J21: =IF(C23="kerran vuodessa","",IF(C23="4 kertaa vuodessa","",IF(C23="kuukausittain","","<- tarkista alv ilmoitusten ilmoitusjakson pituus"))) ->  | K21: DEMON tällä sivulla voit tallentaa muut henkilötiedot paitsi nimeä ja y-tunnusta. Metsätiloissa tilat 2 ja kolme muokattavissa.
B22: Arvonlisäverovelvollinen | C22: Kyllä | F22: YHTYMÄN OSAKKAAT JA OMISTUSOSUUDET | L22: Täydentävät tiedot ja hankintatyöntekijätiedot muokattavissa
B23: ALV-ilmoituksen jaksot | C23: Kerran vuodessa | F23: Osakkaan nimi | G23: Omistusosuus | J23: =IF(C25="ei","",IF(C25="kyllä","","<- tarkista verotusyhtymä, sallitut arvot Kyllä tai Ei")) -> 
B24: =CONCATENATE("Kotikunta 31.12.",C8-1) -> Kotikunta 31.12.2024 | E24: 1 | H24: % | J24: =IF(C25="kyllä","",IF(C26+C27<1,"<- tarkista omistusosuuksien prosenntimäärä",IF(C26+C27>1,"<- tarkista omistusosuuksien prosenntimäärä",IF(C26+C27=1,"",IF(C25="kyllä","-",))))) -> 
B25: Verotusyhtymä | C25: Ei | E25: 2 | H25: %
B26: Tilan omistus: Verovelvollinen, % | C26: 1 | E26: 3 | H26: %
B27: Puoliso, % | C27: 0 | E27: 4 | H27: %
E28: 5 | H28: %
B29: Veroilmoituksen viimeinen jättöpäivä | C29: 28022026 | E29: 6 | H29: %
B30: Veroilmoituksen allekirjoituspäivä muodossa PPKKVVVV | C30: 28022026 | E30: 7 | H30: %
B31: Veroilmoitusta täydentäviä tietoja antavan nimi | G31: =SUM(G24:G30) -> 0 | H31: %
B32: Veroilmoitusta täydentäviä tietoja antavan puhelinnumero
B33: Veroilmoitusta täydentäviä tietoja antavan sähköpostiosoite | F33: Metten taulukot on suojattu vahingossa tapahtuvalta kaavojen muuttamiselta. Tarvittaessa suojauksen saa poistettua. Salasanaa ei tarvita.
B35: HANKINTATYÖNTEKIJÄT
B36: Hankintatyöntekijä 1 nimi | F36: Suojauksen poistaminen eri ohjelmistoissa: Excel 365, 2016 2013, 2010 ja 2007 Tarkista - Poista taulukon suojaus tai alareunasta välilehteä hiiden oikealla klikkaamalla. Valikosta valitaan "Poista taulukon suojaus". Excelelin verkkoselainversiossa tai Tems-versiossa suojausta ei voi poistaa Poista suojaus Mettestä Excelin työpöytäsovelluksessa. LibreOffice (Windows ja Mac) Työkalut - Suojaa taulukko tai alareunan välilehdestä hiiren oikealla klikkaamalla ja valitsemalla "Suojaa taulukko".
B37: Hankintatyöntekijä 1 henkilötunnus
B38: Hankintatyöntekijä 2 nimi
B39: Hankintatyöntekijä 2 henkilötunnus
B40: Hankintatyöntekijä 3 nimi
B41: Hankintatyöntekijä 3 henkilötunnus
B42: Hankintatyöntekijä 4 nimi
B43: Hankintatyöntekijä 4 henkilötunnus
C45: © Mette ohjelmistot Oy
C46: www.metsavero.fi

Sheet Tulot
B2: =Etusivu!C10 -> Matti Metsänen | G2: DEMOSSA voit testata riviä 1. | AI2: =LARGE(AI4:AQ4,1) -> 0 | AJ2: Suurin maatilan numero | AT2: =LARGE(AT4:BB4,1) -> 0 | AU2: Suurin maatilan numero
B3: =Etusivu!C16 -> 123456-7
AI4: =IF(AI5>0,1,0) -> 0 | AK4: =IF(AK5>0,2,0) -> 0 | AM4: =IF(AM5>0,3,0) -> 0 | AO4: =IF(AO5>0,4,0) -> 0 | AQ4: =IF(AQ5>0,5,0) -> 0 | AT4: =IF(AT5>0,1,0) -> 0 | AV4: =IF(AV5>0,2,0) -> 0 | AX4: =IF(AX5>0,3,0) -> 0 | AZ4: =IF(AZ5>0,4,0) -> 0 | BB4: =IF(BB5>0,5,0) -> 0
B5: METSÄTALOUDEN TULOT | L5: =IF(Etusivu!$C$22="kyllä","Arvonlisäverovelvollinen","Ei arvonlisäverovelvollinen") -> Arvonlisäverovelvollinen | AI5: =SUM(AJ9:AK9) -> 0 | AK5: =SUM(AL9:AM9) -> 0 | AM5: =SUM(AN9:AO9) -> 0 | AO5: =SUM(AP9:AQ9) -> 0 | AQ5: =SUM(AR9:AS9) -> 0 | AT5: =SUM(AU9:AV9) -> 0 | AV5: =SUM(AW9:AX9) -> 0 | AX5: =SUM(AY9:AZ9) -> 0 | AZ5: =SUM(BA9:BB9) -> 0 | BB5: =SUM(BC9:BD9) -> 0
B6: Kuitti | C6: päiväys | G6: Puunmyyntitulot, alv 0% | J6: Hankintatyö | K6: Metsävähen- | L6: ALV | N6: Ennakon- | O6: Vakuutus | P6: Hirvi- | Q6: Metsä- | R6: Muut | T6: Tiliöinti | V6: Maatalouden | X6: Lisää kuitti upotettuna objektina | Z6: Apulaskuri: alv:t pois | AJ6: Aputaulukko hankintatyötulon siirtämiseksi hankintatyön (1) laskentaan. Normaali hankintatyö 1.2. | AU6: Aputaulukko hankintatyötulon siirtämiseksi hankintatyön (2) laskentaan. Poltto- ja joulupuiden hankintatyö 1.3.
G7: Pystykaupat | H7: Hankinta- | I7: Poltto- ja | J7: maatila | K7: nys oikeus | N7: pidätykset | O7: korvaukset | P7: vahinko | Q7: tal. tuet | R7: tulot | T7: Voit halutessasi seurata tuloja tarkemmin tiliöimällä ne | V7: tuloihin kuuluva | Z7: ALV % | AA7: 0.24
B8: N:o | C8: pv | D8: kk | E8: Selite | H8: kaupat | I8: joulupuukaupat | J8: nro (1-5) | K8: Kyllä / Ei | L8: % | M8: eur | P8: korvaukset | Q8: (verolliset) | R8: (alv 0%) | V8: tulo (alv 0%) | Z8: Summa | AA8: Summa | AE8: Valikoiden arvoja | AJ8: T1Mei | AK8: T1Mkyllä | AL8: T2Mei | AM8: T2MKyllä | AN8: T3Mei | AO8: T3Mkyllä | AP8: T4Mei | AQ8: T4Mkyllä | AR8: T5Mei | AS8: T5MKyllä | AU8: T1M0 | AV8: T1M1 | AW8: T2M0 | AX8: T2M1 | AY8: T3M0 | AZ8: T3M1 | BA8: T4M0 | BB8: T4M1 | BC8: T5M0 | BD8: T5M1
B9: YHTEENSÄ | G9: =SUM(G11:G165) -> 15400 | H9: =SUM(H11:H165) -> 0 | I9: =SUM(I11:I165) -> 0 | M9: =SUM(M11:M166) -> 3927 | N9: 2926 | O9: 0 | P9: 0 | Q9: 400 | R9: 0 | V9: =SUM(V11:V166) -> 0 | Z9: =CONCATENATE("Alv ",(AA7*100)," %") -> Alv 24 % | AA9: alv 0% | AJ9: =SUM(AI11:AI166) -> 0 | AK9: 0 | AL9: 0 | AM9: 0 | AN9: 0 | AO9: =SUM(AN11:AN166) -> 0 | AP9: 0 | AQ9: 0 | AR9: 0 | AS9: 0 | AU9: =SUM(AT11:AT166) -> 0 | AV9: 0 | AW9: 0 | AX9: 0 | AY9: 0 | AZ9: 0 | BA9: 0 | BB9: 0 | BC9: 0 | BD9: 0
B10: OHJE | G10: Puunmyyntitulot yhteensä | I10: =SUM(G9:I9) -> 15400 | Z10: 0 | AA10: =Z10/(1+AA7) -> 0
B11: 1 | J11: 1 | K11: Ei | L11: =IF(Etusivu!$C$22="kyllä",25.5%,0%) -> 0.255 | M11: =IF(R11>0,R11*L11,G11*L11+H11*L11+I11*L11+L11*V11) -> 0 | U11: =SUM(G11:I11)+SUM(O11:R11) -> 0 | Z11: OHJEITA | AD11: 1 | AE11: Ei | AF11: 1 | AG11: 1 | AI11: =IF($J11=1,IF($K11="Ei",$H11,0),0) -> 0 | AJ11: =IF($J11=1,IF($K11="Kyllä",$H11,0),0) -> 0 | AK11: =IF($J11=2,IF($K11="Ei",$H11,0),0) -> 0 | AL11: =IF($J11=2,IF($K11="Kyllä",$H11,0),0) -> 0 | AM11: =IF($J11=3,IF($K11="Ei",$H11,0),0) -> 0 | AN11: =IF($J11=3,IF($K11="kyllä",$H11,0),0) -> 0 | AO11: =IF($J11=4,IF($K11="ei",$H11,0),0) -> 0 | AP11: =IF($J11=4,IF($K11="Kyllä",$H11,0),0) -> 0 | AQ11: =IF($J11=5,IF($K11="ei",$H11,0),0) -> 0 | AR11: =IF($J11=5,IF($K11="kyllä",$H11,0),0) -> 0 | AT11: =IF($J11=1,IF($K11="Ei",$I11,0),0) -> 0 | AU11: =IF($J11=1,IF($K11="Kyllä",$I11,0),0) -> 0 | AV11: =IF($J11=2,IF($K11="Ei",$I11,0),0) -> 0 | AW11: =IF($J11=2,IF($K11="Kyllä",$I11,0),0) -> 0 | AX11: =IF($J11=3,IF($K11="Ei",$I11,0),0) -> 0 | AY11: =IF($J11=3,IF($K11="Kyllä",$I11,0),0) -> 0 | AZ11: =IF($J11=4,IF($K11="Ei",$I11,0),0) -> 0 | BA11: =IF($J11=4,IF($K11="Kyllä",$I11,0),0) -> 0 | BB11: =IF($J11=5,IF($K11="Ei",$I11,0),0) -> 0 | BC11: =IF($J11=5,IF($K11="Kyllä",$I11,0),0) -> 0
B12: =B11+1 -> 2 | J12: 1 | K12: Ei | L12: =IF(Etusivu!$C$22="kyllä",25.5%,0%) -> 0.255 | M12: =IF(R12>0,R12*L12,G12*L12+H12*L12+I12*L12+V12*L12) -> 0 | U12: =SUM(G12:I12)+SUM(O12:R12) -> 0 | AD12: 2 | AE12: Kyllä | AF12: 2 | AG12: 2 | AI12: =IF($J12=1,IF($K12="Ei",$H12,0),0) -> 0 | AJ12: =IF($J12=1,IF($K12="Kyllä",$H12,0),0) -> 0 | AK12: =IF($J12=2,IF($K12="Ei",$H12,0),0) -> 0 | AL12: =IF($J12=2,IF($K12="Kyllä",$H12,0),0) -> 0 | AM12: =IF($J12=3,IF($K12="Ei",$H12,0),0) -> 0 | AN12: =IF($J12=3,IF($K12="kyllä",$H12,0),0) -> 0 | AO12: =IF($J12=4,IF($K12="ei",$H12,0),0) -> 0 | AP12: =IF($J12=4,IF($K12="Kyllä",$H12,0),0) -> 0 | AQ12: =IF($J12=5,IF($K12="ei",$H12,0),0) -> 0 | AR12: =IF($J12=5,IF($K12="kyllä",$H12,0),0) -> 0 | AT12: =IF($J12=1,IF($K12="Ei",$I12,0),0) -> 0 | AU12: =IF($J12=1,IF($K12="Kyllä",$I12,0),0) -> 0 | AV12: =IF($J12=2,IF($K12="Ei",$I12,0),0) -> 0 | AW12: =IF($J12=2,IF($K12="Kyllä",$I12,0),0) -> 0 | AX12: =IF($J12=3,IF($K12="Ei",$I12,0),0) -> 0 | AY12: =IF($J12=3,IF($K12="Kyllä",$I12,0),0) -> 0 | AZ12: =IF($J12=4,IF($K12="Ei",$I12,0),0) -> 0 | BA12: =IF($J12=4,IF($K12="Kyllä",$I12,0),0) -> 0 | BB12: =IF($J12=5,IF($K12="Ei",$I12,0),0) -> 0 | BC12: =IF($J12=5,IF($K12="Kyllä",$I12,0),0) -> 0
B13: 3 | C13: 2 | D13: 3 | E13: Puukauppa firma X:n kanssa | G13: 15400 | J13: 1 | K13: Kyllä | L13: =IF(Etusivu!$C$22="kyllä",25.5%,0%) -> 0.255 | M13: =IF(R13>0,R13*L13,G13*L13+H13*L13+I13*L13+V13*L13) -> 3927 | N13: =G13*0.19 -> 2926 | U13: =SUM(G13:I13)+SUM(O13:R13) -> 15400 | Z13: o Muista kirjata tulon päiväys. Sen perusteella Mette laskee ALV:n oikealle kuukaudelle ja vie tulon sisältävän arvonlisveron jatkolaskentaan. | AD13: 3 | AF13: 3 | AG13: 3 | AI13: 0 | AJ13: 0 | AK13: 0 | AL13: 0 | AM13: 0 | AN13: 0 | AO13: 0 | AP13: 0 | AQ13: 0 | AR13: 0 | AT13: 0 | AU13: 0 | AV13: 0 | AW13: 0 | AX13: 0 | AY13: 0 | AZ13: 0 | BA13: 0 | BB13: 0 | BC13: 0
B14: 4 | C14: 6 | D14: 7 | E14: Metkatuki | J14: 1 | K14: Kyllä | L14: =IF(Etusivu!$C$22="kyllä",25.5%,0%) -> 0.255 | M14: =IF(R14>0,R14*L14,G14*L14+H14*L14+I14*L14+V14*L14) -> 0 | Q14: 400 | U14: =SUM(G14:I14)+SUM(O14:R14) -> 400 | AD14: 4 | AF14: 4 | AG14: 4 | AI14: 0 | AJ14: 0 | AK14: 0 | AL14: 0 | AM14: 0 | AN14: 0 | AO14: 0 | AP14: 0 | AQ14: 0 | AR14: 0 | AT14: 0 | AU14: 0 | AV14: 0 | AW14: 0 | AX14: 0 | AY14: 0 | AZ14: 0 | BA14: 0 | BB14: 0 | BC14: 0
B15: 5 | J15: 1 | K15: Ei | L15: =IF(Etusivu!$C$22="kyllä",25.5%,0%) -> 0.255 | M15: 0 | U15: 0 | Z15: o Puunmyyntitulot kirjataan ilman arvonlisäveroa. | AD15: 5 | AF15: 5 | AG15: 5 | AI15: 0 | AJ15: 0 | AK15: 0 | AL15: 0 | AM15: 0 | AN15: 0 | AO15: 0 | AP15: 0 | AQ15: 0 | AR15: 0 | AT15: 0 | AU15: 0 | AV15: 0 | AW15: 0 | AX15: 0 | AY15: 0 | AZ15: 0 | BA15: 0 | BB15: 0 | BC15: 0
B16: 6 | J16: 1 | K16: Ei | L16: =IF(Etusivu!$C$22="kyllä",25.5%,0%) -> 0.255 | M16: 0 | U16: 0 | AF16: 6 | AG16: 6 | AI16: 0 | AJ16: 0 | AK16: 0 | AL16: 0 | AM16: 0 | AN16: 0 | AO16: 0 | AP16: 0 | AQ16: 0 | AR16: 0 | AT16: 0 | AU16: 0 | AV16: 0 | AW16: 0 | AX16: 0 | AY16: 0 | AZ16: 0 | BA16: 0 | BB16: 0 | BC16: 0
B17: 7 | J17: 1 | K17: Ei | L17: =IF(Etusivu!$C$22="kyllä",25.5%,0%) -> 0.255 | M17: 0 | U17: 0 | Z17: o Hankintakauppojen osalta valitse hankintatyömaatila. Mettellä voidaan eritellä viiden maatilan hankintatyöt. | AF17: 7 | AG17: 7 | AI17: 0 | AJ17: 0 | AK17: 0 | AL17: 0 | AM17: 0 | AN17: 0 | AO17: 0 | AP17: 0 | AQ17: 0 | AR17: 0 | AT17: 0 | AU17: 0 | AV17: 0 | AW17: 0 | AX17: 0 | AY17: 0 | AZ17: 0 | BA17: 0 | BB17: 0 | BC17: 0
B18: 8 | J18: 1 | K18: Ei | L18: =IF(Etusivu!$C$22="kyllä",25.5%,0%) -> 0.255 | M18: 0 | U18: 0 | AF18: 8 | AG18: 8 | AI18: 0 | AJ18: 0 | AK18: 0 | AL18: 0 | AM18: 0 | AN18: 0 | AO18: 0 | AP18: 0 | AQ18: 0 | AR18: 0 | AT18: 0 | AU18: 0 | AV18: 0 | AW18: 0 | AX18: 0 | AY18: 0 | AZ18: 0 | BA18: 0 | BB18: 0 | BC18: 0
B19: =B18+1 -> 9 | J19: 1 | K19: Ei | L19: =IF(Etusivu!$C$22="kyllä",25.5%,0%) -> 0.255 | M19: 0 | U19: 0 | Z19: o Metsävähennykseen oikeutettujen myyntien osalta valitse pudotusvalikosta "Kyllä" metsävähennysoikeuden kohdalle | AF19: 9 | AG19: 9 | AI19: 0 | AJ19: 0 | AK19: 0 | AL19: 0 | AM19: 0 | AN19: 0 | AO19: 0 | AP19: 0 | AQ19: 0 | AR19: 0 | AT19: 0 | AU19: 0 | AV19: 0 | AW19: 0 | AX19: 0 | AY19: 0 | AZ19: 0 | BA19: 0 | BB19: 0 | BC19: 0
B20: 10 | J20: 1 | K20: Ei | L20: =IF(Etusivu!$C$22="kyllä",25.5%,0%) -> 0.255 | M20: 0 | U20: 0 | Z20: - Metsävähennystä saa myös Vakuutuskorvauksista, hirvivahinkokorvauksista ja metsätalouden tuista esim. Kemeratuesta. | AF20: 10 | AG20: 10 | AI20: 0 | AJ20: 0 | AK20: 0 | AL20: 0 | AM20: 0 | AN20: 0 | AO20: 0 | AP20: 0 | AQ20: 0 | AR20: 0 | AT20: 0 | AU20: 0 | AV20: 0 | AW20: 0 | AX20: 0 | AY20: 0 | AZ20: 0 | BA20: 0 | BB20: 0 | BC20: 0
B21: 11 | J21: 1 | K21: Ei | L21: =IF(Etusivu!$C$22="kyllä",25.5%,0%) -> 0.255 | M21: 0 | U21: 0 | AF21: 11 | AG21: 11 | AI21: 0 | AJ21: 0 | AK21: 0 | AL21: 0 | AM21: 0 | AN21: 0 | AO21: 0 | AP21: 0 | AQ21: 0 | AR21: 0 | AT21: 0 | AU21: 0 | AV21: 0 | AW21: 0 | AX21: 0 | AY21: 0 | AZ21: 0 | BA21: 0 | BB21: 0 | BC21: 0
B22: 12 | J22: 1 | K22: Ei | L22: =IF(Etusivu!$C$22="kyllä",25.5%,0%) -> 0.255 | M22: 0 | U22: 0 | Z22: o Mikäli kirjaat ennakonpidätyksen määrän, tuloksen laskennassa lasketaan lisäveron tai palautuksenmäärä. | AF22: 12 | AG22: 12 | AI22: 0 | AJ22: 0 | AK22: 0 | AL22: 0 | AM22: 0 | AN22: 0 | AO22: 0 | AP22: 0 | AQ22: 0 | AR22: 0 | AT22: 0 | AU22: 0 | AV22: 0 | AW22: 0 | AX22: 0 | AY22: 0 | AZ22: 0 | BA22: 0 | BB22: 0 | BC22: 0
B23: 13 | J23: 1 | K23: Ei | L23: =IF(Etusivu!$C$22="kyllä",25.5%,0%) -> 0.255 | M23: 0 | U23: 0 | AF23: 13 | AI23: 0 | AJ23: 0 | AK23: 0 | AL23: 0 | AM23: 0 | AN23: 0 | AO23: 0 | AP23: 0 | AQ23: 0 | AR23: 0 | AT23: 0 | AU23: 0 | AV23: 0 | AW23: 0 | AX23: 0 | AY23: 0 | AZ23: 0 | BA23: 0 | BB23: 0 | BC23: 0
B24: 14 | J24: 1 | K24: Ei | L24: =IF(Etusivu!$C$22="kyllä",25.5%,0%) -> 0.255 | M24: 0 | U24: 0 | Z24: o Maatalouden tuloihin kuuluvia tuloja voi vähäisessä määrin laskea Mettellä. Niihin liittyvät arvonlisäverot lasketaan mukaan alv:n laskentaan. | AF24: 14 | AI24: 0 | AJ24: 0 | AK24: 0 | AL24: 0 | AM24: 0 | AN24: 0 | AO24: 0 | AP24: 0 | AQ24: 0 | AR24: 0 | AT24: 0 | AU24: 0 | AV24: 0 | AW24: 0 | AX24: 0 | AY24: 0 | AZ24: 0 | BA24: 0 | BB24: 0 | BC24: 0
B25: 15 | J25: 1 | K25: Ei | L25: =IF(Etusivu!$C$22="kyllä",25.5%,0%) -> 0.255 | M25: 0 | U25: 0 | AF25: 15 | AI25: 0 | AJ25: 0 | AK25: 0 | AL25: 0 | AM25: 0 | AN25: 0 | AO25: 0 | AP25: 0 | AQ25: 0 | AR25: 0 | AT25: 0 | AU25: 0 | AV25: 0 | AW25: 0 | AX25: 0 | AY25: 0 | AZ25: 0 | BA25: 0 | BB25: 0 | BC25: 0
B26: 16 | J26: 1 | K26: Ei | L26: =IF(Etusivu!$C$22="kyllä",25.5%,0%) -> 0.255 | M26: 0 | U26: 0 | Z26: o Kuitin upottaminen: Valitse Excelin valikkoriviltä kohta Lisää ja sieltä ryhmässä Teksti oleva "Objekti kuvake". Avautuvassa ikkunassa valitse välilehti Luo tiedostosta. Hae kuitti selaa-napista. Rastita kohta Näytä kuvakkena. Voit halutessasi kutistaa kuvaketta rivin korkuiseksi. | AI26: 0 | AJ26: 0 | AK26: 0 | AL26: 0 | AM26: 0 | AN26: 0 | AO26: 0 | AP26: 0 | AQ26: 0 | AR26: 0 | AT26: 0 | AU26: 0 | AV26: 0 | AW26: 0 | AX26: 0 | AY26: 0 | AZ26: 0 | BA26: 0 | BB26: 0 | BC26: 0
B27: 17 | J27: 1 | K27: Ei | L27: =IF(Etusivu!$C$22="kyllä",25.5%,0%) -> 0.255 | M27: 0 | U27: 0 | AI27: 0 | AJ27: 0 | AK27: 0 | AL27: 0 | AM27: 0 | AN27: 0 | AO27: 0 | AP27: 0 | AQ27: 0 | AR27: 0 | AT27: 0 | AU27: 0 | AV27: 0 | AW27: 0 | AX27: 0 | AY27: 0 | AZ27: 0 | BA27: 0 | BB27: 0 | BC27: 0
B28: 18 | J28: 1 | K28: Ei | L28: =IF(Etusivu!$C$22="kyllä",25.5%,0%) -> 0.255 | M28: 0 | U28: 0 | AF28: 18 | AI28: 0 | AJ28: 0 | AK28: 0 | AL28: 0 | AM28: 0 | AN28: 0 | AO28: 0 | AP28: 0 | AQ28: 0 | AR28: 0 | AT28: 0 | AU28: 0 | AV28: 0 | AW28: 0 | AX28: 0 | AY28: 0 | AZ28: 0 | BA28: 0 | BB28: 0 | BC28: 0
B29: 19 | J29: 1 | K29: Ei | L29: =IF(Etusivu!$C$22="kyllä",25.5%,0%) -> 0.255 | M29: 0 | U29: 0 | AF29: 19 | AI29: 0 | AJ29: 0 | AK29: 0 | AL29: 0 | AM29: 0 | AN29: 0 | AO29: 0 | AP29: 0 | AQ29: 0 | AR29: 0 | AT29: 0 | AU29: 0 | AV29: 0 | AW29: 0 | AX29: 0 | AY29: 0 | AZ29: 0 | BA29: 0 | BB29: 0 | BC29: 0
B30: 20 | J30: 1 | K30: Ei | L30: =IF(Etusivu!$C$22="kyllä",25.5%,0%) -> 0.255 | M30: 0 | U30: 0 | AF30: 20 | AI30: 0 | AJ30: 0 | AK30: 0 | AL30: 0 | AM30: 0 | AN30: 0 | AO30: 0 | AP30: 0 | AQ30: 0 | AR30: 0 | AT30: 0 | AU30: 0 | AV30: 0 | AW30: 0 | AX30: 0 | AY30: 0 | AZ30: 0 | BA30: 0 | BB30: 0 | BC30: 0
B31: 21 | J31: 1 | K31: Ei | L31: =IF(Etusivu!$C$22="kyllä",25.5%,0%) -> 0.255 | M31: 0 | U31: 0 | AF31: 21 | AI31: 0 | AJ31: 0 | AK31: 0 | AL31: 0 | AM31: 0 | AN31: 0 | AO31: 0 | AP31: 0 | AQ31: 0 | AR31: 0 | AT31: 0 | AU31: 0 | AV31: 0 | AW31: 0 | AX31: 0 | AY31: 0 | AZ31: 0 | BA31: 0 | BB31: 0 | BC31: 0
B32: 22 | J32: 1 | K32: Ei | L32: =IF(Etusivu!$C$22="kyllä",25.5%,0%) -> 0.255 | M32: 0 | U32: 0 | AF32: 22 | AI32: 0 | AJ32: 0 | AK32: 0 | AL32: 0 | AM32: 0 | AN32: 0 | AO32: 0 | AP32: 0 | AQ32: 0 | AR32: 0 | AT32: 0 | AU32: 0 | AV32: 0 | AW32: 0 | AX32: 0 | AY32: 0 | AZ32: 0 | BA32: 0 | BB32: 0 | BC32: 0
B33: 23 | J33: 1 | K33: Ei | L33: =IF(Etusivu!$C$22="kyllä",25.5%,0%) -> 0.255 | M33: 0 | U33: 0 | AF33: 23 | AI33: 0 | AJ33: 0 | AK33: 0 | AL33: 0 | AM33: 0 | AN33: 0 | AO33: 0 | AP33: 0 | AQ33: 0 | AR33: 0 | AT33: 0 | AU33: 0 | AV33: 0 | AW33: 0 | AX33: 0 | AY33: 0 | AZ33: 0 | BA33: 0 | BB33: 0 | BC33: 0
B34: 24 | J34: 1 | K34: Ei | L34: =IF(Etusivu!$C$22="kyllä",25.5%,0%) -> 0.255 | M34: 0 | U34: 0 | AF34: 24 | AI34: 0 | AJ34: 0 | AK34: 0 | AL34: 0 | AM34: 0 | AN34: 0 | AO34: 0 | AP34: 0 | AQ34: 0 | AR34: 0 | AT34: 0 | AU34: 0 | AV34: 0 | AW34: 0 | AX34: 0 | AY34: 0 | AZ34: 0 | BA34: 0 | BB34: 0 | BC34: 0
B35: 25 | J35: 1 | K35: Ei | L35: =IF(Etusivu!$C$22="kyllä",25.5%,0%) -> 0.255 | M35: 0 | U35: 0 | AF35: 25 | AI35: 0 | AJ35: 0 | AK35: 0 | AL35: 0 | AM35: 0 | AN35: 0 | AO35: 0 | AP35: 0 | AQ35: 0 | AR35: 0 | AT35: 0 | AU35: 0 | AV35: 0 | AW35: 0 | AX35: 0 | AY35: 0 | AZ35: 0 | BA35: 0 | BB35: 0 | BC35: 0
B36: 26 | J36: 1 | K36: Ei | L36: =IF(Etusivu!$C$22="kyllä",25.5%,0%) -> 0.255 | M36: 0 | U36: 0 | AF36: 26 | AI36: 0 | AJ36: 0 | AK36: 0 | AL36: 0 | AM36: 0 | AN36: 0 | AO36: 0 | AP36: 0 | AQ36: 0 | AR36: 0 | AT36: 0 | AU36: 0 | AV36: 0 | AW36: 0 | AX36: 0 | AY36: 0 | AZ36: 0 | BA36: 0 | BB36: 0 | BC36: 0
B37: 27 | J37: 1 | K37: Ei | L37: =IF(Etusivu!$C$22="kyllä",25.5%,0%) -> 0.255 | M37: 0 | U37: 0 | AF37: 27 | AI37: 0 | AJ37: 0 | AK37: 0 | AL37: 0 | AM37: 0 | AN37: 0 | AO37: 0 | AP37: 0 | AQ37: 0 | AR37: 0 | AT37: 0 | AU37: 0 | AV37: 0 | AW37: 0 | AX37: 0 | AY37: 0 | AZ37: 0 | BA37: 0 | BB37: 0 | BC37: 0
B38: 28 | J38: 1 | K38: Ei | L38: =IF(Etusivu!$C$22="kyllä",25.5%,0%) -> 0.255 | M38: 0 | U38: 0 | AF38: 28 | AI38: 0 | AJ38: 0 | AK38: 0 | AL38: 0 | AM38: 0 | AN38: 0 | AO38: 0 | AP38: 0 | AQ38: 0 | AR38: 0 | AT38: 0 | AU38: 0 | AV38: 0 | AW38: 0 | AX38: 0 | AY38: 0 | AZ38: 0 | BA38: 0 | BB38: 0 | BC38: 0
B39: 29 | J39: 1 | K39: Ei | L39: =IF(Etusivu!$C$22="kyllä",25.5%,0%) -> 0.255 | M39: 0 | U39: 0 | AF39: 29 | AI39: 0 | AJ39: 0 | AK39: 0 | AL39: 0 | AM39: 0 | AN39: 0 | AO39: 0 | AP39: 0 | AQ39: 0 | AR39: 0 | AT39: 0 | AU39: 0 | AV39: 0 | AW39: 0 | AX39: 0 | AY39: 0 | AZ39: 0 | BA39: 0 | BB39: 0 | BC39: 0
B40: 30 | J40: 1 | K40: Ei | L40: =IF(Etusivu!$C$22="kyllä",25.5%,0%) -> 0.255 | M40: 0 | U40: 0 | AF40: 30 | AI40: 0 | AJ40: 0 | AK40: 0 | AL40: 0 | AM40: 0 | AN40: 0 | AO40: 0 | AP40: 0 | AQ40: 0 | AR40: 0 | AT40: 0 | AU40: 0 | AV40: 0 | AW40: 0 | AX40: 0 | AY40: 0 | AZ40: 0 | BA40: 0 | BB40: 0 | BC40: 0
B41: 31 | J41: 1 | K41: Ei | L41: =IF(Etusivu!$C$22="kyllä",25.5%,0%) -> 0.255 | M41: 0 | U41: 0 | AF41: 31 | AI41: 0 | AJ41: 0 | AK41: 0 | AL41: 0 | AM41: 0 | AN41: 0 | AO41: 0 | AP41: 0 | AQ41: 0 | AR41: 0 | AT41: 0 | AU41: 0 | AV41: 0 | AW41: 0 | AX41: 0 | AY41: 0 | AZ41: 0 | BA41: 0 | BB41: 0 | BC41: 0
B42: 32 | J42: 1 | K42: Ei | L42: =IF(Etusivu!$C$22="kyllä",25.5%,0%) -> 0.255 | M42: 0 | U42: 0 | AI42: 0 | AJ42: 0 | AK42: 0 | AL42: 0 | AM42: 0 | AN42: 0 | AO42: 0 | AP42: 0 | AQ42: 0 | AR42: 0 | AT42: 0 | AU42: 0 | AV42: 0 | AW42: 0 | AX42: 0 | AY42: 0 | AZ42: 0 | BA42: 0 | BB42: 0 | BC42: 0
B43: 33 | J43: 1 | K43: Ei | L43: =IF(Etusivu!$C$22="kyllä",25.5%,0%) -> 0.255 | M43: 0 | U43: 0 | AI43: 0 | AJ43: 0 | AK43: 0 | AL43: 0 | AM43: 0 | AN43: 0 | AO43: 0 | AP43: 0 | AQ43: 0 | AR43: 0 | AT43: 0 | AU43: 0 | AV43: 0 | AW43: 0 | AX43: 0 | AY43: 0 | AZ43: 0 | BA43: 0 | BB43: 0 | BC43: 0
B44: 34 | J44: 1 | K44: Ei | L44: =IF(Etusivu!$C$22="kyllä",25.5%,0%) -> 0.255 | M44: 0 | U44: 0 | AI44: 0 | AJ44: 0 | AK44: 0 | AL44: 0 | AM44: 0 | AN44: 0 | AO44: 0 | AP44: 0 | AQ44: 0 | AR44: 0 | AT44: 0 | AU44: 0 | AV44: 0 | AW44: 0 | AX44: 0 | AY44: 0 | AZ44: 0 | BA44: 0 | BB44: 0 | BC44: 0
B45: 35 | J45: 1 | K45: Ei | L45: =IF(Etusivu!$C$22="kyllä",25.5%,0%) -> 0.255 | M45: 0 | U45: 0 | AI45: 0 | AJ45: 0 | AK45: 0 | AL45: 0 | AM45: 0 | AN45: 0 | AO45: 0 | AP45: 0 | AQ45: 0 | AR45: 0 | AT45: 0 | AU45: 0 | AV45: 0 | AW45: 0 | AX45: 0 | AY45: 0 | AZ45: 0 | BA45: 0 | BB45: 0 | BC45: 0
B46: 36 | J46: 1 | K46: Ei | L46: =IF(Etusivu!$C$22="kyllä",25.5%,0%) -> 0.255 | M46: 0 | U46: 0 | AI46: 0 | AJ46: 0 | AK46: 0 | AL46: 0 | AM46: 0 | AN46: 0 | AO46: 0 | AP46: 0 | AQ46: 0 | AR46: 0 | AT46: 0 | AU46: 0 | AV46: 0 | AW46: 0 | AX46: 0 | AY46: 0 | AZ46: 0 | BA46: 0 | BB46: 0 | BC46: 0
B47: 37 | J47: 1 | K47: Ei | L47: =IF(Etusivu!$C$22="kyllä",25.5%,0%) -> 0.255 | M47: 0 | U47: 0 | AI47: 0 | AJ47: 0 | AK47: 0 | AL47: 0 | AM47: 0 | AN47: 0 | AO47: 0 | AP47: 0 | AQ47: 0 | AR47: 0 | AT47: 0 | AU47: 0 | AV47: 0 | AW47: 0 | AX47: 0 | AY47: 0 | AZ47: 0 | BA47: 0 | BB47: 0 | BC47: 0
B48: 38 | J48: 1 | K48: Ei | L48: =IF(Etusivu!$C$22="kyllä",25.5%,0%) -> 0.255 | M48: 0 | U48: 0 | AI48: 0 | AJ48: 0 | AK48: 0 | AL48: 0 | AM48: 0 | AN48: 0 | AO48: 0 | AP48: 0 | AQ48: 0 | AR48: 0 | AT48: 0 | AU48: 0 | AV48: 0 | AW48: 0 | AX48: 0 | AY48: 0 | AZ48: 0 | BA48: 0 | BB48: 0 | BC48: 0
B49: 39 | J49: 1 | K49: Ei | L49: =IF(Etusivu!$C$22="kyllä",25.5%,0%) -> 0.255 | M49: 0 | U49: 0 | AI49: 0 | AJ49: 0 | AK49: 0 | AL49: 0 | AM49: 0 | AN49: 0 | AO49: 0 | AP49: 0 | AQ49: 0 | AR49: 0 | AT49: 0 | AU49: 0 | AV49: 0 | AW49: 0 | AX49: 0 | AY49: 0 | AZ49: 0 | BA49: 0 | BB49: 0 | BC49: 0
B50: 40 | J50: 1 | K50: Ei | L50: =IF(Etusivu!$C$22="kyllä",25.5%,0%) -> 0.255 | M50: 0 | U50: 0 | AI50: 0 | AJ50: 0 | AK50: 0 | AL50: 0 | AM50: 0 | AN50: 0 | AO50: 0 | AP50: 0 | AQ50: 0 | AR50: 0 | AT50: 0 | AU50: 0 | AV50: 0 | AW50: 0 | AX50: 0 | AY50: 0 | AZ50: 0 | BA50: 0 | BB50: 0 | BC50: 0
B51: 41 | J51: 1 | K51: Ei | L51: =IF(Etusivu!$C$22="kyllä",25.5%,0%) -> 0.255 | M51: 0 | U51: 0 | AI51: 0 | AJ51: 0 | AK51: 0 | AL51: 0 | AM51: 0 | AN51: 0 | AO51: 0 | AP51: 0 | AQ51: 0 | AR51: 0 | AT51: 0 | AU51: 0 | AV51: 0 | AW51: 0 | AX51: 0 | AY51: 0 | AZ51: 0 | BA51: 0 | BB51: 0 | BC51: 0
B52: 42 | J52: 1 | K52: Ei | L52: =IF(Etusivu!$C$22="kyllä",25.5%,0%) -> 0.255 | M52: 0 | U52: 0 | AI52: 0 | AJ52: 0 | AK52: 0 | AL52: 0 | AM52: 0 | AN52: 0 | AO52: 0 | AP52: 0 | AQ52: 0 | AR52: 0 | AT52: 0 | AU52: 0 | AV52: 0 | AW52: 0 | AX52: 0 | AY52: 0 | AZ52: 0 | BA52: 0 | BB52: 0 | BC52: 0
B53: 43 | J53: 1 | K53: Ei | L53: =IF(Etusivu!$C$22="kyllä",25.5%,0%) -> 0.255 | M53: 0 | U53: 0 | AI53: 0 | AJ53: 0 | AK53: 0 | AL53: 0 | AM53: 0 | AN53: 0 | AO53: 0 | AP53: 0 | AQ53: 0 | AR53: 0 | AT53: 0 | AU53: 0 | AV53: 0 | AW53: 0 | AX53: 0 | AY53: 0 | AZ53: 0 | BA53: 0 | BB53: 0 | BC53: 0
B54: 44 | J54: 1 | K54: Ei | L54: =IF(Etusivu!$C$22="kyllä",25.5%,0%) -> 0.255 | M54: 0 | U54: 0 | AI54: 0 | AJ54: 0 | AK54: 0 | AL54: 0 | AM54: 0 | AN54: 0 | AO54: 0 | AP54: 0 | AQ54: 0 | AR54: 0 | AT54: 0 | AU54: 0 | AV54: 0 | AW54: 0 | AX54: 0 | AY54: 0 | AZ54: 0 | BA54: 0 | BB54: 0 | BC54: 0
B55: 45 | J55: 1 | K55: Ei | L55: =IF(Etusivu!$C$22="kyllä",25.5%,0%) -> 0.255 | M55: 0 | U55: 0 | AI55: 0 | AJ55: 0 | AK55: 0 | AL55: 0 | AM55: 0 | AN55: 0 | AO55: 0 | AP55: 0 | AQ55: 0 | AR55: 0 | AT55: 0 | AU55: 0 | AV55: 0 | AW55: 0 | AX55: 0 | AY55: 0 | AZ55: 0 | BA55: 0 | BB55: 0 | BC55: 0
B56: 46 | J56: 1 | K56: Ei | L56: =IF(Etusivu!$C$22="kyllä",25.5%,0%) -> 0.255 | M56: 0 | U56: 0 | AI56: 0 | AJ56: 0 | AK56: 0 | AL56: 0 | AM56: 0 | AN56: 0 | AO56: 0 | AP56: 0 | AQ56: 0 | AR56: 0 | AT56: 0 | AU56: 0 | AV56: 0 | AW56: 0 | AX56: 0 | AY56: 0 | AZ56: 0 | BA56: 0 | BB56: 0 | BC56: 0
B57: 47 | J57: 1 | K57: Ei | L57: =IF(Etusivu!$C$22="kyllä",25.5%,0%) -> 0.255 | M57: 0 | U57: 0 | AI57: 0 | AJ57: 0 | AK57: 0 | AL57: 0 | AM57: 0 | AN57: 0 | AO57: 0 | AP57: 0 | AQ57: 0 | AR57: 0 | AT57: 0 | AU57: 0 | AV57: 0 | AW57: 0 | AX57: 0 | AY57: 0 | AZ57: 0 | BA57: 0 | BB57: 0 | BC57: 0
B58: 48 | J58: 1 | K58: Ei | L58: =IF(Etusivu!$C$22="kyllä",25.5%,0%) -> 0.255 | M58: 0 | U58: 0 | AI58: 0 | AJ58: 0 | AK58: 0 | AL58: 0 | AM58: 0 | AN58: 0 | AO58: 0 | AP58: 0 | AQ58: 0 | AR58: 0 | AT58: 0 | AU58: 0 | AV58: 0 | AW58: 0 | AX58: 0 | AY58: 0 | AZ58: 0 | BA58: 0 | BB58: 0 | BC58: 0
B59: 49 | J59: 1 | K59: Ei | L59: =IF(Etusivu!$C$22="kyllä",25.5%,0%) -> 0.255 | M59: 0 | U59: 0 | AI59: 0 | AJ59: 0 | AK59: 0 | AL59: 0 | AM59: 0 | AN59: 0 | AO59: 0 | AP59: 0 | AQ59: 0 | AR59: 0 | AT59: 0 | AU59: 0 | AV59: 0 | AW59: 0 | AX59: 0 | AY59: 0 | AZ59: 0 | BA59: 0 | BB59: 0 | BC59: 0
B60: 50 | J60: 1 | K60: Ei | L60: =IF(Etusivu!$C$22="kyllä",25.5%,0%) -> 0.255 | M60: 0 | U60: 0 | AI60: 0 | AJ60: 0 | AK60: 0 | AL60: 0 | AM60: 0 | AN60: 0 | AO60: 0 | AP60: 0 | AQ60: 0 | AR60: 0 | AT60: 0 | AU60: 0 | AV60: 0 | AW60: 0 | AX60: 0 | AY60: 0 | AZ60: 0 | BA60: 0 | BB60: 0 | BC60: 0
B61: 51 | J61: 1 | K61: Ei | L61: =IF(Etusivu!$C$22="kyllä",25.5%,0%) -> 0.255 | M61: 0 | U61: 0 | AI61: 0 | AJ61: 0 | AK61: 0 | AL61: 0 | AM61: 0 | AN61: 0 | AO61: 0 | AP61: 0 | AQ61: 0 | AR61: 0 | AT61: 0 | AU61: 0 | AV61: 0 | AW61: 0 | AX61: 0 | AY61: 0 | AZ61: 0 | BA61: 0 | BB61: 0 | BC61: 0
B62: 52 | J62: 1 | K62: Ei | L62: =IF(Etusivu!$C$22="kyllä",25.5%,0%) -> 0.255 | M62: 0 | U62: 0 | AI62: 0 | AJ62: 0 | AK62: 0 | AL62: 0 | AM62: 0 | AN62: 0 | AO62: 0 | AP62: 0 | AQ62: 0 | AR62: 0 | AT62: 0 | AU62: 0 | AV62: 0 | AW62: 0 | AX62: 0 | AY62: 0 | AZ62: 0 | BA62: 0 | BB62: 0 | BC62: 0
B63: 53 | J63: 1 | K63: Ei | L63: =IF(Etusivu!$C$22="kyllä",25.5%,0%) -> 0.255 | M63: 0 | U63: 0 | AI63: 0 | AJ63: 0 | AK63: 0 | AL63: 0 | AM63: 0 | AN63: 0 | AO63: 0 | AP63: 0 | AQ63: 0 | AR63: 0 | AT63: 0 | AU63: 0 | AV63: 0 | AW63: 0 | AX63: 0 | AY63: 0 | AZ63: 0 | BA63: 0 | BB63: 0 | BC63: 0
B64: 54 | J64: 1 | K64: Ei | L64: =IF(Etusivu!$C$22="kyllä",25.5%,0%) -> 0.255 | M64: 0 | U64: 0 | AI64: 0 | AJ64: 0 | AK64: 0 | AL64: 0 | AM64: 0 | AN64: 0 | AO64: 0 | AP64: 0 | AQ64: 0 | AR64: 0 | AT64: 0 | AU64: 0 | AV64: 0 | AW64: 0 | AX64: 0 | AY64: 0 | AZ64: 0 | BA64: 0 | BB64: 0 | BC64: 0
B65: 55 | J65: 1 | K65: Ei | L65: =IF(Etusivu!$C$22="kyllä",25.5%,0%) -> 0.255 | M65: 0 | U65: 0 | AI65: 0 | AJ65: 0 | AK65: 0 | AL65: 0 | AM65: 0 | AN65: 0 | AO65: 0 | AP65: 0 | AQ65: 0 | AR65: 0 | AT65: 0 | AU65: 0 | AV65: 0 | AW65: 0 | AX65: 0 | AY65: 0 | AZ65: 0 | BA65: 0 | BB65: 0 | BC65: 0
B66: 56 | J66: 1 | K66: Ei | L66: =IF(Etusivu!$C$22="kyllä",25.5%,0%) -> 0.255 | M66: 0 | U66: 0 | AI66: 0 | AJ66: 0 | AK66: 0 | AL66: 0 | AM66: 0 | AN66: 0 | AO66: 0 | AP66: 0 | AQ66: 0 | AR66: 0 | AT66: 0 | AU66: 0 | AV66: 0 | AW66: 0 | AX66: 0 | AY66: 0 | AZ66: 0 | BA66: 0 | BB66: 0 | BC66: 0
B67: 57 | J67: 1 | K67: Ei | L67: =IF(Etusivu!$C$22="kyllä",25.5%,0%) -> 0.255 | M67: 0 | U67: 0 | AI67: 0 | AJ67: 0 | AK67: 0 | AL67: 0 | AM67: 0 | AN67: 0 | AO67: 0 | AP67: 0 | AQ67: 0 | AR67: 0 | AT67: 0 | AU67: 0 | AV67: 0 | AW67: 0 | AX67: 0 | AY67: 0 | AZ67: 0 | BA67: 0 | BB67: 0 | BC67: 0
B68: 58 | J68: 1 | K68: Ei | L68: =IF(Etusivu!$C$22="kyllä",25.5%,0%) -> 0.255 | M68: 0 | U68: 0 | AI68: 0 | AJ68: 0 | AK68: 0 | AL68: 0 | AM68: 0 | AN68: 0 | AO68: 0 | AP68: 0 | AQ68: 0 | AR68: 0 | AT68: 0 | AU68: 0 | AV68: 0 | AW68: 0 | AX68: 0 | AY68: 0 | AZ68: 0 | BA68: 0 | BB68: 0 | BC68: 0
B69: 59 | J69: 1 | K69: Ei | L69: =IF(Etusivu!$C$22="kyllä",25.5%,0%) -> 0.255 | M69: 0 | U69: 0 | AI69: 0 | AJ69: 0 | AK69: 0 | AL69: 0 | AM69: 0 | AN69: 0 | AO69: 0 | AP69: 0 | AQ69: 0 | AR69: 0 | AT69: 0 | AU69: 0 | AV69: 0 | AW69: 0 | AX69: 0 | AY69: 0 | AZ69: 0 | BA69: 0 | BB69: 0 | BC69: 0
B70: 60 | J70: 1 | K70: Ei | L70: =IF(Etusivu!$C$22="kyllä",25.5%,0%) -> 0.255 | M70: 0 | U70: 0 | AI70: 0 | AJ70: 0 | AK70: 0 | AL70: 0 | AM70: 0 | AN70: 0 | AO70: 0 | AP70: 0 | AQ70: 0 | AR70: 0 | AT70: 0 | AU70: 0 | AV70: 0 | AW70: 0 | AX70: 0 | AY70: 0 | AZ70: 0 | BA70: 0 | BB70: 0 | BC70: 0
B71: 61 | J71: 1 | K71: Ei | L71: =IF(Etusivu!$C$22="kyllä",25.5%,0%) -> 0.255 | M71: 0 | U71: 0 | AI71: 0 | AJ71: 0 | AK71: 0 | AL71: 0 | AM71: 0 | AN71: 0 | AO71: 0 | AP71: 0 | AQ71: 0 | AR71: 0 | AT71: 0 | AU71: 0 | AV71: 0 | AW71: 0 | AX71: 0 | AY71: 0 | AZ71: 0 | BA71: 0 | BB71: 0 | BC71: 0
B72: 62 | J72: 1 | K72: Ei | L72: =IF(Etusivu!$C$22="kyllä",25.5%,0%) -> 0.255 | M72: 0 | U72: 0 | AI72: 0 | AJ72: 0 | AK72: 0 | AL72: 0 | AM72: 0 | AN72: 0 | AO72: 0 | AP72: 0 | AQ72: 0 | AR72: 0 | AT72: 0 | AU72: 0 | AV72: 0 | AW72: 0 | AX72: 0 | AY72: 0 | AZ72: 0 | BA72: 0 | BB72: 0 | BC72: 0
B73: 63 | J73: 1 | K73: Ei | L73: =IF(Etusivu!$C$22="kyllä",25.5%,0%) -> 0.255 | M73: 0 | U73: 0 | AI73: 0 | AJ73: 0 | AK73: 0 | AL73: 0 | AM73: 0 | AN73: 0 | AO73: 0 | AP73: 0 | AQ73: 0 | AR73: 0 | AT73: 0 | AU73: 0 | AV73: 0 | AW73: 0 | AX73: 0 | AY73: 0 | AZ73: 0 | BA73: 0 | BB73: 0 | BC73: 0
B74: 64 | J74: 1 | K74: Ei | L74: =IF(Etusivu!$C$22="kyllä",25.5%,0%) -> 0.255 | M74: 0 | U74: 0 | AI74: 0 | AJ74: 0 | AK74: 0 | AL74: 0 | AM74: 0 | AN74: 0 | AO74: 0 | AP74: 0 | AQ74: 0 | AR74: 0 | AT74: 0 | AU74: 0 | AV74: 0 | AW74: 0 | AX74: 0 | AY74: 0 | AZ74: 0 | BA74: 0 | BB74: 0 | BC74: 0
B75: 65 | J75: 1 | K75: Ei | L75: =IF(Etusivu!$C$22="kyllä",25.5%,0%) -> 0.255 | M75: 0 | U75: 0 | AI75: 0 | AJ75: 0 | AK75: 0 | AL75: 0 | AM75: 0 | AN75: 0 | AO75: 0 | AP75: 0 | AQ75: 0 | AR75: 0 | AT75: 0 | AU75: 0 | AV75: 0 | AW75: 0 | AX75: 0 | AY75: 0 | AZ75: 0 | BA75: 0 | BB75: 0 | BC75: 0
B76: 66 | J76: 1 | K76: Ei | L76: =IF(Etusivu!$C$22="kyllä",25.5%,0%) -> 0.255 | M76: 0 | U76: 0 | AI76: =IF($J76=1,IF($K76="Ei",$H76,0),0) -> 0 | AJ76: =IF($J76=1,IF($K76="Kyllä",$H76,0),0) -> 0 | AK76: =IF($J76=2,IF($K76="Ei",$H76,0),0) -> 0 | AL76: =IF($J76=2,IF($K76="Kyllä",$H76,0),0) -> 0 | AM76: =IF($J76=3,IF($K76="Ei",$H76,0),0) -> 0 | AN76: =IF($J76=3,IF($K76="kyllä",$H76,0),0) -> 0 | AO76: =IF($J76=4,IF($K76="ei",$H76,0),0) -> 0 | AP76: =IF($J76=4,IF($K76="Kyllä",$H76,0),0) -> 0 | AQ76: =IF($J76=5,IF($K76="ei",$H76,0),0) -> 0 | AR76: =IF($J76=5,IF($K76="kyllä",$H76,0),0) -> 0 | AT76: =IF($J76=1,IF($K76="Ei",$I76,0),0) -> 0 | AU76: =IF($J76=1,IF($K76="Kyllä",$I76,0),0) -> 0 | AV76: =IF($J76=2,IF($K76="Ei",$I76,0),0) -> 0 | AW76: =IF($J76=2,IF($K76="Kyllä",$I76,0),0) -> 0 | AX76: =IF($J76=3,IF($K76="Ei",$I76,0),0) -> 0 | AY76: =IF($J76=3,IF($K76="Kyllä",$I76,0),0) -> 0 | AZ76: =IF($J76=4,IF($K76="Ei",$I76,0),0) -> 0 | BA76: =IF($J76=4,IF($K76="Kyllä",$I76,0),0) -> 0 | BB76: =IF($J76=5,IF($K76="Ei",$I76,0),0) -> 0 | BC76: =IF($J76=5,IF($K76="Kyllä",$I76,0),0) -> 0
B77: 67 | J77: 1 | K77: Ei | L77: =IF(Etusivu!$C$22="kyllä",25.5%,0%) -> 0.255 | M77: 0 | U77: 0 | AI77: 0 | AJ77: 0 | AK77: 0 | AL77: 0 | AM77: 0 | AN77: 0 | AO77: 0 | AP77: 0 | AQ77: 0 | AR77: 0 | AT77: 0 | AU77: 0 | AV77: 0 | AW77: 0 | AX77: 0 | AY77: 0 | AZ77: 0 | BA77: 0 | BB77: 0 | BC77: 0
B78: 68 | J78: 1 | K78: Ei | L78: =IF(Etusivu!$C$22="kyllä",25.5%,0%) -> 0.255 | M78: =IF(R78>0,R78*L78,G78*L78+H78*L78+I78*L78+V78*L78) -> 0 | U78: =SUM(G78:I78)+SUM(O78:R78) -> 0 | AI78: 0 | AJ78: 0 | AK78: 0 | AL78: 0 | AM78: 0 | AN78: 0 | AO78: 0 | AP78: 0 | AQ78: 0 | AR78: 0 | AT78: 0 | AU78: 0 | AV78: 0 | AW78: 0 | AX78: 0 | AY78: 0 | AZ78: 0 | BA78: 0 | BB78: 0 | BC78: 0
B79: 69 | J79: 1 | K79: Ei | L79: =IF(Etusivu!$C$22="kyllä",25.5%,0%) -> 0.255 | M79: 0 | U79: 0 | AI79: 0 | AJ79: 0 | AK79: 0 | AL79: 0 | AM79: 0 | AN79: 0 | AO79: 0 | AP79: 0 | AQ79: 0 | AR79: 0 | AT79: 0 | AU79: 0 | AV79: 0 | AW79: 0 | AX79: 0 | AY79: 0 | AZ79: 0 | BA79: 0 | BB79: 0 | BC79: 0
B80: 70 | J80: 1 | K80: Ei | L80: =IF(Etusivu!$C$22="kyllä",25.5%,0%) -> 0.255 | M80: 0 | U80: 0 | AI80: 0 | AJ80: 0 | AK80: 0 | AL80: 0 | AM80: 0 | AN80: 0 | AO80: 0 | AP80: 0 | AQ80: 0 | AR80: 0 | AT80: 0 | AU80: 0 | AV80: 0 | AW80: 0 | AX80: 0 | AY80: 0 | AZ80: 0 | BA80: 0 | BB80: 0 | BC80: 0
B81: 71 | J81: 1 | K81: Ei | L81: =IF(Etusivu!$C$22="kyllä",25.5%,0%) -> 0.255 | M81: 0 | U81: 0 | AI81: 0 | AJ81: 0 | AK81: 0 | AL81: 0 | AM81: 0 | AN81: 0 | AO81: 0 | AP81: 0 | AQ81: 0 | AR81: 0 | AT81: 0 | AU81: 0 | AV81: 0 | AW81: 0 | AX81: 0 | AY81: 0 | AZ81: 0 | BA81: 0 | BB81: 0 | BC81: 0
B82: 72 | J82: 1 | K82: Ei | L82: =IF(Etusivu!$C$22="kyllä",25.5%,0%) -> 0.255 | M82: 0 | U82: 0 | AI82: 0 | AJ82: 0 | AK82: 0 | AL82: 0 | AM82: 0 | AN82: 0 | AO82: 0 | AP82: 0 | AQ82: 0 | AR82: 0 | AT82: 0 | AU82: 0 | AV82: 0 | AW82: 0 | AX82: 0 | AY82: 0 | AZ82: 0 | BA82: 0 | BB82: 0 | BC82: 0
B83: =B82+1 -> 73 | J83: 1 | K83: Ei | L83: =IF(Etusivu!$C$22="kyllä",25.5%,0%) -> 0.255 | M83: 0 | U83: 0 | AI83: 0 | AJ83: 0 | AK83: 0 | AL83: 0 | AM83: 0 | AN83: 0 | AO83: 0 | AP83: 0 | AQ83: 0 | AR83: 0 | AT83: 0 | AU83: 0 | AV83: 0 | AW83: 0 | AX83: 0 | AY83: 0 | AZ83: 0 | BA83: 0 | BB83: 0 | BC83: 0
B84: 74 | J84: 1 | K84: Ei | L84: =IF(Etusivu!$C$22="kyllä",25.5%,0%) -> 0.255 | M84: 0 | U84: 0 | AI84: 0 | AJ84: 0 | AK84: 0 | AL84: 0 | AM84: 0 | AN84: 0 | AO84: 0 | AP84: 0 | AQ84: 0 | AR84: 0 | AT84: 0 | AU84: 0 | AV84: 0 | AW84: 0 | AX84: 0 | AY84: 0 | AZ84: 0 | BA84: 0 | BB84: 0 | BC84: 0
B85: 75 | J85: 1 | K85: Ei | L85: =IF(Etusivu!$C$22="kyllä",25.5%,0%) -> 0.255 | M85: 0 | U85: 0 | AI85: 0 | AJ85: 0 | AK85: 0 | AL85: 0 | AM85: 0 | AN85: 0 | AO85: 0 | AP85: 0 | AQ85: 0 | AR85: 0 | AT85: 0 | AU85: 0 | AV85: 0 | AW85: 0 | AX85: 0 | AY85: 0 | AZ85: 0 | BA85: 0 | BB85: 0 | BC85: 0
B86: 76 | J86: 1 | K86: Ei | L86: =IF(Etusivu!$C$22="kyllä",25.5%,0%) -> 0.255 | M86: 0 | U86: 0 | AI86: 0 | AJ86: 0 | AK86: 0 | AL86: 0 | AM86: 0 | AN86: 0 | AO86: 0 | AP86: 0 | AQ86: 0 | AR86: 0 | AT86: 0 | AU86: 0 | AV86: 0 | AW86: 0 | AX86: 0 | AY86: 0 | AZ86: 0 | BA86: 0 | BB86: 0 | BC86: 0
B87: 77 | J87: 1 | K87: Ei | L87: =IF(Etusivu!$C$22="kyllä",25.5%,0%) -> 0.255 | M87: 0 | U87: 0 | AI87: 0 | AJ87: 0 | AK87: 0 | AL87: 0 | AM87: 0 | AN87: 0 | AO87: 0 | AP87: 0 | AQ87: 0 | AR87: 0 | AT87: 0 | AU87: 0 | AV87: 0 | AW87: 0 | AX87: 0 | AY87: 0 | AZ87: 0 | BA87: 0 | BB87: 0 | BC87: 0
B88: 78 | J88: 1 | K88: Ei | L88: =IF(Etusivu!$C$22="kyllä",25.5%,0%) -> 0.255 | M88: 0 | U88: 0 | AI88: 0 | AJ88: 0 | AK88: 0 | AL88: 0 | AM88: 0 | AN88: 0 | AO88: 0 | AP88: 0 | AQ88: 0 | AR88: 0 | AT88: 0 | AU88: 0 | AV88: 0 | AW88: 0 | AX88: 0 | AY88: 0 | AZ88: 0 | BA88: 0 | BB88: 0 | BC88: 0
B89: 79 | J89: 1 | K89: Ei | L89: =IF(Etusivu!$C$22="kyllä",25.5%,0%) -> 0.255 | M89: 0 | U89: 0 | AI89: 0 | AJ89: 0 | AK89: 0 | AL89: 0 | AM89: 0 | AN89: 0 | AO89: 0 | AP89: 0 | AQ89: 0 | AR89: 0 | AT89: 0 | AU89: 0 | AV89: 0 | AW89: 0 | AX89: 0 | AY89: 0 | AZ89: 0 | BA89: 0 | BB89: 0 | BC89: 0
B90: 80 | J90: 1 | K90: Ei | L90: =IF(Etusivu!$C$22="kyllä",25.5%,0%) -> 0.255 | M90: 0 | U90: 0 | AI90: 0 | AJ90: 0 | AK90: 0 | AL90: 0 | AM90: 0 | AN90: 0 | AO90: 0 | AP90: 0 | AQ90: 0 | AR90: 0 | AT90: 0 | AU90: 0 | AV90: 0 | AW90: 0 | AX90: 0 | AY90: 0 | AZ90: 0 | BA90: 0 | BB90: 0 | BC90: 0
B91: 81 | J91: 1 | K91: Ei | L91: =IF(Etusivu!$C$22="kyllä",25.5%,0%) -> 0.255 | M91: 0 | U91: 0 | AI91: 0 | AJ91: 0 | AK91: 0 | AL91: 0 | AM91: 0 | AN91: 0 | AO91: 0 | AP91: 0 | AQ91: 0 | AR91: 0 | AT91: 0 | AU91: 0 | AV91: 0 | AW91: 0 | AX91: 0 | AY91: 0 | AZ91: 0 | BA91: 0 | BB91: 0 | BC91: 0
B92: 82 | J92: 1 | K92: Ei | L92: =IF(Etusivu!$C$22="kyllä",25.5%,0%) -> 0.255 | M92: 0 | U92: 0 | AI92: 0 | AJ92: 0 | AK92: 0 | AL92: 0 | AM92: 0 | AN92: 0 | AO92: 0 | AP92: 0 | AQ92: 0 | AR92: 0 | AT92: 0 | AU92: 0 | AV92: 0 | AW92: 0 | AX92: 0 | AY92: 0 | AZ92: 0 | BA92: 0 | BB92: 0 | BC92: 0
B93: 83 | J93: 1 | K93: Ei | L93: =IF(Etusivu!$C$22="kyllä",25.5%,0%) -> 0.255 | M93: 0 | U93: 0 | AI93: 0 | AJ93: 0 | AK93: 0 | AL93: 0 | AM93: 0 | AN93: 0 | AO93: 0 | AP93: 0 | AQ93: 0 | AR93: 0 | AT93: 0 | AU93: 0 | AV93: 0 | AW93: 0 | AX93: 0 | AY93: 0 | AZ93: 0 | BA93: 0 | BB93: 0 | BC93: 0
B94: 84 | J94: 1 | K94: Ei | L94: =IF(Etusivu!$C$22="kyllä",25.5%,0%) -> 0.255 | M94: 0 | U94: 0 | AI94: 0 | AJ94: 0 | AK94: 0 | AL94: 0 | AM94: 0 | AN94: 0 | AO94: 0 | AP94: 0 | AQ94: 0 | AR94: 0 | AT94: 0 | AU94: 0 | AV94: 0 | AW94: 0 | AX94: 0 | AY94: 0 | AZ94: 0 | BA94: 0 | BB94: 0 | BC94: 0
B95: 85 | J95: 1 | K95: Ei | L95: =IF(Etusivu!$C$22="kyllä",25.5%,0%) -> 0.255 | M95: 0 | U95: 0 | AI95: 0 | AJ95: 0 | AK95: 0 | AL95: 0 | AM95: 0 | AN95: 0 | AO95: 0 | AP95: 0 | AQ95: 0 | AR95: 0 | AT95: 0 | AU95: 0 | AV95: 0 | AW95: 0 | AX95: 0 | AY95: 0 | AZ95: 0 | BA95: 0 | BB95: 0 | BC95: 0
B96: 86 | J96: 1 | K96: Ei | L96: =IF(Etusivu!$C$22="kyllä",25.5%,0%) -> 0.255 | M96: 0 | U96: 0 | AI96: 0 | AJ96: 0 | AK96: 0 | AL96: 0 | AM96: 0 | AN96: 0 | AO96: 0 | AP96: 0 | AQ96: 0 | AR96: 0 | AT96: 0 | AU96: 0 | AV96: 0 | AW96: 0 | AX96: 0 | AY96: 0 | AZ96: 0 | BA96: 0 | BB96: 0 | BC96: 0
B97: 87 | J97: 1 | K97: Ei | L97: =IF(Etusivu!$C$22="kyllä",25.5%,0%) -> 0.255 | M97: 0 | U97: 0 | AI97: 0 | AJ97: 0 | AK97: 0 | AL97: 0 | AM97: 0 | AN97: 0 | AO97: 0 | AP97: 0 | AQ97: 0 | AR97: 0 | AT97: 0 | AU97: 0 | AV97: 0 | AW97: 0 | AX97: 0 | AY97: 0 | AZ97: 0 | BA97: 0 | BB97: 0 | BC97: 0
B98: 88 | J98: 1 | K98: Ei | L98: =IF(Etusivu!$C$22="kyllä",25.5%,0%) -> 0.255 | M98: 0 | U98: 0 | AI98: 0 | AJ98: 0 | AK98: 0 | AL98: 0 | AM98: 0 | AN98: 0 | AO98: 0 | AP98: 0 | AQ98: 0 | AR98: 0 | AT98: 0 | AU98: 0 | AV98: 0 | AW98: 0 | AX98: 0 | AY98: 0 | AZ98: 0 | BA98: 0 | BB98: 0 | BC98: 0
B99: 89 | J99: 1 | K99: Ei | L99: =IF(Etusivu!$C$22="kyllä",25.5%,0%) -> 0.255 | M99: 0 | U99: 0 | AI99: 0 | AJ99: 0 | AK99: 0 | AL99: 0 | AM99: 0 | AN99: 0 | AO99: 0 | AP99: 0 | AQ99: 0 | AR99: 0 | AT99: 0 | AU99: 0 | AV99: 0 | AW99: 0 | AX99: 0 | AY99: 0 | AZ99: 0 | BA99: 0 | BB99: 0 | BC99: 0
B100: 90 | J100: 1 | K100: Ei | L100: =IF(Etusivu!$C$22="kyllä",25.5%,0%) -> 0.255 | M100: 0 | U100: 0 | AI100: 0 | AJ100: 0 | AK100: 0 | AL100: 0 | AM100: 0 | AN100: 0 | AO100: 0 | AP100: 0 | AQ100: 0 | AR100: 0 | AT100: 0 | AU100: 0 | AV100: 0 | AW100: 0 | AX100: 0 | AY100: 0 | AZ100: 0 | BA100: 0 | BB100: 0 | BC100: 0
B101: 91 | J101: 1 | K101: Ei | L101: =IF(Etusivu!$C$22="kyllä",25.5%,0%) -> 0.255 | M101: 0 | U101: 0 | AI101: 0 | AJ101: 0 | AK101: 0 | AL101: 0 | AM101: 0 | AN101: 0 | AO101: 0 | AP101: 0 | AQ101: 0 | AR101: 0 | AT101: 0 | AU101: 0 | AV101: 0 | AW101: 0 | AX101: 0 | AY101: 0 | AZ101: 0 | BA101: 0 | BB101: 0 | BC101: 0
B102: 92 | J102: 1 | K102: Ei | L102: =IF(Etusivu!$C$22="kyllä",25.5%,0%) -> 0.255 | M102: 0 | U102: 0 | AI102: 0 | AJ102: 0 | AK102: 0 | AL102: 0 | AM102: 0 | AN102: 0 | AO102: 0 | AP102: 0 | AQ102: 0 | AR102: 0 | AT102: 0 | AU102: 0 | AV102: 0 | AW102: 0 | AX102: 0 | AY102: 0 | AZ102: 0 | BA102: 0 | BB102: 0 | BC102: 0
B103: 93 | J103: 1 | K103: Ei | L103: =IF(Etusivu!$C$22="kyllä",25.5%,0%) -> 0.255 | M103: 0 | U103: 0 | AI103: 0 | AJ103: 0 | AK103: 0 | AL103: 0 | AM103: 0 | AN103: 0 | AO103: 0 | AP103: 0 | AQ103: 0 | AR103: 0 | AT103: 0 | AU103: 0 | AV103: 0 | AW103: 0 | AX103: 0 | AY103: 0 | AZ103: 0 | BA103: 0 | BB103: 0 | BC103: 0
B104: 94 | J104: 1 | K104: Ei | L104: =IF(Etusivu!$C$22="kyllä",25.5%,0%) -> 0.255 | M104: 0 | U104: 0 | AI104: 0 | AJ104: 0 | AK104: 0 | AL104: 0 | AM104: 0 | AN104: 0 | AO104: 0 | AP104: 0 | AQ104: 0 | AR104: 0 | AT104: 0 | AU104: 0 | AV104: 0 | AW104: 0 | AX104: 0 | AY104: 0 | AZ104: 0 | BA104: 0 | BB104: 0 | BC104: 0
B105: 95 | J105: 1 | K105: Ei | L105: =IF(Etusivu!$C$22="kyllä",25.5%,0%) -> 0.255 | M105: 0 | U105: 0 | AI105: 0 | AJ105: 0 | AK105: 0 | AL105: 0 | AM105: 0 | AN105: 0 | AO105: 0 | AP105: 0 | AQ105: 0 | AR105: 0 | AT105: 0 | AU105: 0 | AV105: 0 | AW105: 0 | AX105: 0 | AY105: 0 | AZ105: 0 | BA105: 0 | BB105: 0 | BC105: 0
B106: 96 | J106: 1 | K106: Ei | L106: =IF(Etusivu!$C$22="kyllä",25.5%,0%) -> 0.255 | M106: 0 | U106: 0 | AI106: 0 | AJ106: 0 | AK106: 0 | AL106: 0 | AM106: 0 | AN106: 0 | AO106: 0 | AP106: 0 | AQ106: 0 | AR106: 0 | AT106: 0 | AU106: 0 | AV106: 0 | AW106: 0 | AX106: 0 | AY106: 0 | AZ106: 0 | BA106: 0 | BB106: 0 | BC106: 0
B107: 97 | J107: 1 | K107: Ei | L107: =IF(Etusivu!$C$22="kyllä",25.5%,0%) -> 0.255 | M107: 0 | U107: 0 | AI107: 0 | AJ107: 0 | AK107: 0 | AL107: 0 | AM107: 0 | AN107: 0 | AO107: 0 | AP107: 0 | AQ107: 0 | AR107: 0 | AT107: 0 | AU107: 0 | AV107: 0 | AW107: 0 | AX107: 0 | AY107: 0 | AZ107: 0 | BA107: 0 | BB107: 0 | BC107: 0
B108: 98 | J108: 1 | K108: Ei | L108: =IF(Etusivu!$C$22="kyllä",25.5%,0%) -> 0.255 | M108: 0 | U108: 0 | AI108: 0 | AJ108: 0 | AK108: 0 | AL108: 0 | AM108: 0 | AN108: 0 | AO108: 0 | AP108: 0 | AQ108: 0 | AR108: 0 | AT108: 0 | AU108: 0 | AV108: 0 | AW108: 0 | AX108: 0 | AY108: 0 | AZ108: 0 | BA108: 0 | BB108: 0 | BC108: 0
B109: 99 | J109: 1 | K109: Ei | L109: =IF(Etusivu!$C$22="kyllä",25.5%,0%) -> 0.255 | M109: 0 | U109: 0 | AI109: 0 | AJ109: 0 | AK109: 0 | AL109: 0 | AM109: 0 | AN109: 0 | AO109: 0 | AP109: 0 | AQ109: 0 | AR109: 0 | AT109: 0 | AU109: 0 | AV109: 0 | AW109: 0 | AX109: 0 | AY109: 0 | AZ109: 0 | BA109: 0 | BB109: 0 | BC109: 0
B110: 100 | J110: 1 | K110: Ei | L110: =IF(Etusivu!$C$22="kyllä",25.5%,0%) -> 0.255 | M110: 0 | U110: 0 | AI110: 0 | AJ110: 0 | AK110: 0 | AL110: 0 | AM110: 0 | AN110: 0 | AO110: 0 | AP110: 0 | AQ110: 0 | AR110: 0 | AT110: 0 | AU110: 0 | AV110: 0 | AW110: 0 | AX110: 0 | AY110: 0 | AZ110: 0 | BA110: 0 | BB110: 0 | BC110: 0
B111: 101 | J111: 1 | K111: Ei | L111: =IF(Etusivu!$C$22="kyllä",25.5%,0%) -> 0.255 | M111: 0 | U111: 0 | AI111: 0 | AJ111: 0 | AK111: 0 | AL111: 0 | AM111: 0 | AN111: 0 | AO111: 0 | AP111: 0 | AQ111: 0 | AR111: 0 | AT111: 0 | AU111: 0 | AV111: 0 | AW111: 0 | AX111: 0 | AY111: 0 | AZ111: 0 | BA111: 0 | BB111: 0 | BC111: 0
B112: 102 | J112: 1 | K112: Ei | L112: =IF(Etusivu!$C$22="kyllä",25.5%,0%) -> 0.255 | M112: 0 | U112: 0 | AI112: 0 | AJ112: 0 | AK112: 0 | AL112: 0 | AM112: 0 | AN112: 0 | AO112: 0 | AP112: 0 | AQ112: 0 | AR112: 0 | AT112: 0 | AU112: 0 | AV112: 0 | AW112: 0 | AX112: 0 | AY112: 0 | AZ112: 0 | BA112: 0 | BB112: 0 | BC112: 0
B113: 103 | J113: 1 | K113: Ei | L113: =IF(Etusivu!$C$22="kyllä",25.5%,0%) -> 0.255 | M113: 0 | U113: 0 | AI113: 0 | AJ113: 0 | AK113: 0 | AL113: 0 | AM113: 0 | AN113: 0 | AO113: 0 | AP113: 0 | AQ113: 0 | AR113: 0 | AT113: 0 | AU113: 0 | AV113: 0 | AW113: 0 | AX113: 0 | AY113: 0 | AZ113: 0 | BA113: 0 | BB113: 0 | BC113: 0
B114: 104 | J114: 1 | K114: Ei | L114: =IF(Etusivu!$C$22="kyllä",25.5%,0%) -> 0.255 | M114: 0 | U114: 0 | AI114: 0 | AJ114: 0 | AK114: 0 | AL114: 0 | AM114: 0 | AN114: 0 | AO114: 0 | AP114: 0 | AQ114: 0 | AR114: 0 | AT114: 0 | AU114: 0 | AV114: 0 | AW114: 0 | AX114: 0 | AY114: 0 | AZ114: 0 | BA114: 0 | BB114: 0 | BC114: 0
B115: 105 | J115: 1 | K115: Ei | L115: =IF(Etusivu!$C$22="kyllä",25.5%,0%) -> 0.255 | M115: 0 | U115: 0 | AI115: 0 | AJ115: 0 | AK115: 0 | AL115: 0 | AM115: 0 | AN115: 0 | AO115: 0 | AP115: 0 | AQ115: 0 | AR115: 0 | AT115: 0 | AU115: 0 | AV115: 0 | AW115: 0 | AX115: 0 | AY115: 0 | AZ115: 0 | BA115: 0 | BB115: 0 | BC115: 0
B116: 106 | J116: 1 | K116: Ei | L116: =IF(Etusivu!$C$22="kyllä",25.5%,0%) -> 0.255 | M116: 0 | U116: 0 | AI116: 0 | AJ116: 0 | AK116: 0 | AL116: 0 | AM116: 0 | AN116: 0 | AO116: 0 | AP116: 0 | AQ116: 0 | AR116: 0 | AT116: 0 | AU116: 0 | AV116: 0 | AW116: 0 | AX116: 0 | AY116: 0 | AZ116: 0 | BA116: 0 | BB116: 0 | BC116: 0
B117: 107 | J117: 1 | K117: Ei | L117: =IF(Etusivu!$C$22="kyllä",25.5%,0%) -> 0.255 | M117: 0 | U117: 0 | AI117: 0 | AJ117: 0 | AK117: 0 | AL117: 0 | AM117: 0 | AN117: 0 | AO117: 0 | AP117: 0 | AQ117: 0 | AR117: 0 | AT117: 0 | AU117: 0 | AV117: 0 | AW117: 0 | AX117: 0 | AY117: 0 | AZ117: 0 | BA117: 0 | BB117: 0 | BC117: 0
B118: 108 | J118: 1 | K118: Ei | L118: =IF(Etusivu!$C$22="kyllä",25.5%,0%) -> 0.255 | M118: 0 | U118: 0 | AI118: 0 | AJ118: 0 | AK118: 0 | AL118: 0 | AM118: 0 | AN118: 0 | AO118: 0 | AP118: 0 | AQ118: 0 | AR118: 0 | AT118: 0 | AU118: 0 | AV118: 0 | AW118: 0 | AX118: 0 | AY118: 0 | AZ118: 0 | BA118: 0 | BB118: 0 | BC118: 0
B119: 109 | J119: 1 | K119: Ei | L119: =IF(Etusivu!$C$22="kyllä",25.5%,0%) -> 0.255 | M119: 0 | U119: 0 | AI119: 0 | AJ119: 0 | AK119: 0 | AL119: 0 | AM119: 0 | AN119: 0 | AO119: 0 | AP119: 0 | AQ119: 0 | AR119: 0 | AT119: 0 | AU119: 0 | AV119: 0 | AW119: 0 | AX119: 0 | AY119: 0 | AZ119: 0 | BA119: 0 | BB119: 0 | BC119: 0
B120: 110 | J120: 1 | K120: Ei | L120: =IF(Etusivu!$C$22="kyllä",25.5%,0%) -> 0.255 | M120: 0 | U120: 0 | AI120: 0 | AJ120: 0 | AK120: 0 | AL120: 0 | AM120: 0 | AN120: 0 | AO120: 0 | AP120: 0 | AQ120: 0 | AR120: 0 | AT120: 0 | AU120: 0 | AV120: 0 | AW120: 0 | AX120: 0 | AY120: 0 | AZ120: 0 | BA120: 0 | BB120: 0 | BC120: 0
B121: 111 | J121: 1 | K121: Ei | L121: =IF(Etusivu!$C$22="kyllä",25.5%,0%) -> 0.255 | M121: 0 | U121: 0 | AI121: 0 | AJ121: 0 | AK121: 0 | AL121: 0 | AM121: 0 | AN121: 0 | AO121: 0 | AP121: 0 | AQ121: 0 | AR121: 0 | AT121: 0 | AU121: 0 | AV121: 0 | AW121: 0 | AX121: 0 | AY121: 0 | AZ121: 0 | BA121: 0 | BB121: 0 | BC121: 0
B122: 112 | J122: 1 | K122: Ei | L122: =IF(Etusivu!$C$22="kyllä",25.5%,0%) -> 0.255 | M122: 0 | U122: 0 | AI122: 0 | AJ122: 0 | AK122: 0 | AL122: 0 | AM122: 0 | AN122: 0 | AO122: 0 | AP122: 0 | AQ122: 0 | AR122: 0 | AT122: 0 | AU122: 0 | AV122: 0 | AW122: 0 | AX122: 0 | AY122: 0 | AZ122: 0 | BA122: 0 | BB122: 0 | BC122: 0
B123: 113 | J123: 1 | K123: Ei | L123: =IF(Etusivu!$C$22="kyllä",25.5%,0%) -> 0.255 | M123: 0 | U123: 0 | AI123: 0 | AJ123: 0 | AK123: 0 | AL123: 0 | AM123: 0 | AN123: 0 | AO123: 0 | AP123: 0 | AQ123: 0 | AR123: 0 | AT123: 0 | AU123: 0 | AV123: 0 | AW123: 0 | AX123: 0 | AY123: 0 | AZ123: 0 | BA123: 0 | BB123: 0 | BC123: 0
B124: 114 | J124: 1 | K124: Ei | L124: =IF(Etusivu!$C$22="kyllä",25.5%,0%) -> 0.255 | M124: 0 | U124: 0 | AI124: 0 | AJ124: 0 | AK124: 0 | AL124: 0 | AM124: 0 | AN124: 0 | AO124: 0 | AP124: 0 | AQ124: 0 | AR124: 0 | AT124: 0 | AU124: 0 | AV124: 0 | AW124: 0 | AX124: 0 | AY124: 0 | AZ124: 0 | BA124: 0 | BB124: 0 | BC124: 0
B125: 115 | J125: 1 | K125: Ei | L125: =IF(Etusivu!$C$22="kyllä",25.5%,0%) -> 0.255 | M125: 0 | U125: 0 | AI125: 0 | AJ125: 0 | AK125: 0 | AL125: 0 | AM125: 0 | AN125: 0 | AO125: 0 | AP125: 0 | AQ125: 0 | AR125: 0 | AT125: 0 | AU125: 0 | AV125: 0 | AW125: 0 | AX125: 0 | AY125: 0 | AZ125: 0 | BA125: 0 | BB125: 0 | BC125: 0
B126: 116 | J126: 1 | K126: Ei | L126: =IF(Etusivu!$C$22="kyllä",25.5%,0%) -> 0.255 | M126: 0 | U126: 0 | AI126: 0 | AJ126: 0 | AK126: 0 | AL126: 0 | AM126: 0 | AN126: 0 | AO126: 0 | AP126: 0 | AQ126: 0 | AR126: 0 | AT126: 0 | AU126: 0 | AV126: 0 | AW126: 0 | AX126: 0 | AY126: 0 | AZ126: 0 | BA126: 0 | BB126: 0 | BC126: 0
B127: 117 | J127: 1 | K127: Ei | L127: =IF(Etusivu!$C$22="kyllä",25.5%,0%) -> 0.255 | M127: 0 | U127: 0 | AI127: 0 | AJ127: 0 | AK127: 0 | AL127: 0 | AM127: 0 | AN127: 0 | AO127: 0 | AP127: 0 | AQ127: 0 | AR127: 0 | AT127: 0 | AU127: 0 | AV127: 0 | AW127: 0 | AX127: 0 | AY127: 0 | AZ127: 0 | BA127: 0 | BB127: 0 | BC127: 0
B128: 118 | J128: 1 | K128: Ei | L128: =IF(Etusivu!$C$22="kyllä",25.5%,0%) -> 0.255 | M128: 0 | U128: 0 | AI128: 0 | AJ128: 0 | AK128: 0 | AL128: 0 | AM128: 0 | AN128: 0 | AO128: 0 | AP128: 0 | AQ128: 0 | AR128: 0 | AT128: 0 | AU128: 0 | AV128: 0 | AW128: 0 | AX128: 0 | AY128: 0 | AZ128: 0 | BA128: 0 | BB128: 0 | BC128: 0
B129: 119 | J129: 1 | K129: Ei | L129: =IF(Etusivu!$C$22="kyllä",25.5%,0%) -> 0.255 | M129: 0 | U129: 0 | AI129: 0 | AJ129: 0 | AK129: 0 | AL129: 0 | AM129: 0 | AN129: 0 | AO129: 0 | AP129: 0 | AQ129: 0 | AR129: 0 | AT129: 0 | AU129: 0 | AV129: 0 | AW129: 0 | AX129: 0 | AY129: 0 | AZ129: 0 | BA129: 0 | BB129: 0 | BC129: 0
B130: 120 | J130: 1 | K130: Ei | L130: =IF(Etusivu!$C$22="kyllä",25.5%,0%) -> 0.255 | M130: 0 | U130: 0 | AI130: 0 | AJ130: 0 | AK130: 0 | AL130: 0 | AM130: 0 | AN130: 0 | AO130: 0 | AP130: 0 | AQ130: 0 | AR130: 0 | AT130: 0 | AU130: 0 | AV130: 0 | AW130: 0 | AX130: 0 | AY130: 0 | AZ130: 0 | BA130: 0 | BB130: 0 | BC130: 0
B131: 121 | J131: 1 | K131: Ei | L131: =IF(Etusivu!$C$22="kyllä",25.5%,0%) -> 0.255 | M131: 0 | U131: 0 | AI131: 0 | AJ131: 0 | AK131: 0 | AL131: 0 | AM131: 0 | AN131: 0 | AO131: 0 | AP131: 0 | AQ131: 0 | AR131: 0 | AT131: 0 | AU131: 0 | AV131: 0 | AW131: 0 | AX131: 0 | AY131: 0 | AZ131: 0 | BA131: 0 | BB131: 0 | BC131: 0
B132: 122 | J132: 1 | K132: Ei | L132: =IF(Etusivu!$C$22="kyllä",25.5%,0%) -> 0.255 | M132: 0 | U132: 0 | AI132: 0 | AJ132: 0 | AK132: 0 | AL132: 0 | AM132: 0 | AN132: 0 | AO132: 0 | AP132: 0 | AQ132: 0 | AR132: 0 | AT132: 0 | AU132: 0 | AV132: 0 | AW132: 0 | AX132: 0 | AY132: 0 | AZ132: 0 | BA132: 0 | BB132: 0 | BC132: 0
B133: 123 | J133: 1 | K133: Ei | L133: =IF(Etusivu!$C$22="kyllä",25.5%,0%) -> 0.255 | M133: 0 | U133: 0 | AI133: 0 | AJ133: 0 | AK133: 0 | AL133: 0 | AM133: 0 | AN133: 0 | AO133: 0 | AP133: 0 | AQ133: 0 | AR133: 0 | AT133: 0 | AU133: 0 | AV133: 0 | AW133: 0 | AX133: 0 | AY133: 0 | AZ133: 0 | BA133: 0 | BB133: 0 | BC133: 0
B134: 124 | J134: 1 | K134: Ei | L134: =IF(Etusivu!$C$22="kyllä",25.5%,0%) -> 0.255 | M134: 0 | U134: 0 | AI134: 0 | AJ134: 0 | AK134: 0 | AL134: 0 | AM134: 0 | AN134: 0 | AO134: 0 | AP134: 0 | AQ134: 0 | AR134: 0 | AT134: 0 | AU134: 0 | AV134: 0 | AW134: 0 | AX134: 0 | AY134: 0 | AZ134: 0 | BA134: 0 | BB134: 0 | BC134: 0
B135: 125 | J135: 1 | K135: Ei | L135: =IF(Etusivu!$C$22="kyllä",25.5%,0%) -> 0.255 | M135: 0 | U135: 0 | AI135: 0 | AJ135: 0 | AK135: 0 | AL135: 0 | AM135: 0 | AN135: 0 | AO135: 0 | AP135: 0 | AQ135: 0 | AR135: 0 | AT135: 0 | AU135: 0 | AV135: 0 | AW135: 0 | AX135: 0 | AY135: 0 | AZ135: 0 | BA135: 0 | BB135: 0 | BC135: 0
B136: 126 | J136: 1 | K136: Ei | L136: =IF(Etusivu!$C$22="kyllä",25.5%,0%) -> 0.255 | M136: 0 | U136: 0 | AI136: 0 | AJ136: 0 | AK136: 0 | AL136: 0 | AM136: 0 | AN136: 0 | AO136: 0 | AP136: 0 | AQ136: 0 | AR136: 0 | AT136: 0 | AU136: 0 | AV136: 0 | AW136: 0 | AX136: 0 | AY136: 0 | AZ136: 0 | BA136: 0 | BB136: 0 | BC136: 0
B137: 127 | J137: 1 | K137: Ei | L137: =IF(Etusivu!$C$22="kyllä",25.5%,0%) -> 0.255 | M137: 0 | U137: 0 | AI137: 0 | AJ137: 0 | AK137: 0 | AL137: 0 | AM137: 0 | AN137: 0 | AO137: 0 | AP137: 0 | AQ137: 0 | AR137: 0 | AT137: 0 | AU137: 0 | AV137: 0 | AW137: 0 | AX137: 0 | AY137: 0 | AZ137: 0 | BA137: 0 | BB137: 0 | BC137: 0
B138: 128 | J138: 1 | K138: Ei | L138: =IF(Etusivu!$C$22="kyllä",25.5%,0%) -> 0.255 | M138: 0 | U138: 0 | AI138: 0 | AJ138: 0 | AK138: 0 | AL138: 0 | AM138: 0 | AN138: 0 | AO138: 0 | AP138: 0 | AQ138: 0 | AR138: 0 | AT138: 0 | AU138: 0 | AV138: 0 | AW138: 0 | AX138: 0 | AY138: 0 | AZ138: 0 | BA138: 0 | BB138: 0 | BC138: 0
B139: 129 | J139: 1 | K139: Ei | L139: =IF(Etusivu!$C$22="kyllä",25.5%,0%) -> 0.255 | M139: 0 | U139: 0 | AI139: 0 | AJ139: 0 | AK139: 0 | AL139: 0 | AM139: 0 | AN139: 0 | AO139: 0 | AP139: 0 | AQ139: 0 | AR139: 0 | AT139: 0 | AU139: 0 | AV139: 0 | AW139: 0 | AX139: 0 | AY139: 0 | AZ139: 0 | BA139: 0 | BB139: 0 | BC139: 0
B140: 130 | J140: 1 | K140: Ei | L140: =IF(Etusivu!$C$22="kyllä",25.5%,0%) -> 0.255 | M140: 0 | U140: 0 | AI140: =IF($J140=1,IF($K140="Ei",$H140,0),0) -> 0 | AJ140: =IF($J140=1,IF($K140="Kyllä",$H140,0),0) -> 0 | AK140: =IF($J140=2,IF($K140="Ei",$H140,0),0) -> 0 | AL140: =IF($J140=2,IF($K140="Kyllä",$H140,0),0) -> 0 | AM140: =IF($J140=3,IF($K140="Ei",$H140,0),0) -> 0 | AN140: =IF($J140=3,IF($K140="kyllä",$H140,0),0) -> 0 | AO140: =IF($J140=4,IF($K140="ei",$H140,0),0) -> 0 | AP140: =IF($J140=4,IF($K140="Kyllä",$H140,0),0) -> 0 | AQ140: =IF($J140=5,IF($K140="ei",$H140,0),0) -> 0 | AR140: =IF($J140=5,IF($K140="kyllä",$H140,0),0) -> 0 | AT140: =IF($J140=1,IF($K140="Ei",$I140,0),0) -> 0 | AU140: =IF($J140=1,IF($K140="Kyllä",$I140,0),0) -> 0 | AV140: =IF($J140=2,IF($K140="Ei",$I140,0),0) -> 0 | AW140: =IF($J140=2,IF($K140="Kyllä",$I140,0),0) -> 0 | AX140: =IF($J140=3,IF($K140="Ei",$I140,0),0) -> 0 | AY140: =IF($J140=3,IF($K140="Kyllä",$I140,0),0) -> 0 | AZ140: =IF($J140=4,IF($K140="Ei",$I140,0),0) -> 0 | BA140: =IF($J140=4,IF($K140="Kyllä",$I140,0),0) -> 0 | BB140: =IF($J140=5,IF($K140="Ei",$I140,0),0) -> 0 | BC140: =IF($J140=5,IF($K140="Kyllä",$I140,0),0) -> 0
B141: 131 | J141: 1 | K141: Ei | L141: =IF(Etusivu!$C$22="kyllä",25.5%,0%) -> 0.255 | M141: 0 | U141: 0 | AI141: 0 | AJ141: 0 | AK141: 0 | AL141: 0 | AM141: 0 | AN141: 0 | AO141: 0 | AP141: 0 | AQ141: 0 | AR141: 0 | AT141: 0 | AU141: 0 | AV141: 0 | AW141: 0 | AX141: 0 | AY141: 0 | AZ141: 0 | BA141: 0 | BB141: 0 | BC141: 0
B142: 132 | J142: 1 | K142: Ei | L142: =IF(Etusivu!$C$22="kyllä",25.5%,0%) -> 0.255 | M142: =IF(R142>0,R142*L142,G142*L142+H142*L142+I142*L142+V142*L142) -> 0 | U142: =SUM(G142:I142)+SUM(O142:R142) -> 0 | AI142: 0 | AJ142: 0 | AK142: 0 | AL142: 0 | AM142: 0 | AN142: 0 | AO142: 0 | AP142: 0 | AQ142: 0 | AR142: 0 | AT142: 0 | AU142: 0 | AV142: 0 | AW142: 0 | AX142: 0 | AY142: 0 | AZ142: 0 | BA142: 0 | BB142: 0 | BC142: 0
B143: 133 | J143: 1 | K143: Ei | L143: =IF(Etusivu!$C$22="kyllä",25.5%,0%) -> 0.255 | M143: 0 | U143: 0 | AI143: 0 | AJ143: 0 | AK143: 0 | AL143: 0 | AM143: 0 | AN143: 0 | AO143: 0 | AP143: 0 | AQ143: 0 | AR143: 0 | AT143: 0 | AU143: 0 | AV143: 0 | AW143: 0 | AX143: 0 | AY143: 0 | AZ143: 0 | BA143: 0 | BB143: 0 | BC143: 0
B144: 134 | J144: 1 | K144: Ei | L144: =IF(Etusivu!$C$22="kyllä",25.5%,0%) -> 0.255 | M144: 0 | U144: 0 | AI144: 0 | AJ144: 0 | AK144: 0 | AL144: 0 | AM144: 0 | AN144: 0 | AO144: 0 | AP144: 0 | AQ144: 0 | AR144: 0 | AT144: 0 | AU144: 0 | AV144: 0 | AW144: 0 | AX144: 0 | AY144: 0 | AZ144: 0 | BA144: 0 | BB144: 0 | BC144: 0
B145: 135 | J145: 1 | K145: Ei | L145: =IF(Etusivu!$C$22="kyllä",25.5%,0%) -> 0.255 | M145: 0 | U145: 0 | AI145: 0 | AJ145: 0 | AK145: 0 | AL145: 0 | AM145: 0 | AN145: 0 | AO145: 0 | AP145: 0 | AQ145: 0 | AR145: 0 | AT145: 0 | AU145: 0 | AV145: 0 | AW145: 0 | AX145: 0 | AY145: 0 | AZ145: 0 | BA145: 0 | BB145: 0 | BC145: 0
B146: 136 | J146: 1 | K146: Ei | L146: =IF(Etusivu!$C$22="kyllä",25.5%,0%) -> 0.255 | M146: 0 | U146: 0 | AI146: 0 | AJ146: 0 | AK146: 0 | AL146: 0 | AM146: 0 | AN146: 0 | AO146: 0 | AP146: 0 | AQ146: 0 | AR146: 0 | AT146: 0 | AU146: 0 | AV146: 0 | AW146: 0 | AX146: 0 | AY146: 0 | AZ146: 0 | BA146: 0 | BB146: 0 | BC146: 0
B147: =B146+1 -> 137 | J147: 1 | K147: Ei | L147: =IF(Etusivu!$C$22="kyllä",25.5%,0%) -> 0.255 | M147: 0 | U147: 0 | AI147: 0 | AJ147: 0 | AK147: 0 | AL147: 0 | AM147: 0 | AN147: 0 | AO147: 0 | AP147: 0 | AQ147: 0 | AR147: 0 | AT147: 0 | AU147: 0 | AV147: 0 | AW147: 0 | AX147: 0 | AY147: 0 | AZ147: 0 | BA147: 0 | BB147: 0 | BC147: 0
B148: 138 | J148: 1 | K148: Ei | L148: =IF(Etusivu!$C$22="kyllä",25.5%,0%) -> 0.255 | M148: 0 | U148: 0 | AI148: 0 | AJ148: 0 | AK148: 0 | AL148: 0 | AM148: 0 | AN148: 0 | AO148: 0 | AP148: 0 | AQ148: 0 | AR148: 0 | AT148: 0 | AU148: 0 | AV148: 0 | AW148: 0 | AX148: 0 | AY148: 0 | AZ148: 0 | BA148: 0 | BB148: 0 | BC148: 0
B149: 139 | J149: 1 | K149: Ei | L149: =IF(Etusivu!$C$22="kyllä",25.5%,0%) -> 0.255 | M149: 0 | U149: 0 | AI149: 0 | AJ149: 0 | AK149: 0 | AL149: 0 | AM149: 0 | AN149: 0 | AO149: 0 | AP149: 0 | AQ149: 0 | AR149: 0 | AT149: 0 | AU149: 0 | AV149: 0 | AW149: 0 | AX149: 0 | AY149: 0 | AZ149: 0 | BA149: 0 | BB149: 0 | BC149: 0
B150: 140 | J150: 1 | K150: Ei | L150: =IF(Etusivu!$C$22="kyllä",25.5%,0%) -> 0.255 | M150: 0 | U150: 0 | AI150: 0 | AJ150: 0 | AK150: 0 | AL150: 0 | AM150: 0 | AN150: 0 | AO150: 0 | AP150: 0 | AQ150: 0 | AR150: 0 | AT150: 0 | AU150: 0 | AV150: 0 | AW150: 0 | AX150: 0 | AY150: 0 | AZ150: 0 | BA150: 0 | BB150: 0 | BC150: 0
B151: 141 | J151: 1 | K151: Ei | L151: =IF(Etusivu!$C$22="kyllä",25.5%,0%) -> 0.255 | M151: 0 | U151: 0 | AI151: 0 | AJ151: 0 | AK151: 0 | AL151: 0 | AM151: 0 | AN151: 0 | AO151: 0 | AP151: 0 | AQ151: 0 | AR151: 0 | AT151: 0 | AU151: 0 | AV151: 0 | AW151: 0 | AX151: 0 | AY151: 0 | AZ151: 0 | BA151: 0 | BB151: 0 | BC151: 0
B152: 142 | J152: 1 | K152: Ei | L152: =IF(Etusivu!$C$22="kyllä",25.5%,0%) -> 0.255 | M152: 0 | U152: 0 | AI152: 0 | AJ152: 0 | AK152: 0 | AL152: 0 | AM152: 0 | AN152: 0 | AO152: 0 | AP152: 0 | AQ152: 0 | AR152: 0 | AT152: 0 | AU152: 0 | AV152: 0 | AW152: 0 | AX152: 0 | AY152: 0 | AZ152: 0 | BA152: 0 | BB152: 0 | BC152: 0
B153: 143 | J153: 1 | K153: Ei | L153: =IF(Etusivu!$C$22="kyllä",25.5%,0%) -> 0.255 | M153: 0 | U153: 0 | AI153: 0 | AJ153: 0 | AK153: 0 | AL153: 0 | AM153: 0 | AN153: 0 | AO153: 0 | AP153: 0 | AQ153: 0 | AR153: 0 | AT153: 0 | AU153: 0 | AV153: 0 | AW153: 0 | AX153: 0 | AY153: 0 | AZ153: 0 | BA153: 0 | BB153: 0 | BC153: 0
B154: 144 | J154: 1 | K154: Ei | L154: =IF(Etusivu!$C$22="kyllä",25.5%,0%) -> 0.255 | M154: 0 | U154: 0 | AI154: 0 | AJ154: 0 | AK154: 0 | AL154: 0 | AM154: 0 | AN154: 0 | AO154: 0 | AP154: 0 | AQ154: 0 | AR154: 0 | AT154: 0 | AU154: 0 | AV154: 0 | AW154: 0 | AX154: 0 | AY154: 0 | AZ154: 0 | BA154: 0 | BB154: 0 | BC154: 0
B155: 145 | J155: 1 | K155: Ei | L155: =IF(Etusivu!$C$22="kyllä",25.5%,0%) -> 0.255 | M155: 0 | U155: 0 | AI155: 0 | AJ155: 0 | AK155: 0 | AL155: 0 | AM155: 0 | AN155: 0 | AO155: 0 | AP155: 0 | AQ155: 0 | AR155: 0 | AT155: 0 | AU155: 0 | AV155: 0 | AW155: 0 | AX155: 0 | AY155: 0 | AZ155: 0 | BA155: 0 | BB155: 0 | BC155: 0
B156: 146 | J156: 1 | K156: Ei | L156: =IF(Etusivu!$C$22="kyllä",25.5%,0%) -> 0.255 | M156: 0 | U156: 0 | AI156: 0 | AJ156: 0 | AK156: 0 | AL156: 0 | AM156: 0 | AN156: 0 | AO156: 0 | AP156: 0 | AQ156: 0 | AR156: 0 | AT156: 0 | AU156: 0 | AV156: 0 | AW156: 0 | AX156: 0 | AY156: 0 | AZ156: 0 | BA156: 0 | BB156: 0 | BC156: 0
B157: 147 | J157: 1 | K157: Ei | L157: =IF(Etusivu!$C$22="kyllä",25.5%,0%) -> 0.255 | M157: 0 | U157: 0 | AI157: 0 | AJ157: 0 | AK157: 0 | AL157: 0 | AM157: 0 | AN157: 0 | AO157: 0 | AP157: 0 | AQ157: 0 | AR157: 0 | AT157: 0 | AU157: 0 | AV157: 0 | AW157: 0 | AX157: 0 | AY157: 0 | AZ157: 0 | BA157: 0 | BB157: 0 | BC157: 0
B158: 148 | J158: 1 | K158: Ei | L158: =IF(Etusivu!$C$22="kyllä",25.5%,0%) -> 0.255 | M158: 0 | U158: 0 | AI158: 0 | AJ158: 0 | AK158: 0 | AL158: 0 | AM158: 0 | AN158: 0 | AO158: 0 | AP158: 0 | AQ158: 0 | AR158: 0 | AT158: 0 | AU158: 0 | AV158: 0 | AW158: 0 | AX158: 0 | AY158: 0 | AZ158: 0 | BA158: 0 | BB158: 0 | BC158: 0
B159: 149 | J159: 1 | K159: Ei | L159: =IF(Etusivu!$C$22="kyllä",25.5%,0%) -> 0.255 | M159: 0 | U159: 0 | AI159: 0 | AJ159: 0 | AK159: 0 | AL159: 0 | AM159: 0 | AN159: 0 | AO159: 0 | AP159: 0 | AQ159: 0 | AR159: 0 | AT159: 0 | AU159: 0 | AV159: 0 | AW159: 0 | AX159: 0 | AY159: 0 | AZ159: 0 | BA159: 0 | BB159: 0 | BC159: 0
B160: 150 | J160: 1 | K160: Ei | L160: =IF(Etusivu!$C$22="kyllä",25.5%,0%) -> 0.255 | M160: 0 | U160: 0 | AI160: 0 | AJ160: 0 | AK160: 0 | AL160: 0 | AM160: 0 | AN160: 0 | AO160: 0 | AP160: 0 | AQ160: 0 | AR160: 0 | AT160: 0 | AU160: 0 | AV160: 0 | AW160: 0 | AX160: 0 | AY160: 0 | AZ160: 0 | BA160: 0 | BB160: 0 | BC160: 0
B161: 151 | J161: 1 | K161: Ei | L161: =IF(Etusivu!$C$22="kyllä",25.5%,0%) -> 0.255 | M161: 0 | U161: 0 | AI161: 0 | AJ161: 0 | AK161: 0 | AL161: 0 | AM161: 0 | AN161: 0 | AO161: 0 | AP161: 0 | AQ161: 0 | AR161: 0 | AT161: 0 | AU161: 0 | AV161: 0 | AW161: 0 | AX161: 0 | AY161: 0 | AZ161: 0 | BA161: 0 | BB161: 0 | BC161: 0
B162: 152 | J162: 1 | K162: Ei | L162: =IF(Etusivu!$C$22="kyllä",25.5%,0%) -> 0.255 | M162: 0 | U162: 0 | AI162: 0 | AJ162: 0 | AK162: 0 | AL162: 0 | AM162: 0 | AN162: 0 | AO162: 0 | AP162: 0 | AQ162: 0 | AR162: 0 | AT162: 0 | AU162: 0 | AV162: 0 | AW162: 0 | AX162: 0 | AY162: 0 | AZ162: 0 | BA162: 0 | BB162: 0 | BC162: 0
B163: 153 | J163: 1 | K163: Ei | L163: =IF(Etusivu!$C$22="kyllä",25.5%,0%) -> 0.255 | M163: 0 | U163: 0 | AI163: 0 | AJ163: 0 | AK163: 0 | AL163: 0 | AM163: 0 | AN163: 0 | AO163: 0 | AP163: 0 | AQ163: 0 | AR163: 0 | AT163: 0 | AU163: 0 | AV163: 0 | AW163: 0 | AX163: 0 | AY163: 0 | AZ163: 0 | BA163: 0 | BB163: 0 | BC163: 0
B164: 154 | J164: 1 | K164: Ei | L164: =IF(Etusivu!$C$22="kyllä",25.5%,0%) -> 0.255 | M164: 0 | U164: 0 | AI164: 0 | AJ164: 0 | AK164: 0 | AL164: 0 | AM164: 0 | AN164: 0 | AO164: 0 | AP164: 0 | AQ164: 0 | AR164: 0 | AT164: 0 | AU164: 0 | AV164: 0 | AW164: 0 | AX164: 0 | AY164: 0 | AZ164: 0 | BA164: 0 | BB164: 0 | BC164: 0
B165: 155 | J165: 1 | K165: Ei | L165: =IF(Etusivu!$C$22="kyllä",25.5%,0%) -> 0.255 | M165: 0 | U165: 0 | AI165: 0 | AJ165: 0 | AK165: 0 | AL165: 0 | AM165: 0 | AN165: 0 | AO165: 0 | AP165: 0 | AQ165: 0 | AR165: 0 | AT165: 0 | AU165: 0 | AV165: 0 | AW165: 0 | AX165: 0 | AY165: 0 | AZ165: 0 | BA165: 0 | BB165: 0 | BC165: 0
B166: 156 | J166: 1 | K166: Ei | L166: =IF(Etusivu!$C$22="kyllä",25.5%,0%) -> 0.255 | M166: 0 | U166: 0 | AI166: 0 | AJ166: 0 | AK166: 0 | AL166: 0 | AM166: 0 | AN166: 0 | AO166: 0 | AP166: 0 | AQ166: 0 | AR166: 0 | AT166: 0 | AU166: 0 | AV166: 0 | AW166: 0 | AX166: 0 | AY166: 0 | AZ166: 0 | BA166: 0 | BB166: 0 | BC166: 0
U167: 0

Sheet Oma käyttö
B2: =Etusivu!C10 -> Matti Metsänen
B3: =Etusivu!C16 -> 123456-7
B5: OMASTA METSÄSTÄ OTETTU PUUTAVARA
F7: Tilat, joilla ei metsävähennysoikeutta | I7: Tilat, joilla on metsävähennysoikeus
B8: Määrä m3 | C8: Arvo eur/m3 | D8: Kuvaus käytetystä puusta | E8: KÄYTTÖKOHDE Valitse käyttökohde luettelosta | F8: 3.1 maatalous-toiminnan käyttö | G8: 3.2 elinkeino-toiminnan käyttö | H8: 3.3 yksityis-käyttö | I8: 3.1 maatalous-toiminnan käyttö | J8: 3.2 elinkeino-toinnon käyttö | K8: 3.3 yksityis- käyttö
B9: =SUM(B10:B39) -> 0 | F9: =SUM(F10:F39) -> 0 | G9: 0 | H9: 0 | I9: 0 | J9: 0 | K9: 0 | L9: =SUM(I9:K9) -> 0 | M9: ARVOSTUS
E10: Yksityiskäyttö | F10: =IF(E10="Maataloustoiminnan käyttö",B10*C10,"") ->  | G10: =IF(E10="Elinkeinotoiminnan käyttö",B10*C10,"") ->  | H10: =IF($E10="Yksityiskäyttö",$B10*$C10,"") -> 0 | I10: =IF($E10="Maataloustoiminnan käyttö, metsävähennys",$B10*$C10,"") ->  | J10: =IF($E10="Elinkeinotoiminnan käyttö, metsävähennys",$B10*$C10,"") ->  | K10: =IF($E10="Yksityiskäyttö, metsävähennys",$B10*$C10,"") ->  | L10: Maataloustoiminnan käyttö | M10: Maatalouskäyttö: pystykauppa-arvon mukaan
F11: =IF(E11="Maataloustoiminnan käyttö",B11*C11,"") ->  | G11: =IF(E11="Elinkeinotoiminnan käyttö",B11*C11,"") ->  | L11: Elinkeinotoiminnan käyttö | M11: Elinkeinokäyttö: hankintakauppahinnan mukaan
F12: =IF(E12="Maataloustoiminnan käyttö",B12*C12,"") ->  | G12: =IF(E12="Elinkeinotoiminnan käyttö",B12*C12,"") ->  | L12: Yksityiskäyttö | M12: Yksityiskäyttö: pystykauppa-arvon mukaan
F13: =IF(E13="Maataloustoiminnan käyttö",B13*C13,"") ->  | G13: =IF(E13="Elinkeinotoiminnan käyttö",B13*C13,"") ->  | L13: Maataloustoiminnan käyttö, metsävähennys
L14: Elinkeinotoiminnan käyttö, metsävähennys | M14: Poikkeukset:
L15: Yksityiskäyttö, metsävähennys | M15: Maatalous tai elinkeinokäyttö tuotantorakennuksiin, sovelletaan "hiljaista kuittausta". Ei tuloa metsätaloudessa, mutta ei myöskään menoa käyttökohteessa.
M16: Yksityiskäyttö tarve- ja polttopuuna on verovapaata.
M18: Maataloudessa käytetyn omasta metsästä otetun puun arvo 2024
M19: Oman tilan metsästä maatalouden käyttöön otetun puun arvoa vahvistettaessa voidaan muun selvityksen puuttuessa perusteena käyttää seuraavia eri puutavaralajien keskimääräisistä hankintahinnoista johdettuja kantohintoja:
M21: Mäntytukki 64 €/m3
M22: Kuusitukki 68 €/m3
M23: Koivutukki 59 €/m3
M24: Mäntykuitu 25 €/m3
M25: Kuusikuitu 26 €/m3
M26: Koivukuitu 26 €/m3
M27: Polttohakkeen (rankahake) kantoraha-arvona voidaan käyttää 1,70 €/m3 tai 0,68 €/irto-m3

Sheet Hank.työ 1
B2: =Etusivu!C10 -> Matti Metsänen
B3: =Etusivu!C16 -> 123456-7
B5: HANKINTATYÖN ARVON LASKENTA | P5: ohje | Q5: #### - ohje
B6: Normaali hankintatyö (1.2.) | V6: =CONCATENATE("Verovuodelta ",Etusivu!B6-1," uinumaan jätetyn hankintatyön arvo") -> Verovuodelta 2024 uinumaan jätetyn hankintatyön arvo
B7: TAKSAT | G7: YHTEENVETO | P7: SIVUN ASETUKSET | V7: Hankintatyön arvo, € | X7: =SUM(Y7:AC7) -> 0 | AA7: 0 | AB7: 0 | AC7: 0
C8: Valmistus | D8: Kuljetus | E8: Kulj. Konekust. | J8: Maatila 1 | K8: Maatila 2 | L8: Maatila 3 | M8: Maatila 4 | N8: Maatila 5
B9: Mäntykuitu | C9: 14.76 | D9: 2.59 | E9: =IF(R$9="kyllä",F9,0) -> 0 | F9: 3.88 | G9: Hankintakauppatulot maatilalta | J9: =D25+L25 -> 0 | K9: =D60+L60 -> 0 | L9: =D95+L95 -> 0 | M9: =D128+L128 -> 0 | N9: =D163+L163 -> 0 | P9: Kuljetuksen konekustan- nukset käytössä | R9: Ei | V9: =CONCATENATE("Verovuoden ",Etusivu!B$6," uinumaan jäävä hankintatyö") -> Verovuoden 2025 uinumaan jäävä hankintatyö | AG9: Ei
B10: Kuusikuitu | C10: 15.44 | D10: 2.75 | E10: 0 | F10: 4.12 | G10: Puutavaran verollinen arvo | J10: =IF(C52>=0,C52,"- arvo tarkista") -> 0 | K10: =IF(C87>=0,C87,"- arvo tarkista") -> 0 | L10: =IF(C122>=0,C122,"- arvo tarkista") -> 0 | M10: =IF(C155>=0,C155,"- arvo tarkista") -> 0 | N10: =IF(C190>=0,C190,"- arvo tarkista") -> 0 | AG10: Kyllä
B11: Koivukuitu | C11: 13.65 | D11: 3.02 | E11: 0 | F11: 4.54 | G11: Konekustannusosuus (vuosimenoa) | J11: =+C49+AC49 -> 0 | K11: =+C84+AC84 -> 0 | L11: =+C119+AC119 -> 0 | M11: =+C152+AC152 -> 0 | N11: =+C187+AC187 -> 0 | P11: Näytä uinuvat hankintatyöt | R11: Ei | Y11: Maatila 1 | Z11: Maatila 2 | AA11: Maatila 3 | AB11: Maatila 4 | AC11: Maatila 5
B12: Mäntytukki | C12: 6.39 | D12: 2.51 | E12: 0 | F12: 3.77 | G12: Valmistettu määrä yhteensä | J12: =+C50+AC50 -> 0 | K12: =+C85+AC85 -> 0 | L12: =+C120+AC120 -> 0 | M12: =+C153+AC153 -> 0 | N12: =+C188+AC188 -> 0 | V12: Valmistettu määrä yhteensä, m3 | Y12: =AC50 -> 0 | Z12: =AC85 -> 0 | AA12: =AC120 -> 0 | AB12: =AC153 -> 0 | AC12: =AC188 -> 0
B13: Kuusitukki | C13: 8.25 | D13: 2.54 | E13: 0 | F13: 3.8 | G13: Valmistuksen arvo yhteensä | J13: =+C47 -> 0 | K13: =+C82 -> 0 | L13: =+C117 -> 0 | M13: =+C150 -> 0 | N13: =+C185 -> 0 | P13: Näytettävien maatilojen määrä | R13: 1 | V13: Valmistuksen arvo yhteensä, € | Y13: =AC47 -> 0 | Z13: =AC82 -> 0 | AA13: =AC117 -> 0 | AB13: =AC150 -> 0 | AC13: =AC185 -> 0
B14: Koivutukki | C14: 6.09 | D14: 2.88 | E14: 0 | F14: 4.32 | G14: Valmistuksen verollinen arvo (125 m3 verovapaata) | J14: =IF(J12+'Hank.työ 2'!J12=0,0,IF((J12+'Hank.työ 2'!J12-125)/(J12+'Hank.työ 2'!J12)*J13>0,(J12+'Hank.työ 2'!J12-125)/(J12+'Hank.työ 2'!J12)*J13,0)) -> 0 | K14: =IF(K12+'Hank.työ 2'!K12=0,0,IF((K12+'Hank.työ 2'!K12-125)/(K12+'Hank.työ 2'!K12)*K13>0,(K12+'Hank.työ 2'!K12-125)/(K12+'Hank.työ 2'!K12)*K13,0)) -> 0 | L14: =IF(L12+'Hank.työ 2'!L12=0,0,IF((L12+'Hank.työ 2'!L12-125)/(L12+'Hank.työ 2'!L12)*L13>0,(L12+'Hank.työ 2'!L12-125)/(L12+'Hank.työ 2'!L12)*L13,0)) -> 0 | M14: =IF(M12+'Hank.työ 2'!M12=0,0,IF((M12+'Hank.työ 2'!M12-125)/(M12+'Hank.työ 2'!M12)*M13>0,(M12+'Hank.työ 2'!M12-125)/(M12+'Hank.työ 2'!M12)*M13,0)) -> 0 | N14: =IF(N12+'Hank.työ 2'!N12=0,0,IF((N12+'Hank.työ 2'!N12-125)/(N12+'Hank.työ 2'!N12)*N13>0,(N12+'Hank.työ 2'!N12-125)/(N12+'Hank.työ 2'!N12)*N13,0)) -> 0 | V14: Kuljetuksen määrä yhteensä, m3 | Y14: =AC51 -> 0 | Z14: =AC86 -> 0 | AA14: =AC121 -> 0 | AB14: =AC154 -> 0 | AC14: =AC189 -> 0
B15: Lahopuu | E15: 0 | G15: Kuljetuksen määrä yhteensä | J15: =+C51+AC51 -> 0 | K15: =+C86+AC86 -> 0 | L15: =+C121+AC121 -> 0 | M15: =+C154+AC154 -> 0 | N15: =+C189+AC189 -> 0 | O15: Näytettävien maatilojen määrä tulee automaattisesti | V15: kuljetuksen arvo yhteensä, € | Y15: =AC48 -> 0 | Z15: =AC83 -> 0 | AA15: =AC118 -> 0 | AB15: =AC151 -> 0 | AC15: =AC186 -> 0
B16: Erikoispuu | E16: 0 | G16: kuljetuksen arvo yhteensä | J16: =+C48 -> 0 | K16: =+C83 -> 0 | L16: =+C118 -> 0 | M16: =+C151 -> 0 | N16: =+C186 -> 0 | V16: HANKINTATYÖN ARVO YHTEENSÄ, € | Y16: =Y13+Y15 -> 0 | Z16: =Z13+Z15 -> 0 | AA16: =AA13+AA15 -> 0 | AB16: =AB13+AB15 -> 0 | AC16: =AC13+AC15 -> 0
B17: Energiapuu (kokopuu) | C17: 9.1 | D17: 4.72 | E17: 0 | F17: 7.07 | G17: Kuljetuksen verollinen arvo (125 m3 verovapaata) | J17: =IF(J15+'Hank.työ 2'!J15=0,0,IF((J15+'Hank.työ 2'!J15-125)/(J15+'Hank.työ 2'!J15)*J16>0,(J15+'Hank.työ 2'!J15-125)/(J15+'Hank.työ 2'!J15)*J16,0)) -> 0 | K17: =IF(K15+'Hank.työ 2'!K15=0,0,IF((K15+'Hank.työ 2'!K15-125)/(K15+'Hank.työ 2'!K15)*K16>0,(K15+'Hank.työ 2'!K15-125)/(K15+'Hank.työ 2'!K15)*K16,0)) -> 0 | L17: =IF(L15+'Hank.työ 2'!L15=0,0,IF((L15+'Hank.työ 2'!L15-125)/(L15+'Hank.työ 2'!L15)*L16>0,(L15+'Hank.työ 2'!L15-125)/(L15+'Hank.työ 2'!L15)*L16,0)) -> 0 | M17: =IF(M15+'Hank.työ 2'!M15=0,0,IF((M15+'Hank.työ 2'!M15-125)/(M15+'Hank.työ 2'!M15)*M16>0,(M15+'Hank.työ 2'!M15-125)/(M15+'Hank.työ 2'!M15)*M16,0)) -> 0 | N17: =IF(N15+'Hank.työ 2'!N15=0,0,IF((N15+'Hank.työ 2'!N15-125)/(N15+'Hank.työ 2'!N15)*N16>0,(N15+'Hank.työ 2'!N15-125)/(N15+'Hank.työ 2'!N15)*N16,0)) -> 0 | V17: Siirrä nämä alarivin summat seuraavan vuoden verotukseen uinumaan jätettyinä hankintatyön arvoina.
B18: Halot ja klapit (tukkumyynti) | C18: 30.94 | D18: 3.02 | E18: 0 | F18: 4.54 | G18: Hankintatyön arvo yhteensä | J18: =J13+J16 -> 0 | K18: =K13+K16 -> 0 | L18: =L13+L16 -> 0 | M18: =M13+M16 -> 0 | N18: =N13+N16 -> 0
B19: Haketus | C19: 4.83 | E19: 0 | G19: Hankintatyön verollinen arvo yhteensä | J19: =(J14+J17) -> 0 | K19: =(K14+K17) -> 0 | L19: =(L14+L17) -> 0 | M19: =(M14+M17) -> 0 | N19: =(N14+N17) -> 0 | V19: TÄHÄN ALLE VAIN NE KUUTIOMÄÄRÄT JOTKA ON TEHTY VEROVUONNA, MUTTA MYYDÄÄN TULEVANA VEROVUONNA Siirrä seuraavan vuoden veroilmoitukseen hankintatyön arvoon (lomake 2C kohta 2.1)
B20: Hake | D20: 3.02 | E20: =IF(R$9="kyllä",F20,0) -> 0 | F20: 4.54 | G20: Hakkuumäärä yht. verovuonna (sis. hank.työ 1 ja 2) | J20: =J12+'Hank.työ 2'!J12 -> 0 | K20: =K12+'Hank.työ 2'!K12 -> 0 | L20: =L12+'Hank.työ 2'!L12 -> 0 | M20: =M12+'Hank.työ 2'!M12 -> 0 | N20: =N12+'Hank.työ 2'!N12 -> 0
B21: Joulupuut (tukkumyynti) | E21: =IF(R$9="kyllä",F21,0) -> 0 | G21: Ajomäärä yht verovuonna (sis. hank.työ 1 ja 2) | J21: =J15+'Hank.työ 2'!J15 -> 0 | K21: =K15+'Hank.työ 2'!K15 -> 0 | L21: =L15+'Hank.työ 2'!L15 -> 0 | M21: =M15+'Hank.työ 2'!M15 -> 0 | N21: =N15+'Hank.työ 2'!N15 -> 0
B24: MAATILA 1 | C24: Ei metsävähennysoikeutta | K24: Metsävähennysoikeus | U24: MAATILA 1
C25: Hankintatyötulot | D25: =Tulot!AJ9 -> 0 | K25: Hankintatyötulot | L25: =Tulot!AK9 -> 0 | V25: Uinumaan jäävä hakkuumäärä
C27: HAKKUU | F27: KULJETUS | I27: KONEKULJETUS | K27: HAKKUU | N27: KULJETUS | Q27: KONEKULJETUS | V27: HAKKUU | Y27: KULJETUS | AB27: KONEKULJETUS
D29: Valmistuksen arvo | F29: Määrä | G29: Kuljetustyön arvo | I29: Konekustannus | L29: Valmistuksen arvo | N29: Määrä | O29: Kuljetustyön arvo | Q29: Konekustannus | W29: valmistuksen arvo | Y29: Määrä | Z29: Kuljetustyön arvo | AB29: Konekustannus
C30: m3 | D30: €/m3 | E30: € | F30: m3 | G30: €/m3 | H30: € | I30: €/m3 | J30: € | K30: m3 | L30: €/m3 | M30: € | N30: m3 | O30: €/m3 | P30: € | Q30: €/m3 | R30: € | V30: m3 | W30: €/m3 | X30: € | Y30: m3 | Z30: €/m3 | AA30: € | AB30: €/m3 | AC30: €
B31: Mäntykuitu | D31: =$C$9 -> 14.76 | E31: =C31*D31 -> 0 | G31: =$D$9 -> 2.59 | H31: =F31*G31 -> 0 | I31: =$E$9 -> 0 | J31: =I31*F31 -> 0 | L31: =$C$9 -> 14.76 | M31: =K31*L31 -> 0 | N31: 0 | O31: =$D$9 -> 2.59 | P31: =N31*O31 -> 0 | Q31: =$E$9 -> 0 | R31: =Q31*N31 -> 0 | U31: Mäntykuitu | W31: =$C$9 -> 14.76 | X31: =V31*W31 -> 0 | Z31: =$D$9 -> 2.59 | AA31: =Y31*Z31 -> 0 | AB31: =$E$9 -> 0 | AC31: =AB31*Y31 -> 0
B32: Kuusikuitu | D32: =$C$10 -> 15.44 | E32: 0 | G32: =$D$10 -> 2.75 | H32: =F32*G32 -> 0 | I32: =$E$10 -> 0 | J32: =I32*F32 -> 0 | L32: =$C$10 -> 15.44 | M32: 0 | O32: =$D$10 -> 2.75 | P32: 0 | Q32: =$E$10 -> 0 | R32: =Q32*N32 -> 0 | U32: Kuusikuitu | W32: =$C$10 -> 15.44 | X32: 0 | Z32: =$D$10 -> 2.75 | AA32: 0 | AB32: =$E$10 -> 0 | AC32: =AB32*Y32 -> 0
B33: Koivukuitu | D33: =$C$11 -> 13.65 | E33: 0 | F33: 0 | G33: =$D$11 -> 3.02 | H33: 0 | I33: =$E$11 -> 0 | J33: 0 | L33: =$C$11 -> 13.65 | M33: 0 | O33: =$D$11 -> 3.02 | P33: 0 | Q33: =$E$11 -> 0 | R33: 0 | U33: Koivukuitu | W33: =$C$11 -> 13.65 | X33: 0 | Y33: 0 | Z33: =$D$11 -> 3.02 | AA33: 0 | AB33: =$E$11 -> 0 | AC33: 0
B34: Mäntytukki | D34: =$C$12 -> 6.39 | E34: 0 | F34: 0 | G34: =$D$12 -> 2.51 | H34: 0 | I34: =$E$12 -> 0 | J34: 0 | L34: =$C$12 -> 6.39 | M34: 0 | O34: =$D$12 -> 2.51 | P34: 0 | Q34: =$E$12 -> 0 | R34: 0 | U34: Mäntytukki | V34: 0 | W34: =$C$12 -> 6.39 | X34: 0 | Y34: 0 | Z34: =$D$12 -> 2.51 | AA34: 0 | AB34: =$E$12 -> 0 | AC34: 0
B35: Kuusitukki | D35: =$C$13 -> 8.25 | E35: 0 | F35: 0 | G35: =$D$13 -> 2.54 | H35: 0 | I35: =$E$13 -> 0 | J35: 0 | L35: =$C$13 -> 8.25 | M35: 0 | O35: =$D$13 -> 2.54 | P35: 0 | Q35: =$E$13 -> 0 | R35: 0 | U35: Kuusitukki | W35: =$C$13 -> 8.25 | X35: 0 | Y35: 0 | Z35: =$D$13 -> 2.54 | AA35: 0 | AB35: =$E$13 -> 0 | AC35: 0
B36: Koivutukki | D36: =$C$14 -> 6.09 | E36: 0 | F36: 0 | G36: =$D$14 -> 2.88 | H36: 0 | I36: =$E$14 -> 0 | J36: 0 | L36: =$C$14 -> 6.09 | M36: 0 | O36: =$D$14 -> 2.88 | P36: 0 | Q36: =$E$14 -> 0 | R36: 0 | U36: Koivutukki | V36: 0 | W36: =$C$14 -> 6.09 | X36: 0 | Y36: 0 | Z36: =$D$14 -> 2.88 | AA36: 0 | AB36: =$E$14 -> 0 | AC36: 0
B37: Lahopuu | D37: =$C$15 -> 0 | E37: 0 | F37: 0 | G37: =$D$15 -> 0 | H37: 0 | I37: =$E$15 -> 0 | J37: 0 | L37: =$C$15 -> 0 | M37: 0 | O37: =$D$15 -> 0 | P37: 0 | Q37: =$E$15 -> 0 | R37: 0 | U37: Lahopuu | V37: 0 | W37: =$C$15 -> 0 | X37: 0 | Y37: 0 | Z37: =$D$15 -> 0 | AA37: 0 | AB37: =$E$15 -> 0 | AC37: 0
B38: Erikoispuu | D38: =$C$16 -> 0 | E38: =C38*D38 -> 0 | F38: 0 | G38: =$D$16 -> 0 | H38: 0 | I38: =$E$16 -> 0 | J38: =I38*F38 -> 0 | L38: =$C$16 -> 0 | M38: =K38*L38 -> 0 | O38: =$D$16 -> 0 | P38: =N38*O38 -> 0 | Q38: =$E$16 -> 0 | R38: =Q38*N38 -> 0 | U38: Erikoispuu | V38: 0 | W38: =$C$16 -> 0 | X38: =V38*W38 -> 0 | Y38: 0 | Z38: =$D$16 -> 0 | AA38: =Y38*Z38 -> 0 | AB38: =$E$16 -> 0 | AC38: =AB38*Y38 -> 0
B39: Energiapuu (kokopuu) | D39: =$C$17 -> 9.1 | E39: =C39*D39 -> 0 | F39: 0 | G39: =$D$17 -> 4.72 | H39: 0 | I39: =$E$17 -> 0 | J39: =I39*F39 -> 0 | L39: =$C$17 -> 9.1 | M39: =K39*L39 -> 0 | O39: =$D$17 -> 4.72 | P39: =N39*O39 -> 0 | Q39: =$E$17 -> 0 | R39: =Q39*N39 -> 0 | U39: Energiapuu (kokopuu) | V39: 0 | W39: =$C$17 -> 9.1 | X39: =V39*W39 -> 0 | Y39: 0 | Z39: =$D$17 -> 4.72 | AA39: =Y39*Z39 -> 0 | AB39: =$E$17 -> 0 | AC39: =AB39*Y39 -> 0
B40: Halot ja klapit (tukkumyynti) | D40: =$C$18 -> 30.94 | E40: =C40*D40 -> 0 | F40: 0 | G40: =$D$18 -> 3.02 | H40: 0 | I40: =$E$18 -> 0 | J40: =I40*F40 -> 0 | L40: =$C$18 -> 30.94 | M40: =K40*L40 -> 0 | O40: =$D$18 -> 3.02 | P40: =N40*O40 -> 0 | Q40: =$E$18 -> 0 | R40: =Q40*N40 -> 0 | U40: Halot ja klapit (tukkumyynti) | V40: 0 | W40: =$C$18 -> 30.94 | X40: =V40*W40 -> 0 | Y40: 0 | Z40: =$D$18 -> 3.02 | AA40: =Y40*Z40 -> 0 | AB40: =$E$18 -> 0 | AC40: =AB40*Y40 -> 0
B41: Haketus | D41: =$C$19 -> 4.83 | E41: =C41*D41 -> 0 | F41: 0 | G41: - | H41: - | I41: =$E$19 -> 0 | J41: =I41*F41 -> 0 | L41: =$C$19 -> 4.83 | M41: =K41*L41 -> 0 | O41: - | P41: - | Q41: =$E$19 -> 0 | R41: =Q41*N41 -> 0 | U41: Haketus | V41: 0 | W41: =$C$19 -> 4.83 | X41: =V41*W41 -> 0 | Y41: 0 | Z41: - | AA41: - | AB41: =$E$19 -> 0 | AC41: =AB41*Y41 -> 0
B42: Hake | D42: - | E42: - | F42: 0 | G42: =$D$20 -> 3.02 | H42: 0 | I42: =$E$20 -> 0 | J42: =I42*F42 -> 0 | L42: - | M42: - | O42: =$D$20 -> 3.02 | P42: =N42*O42 -> 0 | Q42: =$E$20 -> 0 | R42: =Q42*N42 -> 0 | U42: Hake | V42: 0 | W42: - | X42: - | Y42: 0 | Z42: =$D$20 -> 3.02 | AA42: =Y42*Z42 -> 0 | AB42: =$E$20 -> 0 | AC42: =AB42*Y42 -> 0
B43: Joulupuut (tukkumyynti) | D43: =$C$21 -> 0 | E43: =C43*D43 -> 0 | G43: =$D$21 -> 0 | I43: =$E$21 -> 0 | L43: =$C$21 -> 0 | M43: =K43*L43 -> 0 | O43: =$D$21 -> 0 | Q43: =$E$21 -> 0 | U43: Joulupuut (tukkumyynti) | W43: =$C$21 -> 0 | Z43: =$D$21 -> 0 | AB43: =$E$21 -> 0
B44: Yhteensä | C44: =SUM(C31:C43) -> 0 | E44: =SUM(E31:E43) -> 0 | F44: =SUM(F31:F43) -> 0 | H44: =SUM(H31:H43) -> 0 | J44: =SUM(J31:J43) -> 0 | K44: =SUM(K31:K43) -> 0 | M44: =SUM(M31:M43) -> 0 | N44: =SUM(N31:N43) -> 0 | P44: =SUM(P31:P43) -> 0 | R44: =SUM(R31:R43) -> 0 | U44: Yhteensä | V44: =SUM(V31:V43) -> 0 | X44: =SUM(X31:X43) -> 0 | Y44: =SUM(Y31:Y43) -> 0 | AA44: =SUM(AA31:AA43) -> 0 | AC44: =SUM(AC31:AC43) -> 0
C46: YHTEENSÄ | I46: EI METSÄVÄHENNYSTÄ | Q46: METSÄVÄHENNYSOIKEUS
B47: Hakkuutyön arvo | C47: =J47+R47 -> 0 | I47: Hakkuutyön arvo | J47: =E44 -> 0 | Q47: Hakkuutyön arvo | R47: =M44 -> 0 | AB47: Hakkuutyön arvo | AC47: =X44 -> 0
B48: Kuljetuksen arvo | C48: 0 | I48: Kuljetuksen arvo | J48: =H44 -> 0 | Q48: Kuljetuksen arvo | R48: =P44 -> 0 | AB48: Kuljetuksen arvo | AC48: =AA44 -> 0
B49: Konekustannus (muuta vuosimenoa) | C49: =J49+R49 -> 0 | I49: Konekustannus | J49: =J44 -> 0 | Q49: Konekustannus | R49: =R44 -> 0 | AB49: Konekustannus | AC49: =AC44 -> 0
B50: Hakkuun määrä yhteensä | C50: 0 | I50: Hakkuun määrä | J50: =C44 -> 0 | Q50: Hakkuun määrä | R50: =K44 -> 0 | AB50: Hakkuun määrä | AC50: =V44 -> 0
B51: Kuljetuksen määrä yhteensä | C51: 0 | I51: Kuljetuksen määrä | J51: =F44 -> 0 | Q51: Kuljetuksen määrä | R51: =N44 -> 0 | AB51: Kuljetuksen määrä | AC51: =Y44 -> 0
B52: Puutavaran verollinen arvo | C52: 0 | I52: Puutavaran verollinen arvo | J52: =(D25-J47-J48-J49) -> 0 | Q52: Metsävähennykseen oikeuttava osa (verollinen osa) | R52: =(L25-R47-R48-R49) -> 0
C55: Hakattu määrä yhteensä | E55: =C50 -> 0
C56: Kuljetettu määrä yhteensä | E56: =C51 -> 0
B57: Tarkistus: | C57: =IF(E56>E55,"Kuljetettu määrä on valmistettua määrää suurempi",IF(E56=E55,"Valmistettu ja kuljetettu määrä yhtäsuuret","Valmistettu määrä on kuljetettua määrää isompi")) -> Valmistettu ja kuljetettu määrä yhtäsuuret
B59: MAATILA 2 | C59: Ei metsävähennysoikeutta | K59: Metsävähennysoikeus | U59: MAATILA 2
C60: Hankintatyötulot | D60: =Tulot!AL9 -> 0 | K60: Hankintatyötulot | L60: =Tulot!AM9 -> 0 | V60: Uinumaan jäävä hakkuumäärä
C62: HAKKUU | F62: KULJETUS | I62: KONEKULJETUS | K62: HAKKUU | N62: KULJETUS | Q62: KONEKULJETUS | V62: HAKKUU | Y62: KULJETUS | AB62: KONEKULJETUS
D64: Valmistuksen arvo | F64: Määrä | G64: Kuljetustyön arvo | I64: Konekustannus | L64: Valmistuksen arvo | N64: Määrä | O64: Kuljetustyön arvo | Q64: Konekustannus | W64: valmistuksen arvo | Y64: Määrä | Z64: Kuljetustyön arvo | AB64: Konekustannus
C65: m3 | D65: €/m3 | E65: € | F65: m3 | G65: €/m3 | H65: € | I65: €/m3 | J65: € | K65: m3 | L65: €/m3 | M65: € | N65: m3 | O65: €/m3 | P65: € | Q65: €/m3 | R65: € | V65: m3 | W65: €/m3 | X65: € | Y65: m3 | Z65: €/m3 | AA65: € | AB65: €/m3 | AC65: €
B66: Mäntykuitu | D66: =$C$9 -> 14.76 | E66: =C66*D66 -> 0 | G66: =$D$9 -> 2.59 | H66: =F66*G66 -> 0 | I66: =$E$9 -> 0 | J66: =I66*F66 -> 0 | L66: =$C$9 -> 14.76 | M66: =K66*L66 -> 0 | N66: 0 | O66: =$D$9 -> 2.59 | P66: =N66*O66 -> 0 | Q66: =$E$9 -> 0 | R66: =Q66*N66 -> 0 | U66: Mäntykuitu | W66: =$C$9 -> 14.76 | X66: =V66*W66 -> 0 | Z66: =$D$9 -> 2.59 | AA66: =Y66*Z66 -> 0 | AB66: =$E$9 -> 0 | AC66: =AB66*Y66 -> 0
B67: Kuusikuitu | D67: =$C$10 -> 15.44 | E67: 0 | G67: =$D$10 -> 2.75 | H67: =F67*G67 -> 0 | I67: =$E$10 -> 0 | J67: =I67*F67 -> 0 | K67: 0 | L67: =$C$10 -> 15.44 | M67: 0 | N67: 0 | O67: =$D$10 -> 2.75 | P67: 0 | Q67: =$E$10 -> 0 | R67: =Q67*N67 -> 0 | U67: Kuusikuitu | W67: =$C$10 -> 15.44 | X67: 0 | Z67: =$D$10 -> 2.75 | AA67: 0 | AB67: =$E$10 -> 0 | AC67: =AB67*Y67 -> 0
B68: Koivukuitu | D68: =$C$11 -> 13.65 | E68: 0 | F68: 0 | G68: =$D$11 -> 3.02 | H68: 0 | I68: =$E$11 -> 0 | J68: 0 | L68: =$C$11 -> 13.65 | M68: 0 | O68: =$D$11 -> 3.02 | P68: 0 | Q68: =$E$11 -> 0 | R68: 0 | U68: Koivukuitu | W68: =$C$11 -> 13.65 | X68: 0 | Y68: 0 | Z68: =$D$11 -> 3.02 | AA68: 0 | AB68: =$E$11 -> 0 | AC68: 0
B69: Mäntytukki | D69: =$C$12 -> 6.39 | E69: 0 | F69: 0 | G69: =$D$12 -> 2.51 | H69: 0 | I69: =$E$12 -> 0 | J69: 0 | K69: 0 | L69: =$C$12 -> 6.39 | M69: 0 | N69: 0 | O69: =$D$12 -> 2.51 | P69: 0 | Q69: =$E$12 -> 0 | R69: 0 | U69: Mäntytukki | V69: 0 | W69: =$C$12 -> 6.39 | X69: 0 | Y69: 0 | Z69: =$D$12 -> 2.51 | AA69: 0 | AB69: =$E$12 -> 0 | AC69: 0
B70: Kuusitukki | C70: 0 | D70: =$C$13 -> 8.25 | E70: 0 | G70: =$D$13 -> 2.54 | H70: 0 | I70: =$E$13 -> 0 | J70: 0 | K70: 0 | L70: =$C$13 -> 8.25 | M70: 0 | N70: 0 | O70: =$D$13 -> 2.54 | P70: 0 | Q70: =$E$13 -> 0 | R70: 0 | U70: Kuusitukki | W70: =$C$13 -> 8.25 | X70: 0 | Y70: 0 | Z70: =$D$13 -> 2.54 | AA70: 0 | AB70: =$E$13 -> 0 | AC70: 0
B71: Koivutukki | D71: =$C$14 -> 6.09 | E71: 0 | G71: =$D$14 -> 2.88 | H71: 0 | I71: =$E$14 -> 0 | J71: 0 | K71: 0 | L71: =$C$14 -> 6.09 | M71: 0 | N71: 0 | O71: =$D$14 -> 2.88 | P71: 0 | Q71: =$E$14 -> 0 | R71: 0 | U71: Koivutukki | V71: 0 | W71: =$C$14 -> 6.09 | X71: 0 | Y71: 0 | Z71: =$D$14 -> 2.88 | AA71: 0 | AB71: =$E$14 -> 0 | AC71: 0
B72: Lahopuu | C72: 0 | D72: =$C$15 -> 0 | E72: 0 | F72: 0 | G72: =$D$15 -> 0 | H72: 0 | I72: =$E$15 -> 0 | J72: 0 | K72: 0 | L72: =$C$15 -> 0 | M72: 0 | N72: 0 | O72: =$D$15 -> 0 | P72: 0 | Q72: =$E$15 -> 0 | R72: 0 | U72: Lahopuu | V72: 0 | W72: =$C$15 -> 0 | X72: 0 | Y72: 0 | Z72: =$D$15 -> 0 | AA72: 0 | AB72: =$E$15 -> 0 | AC72: 0
B73: Erikoispuu | C73: 0 | D73: =$C$16 -> 0 | E73: =C73*D73 -> 0 | F73: 0 | G73: =$D$16 -> 0 | H73: 0 | I73: =$E$16 -> 0 | J73: =I73*F73 -> 0 | K73: 0 | L73: =$C$16 -> 0 | M73: =K73*L73 -> 0 | N73: 0 | O73: =$D$16 -> 0 | P73: =N73*O73 -> 0 | Q73: =$E$16 -> 0 | R73: =Q73*N73 -> 0 | U73: Erikoispuu | V73: 0 | W73: =$C$16 -> 0 | X73: =V73*W73 -> 0 | Y73: 0 | Z73: =$D$16 -> 0 | AA73: =Y73*Z73 -> 0 | AB73: =$E$16 -> 0 | AC73: =AB73*Y73 -> 0
B74: Energiapuu (kokopuu) | C74: 0 | D74: =$C$17 -> 9.1 | E74: =C74*D74 -> 0 | F74: 0 | G74: =$D$17 -> 4.72 | H74: 0 | I74: =$E$17 -> 0 | J74: =I74*F74 -> 0 | K74: 0 | L74: =$C$17 -> 9.1 | M74: =K74*L74 -> 0 | N74: 0 | O74: =$D$17 -> 4.72 | P74: =N74*O74 -> 0 | Q74: =$E$17 -> 0 | R74: =Q74*N74 -> 0 | U74: Energiapuu (kokopuu) | V74: 0 | W74: =$C$17 -> 9.1 | X74: =V74*W74 -> 0 | Y74: 0 | Z74: =$D$17 -> 4.72 | AA74: =Y74*Z74 -> 0 | AB74: =$E$17 -> 0 | AC74: =AB74*Y74 -> 0
B75: Halot ja klapit (tukkumyynti) | D75: =$C$18 -> 30.94 | E75: =C75*D75 -> 0 | G75: =$D$18 -> 3.02 | H75: 0 | I75: =$E$18 -> 0 | J75: =I75*F75 -> 0 | K75: 0 | L75: =$C$18 -> 30.94 | M75: =K75*L75 -> 0 | N75: 0 | O75: =$D$18 -> 3.02 | P75: =N75*O75 -> 0 | Q75: =$E$18 -> 0 | R75: =Q75*N75 -> 0 | U75: Halot ja klapit (tukkumyynti) | V75: 0 | W75: =$C$18 -> 30.94 | X75: =V75*W75 -> 0 | Y75: 0 | Z75: =$D$18 -> 3.02 | AA75: =Y75*Z75 -> 0 | AB75: =$E$18 -> 0 | AC75: =AB75*Y75 -> 0
B76: Haketus | C76: 0 | D76: =$C$19 -> 4.83 | E76: =C76*D76 -> 0 | F76: 0 | G76: - | H76: - | I76: =$E$19 -> 0 | J76: =I76*F76 -> 0 | K76: 0 | L76: =$C$19 -> 4.83 | M76: =K76*L76 -> 0 | N76: 0 | O76: - | P76: - | Q76: =$E$19 -> 0 | R76: =Q76*N76 -> 0 | U76: Haketus | V76: 0 | W76: =$C$19 -> 4.83 | X76: =V76*W76 -> 0 | Y76: 0 | Z76: - | AA76: - | AB76: =$E$19 -> 0 | AC76: =AB76*Y76 -> 0
B77: Hake | C77: 0 | D77: - | E77: - | F77: 0 | G77: =$D$20 -> 3.02 | H77: =F77*G77 -> 0 | I77: =$E$20 -> 0 | J77: =I77*F77 -> 0 | K77: 0 | L77: - | M77: - | N77: 0 | O77: =$D$20 -> 3.02 | P77: =N77*O77 -> 0 | Q77: =$E$20 -> 0 | R77: =Q77*N77 -> 0 | U77: Hake | V77: 0 | W77: - | X77: - | Y77: 0 | Z77: =$D$20 -> 3.02 | AA77: =Y77*Z77 -> 0 | AB77: =$E$20 -> 0 | AC77: =AB77*Y77 -> 0
B78: Joulupuut (tukkumyynti) | D78: =$C$21 -> 0 | E78: =C78*D78 -> 0 | G78: =$D$21 -> 0 | I78: =$E$21 -> 0 | L78: =$C$21 -> 0 | M78: =K78*L78 -> 0 | O78: =$D$21 -> 0 | Q78: =$E$21 -> 0 | U78: Joulupuut (tukkumyynti) | W78: =$C$21 -> 0 | Z78: =$D$21 -> 0 | AB78: =$E$21 -> 0
B79: Yhteensä | C79: =SUM(C66:C78) -> 0 | E79: =SUM(E66:E78) -> 0 | F79: =SUM(F66:F78) -> 0 | H79: =SUM(H66:H78) -> 0 | J79: =SUM(J66:J78) -> 0 | K79: =SUM(K66:K78) -> 0 | M79: =SUM(M66:M78) -> 0 | N79: =SUM(N66:N78) -> 0 | P79: =SUM(P66:P78) -> 0 | R79: =SUM(R66:R78) -> 0 | U79: Yhteensä | V79: =SUM(V66:V78) -> 0 | X79: =SUM(X66:X78) -> 0 | Y79: =SUM(Y66:Y78) -> 0 | AA79: =SUM(AA66:AA78) -> 0 | AC79: =SUM(AC66:AC78) -> 0
C81: YHTEENSÄ | I81: EI METSÄVÄHENNYSTÄ | Q81: METSÄVÄHENNYSOIKEUS
B82: Hakkuutyön arvo | C82: =J82+R82 -> 0 | I82: Hakkuutyön arvo | J82: =E79 -> 0 | Q82: Hakkuutyön arvo | R82: =M79 -> 0 | AB82: Hakkuutyön arvo | AC82: =X79 -> 0
B83: Kuljetuksen arvo | C83: 0 | I83: Kuljetuksen arvo | J83: =H79 -> 0 | Q83: Kuljetuksen arvo | R83: =P79 -> 0 | AB83: Kuljetuksen arvo | AC83: =AA79 -> 0
B84: Konekustannus (muuta vuosimenoa) | C84: 0 | I84: Konekustannus | J84: =J79 -> 0 | Q84: Konekustannus | R84: =R79 -> 0 | AB84: Konekustannus | AC84: =AC79 -> 0
B85: Hakkuun määrä yhteensä | C85: 0 | I85: Hakkuun määrä | J85: =C79 -> 0 | Q85: Hakkuun määrä | R85: =K79 -> 0 | AB85: Hakkuun määrä | AC85: =V79 -> 0
B86: Kuljetuksen määrä yhteensä | C86: 0 | I86: Kuljetuksen määrä | J86: =F79 -> 0 | Q86: Kuljetuksen määrä | R86: =N79 -> 0 | AB86: Kuljetuksen määrä | AC86: =Y79 -> 0
B87: Puutavaran verollinen arvo | C87: 0 | I87: Puutavaran verollinen arvo | J87: =(D60-J82-J83-J84) -> 0 | Q87: Metsävähennykseen oikeuttava osa (verollinen osa) | R87: =(L60-R82-R83-R84) -> 0
C90: Hakattu määrä yhteensä | E90: =C85 -> 0
C91: Kuljetettu määrä yhteensä | E91: =C86 -> 0
B92: Tarkistus: | C92: =IF(E91>E90,"Kuljetettu määrä on valmistettua määrää suurempi",IF(E91=E90,"Valmistettu ja kuljetettu määrä yhtäsuuret","Valmistettu määrä on kuljetettua määrää isompi")) -> Valmistettu ja kuljetettu määrä yhtäsuuret
B94: MAATILA 3 | C94: Ei metsävähennysoikeutta | K94: Metsävähennysoikeus | U94: MAATILA 3
C95: Hankintatyötulot | D95: =Tulot!AN9 -> 0 | K95: Hankintatyötulot | L95: =Tulot!AO9 -> 0 | V95: Uinumaan jäävä hakkuumäärä
C97: HAKKUU | F97: KULJETUS | I97: KONEKULJETUS | K97: HAKKUU | N97: KULJETUS | Q97: KONEKULJETUS | V97: HAKKUU | Y97: KULJETUS | AB97: KONEKULJETUS
D99: Valmistuksen arvo | F99: Määrä | G99: Kuljetustyön arvo | I99: Konekustannus | L99: Valmistuksen arvo | N99: Määrä | O99: Kuljetustyön arvo | Q99: Konekustannus | W99: valmistuksen arvo | Y99: Määrä | Z99: Kuljetustyön arvo | AB99: Konekustannus
C100: m3 | D100: €/m3 | E100: € | F100: m3 | G100: €/m3 | H100: € | I100: €/m3 | J100: € | K100: m3 | L100: €/m3 | M100: € | N100: m3 | O100: €/m3 | P100: € | Q100: €/m3 | R100: € | V100: m3 | W100: €/m3 | X100: € | Y100: m3 | Z100: €/m3 | AA100: € | AB100: €/m3 | AC100: €
B101: Mäntykuitu | D101: =$C$9 -> 14.76 | E101: =C101*D101 -> 0 | G101: =$D$9 -> 2.59 | H101: =F101*G101 -> 0 | I101: =$E$9 -> 0 | J101: =I101*F101 -> 0 | L101: =$C$9 -> 14.76 | M101: =K101*L101 -> 0 | N101: 0 | O101: =$D$9 -> 2.59 | P101: =N101*O101 -> 0 | Q101: =$E$9 -> 0 | R101: =Q101*N101 -> 0 | U101: Mäntykuitu | W101: =$C$9 -> 14.76 | X101: =V101*W101 -> 0 | Z101: =$D$9 -> 2.59 | AA101: =Y101*Z101 -> 0 | AB101: =$E$9 -> 0 | AC101: =AB101*Y101 -> 0
B102: Kuusikuitu | C102: 0 | D102: =$C$10 -> 15.44 | E102: 0 | F102: 0 | G102: =$D$10 -> 2.75 | H102: =F102*G102 -> 0 | I102: =$E$10 -> 0 | J102: =I102*F102 -> 0 | K102: 0 | L102: =$C$10 -> 15.44 | M102: 0 | N102: 0 | O102: =$D$10 -> 2.75 | P102: 0 | Q102: =$E$10 -> 0 | R102: =Q102*N102 -> 0 | U102: Kuusikuitu | W102: =$C$10 -> 15.44 | X102: 0 | Z102: =$D$10 -> 2.75 | AA102: 0 | AB102: =$E$10 -> 0 | AC102: =AB102*Y102 -> 0
B103: Koivukuitu | D103: =$C$11 -> 13.65 | E103: 0 | G103: =$D$11 -> 3.02 | H103: 0 | I103: =$E$11 -> 0 | J103: 0 | L103: =$C$11 -> 13.65 | M103: 0 | O103: =$D$11 -> 3.02 | P103: 0 | Q103: =$E$11 -> 0 | R103: 0 | U103: Koivukuitu | W103: =$C$11 -> 13.65 | X103: 0 | Y103: 0 | Z103: =$D$11 -> 3.02 | AA103: 0 | AB103: =$E$11 -> 0 | AC103: 0
B104: Mäntytukki | D104: =$C$12 -> 6.39 | E104: 0 | F104: 0 | G104: =$D$12 -> 2.51 | H104: 0 | I104: =$E$12 -> 0 | J104: 0 | K104: 0 | L104: =$C$12 -> 6.39 | M104: 0 | N104: 0 | O104: =$D$12 -> 2.51 | P104: 0 | Q104: =$E$12 -> 0 | R104: 0 | U104: Mäntytukki | V104: 0 | W104: =$C$12 -> 6.39 | X104: 0 | Y104: 0 | Z104: =$D$12 -> 2.51 | AA104: 0 | AB104: =$E$12 -> 0 | AC104: 0
B105: Kuusitukki | C105: 0 | D105: =$C$13 -> 8.25 | E105: 0 | G105: =$D$13 -> 2.54 | H105: 0 | I105: =$E$13 -> 0 | J105: 0 | K105: 0 | L105: =$C$13 -> 8.25 | M105: 0 | N105: 0 | O105: =$D$13 -> 2.54 | P105: 0 | Q105: =$E$13 -> 0 | R105: 0 | U105: Kuusitukki | W105: =$C$13 -> 8.25 | X105: 0 | Y105: 0 | Z105: =$D$13 -> 2.54 | AA105: 0 | AB105: =$E$13 -> 0 | AC105: 0
B106: Koivutukki | D106: =$C$14 -> 6.09 | E106: 0 | G106: =$D$14 -> 2.88 | H106: 0 | I106: =$E$14 -> 0 | J106: 0 | K106: 0 | L106: =$C$14 -> 6.09 | M106: 0 | N106: 0 | O106: =$D$14 -> 2.88 | P106: 0 | Q106: =$E$14 -> 0 | R106: 0 | U106: Koivutukki | V106: 0 | W106: =$C$14 -> 6.09 | X106: 0 | Y106: 0 | Z106: =$D$14 -> 2.88 | AA106: 0 | AB106: =$E$14 -> 0 | AC106: 0
B107: Lahopuu | C107: 0 | D107: =$C$15 -> 0 | E107: 0 | F107: 0 | G107: =$D$15 -> 0 | H107: 0 | I107: =$E$15 -> 0 | J107: 0 | K107: 0 | L107: =$C$15 -> 0 | M107: 0 | N107: 0 | O107: =$D$15 -> 0 | P107: 0 | Q107: =$E$15 -> 0 | R107: 0 | U107: Lahopuu | V107: 0 | W107: =$C$15 -> 0 | X107: 0 | Y107: 0 | Z107: =$D$15 -> 0 | AA107: 0 | AB107: =$E$15 -> 0 | AC107: 0
B108: Erikoispuu | C108: 0 | D108: =$C$16 -> 0 | E108: =C108*D108 -> 0 | F108: 0 | G108: =$D$16 -> 0 | H108: 0 | I108: =$E$16 -> 0 | J108: =I108*F108 -> 0 | K108: 0 | L108: =$C$16 -> 0 | M108: =K108*L108 -> 0 | N108: 0 | O108: =$D$16 -> 0 | P108: =N108*O108 -> 0 | Q108: =$E$16 -> 0 | R108: =Q108*N108 -> 0 | U108: Erikoispuu | V108: 0 | W108: =$C$16 -> 0 | X108: =V108*W108 -> 0 | Y108: 0 | Z108: =$D$16 -> 0 | AA108: =Y108*Z108 -> 0 | AB108: =$E$16 -> 0 | AC108: =AB108*Y108 -> 0
B109: Energiapuu (kokopuu) | C109: 0 | D109: =$C$17 -> 9.1 | E109: =C109*D109 -> 0 | F109: 0 | G109: =$D$17 -> 4.72 | H109: 0 | I109: =$E$17 -> 0 | J109: =I109*F109 -> 0 | K109: 0 | L109: =$C$17 -> 9.1 | M109: =K109*L109 -> 0 | N109: 0 | O109: =$D$17 -> 4.72 | P109: =N109*O109 -> 0 | Q109: =$E$17 -> 0 | R109: =Q109*N109 -> 0 | U109: Energiapuu (kokopuu) | V109: 0 | W109: =$C$17 -> 9.1 | X109: =V109*W109 -> 0 | Y109: 0 | Z109: =$D$17 -> 4.72 | AA109: =Y109*Z109 -> 0 | AB109: =$E$17 -> 0 | AC109: =AB109*Y109 -> 0
B110: Halot ja klapit (tukkumyynti) | D110: =$C$18 -> 30.94 | E110: =C110*D110 -> 0 | G110: =$D$18 -> 3.02 | H110: 0 | I110: =$E$18 -> 0 | J110: =I110*F110 -> 0 | K110: 0 | L110: =$C$18 -> 30.94 | M110: =K110*L110 -> 0 | N110: 0 | O110: =$D$18 -> 3.02 | P110: =N110*O110 -> 0 | Q110: =$E$18 -> 0 | R110: =Q110*N110 -> 0 | U110: Halot ja klapit (tukkumyynti) | V110: 0 | W110: =$C$18 -> 30.94 | X110: =V110*W110 -> 0 | Y110: 0 | Z110: =$D$18 -> 3.02 | AA110: =Y110*Z110 -> 0 | AB110: =$E$18 -> 0 | AC110: =AB110*Y110 -> 0
B111: Haketus | C111: 0 | D111: =$C$19 -> 4.83 | E111: =C111*D111 -> 0 | F111: 0 | G111: - | H111: - | I111: =$E$19 -> 0 | J111: =I111*F111 -> 0 | K111: 0 | L111: =$C$19 -> 4.83 | M111: =K111*L111 -> 0 | N111: 0 | O111: - | P111: - | Q111: =$E$19 -> 0 | R111: =Q111*N111 -> 0 | U111: Haketus | V111: 0 | W111: =$C$19 -> 4.83 | X111: =V111*W111 -> 0 | Y111: 0 | Z111: - | AA111: - | AB111: =$E$19 -> 0 | AC111: =AB111*Y111 -> 0
B112: Hake | C112: 0 | D112: - | E112: - | F112: 0 | G112: =$D$20 -> 3.02 | H112: =F112*G112 -> 0 | I112: =$E$20 -> 0 | J112: =I112*F112 -> 0 | K112: 0 | L112: - | M112: - | N112: 0 | O112: =$D$20 -> 3.02 | P112: =N112*O112 -> 0 | Q112: =$E$20 -> 0 | R112: =Q112*N112 -> 0 | U112: Hake | V112: 0 | W112: - | X112: - | Y112: 0 | Z112: =$D$20 -> 3.02 | AA112: =Y112*Z112 -> 0 | AB112: =$E$20 -> 0 | AC112: =AB112*Y112 -> 0
B113: Joulupuut (tukkumyynti) | D113: =$C$21 -> 0 | E113: =C113*D113 -> 0 | G113: =$D$21 -> 0 | I113: =$E$21 -> 0 | L113: =$C$21 -> 0 | M113: =K113*L113 -> 0 | O113: =$D$21 -> 0 | Q113: =$E$21 -> 0 | U113: Joulupuut (tukkumyynti) | W113: =$C$21 -> 0 | Z113: =$D$21 -> 0 | AB113: =$E$21 -> 0
B114: Yhteensä | C114: =SUM(C101:C113) -> 0 | E114: =SUM(E101:E113) -> 0 | F114: =SUM(F101:F113) -> 0 | H114: =SUM(H101:H113) -> 0 | J114: =SUM(J101:J113) -> 0 | K114: =SUM(K101:K113) -> 0 | M114: =SUM(M101:M113) -> 0 | N114: =SUM(N101:N113) -> 0 | P114: =SUM(P101:P113) -> 0 | R114: =SUM(R101:R113) -> 0 | U114: Yhteensä | V114: =SUM(V101:V113) -> 0 | X114: =SUM(X101:X113) -> 0 | Y114: =SUM(Y101:Y113) -> 0 | AA114: =SUM(AA101:AA113) -> 0 | AC114: =SUM(AC101:AC113) -> 0
C116: YHTEENSÄ | I116: EI METSÄVÄHENNYSTÄ | Q116: METSÄVÄHENNYSOIKEUS
B117: Hakkuutyön arvo | C117: =J117+R117 -> 0 | I117: Hakkuutyön arvo | J117: =E114 -> 0 | Q117: Hakkuutyön arvo | R117: =M114 -> 0 | AB117: Hakkuutyön arvo | AC117: =X114 -> 0
B118: Kuljetuksen arvo | C118: 0 | I118: Kuljetuksen arvo | J118: =H114 -> 0 | Q118: Kuljetuksen arvo | R118: =P114 -> 0 | AB118: Kuljetuksen arvo | AC118: =AA114 -> 0
B119: Konekustannus (muuta vuosimenoa) | C119: 0 | I119: Konekustannus | J119: =J114 -> 0 | Q119: Konekustannus | R119: =R114 -> 0 | AB119: Konekustannus | AC119: =AC114 -> 0
B120: Hakkuun määrä yhteensä | C120: 0 | I120: Hakkuun määrä | J120: =C114 -> 0 | Q120: Hakkuun määrä | R120: =K114 -> 0 | AB120: Hakkuun määrä | AC120: =V114 -> 0
B121: Kuljetuksen määrä yhteensä | C121: 0 | I121: Kuljetuksen määrä | J121: =F114 -> 0 | Q121: Kuljetuksen määrä | R121: =N114 -> 0 | AB121: Kuljetuksen määrä | AC121: =Y114 -> 0
B122: Puutavaran verollinen arvo | C122: 0 | I122: Puutavaran verollinen arvo | J122: =(D95-J117-J118-J119) -> 0 | Q122: Metsävähennykseen oikeuttava osa (verollinen osa) | R122: =(L95-R117-R118-R119) -> 0
C123: Hakattu määrä yhteensä | E123: =C120 -> 0
C124: Kuljetettu määrä yhteensä | E124: =C121 -> 0
B125: Tarkistus: | C125: =IF(E124>E123,"Kuljetettu määrä on valmistettua määrää suurempi",IF(E124=E123,"Valmistettu ja kuljetettu määrä yhtäsuuret","Valmistettu määrä on kuljetettua määrää isompi")) -> Valmistettu ja kuljetettu määrä yhtäsuuret
B127: MAATILA 4 | C127: Ei metsävähennysoikeutta | K127: Metsävähennysoikeus | U127: MAATILA 4
C128: Hankintatyötulot | D128: =Tulot!AP9 -> 0 | K128: Hankintatyötulot | L128: =Tulot!AQ9 -> 0 | V128: Uinumaan jäävä hakkuumäärä
C130: HAKKUU | F130: KULJETUS | I130: KONEKULJETUS | K130: HAKKUU | N130: KULJETUS | Q130: KONEKULJETUS | V130: HAKKUU | Y130: KULJETUS | AB130: KONEKULJETUS
D132: Valmistuksen arvo | F132: Määrä | G132: Kuljetustyön arvo | I132: Konekustannus | L132: Valmistuksen arvo | N132: Määrä | O132: Kuljetustyön arvo | Q132: Konekustannus | W132: valmistuksen arvo | Y132: Määrä | Z132: Kuljetustyön arvo | AB132: Konekustannus
C133: m3 | D133: €/m3 | E133: € | F133: m3 | G133: €/m3 | H133: € | I133: €/m3 | J133: € | K133: m3 | L133: €/m3 | M133: € | N133: m3 | O133: €/m3 | P133: € | Q133: €/m3 | R133: € | V133: m3 | W133: €/m3 | X133: € | Y133: m3 | Z133: €/m3 | AA133: € | AB133: €/m3 | AC133: €
B134: Mäntykuitu | D134: =$C$9 -> 14.76 | E134: =C134*D134 -> 0 | G134: =$D$9 -> 2.59 | H134: =F134*G134 -> 0 | I134: =$E$9 -> 0 | J134: =I134*F134 -> 0 | L134: =$C$9 -> 14.76 | M134: =K134*L134 -> 0 | N134: 0 | O134: =$D$9 -> 2.59 | P134: =N134*O134 -> 0 | Q134: =$E$9 -> 0 | R134: =Q134*N134 -> 0 | U134: Mäntykuitu | W134: =$C$9 -> 14.76 | X134: =V134*W134 -> 0 | Z134: =$D$9 -> 2.59 | AA134: =Y134*Z134 -> 0 | AB134: =$E$9 -> 0 | AC134: =AB134*Y134 -> 0
B135: Kuusikuitu | C135: 0 | D135: =$C$10 -> 15.44 | E135: 0 | F135: 0 | G135: =$D$10 -> 2.75 | H135: =F135*G135 -> 0 | I135: =$E$10 -> 0 | J135: =I135*F135 -> 0 | K135: 0 | L135: =$C$10 -> 15.44 | M135: 0 | N135: 0 | O135: =$D$10 -> 2.75 | P135: 0 | Q135: =$E$10 -> 0 | R135: =Q135*N135 -> 0 | U135: Kuusikuitu | W135: =$C$10 -> 15.44 | X135: 0 | Z135: =$D$10 -> 2.75 | AA135: 0 | AB135: =$E$10 -> 0 | AC135: =AB135*Y135 -> 0
B136: Koivukuitu | D136: =$C$11 -> 13.65 | E136: 0 | F136: 0 | G136: =$D$11 -> 3.02 | H136: 0 | I136: =$E$11 -> 0 | J136: 0 | L136: =$C$11 -> 13.65 | M136: 0 | O136: =$D$11 -> 3.02 | P136: 0 | Q136: =$E$11 -> 0 | R136: 0 | U136: Koivukuitu | W136: =$C$11 -> 13.65 | X136: 0 | Y136: 0 | Z136: =$D$11 -> 3.02 | AA136: 0 | AB136: =$E$11 -> 0 | AC136: 0
B137: Mäntytukki | D137: =$C$12 -> 6.39 | E137: 0 | F137: 0 | G137: =$D$12 -> 2.51 | H137: 0 | I137: =$E$12 -> 0 | J137: 0 | K137: 0 | L137: =$C$12 -> 6.39 | M137: 0 | N137: 0 | O137: =$D$12 -> 2.51 | P137: 0 | Q137: =$E$12 -> 0 | R137: 0 | U137: Mäntytukki | V137: 0 | W137: =$C$12 -> 6.39 | X137: 0 | Y137: 0 | Z137: =$D$12 -> 2.51 | AA137: 0 | AB137: =$E$12 -> 0 | AC137: 0
B138: Kuusitukki | C138: 0 | D138: =$C$13 -> 8.25 | E138: 0 | G138: =$D$13 -> 2.54 | H138: 0 | I138: =$E$13 -> 0 | J138: 0 | K138: 0 | L138: =$C$13 -> 8.25 | M138: 0 | N138: 0 | O138: =$D$13 -> 2.54 | P138: 0 | Q138: =$E$13 -> 0 | R138: 0 | U138: Kuusitukki | W138: =$C$13 -> 8.25 | X138: 0 | Y138: 0 | Z138: =$D$13 -> 2.54 | AA138: 0 | AB138: =$E$13 -> 0 | AC138: 0
B139: Koivutukki | D139: =$C$14 -> 6.09 | E139: 0 | G139: =$D$14 -> 2.88 | H139: 0 | I139: =$E$14 -> 0 | J139: 0 | K139: 0 | L139: =$C$14 -> 6.09 | M139: 0 | N139: 0 | O139: =$D$14 -> 2.88 | P139: 0 | Q139: =$E$14 -> 0 | R139: 0 | U139: Koivutukki | V139: 0 | W139: =$C$14 -> 6.09 | X139: 0 | Y139: 0 | Z139: =$D$14 -> 2.88 | AA139: 0 | AB139: =$E$14 -> 0 | AC139: 0
B140: Lahopuu | C140: 0 | D140: =$C$15 -> 0 | E140: 0 | F140: 0 | G140: =$D$15 -> 0 | H140: 0 | I140: =$E$15 -> 0 | J140: 0 | K140: 0 | L140: =$C$15 -> 0 | M140: 0 | N140: 0 | O140: =$D$15 -> 0 | P140: 0 | Q140: =$E$15 -> 0 | R140: 0 | U140: Lahopuu | V140: 0 | W140: =$C$15 -> 0 | X140: 0 | Y140: 0 | Z140: =$D$15 -> 0 | AA140: 0 | AB140: =$E$15 -> 0 | AC140: 0
B141: Erikoispuu | C141: 0 | D141: =$C$16 -> 0 | E141: =C141*D141 -> 0 | F141: 0 | G141: =$D$16 -> 0 | H141: 0 | I141: =$E$16 -> 0 | J141: =I141*F141 -> 0 | K141: 0 | L141: =$C$16 -> 0 | M141: =K141*L141 -> 0 | N141: 0 | O141: =$D$16 -> 0 | P141: =N141*O141 -> 0 | Q141: =$E$16 -> 0 | R141: =Q141*N141 -> 0 | U141: Erikoispuu | V141: 0 | W141: =$C$16 -> 0 | X141: =V141*W141 -> 0 | Y141: 0 | Z141: =$D$16 -> 0 | AA141: =Y141*Z141 -> 0 | AB141: =$E$16 -> 0 | AC141: =AB141*Y141 -> 0
B142: Energiapuu (kokopuu) | C142: 0 | D142: =$C$17 -> 9.1 | E142: =C142*D142 -> 0 | F142: 0 | G142: =$D$17 -> 4.72 | H142: 0 | I142: =$E$17 -> 0 | J142: =I142*F142 -> 0 | K142: 0 | L142: =$C$17 -> 9.1 | M142: =K142*L142 -> 0 | N142: 0 | O142: =$D$17 -> 4.72 | P142: =N142*O142 -> 0 | Q142: =$E$17 -> 0 | R142: =Q142*N142 -> 0 | U142: Energiapuu (kokopuu) | V142: 0 | W142: =$C$17 -> 9.1 | X142: =V142*W142 -> 0 | Y142: 0 | Z142: =$D$17 -> 4.72 | AA142: =Y142*Z142 -> 0 | AB142: =$E$17 -> 0 | AC142: =AB142*Y142 -> 0
B143: Halot ja klapit (tukkumyynti) | D143: =$C$18 -> 30.94 | E143: =C143*D143 -> 0 | G143: =$D$18 -> 3.02 | H143: 0 | I143: =$E$18 -> 0 | J143: =I143*F143 -> 0 | K143: 0 | L143: =$C$18 -> 30.94 | M143: =K143*L143 -> 0 | N143: 0 | O143: =$D$18 -> 3.02 | P143: =N143*O143 -> 0 | Q143: =$E$18 -> 0 | R143: =Q143*N143 -> 0 | U143: Halot ja klapit (tukkumyynti) | V143: 0 | W143: =$C$18 -> 30.94 | X143: =V143*W143 -> 0 | Y143: 0 | Z143: =$D$18 -> 3.02 | AA143: =Y143*Z143 -> 0 | AB143: =$E$18 -> 0 | AC143: =AB143*Y143 -> 0
B144: Haketus | C144: 0 | D144: =$C$19 -> 4.83 | E144: =C144*D144 -> 0 | F144: 0 | G144: - | H144: - | I144: =$E$19 -> 0 | J144: =I144*F144 -> 0 | K144: 0 | L144: =$C$19 -> 4.83 | M144: =K144*L144 -> 0 | N144: 0 | O144: - | P144: - | Q144: =$E$19 -> 0 | R144: =Q144*N144 -> 0 | U144: Haketus | V144: 0 | W144: =$C$19 -> 4.83 | X144: =V144*W144 -> 0 | Y144: 0 | Z144: - | AA144: - | AB144: =$E$19 -> 0 | AC144: =AB144*Y144 -> 0
B145: Hake | C145: 0 | D145: - | E145: - | F145: 0 | G145: =$D$20 -> 3.02 | H145: =F145*G145 -> 0 | I145: =$E$20 -> 0 | J145: =I145*F145 -> 0 | K145: 0 | L145: - | M145: - | N145: 0 | O145: =$D$20 -> 3.02 | P145: =N145*O145 -> 0 | Q145: =$E$20 -> 0 | R145: =Q145*N145 -> 0 | U145: Hake | V145: 0 | W145: - | X145: - | Y145: 0 | Z145: =$D$20 -> 3.02 | AA145: =Y145*Z145 -> 0 | AB145: =$E$20 -> 0 | AC145: =AB145*Y145 -> 0
B146: Joulupuut (tukkumyynti) | D146: =$C$21 -> 0 | E146: =C146*D146 -> 0 | G146: =$D$21 -> 0 | I146: =$E$21 -> 0 | L146: =$C$21 -> 0 | M146: =K146*L146 -> 0 | O146: =$D$21 -> 0 | Q146: =$E$21 -> 0 | U146: Joulupuut (tukkumyynti) | W146: =$C$21 -> 0 | Z146: =$D$21 -> 0 | AB146: =$E$21 -> 0
B147: Yhteensä | C147: =SUM(C134:C146) -> 0 | E147: =SUM(E134:E146) -> 0 | F147: =SUM(F134:F146) -> 0 | H147: =SUM(H134:H146) -> 0 | J147: =SUM(J134:J146) -> 0 | K147: =SUM(K134:K146) -> 0 | M147: =SUM(M134:M146) -> 0 | N147: =SUM(N134:N146) -> 0 | P147: =SUM(P134:P146) -> 0 | R147: =SUM(R134:R146) -> 0 | U147: Yhteensä | V147: =SUM(V134:V146) -> 0 | X147: =SUM(X134:X146) -> 0 | Y147: =SUM(Y134:Y146) -> 0 | AA147: =SUM(AA134:AA146) -> 0 | AC147: =SUM(AC134:AC146) -> 0
C149: YHTEENSÄ | I149: EI METSÄVÄHENNYSTÄ | Q149: METSÄVÄHENNYSOIKEUS
B150: Hakkuutyön arvo | C150: =J150+R150 -> 0 | I150: Hakkuutyön arvo | J150: =E147 -> 0 | Q150: Hakkuutyön arvo | R150: =M147 -> 0 | AB150: Hakkuutyön arvo | AC150: =X147 -> 0
B151: Kuljetuksen arvo | C151: 0 | I151: Kuljetuksen arvo | J151: =H147 -> 0 | Q151: Kuljetuksen arvo | R151: =P147 -> 0 | AB151: Kuljetuksen arvo | AC151: =AA147 -> 0
B152: Konekustannus (muuta vuosimenoa) | C152: 0 | I152: Konekustannus | J152: =J147 -> 0 | Q152: Konekustannus | R152: =R147 -> 0 | AB152: Konekustannus | AC152: =AC147 -> 0
B153: Hakkuun määrä yhteensä | C153: 0 | I153: Hakkuun määrä | J153: =C147 -> 0 | Q153: Hakkuun määrä | R153: =K147 -> 0 | AB153: Hakkuun määrä | AC153: =V147 -> 0
B154: Kuljetuksen määrä yhteensä | C154: 0 | I154: Kuljetuksen määrä | J154: =F147 -> 0 | Q154: Kuljetuksen määrä | R154: =N147 -> 0 | AB154: Kuljetuksen määrä | AC154: =Y147 -> 0
B155: Puutavaran verollinen arvo | C155: 0 | I155: Puutavaran verollinen arvo | J155: =(D128-J150-J151-J152) -> 0 | Q155: Metsävähennykseen oikeuttava osa (verollinen osa) | R155: =(L128-R150-R151-R152) -> 0
C158: Hakattu määrä yhteensä | E158: =C153 -> 0
C159: Kuljetettu määrä yhteensä | E159: =C154 -> 0
B160: Tarkistus: | C160: =IF(E159>E158,"Kuljetettu määrä on valmistettua määrää suurempi",IF(E159=E158,"Valmistettu ja kuljetettu määrä yhtäsuuret","Valmistettu määrä on kuljetettua määrää isompi")) -> Valmistettu ja kuljetettu määrä yhtäsuuret
B162: MAATILA 5 | C162: Ei metsävähennysoikeutta | K162: Metsävähennysoikeus | U162: MAATILA 5
C163: Hankintatyötulot | D163: =Tulot!AR9 -> 0 | K163: Hankintatyötulot | L163: =Tulot!AS9 -> 0 | V163: Uinumaan jäävä hakkuumäärä
C165: HAKKUU | F165: KULJETUS | I165: KONEKULJETUS | K165: HAKKUU | N165: KULJETUS | Q165: KONEKULJETUS | V165: HAKKUU | Y165: KULJETUS | AB165: KONEKULJETUS
D167: Valmistuksen arvo | F167: Määrä | G167: Kuljetustyön arvo | I167: Konekustannus | L167: Valmistuksen arvo | N167: Määrä | O167: Kuljetustyön arvo | Q167: Konekustannus | W167: valmistuksen arvo | Y167: Määrä | Z167: Kuljetustyön arvo | AB167: Konekustannus
C168: m3 | D168: €/m3 | E168: € | F168: m3 | G168: €/m3 | H168: € | I168: €/m3 | J168: € | K168: m3 | L168: €/m3 | M168: € | N168: m3 | O168: €/m3 | P168: € | Q168: €/m3 | R168: € | V168: m3 | W168: €/m3 | X168: € | Y168: m3 | Z168: €/m3 | AA168: € | AB168: €/m3 | AC168: €
B169: Mäntykuitu | D169: =$C$9 -> 14.76 | E169: =C169*D169 -> 0 | G169: =$D$9 -> 2.59 | H169: =F169*G169 -> 0 | I169: =$E$9 -> 0 | J169: =I169*F169 -> 0 | L169: =$C$9 -> 14.76 | M169: =K169*L169 -> 0 | N169: 0 | O169: =$D$9 -> 2.59 | P169: =N169*O169 -> 0 | Q169: =$E$9 -> 0 | R169: =Q169*N169 -> 0 | U169: Mäntykuitu | W169: =$C$9 -> 14.76 | X169: =V169*W169 -> 0 | Z169: =$D$9 -> 2.59 | AA169: =Y169*Z169 -> 0 | AB169: =$E$9 -> 0 | AC169: =AB169*Y169 -> 0
B170: Kuusikuitu | C170: 0 | D170: =$C$10 -> 15.44 | E170: 0 | F170: 0 | G170: =$D$10 -> 2.75 | H170: =F170*G170 -> 0 | I170: =$E$10 -> 0 | J170: =I170*F170 -> 0 | K170: 0 | L170: =$C$10 -> 15.44 | M170: 0 | N170: 0 | O170: =$D$10 -> 2.75 | P170: 0 | Q170: =$E$10 -> 0 | R170: =Q170*N170 -> 0 | U170: Kuusikuitu | W170: =$C$10 -> 15.44 | X170: 0 | Z170: =$D$10 -> 2.75 | AA170: 0 | AB170: =$E$10 -> 0 | AC170: =AB170*Y170 -> 0
B171: Koivukuitu | D171: =$C$11 -> 13.65 | E171: 0 | F171: 0 | G171: =$D$11 -> 3.02 | H171: 0 | I171: =$E$11 -> 0 | J171: 0 | L171: =$C$11 -> 13.65 | M171: 0 | O171: =$D$11 -> 3.02 | P171: 0 | Q171: =$E$11 -> 0 | R171: 0 | U171: Koivukuitu | W171: =$C$11 -> 13.65 | X171: 0 | Y171: 0 | Z171: =$D$11 -> 3.02 | AA171: 0 | AB171: =$E$11 -> 0 | AC171: 0
B172: Mäntytukki | D172: =$C$12 -> 6.39 | E172: 0 | F172: 0 | G172: =$D$12 -> 2.51 | H172: 0 | I172: =$E$12 -> 0 | J172: 0 | K172: 0 | L172: =$C$12 -> 6.39 | M172: 0 | N172: 0 | O172: =$D$12 -> 2.51 | P172: 0 | Q172: =$E$12 -> 0 | R172: 0 | U172: Mäntytukki | V172: 0 | W172: =$C$12 -> 6.39 | X172: 0 | Y172: 0 | Z172: =$D$12 -> 2.51 | AA172: 0 | AB172: =$E$12 -> 0 | AC172: 0
B173: Kuusitukki | C173: 0 | D173: =$C$13 -> 8.25 | E173: 0 | G173: =$D$13 -> 2.54 | H173: 0 | I173: =$E$13 -> 0 | J173: 0 | K173: 0 | L173: =$C$13 -> 8.25 | M173: 0 | N173: 0 | O173: =$D$13 -> 2.54 | P173: 0 | Q173: =$E$13 -> 0 | R173: 0 | U173: Kuusitukki | W173: =$C$13 -> 8.25 | X173: 0 | Y173: 0 | Z173: =$D$13 -> 2.54 | AA173: 0 | AB173: =$E$13 -> 0 | AC173: 0
B174: Koivutukki | D174: =$C$14 -> 6.09 | E174: 0 | G174: =$D$14 -> 2.88 | H174: 0 | I174: =$E$14 -> 0 | J174: 0 | K174: 0 | L174: =$C$14 -> 6.09 | M174: 0 | N174: 0 | O174: =$D$14 -> 2.88 | P174: 0 | Q174: =$E$14 -> 0 | R174: 0 | U174: Koivutukki | V174: 0 | W174: =$C$14 -> 6.09 | X174: 0 | Y174: 0 | Z174: =$D$14 -> 2.88 | AA174: 0 | AB174: =$E$14 -> 0 | AC174: 0
B175: Lahopuu | C175: 0 | D175: =$C$15 -> 0 | E175: 0 | F175: 0 | G175: =$D$15 -> 0 | H175: 0 | I175: =$E$15 -> 0 | J175: 0 | K175: 0 | L175: =$C$15 -> 0 | M175: 0 | N175: 0 | O175: =$D$15 -> 0 | P175: 0 | Q175: =$E$15 -> 0 | R175: 0 | U175: Lahopuu | V175: 0 | W175: =$C$15 -> 0 | X175: 0 | Y175: 0 | Z175: =$D$15 -> 0 | AA175: 0 | AB175: =$E$15 -> 0 | AC175: 0
B176: Erikoispuu | C176: 0 | D176: =$C$16 -> 0 | E176: =C176*D176 -> 0 | F176: 0 | G176: =$D$16 -> 0 | H176: 0 | I176: =$E$16 -> 0 | J176: =I176*F176 -> 0 | K176: 0 | L176: =$C$16 -> 0 | M176: =K176*L176 -> 0 | N176: 0 | O176: =$D$16 -> 0 | P176: =N176*O176 -> 0 | Q176: =$E$16 -> 0 | R176: =Q176*N176 -> 0 | U176: Erikoispuu | V176: 0 | W176: =$C$16 -> 0 | X176: =V176*W176 -> 0 | Y176: 0 | Z176: =$D$16 -> 0 | AA176: =Y176*Z176 -> 0 | AB176: =$E$16 -> 0 | AC176: =AB176*Y176 -> 0
B177: Energiapuu (kokopuu) | C177: 0 | D177: =$C$17 -> 9.1 | E177: =C177*D177 -> 0 | F177: 0 | G177: =$D$17 -> 4.72 | H177: 0 | I177: =$E$17 -> 0 | J177: =I177*F177 -> 0 | K177: 0 | L177: =$C$17 -> 9.1 | M177: =K177*L177 -> 0 | N177: 0 | O177: =$D$17 -> 4.72 | P177: =N177*O177 -> 0 | Q177: =$E$17 -> 0 | R177: =Q177*N177 -> 0 | U177: Energiapuu (kokopuu) | V177: 0 | W177: =$C$17 -> 9.1 | X177: =V177*W177 -> 0 | Y177: 0 | Z177: =$D$17 -> 4.72 | AA177: =Y177*Z177 -> 0 | AB177: =$E$17 -> 0 | AC177: =AB177*Y177 -> 0
B178: Halot ja klapit (tukkumyynti) | D178: =$C$18 -> 30.94 | E178: =C178*D178 -> 0 | G178: =$D$18 -> 3.02 | H178: 0 | I178: =$E$18 -> 0 | J178: =I178*F178 -> 0 | K178: 0 | L178: =$C$18 -> 30.94 | M178: =K178*L178 -> 0 | N178: 0 | O178: =$D$18 -> 3.02 | P178: =N178*O178 -> 0 | Q178: =$E$18 -> 0 | R178: =Q178*N178 -> 0 | U178: Halot ja klapit (tukkumyynti) | V178: 0 | W178: =$C$18 -> 30.94 | X178: =V178*W178 -> 0 | Y178: 0 | Z178: =$D$18 -> 3.02 | AA178: =Y178*Z178 -> 0 | AB178: =$E$18 -> 0 | AC178: =AB178*Y178 -> 0
B179: Haketus | C179: 0 | D179: =$C$19 -> 4.83 | E179: =C179*D179 -> 0 | F179: 0 | G179: - | H179: - | I179: =$E$19 -> 0 | J179: =I179*F179 -> 0 | K179: 0 | L179: =$C$19 -> 4.83 | M179: =K179*L179 -> 0 | N179: 0 | O179: - | P179: - | Q179: =$E$19 -> 0 | R179: =Q179*N179 -> 0 | U179: Haketus | V179: 0 | W179: =$C$19 -> 4.83 | X179: =V179*W179 -> 0 | Y179: 0 | Z179: - | AA179: - | AB179: =$E$19 -> 0 | AC179: =AB179*Y179 -> 0
B180: Hake | C180: 0 | D180: - | E180: - | F180: 0 | G180: =$D$20 -> 3.02 | H180: =F180*G180 -> 0 | I180: =$E$20 -> 0 | J180: =I180*F180 -> 0 | K180: 0 | L180: - | M180: - | N180: 0 | O180: =$D$20 -> 3.02 | P180: =N180*O180 -> 0 | Q180: =$E$20 -> 0 | R180: =Q180*N180 -> 0 | U180: Hake | V180: 0 | W180: - | X180: - | Y180: 0 | Z180: =$D$20 -> 3.02 | AA180: =Y180*Z180 -> 0 | AB180: =$E$20 -> 0 | AC180: =AB180*Y180 -> 0
B181: Joulupuut (tukkumyynti) | D181: =$C$21 -> 0 | E181: =C181*D181 -> 0 | G181: =$D$21 -> 0 | I181: =$E$21 -> 0 | L181: =$C$21 -> 0 | M181: =K181*L181 -> 0 | O181: =$D$21 -> 0 | Q181: =$E$21 -> 0 | U181: Joulupuut (tukkumyynti) | W181: =$C$21 -> 0 | Z181: =$D$21 -> 0 | AB181: =$E$21 -> 0
B182: Yhteensä | C182: =SUM(C169:C181) -> 0 | E182: =SUM(E169:E181) -> 0 | F182: =SUM(F169:F181) -> 0 | H182: =SUM(H169:H181) -> 0 | J182: =SUM(J169:J181) -> 0 | K182: =SUM(K169:K181) -> 0 | M182: =SUM(M169:M181) -> 0 | N182: =SUM(N169:N181) -> 0 | P182: =SUM(P169:P181) -> 0 | R182: =SUM(R169:R181) -> 0 | U182: Yhteensä | V182: =SUM(V169:V181) -> 0 | X182: =SUM(X169:X181) -> 0 | Y182: =SUM(Y169:Y181) -> 0 | AA182: =SUM(AA169:AA181) -> 0 | AC182: =SUM(AC169:AC181) -> 0
C184: YHTEENSÄ | I184: EI METSÄVÄHENNYSTÄ | Q184: METSÄVÄHENNYSOIKEUS
B185: Hakkuutyön arvo | C185: =J185+R185 -> 0 | I185: Hakkuutyön arvo | J185: =E182 -> 0 | Q185: Hakkuutyön arvo | R185: =M182 -> 0 | AB185: Hakkuutyön arvo | AC185: =X182 -> 0
B186: Kuljetuksen arvo | C186: 0 | I186: Kuljetuksen arvo | J186: =H182 -> 0 | Q186: Kuljetuksen arvo | R186: =P182 -> 0 | AB186: Kuljetuksen arvo | AC186: =AA182 -> 0
B187: Konekustannus (muuta vuosimenoa) | C187: 0 | I187: Konekustannus | J187: =J182 -> 0 | Q187: Konekustannus | R187: =R182 -> 0 | AB187: Konekustannus | AC187: =AC182 -> 0
B188: Hakkuun määrä yhteensä | C188: 0 | I188: Hakkuun määrä | J188: =C182 -> 0 | Q188: Hakkuun määrä | R188: =K182 -> 0 | AB188: Hakkuun määrä | AC188: =V182 -> 0
B189: Kuljetuksen määrä yhteensä | C189: 0 | I189: Kuljetuksen määrä | J189: =F182 -> 0 | Q189: Kuljetuksen määrä | R189: =N182 -> 0 | AB189: Kuljetuksen määrä | AC189: =Y182 -> 0
B190: Puutavaran verollinen arvo | C190: 0 | I190: Puutavaran verollinen arvo | J190: =(D163-J185-J186-J187) -> 0 | Q190: Metsävähennykseen oikeuttava osa (verollinen osa) | R190: =(L163-R185-R186-R187) -> 0
C193: Hakattu määrä yhteensä | E193: =C188 -> 0
C194: Kuljetettu määrä yhteensä | E194: =C189 -> 0
B195: Tarkistus: | C195: =IF(E194>E193,"Kuljetettu määrä on valmistettua määrää suurempi",IF(E194=E193,"Valmistettu ja kuljetettu määrä yhtäsuuret","Valmistettu määrä on kuljetettua määrää isompi")) -> Valmistettu ja kuljetettu määrä yhtäsuuret
B196: Määrätarkistus: | C196: =IF(E195>E194,"Kuljetettu määrä on valmistettua määrää suurempi",IF(E195=E194,"Valmistettu ja kuljetettu määrä yhtäsuuret","Valmistettumääräonkuljetettuamäärääisompi")) -> Valmistettu ja kuljetettu määrä yhtäsuuret

Sheet Hank.työ 2
B2: =Etusivu!C10 -> Matti Metsänen
B3: =Etusivu!C16 -> 123456-7
B5: HANKINTATYÖN ARVON LASKENTA | P5: ohje | Q5: #### - ohje
B6: Polttopuut ja joulupuut (1.3.) | V6: =CONCATENATE("Verovuodelta ",Etusivu!B6-1," uinumaan jätetyn hankintatyön arvo") -> Verovuodelta 2024 uinumaan jätetyn hankintatyön arvo
B7: TAKSAT | G7: YHTEENVETO | P7: SIVUN ASETUKSET | V7: Hankintatyön arvo, € | X7: =SUM(Y7:AC7) -> 0 | AA7: 0 | AB7: 0 | AC7: 0
C8: Valmistus | D8: Kuljetus | E8: Kulj. Konekust. | J8: Maatila 1 | K8: Maatila 2 | L8: Maatila 3 | M8: Maatila 4 | N8: Maatila 5
B9: Energiapuu (kokopuu) | C9: 9.1 | D9: 4.74 | E9: =IF(R$9="kyllä",F9,0) -> 0 | F9: 7.07 | G9: Hankintakauppatulot maatilalta | J9: =D25+L25 -> 0 | K9: =D52+L52 -> 0 | L9: =D79+L79 -> 0 | M9: =D106+L106 -> 0 | N9: =D133+L133 -> 0 | P9: Kuljetuksen konekustan- nukset käytössä | R9: Ei | V9: =CONCATENATE("Verovuoden ",Etusivu!B$6," uinumaan jäävä hankintatyö") -> Verovuoden 2025 uinumaan jäävä hankintatyö | AG9: Ei
B10: Halot ja klapit (tukkumyynti) | C10: 30.94 | D10: 3.02 | E10: =IF(R$9="kyllä",F10,0) -> 0 | F10: 4.54 | G10: Puutavaran verollinen arvo | J10: =IF(C44>=0,C44,"- arvo tarkista") -> 0 | K10: =IF(C71>=0,C71,"- arvo tarkista") -> 0 | L10: =IF(C98>=0,C98,"- arvo tarkista") -> 0 | M10: =IF(C125>=0,C125,"- arvo tarkista") -> 0 | N10: =IF(C152>=0,C152,"- arvo tarkista") -> 0 | AG10: Kyllä
B11: Haketus | C11: 4.83 | E11: =IF(R$9="kyllä",F11,0) -> 0 | G11: Konekustannusosuus (vuosimenoa) | J11: =+C41+AC41 -> 0 | K11: =+C68+AC68 -> 0 | L11: =+C95+AC95 -> 0 | M11: =+C122+AC122 -> 0 | N11: =+C149+AC149 -> 0 | P11: Näytä uinuvat hankintatyöt | R11: Ei | Y11: Maatila 1 | Z11: Maatila 2 | AA11: Maatila 3 | AB11: Maatila 4 | AC11: Maatila 5
B12: Hake | D12: 3.02 | E12: =IF(R$9="kyllä",F12,0) -> 0 | F12: 4.54 | G12: Valmistettu määrä yhteensä | J12: =+C42+AC42 -> 0 | K12: =+C69+AC69 -> 0 | L12: =+C96+AC96 -> 0 | M12: =+C123+AC123 -> 0 | N12: =+C150+AC150 -> 0 | V12: Valmistettu määrä yhteensä, m3 | Y12: =AC42 -> 0 | Z12: =AC69 -> 0 | AA12: =AC96 -> 0 | AB12: =AC123 -> 0 | AC12: =AC150 -> 0
B13: Joulupuut | E13: =IF(R$9="kyllä",F13,0) -> 0 | G13: Valmistuksen arvo yhteensä | J13: =+C39 -> 0 | K13: =+C66 -> 0 | L13: =+C93 -> 0 | M13: =+C120 -> 0 | N13: =+C147 -> 0 | P13: Näytettävien maatilojen määrä | R13: 1 | V13: Valmistuksen arvo yhteensä, € | Y13: =AC39 -> 0 | Z13: =AC66 -> 0 | AA13: =AC93 -> 0 | AB13: =AC120 -> 0 | AC13: =AC147 -> 0
G14: Valmistuksen verollinen arvo (125 m3 verovapaata) | J14: =IF(J12+'Hank.työ 1'!J12=0,0,IF((J12+'Hank.työ 1'!J12-125)/(J12+'Hank.työ 1'!J12)*J13>0,(J12+'Hank.työ 1'!J12-125)/(J12+'Hank.työ 1'!J12)*J13,0)) -> 0 | K14: =IF(K12+'Hank.työ 1'!K12=0,0,IF((K12+'Hank.työ 1'!K12-125)/(K12+'Hank.työ 1'!K12)*K13>0,(K12+'Hank.työ 1'!K12-125)/(K12+'Hank.työ 1'!K12)*K13,0)) -> 0 | L14: =IF(L12+'Hank.työ 1'!L12=0,0,IF((L12+'Hank.työ 1'!L12-125)/(L12+'Hank.työ 1'!L12)*L13>0,(L12+'Hank.työ 1'!L12-125)/(L12+'Hank.työ 1'!L12)*L13,0)) -> 0 | M14: =IF(M12+'Hank.työ 1'!M12=0,0,IF((M12+'Hank.työ 1'!M12-125)/(M12+'Hank.työ 1'!M12)*M13>0,(M12+'Hank.työ 1'!M12-125)/(M12+'Hank.työ 1'!M12)*M13,0)) -> 0 | N14: =IF(N12+'Hank.työ 1'!N12=0,0,IF((N12+'Hank.työ 1'!N12-125)/(N12+'Hank.työ 1'!N12)*N13>0,(N12+'Hank.työ 1'!N12-125)/(N12+'Hank.työ 1'!N12)*N13,0)) -> 0 | V14: Kuljetuksen määrä yhteensä, m3 | Y14: =AC43 -> 0 | Z14: =AC70 -> 0 | AA14: =AC97 -> 0 | AB14: =AC124 -> 0 | AC14: =AC151 -> 0
G15: Kuljetuksen määrä yhteensä | J15: =+C43+AC43 -> 0 | K15: =+C70+AC70 -> 0 | L15: =+C97+AC97 -> 0 | M15: =+C124+AC124 -> 0 | N15: =+C151+AC151 -> 0 | O15: Näytettävien maatilojen määrä tulee automaattisesti | R15: =IF(R11="Kyllä"," ---->>","") ->  | V15: kuljetuksen arvo yhteensä, € | Y15: =AC40 -> 0 | Z15: =AC67 -> 0 | AA15: =AC94 -> 0 | AB15: =AC121 -> 0 | AC15: =AC148 -> 0
G16: kuljetuksen arvo yhteensä | J16: =+C40 -> 0 | K16: =+C67 -> 0 | L16: =+C94 -> 0 | M16: =+C121 -> 0 | N16: =+C148 -> 0 | V16: HANKINTATYÖN ARVO YHTEENSÄ, € | Y16: =Y13+Y15 -> 0 | Z16: =Z13+Z15 -> 0 | AA16: =AA13+AA15 -> 0 | AB16: =AB13+AB15 -> 0 | AC16: =AC13+AC15 -> 0
G17: Kuljetuksen verollinen arvo (125 m3 verovapaata) | J17: =IF(J15+'Hank.työ 1'!J15=0,0,IF((J15+'Hank.työ 1'!J15-125)/(J15+'Hank.työ 1'!J15)*J16>0,(J15+'Hank.työ 1'!J15-125)/(J15+'Hank.työ 1'!J15)*J16,0)) -> 0 | K17: =IF(K15+'Hank.työ 1'!K15=0,0,IF((K15+'Hank.työ 1'!K15-125)/(K15+'Hank.työ 1'!K15)*K16>0,(K15+'Hank.työ 1'!K15-125)/(K15+'Hank.työ 1'!K15)*K16,0)) -> 0 | L17: =IF(L15+'Hank.työ 1'!L15=0,0,IF((L15+'Hank.työ 1'!L15-125)/(L15+'Hank.työ 1'!L15)*L16>0,(L15+'Hank.työ 1'!L15-125)/(L15+'Hank.työ 1'!L15)*L16,0)) -> 0 | M17: =IF(M15+'Hank.työ 1'!M15=0,0,IF((M15+'Hank.työ 1'!M15-125)/(M15+'Hank.työ 1'!M15)*M16>0,(M15+'Hank.työ 1'!M15-125)/(M15+'Hank.työ 1'!M15)*M16,0)) -> 0 | N17: =IF(N15+'Hank.työ 1'!N15=0,0,IF((N15+'Hank.työ 1'!N15-125)/(N15+'Hank.työ 1'!N15)*N16>0,(N15+'Hank.työ 1'!N15-125)/(N15+'Hank.työ 1'!N15)*N16,0)) -> 0 | V17: Siirrä nämä alarivin summat seuraavan vuoden verotukseen uinumaan jätettyinä hankintatyön arvoina.
G18: Hankintatyön arvo yhteensä | J18: =J13+J16 -> 0 | K18: =K13+K16 -> 0 | L18: =L13+L16 -> 0 | M18: =M13+M16 -> 0 | N18: =N13+N16 -> 0
G19: Hankintatyön verollinen arvo yhteensä | J19: =(J14+J17) -> 0 | K19: =(K14+K17) -> 0 | L19: =(L14+L17) -> 0 | M19: =(M14+M17) -> 0 | N19: =(N14+N17) -> 0 | V19: TÄHÄN ALLE VAIN NE KUUTIOMÄÄRÄT JOTKA ON TEHTY VEROVUONNA, MUTTA MYYDÄÄN TULEVANA VEROVUONNA Siirrä seuraavan vuoden veroilmoitukseen hankintatyön arvoon (lomake 2C kohta 2.1)
G20: Hakkuumäärä yht. verovuonna (sis. hank.työ 1 ja 2) | J20: =J12+'Hank.työ 1'!J12 -> 0 | K20: =K12+'Hank.työ 1'!K12 -> 0 | L20: =L12+'Hank.työ 1'!L12 -> 0 | M20: =M12+'Hank.työ 1'!M12 -> 0 | N20: =N12+'Hank.työ 1'!N12 -> 0
G21: Ajomäärä yht verovuonna (sis. hank.työ 1 ja 2) | J21: =J15+'Hank.työ 1'!J15 -> 0 | K21: =K15+'Hank.työ 1'!K15 -> 0 | L21: =L15+'Hank.työ 1'!L15 -> 0 | M21: =M15+'Hank.työ 1'!M15 -> 0 | N21: =N15+'Hank.työ 1'!N15 -> 0
B24: MAATILA 1 | C24: Ei metsävähennysoikeutta | K24: Metsävähennysoikeus | U24: MAATILA 1
C25: Hankintatyötulot | D25: =Tulot!AU9 -> 0 | K25: Hankintatyötulot | L25: =Tulot!AV9 -> 0 | V25: Uinumaan jäävä hakkuumäärä
C27: HAKKUU | F27: KULJETUS | I27: KONEKULJETUS | K27: HAKKUU | N27: KULJETUS | Q27: KONEKULJETUS | V27: HAKKUU | Y27: KULJETUS | AB27: KONEKULJETUS
D29: Valmistuksen arvo | F29: Määrä | G29: Kuljetustyön arvo | I29: Konekustannus | L29: Valmistuksen arvo | N29: Määrä | O29: Kuljetustyön arvo | Q29: Konekustannus | W29: valmistuksen arvo | Y29: Määrä | Z29: Kuljetustyön arvo | AB29: Konekustannus
C30: m3 | D30: €/m3 | E30: € | F30: m3 | G30: €/m3 | H30: € | I30: €/m3 | J30: € | K30: m3 | L30: €/m3 | M30: € | N30: m3 | O30: €/m3 | P30: € | Q30: €/m3 | R30: € | V30: m3 | W30: €/m3 | X30: € | Y30: m3 | Z30: €/m3 | AA30: € | AB30: €/m3 | AC30: €
B31: Energiapuu (kokopuu) | D31: =$C$9 -> 9.1 | E31: =C31*D31 -> 0 | G31: =$D$9 -> 4.74 | H31: =F31*G31 -> 0 | I31: =$E$9 -> 0 | J31: =I31*F31 -> 0 | L31: =$C$9 -> 9.1 | M31: =K31*L31 -> 0 | N31: 0 | O31: =$D$9 -> 4.74 | P31: =N31*O31 -> 0 | Q31: =$E$9 -> 0 | R31: =Q31*N31 -> 0 | U31: Energiapuu (kokopuu) | W31: =$C$9 -> 9.1 | X31: =V31*W31 -> 0 | Z31: =$D$9 -> 4.74 | AA31: =Y31*Z31 -> 0 | AB31: =$E$9 -> 0 | AC31: =AB31*Y31 -> 0
B32: Halot ja klapit | D32: =$C$10 -> 30.94 | E32: =C32*D32 -> 0 | F32: 0 | G32: =$D$10 -> 3.02 | H32: =F32*G32 -> 0 | I32: =$E$10 -> 0 | J32: =I32*F32 -> 0 | L32: =$C$10 -> 30.94 | M32: =K32*L32 -> 0 | O32: =$D$10 -> 3.02 | P32: =N32*O32 -> 0 | Q32: =$E$10 -> 0 | R32: =Q32*N32 -> 0 | U32: Halot ja klapit | W32: =$C$10 -> 30.94 | X32: =V32*W32 -> 0 | Z32: =$D$10 -> 3.02 | AA32: =Y32*Z32 -> 0 | AB32: =$E$10 -> 0 | AC32: =AB32*Y32 -> 0
B33: Haketus | D33: =$C$11 -> 4.83 | E33: =C33*D33 -> 0 | F33: 0 | G33: =$D$11 -> 0 | H33: =F33*G33 -> 0 | I33: =$E$11 -> 0 | J33: =I33*F33 -> 0 | L33: =$C$11 -> 4.83 | M33: =K33*L33 -> 0 | O33: =$D$11 -> 0 | P33: =N33*O33 -> 0 | Q33: =$E$11 -> 0 | R33: =Q33*N33 -> 0 | U33: Haketus | W33: =$C$11 -> 4.83 | X33: =V33*W33 -> 0 | Y33: 0 | Z33: =$D$11 -> 0 | AA33: =Y33*Z33 -> 0 | AB33: =$E$11 -> 0 | AC33: =AB33*Y33 -> 0
B34: Hake | D34: =$C$12 -> 0 | E34: =C34*D34 -> 0 | F34: 0 | G34: =$D$12 -> 3.02 | H34: =F34*G34 -> 0 | I34: =$E$12 -> 0 | J34: =I34*F34 -> 0 | L34: =$C$12 -> 0 | M34: =K34*L34 -> 0 | O34: =$D$12 -> 3.02 | P34: =N34*O34 -> 0 | Q34: =$E$12 -> 0 | R34: =Q34*N34 -> 0 | U34: Hake | V34: 0 | W34: =$C$12 -> 0 | X34: =V34*W34 -> 0 | Y34: 0 | Z34: =$D$12 -> 3.02 | AA34: =Y34*Z34 -> 0 | AB34: =$E$12 -> 0 | AC34: =AB34*Y34 -> 0
B35: Joulupuut | D35: =$C$13 -> 0 | E35: =C35*D35 -> 0 | F35: 0 | G35: =$D$13 -> 0 | H35: =F35*G35 -> 0 | I35: =$E$13 -> 0 | J35: =I35*F35 -> 0 | L35: =$C$13 -> 0 | M35: =K35*L35 -> 0 | O35: =$D$13 -> 0 | P35: =N35*O35 -> 0 | Q35: =$E$13 -> 0 | R35: =Q35*N35 -> 0 | U35: Joulupuut | W35: =$C$13 -> 0 | X35: =V35*W35 -> 0 | Y35: 0 | Z35: =$D$13 -> 0 | AA35: =Y35*Z35 -> 0 | AB35: =$E$13 -> 0 | AC35: =AB35*Y35 -> 0
B36: Yhteensä | C36: =SUM(C31:C35) -> 0 | E36: =SUM(E31:E35) -> 0 | F36: =SUM(F31:F35) -> 0 | H36: =SUM(H31:H35) -> 0 | J36: =SUM(J31:J35) -> 0 | K36: =SUM(K31:K35) -> 0 | M36: =SUM(M31:M35) -> 0 | N36: =SUM(N31:N35) -> 0 | P36: =SUM(P31:P35) -> 0 | R36: =SUM(R31:R35) -> 0 | U36: Yhteensä | V36: =SUM(V31:V35) -> 0 | X36: =SUM(X31:X35) -> 0 | Y36: =SUM(Y31:Y35) -> 0 | AA36: =SUM(AA31:AA35) -> 0 | AC36: =SUM(AC31:AC35) -> 0
C38: YHTEENSÄ | I38: EI METSÄVÄHENNYSTÄ | Q38: METSÄVÄHENNYSOIKEUS
B39: Hakkuutyön arvo | C39: =J39+R39 -> 0 | I39: Hakkuutyön arvo | J39: =E36 -> 0 | Q39: Hakkuutyön arvo | R39: =M36 -> 0 | AB39: Hakkuutyön arvo | AC39: =X36 -> 0
B40: Kuljetuksen arvo | C40: 0 | I40: Kuljetuksen arvo | J40: =H36 -> 0 | Q40: Kuljetuksen arvo | R40: =P36 -> 0 | AB40: Kuljetuksen arvo | AC40: =AA36 -> 0
B41: Konekustannus (muuta vuosimenoa) | C41: =J41+R41 -> 0 | I41: Konekustannus | J41: =J36 -> 0 | Q41: Konekustannus | R41: =R36 -> 0 | AB41: Konekustannus | AC41: =AC36 -> 0
B42: Hakkuun määrä yhteensä | C42: 0 | I42: Hakkuun määrä | J42: =C36 -> 0 | Q42: Hakkuun määrä | R42: =K36 -> 0 | AB42: Hakkuun määrä | AC42: =V36 -> 0
B43: Kuljetuksen määrä yhteensä | C43: 0 | I43: Kuljetuksen määrä | J43: =F36 -> 0 | Q43: Kuljetuksen määrä | R43: =N36 -> 0 | AB43: Kuljetuksen määrä | AC43: =Y36 -> 0
B44: Puutavaran verollinen arvo | C44: 0 | I44: Puutavaran verollinen arvo | J44: =(D25-J39-J40-J41) -> 0 | Q44: Metsävähennykseen oikeuttava osa (verollinen osa) | R44: =(L25-R39-R40-R41) -> 0
C47: Hakattu määrä yhteensä | E47: =C42 -> 0
C48: Kuljetettu määrä yhteensä | E48: =C43 -> 0
B49: Tarkistus: | C49: =IF(E48>E47,"Kuljetettu määrä on valmistettua määrää suurempi",IF(E48=E47,"Valmistettu ja kuljetettu määrä yhtäsuuret","Valmistettu määrä on kuljetettua määrää isompi")) -> Valmistettu ja kuljetettu määrä yhtäsuuret
B51: MAATILA 2 | C51: Ei metsävähennysoikeutta | K51: Metsävähennysoikeus | U51: MAATILA 2
C52: Hankintatyötulot | D52: =Tulot!AW9 -> 0 | K52: Hankintatyötulot | L52: =Tulot!AX9 -> 0 | V52: Uinumaan jäävä hakkuumäärä
C54: HAKKUU | F54: KULJETUS | I54: KONEKULJETUS | K54: HAKKUU | N54: KULJETUS | Q54: KONEKULJETUS | V54: HAKKUU | Y54: KULJETUS | AB54: KONEKULJETUS
D56: Valmistuksen arvo | F56: Määrä | G56: Kuljetustyön arvo | I56: Konekustannus | L56: Valmistuksen arvo | N56: Määrä | O56: Kuljetustyön arvo | Q56: Konekustannus | W56: valmistuksen arvo | Y56: Määrä | Z56: Kuljetustyön arvo | AB56: Konekustannus
C57: m3 | D57: €/m3 | E57: € | F57: m3 | G57: €/m3 | H57: € | I57: €/m3 | J57: € | K57: m3 | L57: €/m3 | M57: € | N57: m3 | O57: €/m3 | P57: € | Q57: €/m3 | R57: € | V57: m3 | W57: €/m3 | X57: € | Y57: m3 | Z57: €/m3 | AA57: € | AB57: €/m3 | AC57: €
B58: Energiapuu (kokopuu) | D58: =$C$9 -> 9.1 | E58: =C58*D58 -> 0 | G58: =$D$9 -> 4.74 | H58: =F58*G58 -> 0 | I58: =$E$9 -> 0 | J58: =I58*F58 -> 0 | L58: =$C$9 -> 9.1 | M58: =K58*L58 -> 0 | N58: 0 | O58: =$D$9 -> 4.74 | P58: =N58*O58 -> 0 | Q58: =$E$9 -> 0 | R58: =Q58*N58 -> 0 | U58: Energiapuu (kokopuu) | W58: =$C$9 -> 9.1 | X58: =V58*W58 -> 0 | Z58: =$D$9 -> 4.74 | AA58: =Y58*Z58 -> 0 | AB58: =$E$9 -> 0 | AC58: =AB58*Y58 -> 0
B59: Halot ja klapit | D59: =$C$10 -> 30.94 | E59: =C59*D59 -> 0 | G59: =$D$10 -> 3.02 | H59: =F59*G59 -> 0 | I59: =$E$10 -> 0 | J59: =I59*F59 -> 0 | K59: 0 | L59: =$C$10 -> 30.94 | M59: =K59*L59 -> 0 | N59: 0 | O59: =$D$10 -> 3.02 | P59: =N59*O59 -> 0 | Q59: =$E$10 -> 0 | R59: =Q59*N59 -> 0 | U59: Halot ja klapit | W59: =$C$10 -> 30.94 | X59: =V59*W59 -> 0 | Z59: =$D$10 -> 3.02 | AA59: =Y59*Z59 -> 0 | AB59: =$E$10 -> 0 | AC59: =AB59*Y59 -> 0
B60: Haketus | D60: =$C$11 -> 4.83 | E60: =C60*D60 -> 0 | F60: 0 | G60: =$D$11 -> 0 | H60: =F60*G60 -> 0 | I60: =$E$11 -> 0 | J60: =I60*F60 -> 0 | L60: =$C$11 -> 4.83 | M60: =K60*L60 -> 0 | O60: =$D$11 -> 0 | P60: =N60*O60 -> 0 | Q60: =$E$11 -> 0 | R60: =Q60*N60 -> 0 | U60: Haketus | W60: =$C$11 -> 4.83 | X60: =V60*W60 -> 0 | Y60: 0 | Z60: =$D$11 -> 0 | AA60: =Y60*Z60 -> 0 | AB60: =$E$11 -> 0 | AC60: =AB60*Y60 -> 0
B61: Hake | D61: =$C$12 -> 0 | E61: =C61*D61 -> 0 | F61: 0 | G61: =$D$12 -> 3.02 | H61: =F61*G61 -> 0 | I61: =$E$12 -> 0 | J61: =I61*F61 -> 0 | K61: 0 | L61: =$C$12 -> 0 | M61: =K61*L61 -> 0 | N61: 0 | O61: =$D$12 -> 3.02 | P61: =N61*O61 -> 0 | Q61: =$E$12 -> 0 | R61: =Q61*N61 -> 0 | U61: Hake | V61: 0 | W61: =$C$12 -> 0 | X61: =V61*W61 -> 0 | Y61: 0 | Z61: =$D$12 -> 3.02 | AA61: =Y61*Z61 -> 0 | AB61: =$E$12 -> 0 | AC61: =AB61*Y61 -> 0
B62: Joulupuut | C62: 0 | D62: =$C$13 -> 0 | E62: =C62*D62 -> 0 | G62: =$D$13 -> 0 | H62: =F62*G62 -> 0 | I62: =$E$13 -> 0 | J62: =I62*F62 -> 0 | K62: 0 | L62: =$C$13 -> 0 | M62: =K62*L62 -> 0 | N62: 0 | O62: =$D$13 -> 0 | P62: =N62*O62 -> 0 | Q62: =$E$13 -> 0 | R62: =Q62*N62 -> 0 | U62: Joulupuut | W62: =$C$13 -> 0 | X62: =V62*W62 -> 0 | Y62: 0 | Z62: =$D$13 -> 0 | AA62: =Y62*Z62 -> 0 | AB62: =$E$13 -> 0 | AC62: =AB62*Y62 -> 0
B63: Yhteensä | C63: =SUM(C58:C62) -> 0 | E63: =SUM(E58:E62) -> 0 | F63: =SUM(F58:F62) -> 0 | H63: =SUM(H58:H62) -> 0 | J63: =SUM(J58:J62) -> 0 | K63: =SUM(K58:K62) -> 0 | M63: =SUM(M58:M62) -> 0 | N63: =SUM(N58:N62) -> 0 | P63: =SUM(P58:P62) -> 0 | R63: =SUM(R58:R62) -> 0 | U63: Yhteensä | V63: =SUM(V58:V62) -> 0 | X63: =SUM(X58:X62) -> 0 | Y63: =SUM(Y58:Y62) -> 0 | AA63: =SUM(AA58:AA62) -> 0 | AC63: =SUM(AC58:AC62) -> 0
C65: YHTEENSÄ | I65: EI METSÄVÄHENNYSTÄ | Q65: METSÄVÄHENNYSOIKEUS
B66: Hakkuutyön arvo | C66: =J66+R66 -> 0 | I66: Hakkuutyön arvo | J66: =E63 -> 0 | Q66: Hakkuutyön arvo | R66: =M63 -> 0 | AB66: Hakkuutyön arvo | AC66: =X63 -> 0
B67: Kuljetuksen arvo | C67: 0 | I67: Kuljetuksen arvo | J67: =H63 -> 0 | Q67: Kuljetuksen arvo | R67: =P63 -> 0 | AB67: Kuljetuksen arvo | AC67: =AA63 -> 0
B68: Konekustannus (muuta vuosimenoa) | C68: 0 | I68: Konekustannus | J68: =J63 -> 0 | Q68: Konekustannus | R68: =R63 -> 0 | AB68: Konekustannus | AC68: =AC63 -> 0
B69: Hakkuun määrä yhteensä | C69: 0 | I69: Hakkuun määrä | J69: =C63 -> 0 | Q69: Hakkuun määrä | R69: =K63 -> 0 | AB69: Hakkuun määrä | AC69: =V63 -> 0
B70: Kuljetuksen määrä yhteensä | C70: 0 | I70: Kuljetuksen määrä | J70: =F63 -> 0 | Q70: Kuljetuksen määrä | R70: =N63 -> 0 | AB70: Kuljetuksen määrä | AC70: =Y63 -> 0
B71: Puutavaran verollinen arvo | C71: 0 | I71: Puutavaran verollinen arvo | J71: =(D52-J66-J67-J68) -> 0 | Q71: Metsävähennykseen oikeuttava osa (verollinen osa) | R71: =(L52-R66-R67-R68) -> 0
C74: Hakattu määrä yhteensä | E74: =C69 -> 0
C75: Kuljetettu määrä yhteensä | E75: =C70 -> 0
B76: Tarkistus: | C76: =IF(E75>E74,"Kuljetettu määrä on valmistettua määrää suurempi",IF(E75=E74,"Valmistettu ja kuljetettu määrä yhtäsuuret","Valmistettu määrä on kuljetettua määrää isompi")) -> Valmistettu ja kuljetettu määrä yhtäsuuret
B78: MAATILA 3 | C78: Ei metsävähennysoikeutta | K78: Metsävähennysoikeus | U78: MAATILA 3
C79: Hankintatyötulot | D79: =Tulot!AY9 -> 0 | K79: Hankintatyötulot | L79: =Tulot!AZ9 -> 0 | V79: Uinumaan jäävä hakkuumäärä
C81: HAKKUU | F81: KULJETUS | I81: KONEKULJETUS | K81: HAKKUU | N81: KULJETUS | Q81: KONEKULJETUS | V81: HAKKUU | Y81: KULJETUS | AB81: KONEKULJETUS
D83: Valmistuksen arvo | F83: Määrä | G83: Kuljetustyön arvo | I83: Konekustannus | L83: Valmistuksen arvo | N83: Määrä | O83: Kuljetustyön arvo | Q83: Konekustannus | W83: valmistuksen arvo | Y83: Määrä | Z83: Kuljetustyön arvo | AB83: Konekustannus
C84: m3 | D84: €/m3 | E84: € | F84: m3 | G84: €/m3 | H84: € | I84: €/m3 | J84: € | K84: m3 | L84: €/m3 | M84: € | N84: m3 | O84: €/m3 | P84: € | Q84: €/m3 | R84: € | V84: m3 | W84: €/m3 | X84: € | Y84: m3 | Z84: €/m3 | AA84: € | AB84: €/m3 | AC84: €
B85: Energiapuu (kokopuu) | D85: =$C$9 -> 9.1 | E85: =C85*D85 -> 0 | G85: =$D$9 -> 4.74 | H85: =F85*G85 -> 0 | I85: =$E$9 -> 0 | J85: =I85*F85 -> 0 | L85: =$C$9 -> 9.1 | M85: =K85*L85 -> 0 | N85: 0 | O85: =$D$9 -> 4.74 | P85: =N85*O85 -> 0 | Q85: =$E$9 -> 0 | R85: =Q85*N85 -> 0 | U85: Energiapuu (kokopuu) | W85: =$C$9 -> 9.1 | X85: =V85*W85 -> 0 | Z85: =$D$9 -> 4.74 | AA85: =Y85*Z85 -> 0 | AB85: =$E$9 -> 0 | AC85: =AB85*Y85 -> 0
B86: Halot ja klapit | C86: 0 | D86: =$C$10 -> 30.94 | E86: =C86*D86 -> 0 | F86: 0 | G86: =$D$10 -> 3.02 | H86: =F86*G86 -> 0 | I86: =$E$10 -> 0 | J86: =I86*F86 -> 0 | K86: 0 | L86: =$C$10 -> 30.94 | M86: =K86*L86 -> 0 | N86: 0 | O86: =$D$10 -> 3.02 | P86: =N86*O86 -> 0 | Q86: =$E$10 -> 0 | R86: =Q86*N86 -> 0 | U86: Halot ja klapit | W86: =$C$10 -> 30.94 | X86: =V86*W86 -> 0 | Z86: =$D$10 -> 3.02 | AA86: =Y86*Z86 -> 0 | AB86: =$E$10 -> 0 | AC86: =AB86*Y86 -> 0
B87: Haketus | D87: =$C$11 -> 4.83 | E87: =C87*D87 -> 0 | G87: =$D$11 -> 0 | H87: =F87*G87 -> 0 | I87: =$E$11 -> 0 | J87: =I87*F87 -> 0 | L87: =$C$11 -> 4.83 | M87: =K87*L87 -> 0 | O87: =$D$11 -> 0 | P87: =N87*O87 -> 0 | Q87: =$E$11 -> 0 | R87: =Q87*N87 -> 0 | U87: Haketus | W87: =$C$11 -> 4.83 | X87: =V87*W87 -> 0 | Y87: 0 | Z87: =$D$11 -> 0 | AA87: =Y87*Z87 -> 0 | AB87: =$E$11 -> 0 | AC87: =AB87*Y87 -> 0
B88: Hake | D88: =$C$12 -> 0 | E88: =C88*D88 -> 0 | F88: 0 | G88: =$D$12 -> 3.02 | H88: =F88*G88 -> 0 | I88: =$E$12 -> 0 | J88: =I88*F88 -> 0 | K88: 0 | L88: =$C$12 -> 0 | M88: =K88*L88 -> 0 | N88: 0 | O88: =$D$12 -> 3.02 | P88: =N88*O88 -> 0 | Q88: =$E$12 -> 0 | R88: =Q88*N88 -> 0 | U88: Hake | V88: 0 | W88: =$C$12 -> 0 | X88: =V88*W88 -> 0 | Y88: 0 | Z88: =$D$12 -> 3.02 | AA88: =Y88*Z88 -> 0 | AB88: =$E$12 -> 0 | AC88: =AB88*Y88 -> 0
B89: Joulupuut | C89: 0 | D89: =$C$13 -> 0 | E89: =C89*D89 -> 0 | G89: =$D$13 -> 0 | H89: =F89*G89 -> 0 | I89: =$E$13 -> 0 | J89: =I89*F89 -> 0 | K89: 0 | L89: =$C$13 -> 0 | M89: =K89*L89 -> 0 | N89: 0 | O89: =$D$13 -> 0 | P89: =N89*O89 -> 0 | Q89: =$E$13 -> 0 | R89: =Q89*N89 -> 0 | U89: Joulupuut | W89: =$C$13 -> 0 | X89: =V89*W89 -> 0 | Y89: 0 | Z89: =$D$13 -> 0 | AA89: =Y89*Z89 -> 0 | AB89: =$E$13 -> 0 | AC89: =AB89*Y89 -> 0
B90: Yhteensä | C90: =SUM(C85:C89) -> 0 | E90: =SUM(E85:E89) -> 0 | F90: =SUM(F85:F89) -> 0 | H90: =SUM(H85:H89) -> 0 | J90: =SUM(J85:J89) -> 0 | K90: =SUM(K85:K89) -> 0 | M90: =SUM(M85:M89) -> 0 | N90: =SUM(N85:N89) -> 0 | P90: =SUM(P85:P89) -> 0 | R90: =SUM(R85:R89) -> 0 | U90: Yhteensä | V90: =SUM(V85:V89) -> 0 | X90: =SUM(X85:X89) -> 0 | Y90: =SUM(Y85:Y89) -> 0 | AA90: =SUM(AA85:AA89) -> 0 | AC90: =SUM(AC85:AC89) -> 0
C92: YHTEENSÄ | I92: EI METSÄVÄHENNYSTÄ | Q92: METSÄVÄHENNYSOIKEUS
B93: Hakkuutyön arvo | C93: =J93+R93 -> 0 | I93: Hakkuutyön arvo | J93: =E90 -> 0 | Q93: Hakkuutyön arvo | R93: =M90 -> 0 | AB93: Hakkuutyön arvo | AC93: =X90 -> 0
B94: Kuljetuksen arvo | C94: 0 | I94: Kuljetuksen arvo | J94: =H90 -> 0 | Q94: Kuljetuksen arvo | R94: =P90 -> 0 | AB94: Kuljetuksen arvo | AC94: =AA90 -> 0
B95: Konekustannus (muuta vuosimenoa) | C95: 0 | I95: Konekustannus | J95: =J90 -> 0 | Q95: Konekustannus | R95: =R90 -> 0 | AB95: Konekustannus | AC95: =AC90 -> 0
B96: Hakkuun määrä yhteensä | C96: 0 | I96: Hakkuun määrä | J96: =C90 -> 0 | Q96: Hakkuun määrä | R96: =K90 -> 0 | AB96: Hakkuun määrä | AC96: =V90 -> 0
B97: Kuljetuksen määrä yhteensä | C97: 0 | I97: Kuljetuksen määrä | J97: =F90 -> 0 | Q97: Kuljetuksen määrä | R97: =N90 -> 0 | AB97: Kuljetuksen määrä | AC97: =Y90 -> 0
B98: Puutavaran verollinen arvo | C98: 0 | I98: Puutavaran verollinen arvo | J98: =(D79-J93-J94-J95) -> 0 | Q98: Metsävähennykseen oikeuttava osa (verollinen osa) | R98: =(L79-R93-R94-R95) -> 0
C101: Hakattu määrä yhteensä | E101: =C96 -> 0
C102: Kuljetettu määrä yhteensä | E102: =C97 -> 0
B103: Tarkistus: | C103: =IF(E102>E101,"Kuljetettu määrä on valmistettua määrää suurempi",IF(E102=E101,"Valmistettu ja kuljetettu määrä yhtäsuuret","Valmistettu määrä on kuljetettua määrää isompi")) -> Valmistettu ja kuljetettu määrä yhtäsuuret
B105: MAATILA 4 | C105: Ei metsävähennysoikeutta | K105: Metsävähennysoikeus | U105: MAATILA 4
C106: Hankintatyötulot | D106: =Tulot!BA9 -> 0 | K106: Hankintatyötulot | L106: =Tulot!BB9 -> 0 | V106: Uinumaan jäävä hakkuumäärä
C108: HAKKUU | F108: KULJETUS | I108: KONEKULJETUS | K108: HAKKUU | N108: KULJETUS | Q108: KONEKULJETUS | V108: HAKKUU | Y108: KULJETUS | AB108: KONEKULJETUS
D110: Valmistuksen arvo | F110: Määrä | G110: Kuljetustyön arvo | I110: Konekustannus | L110: Valmistuksen arvo | N110: Määrä | O110: Kuljetustyön arvo | Q110: Konekustannus | W110: valmistuksen arvo | Y110: Määrä | Z110: Kuljetustyön arvo | AB110: Konekustannus
C111: m3 | D111: €/m3 | E111: € | F111: m3 | G111: €/m3 | H111: € | I111: €/m3 | J111: € | K111: m3 | L111: €/m3 | M111: € | N111: m3 | O111: €/m3 | P111: € | Q111: €/m3 | R111: € | V111: m3 | W111: €/m3 | X111: € | Y111: m3 | Z111: €/m3 | AA111: € | AB111: €/m3 | AC111: €
B112: Energiapuu (kokopuu) | D112: =$C$9 -> 9.1 | E112: =C112*D112 -> 0 | G112: =$D$9 -> 4.74 | H112: =F112*G112 -> 0 | I112: =$E$9 -> 0 | J112: =I112*F112 -> 0 | L112: =$C$9 -> 9.1 | M112: =K112*L112 -> 0 | N112: 0 | O112: =$D$9 -> 4.74 | P112: =N112*O112 -> 0 | Q112: =$E$9 -> 0 | R112: =Q112*N112 -> 0 | U112: Energiapuu (kokopuu) | W112: =$C$9 -> 9.1 | X112: =V112*W112 -> 0 | Z112: =$D$9 -> 4.74 | AA112: =Y112*Z112 -> 0 | AB112: =$E$9 -> 0 | AC112: =AB112*Y112 -> 0
B113: Halot ja klapit | C113: 0 | D113: =$C$10 -> 30.94 | E113: =C113*D113 -> 0 | F113: 0 | G113: =$D$10 -> 3.02 | H113: =F113*G113 -> 0 | I113: =$E$10 -> 0 | J113: =I113*F113 -> 0 | K113: 0 | L113: =$C$10 -> 30.94 | M113: =K113*L113 -> 0 | N113: 0 | O113: =$D$10 -> 3.02 | P113: =N113*O113 -> 0 | Q113: =$E$10 -> 0 | R113: =Q113*N113 -> 0 | U113: Halot ja klapit | W113: =$C$10 -> 30.94 | X113: =V113*W113 -> 0 | Z113: =$D$10 -> 3.02 | AA113: =Y113*Z113 -> 0 | AB113: =$E$10 -> 0 | AC113: =AB113*Y113 -> 0
B114: Haketus | D114: =$C$11 -> 4.83 | E114: =C114*D114 -> 0 | F114: 0 | G114: =$D$11 -> 0 | H114: =F114*G114 -> 0 | I114: =$E$11 -> 0 | J114: =I114*F114 -> 0 | L114: =$C$11 -> 4.83 | M114: =K114*L114 -> 0 | O114: =$D$11 -> 0 | P114: =N114*O114 -> 0 | Q114: =$E$11 -> 0 | R114: =Q114*N114 -> 0 | U114: Haketus | W114: =$C$11 -> 4.83 | X114: =V114*W114 -> 0 | Y114: 0 | Z114: =$D$11 -> 0 | AA114: =Y114*Z114 -> 0 | AB114: =$E$11 -> 0 | AC114: =AB114*Y114 -> 0
B115: Hake | D115: =$C$12 -> 0 | E115: =C115*D115 -> 0 | F115: 0 | G115: =$D$12 -> 3.02 | H115: =F115*G115 -> 0 | I115: =$E$12 -> 0 | J115: =I115*F115 -> 0 | K115: 0 | L115: =$C$12 -> 0 | M115: =K115*L115 -> 0 | N115: 0 | O115: =$D$12 -> 3.02 | P115: =N115*O115 -> 0 | Q115: =$E$12 -> 0 | R115: =Q115*N115 -> 0 | U115: Hake | V115: 0 | W115: =$C$12 -> 0 | X115: =V115*W115 -> 0 | Y115: 0 | Z115: =$D$12 -> 3.02 | AA115: =Y115*Z115 -> 0 | AB115: =$E$12 -> 0 | AC115: =AB115*Y115 -> 0
B116: Joulupuut | C116: 0 | D116: =$C$13 -> 0 | E116: =C116*D116 -> 0 | G116: =$D$13 -> 0 | H116: =F116*G116 -> 0 | I116: =$E$13 -> 0 | J116: =I116*F116 -> 0 | K116: 0 | L116: =$C$13 -> 0 | M116: =K116*L116 -> 0 | N116: 0 | O116: =$D$13 -> 0 | P116: =N116*O116 -> 0 | Q116: =$E$13 -> 0 | R116: =Q116*N116 -> 0 | U116: Joulupuut | W116: =$C$13 -> 0 | X116: =V116*W116 -> 0 | Y116: 0 | Z116: =$D$13 -> 0 | AA116: =Y116*Z116 -> 0 | AB116: =$E$13 -> 0 | AC116: =AB116*Y116 -> 0
B117: Yhteensä | C117: =SUM(C112:C116) -> 0 | E117: =SUM(E112:E116) -> 0 | F117: =SUM(F112:F116) -> 0 | H117: =SUM(H112:H116) -> 0 | J117: =SUM(J112:J116) -> 0 | K117: =SUM(K112:K116) -> 0 | M117: =SUM(M112:M116) -> 0 | N117: =SUM(N112:N116) -> 0 | P117: =SUM(P112:P116) -> 0 | R117: =SUM(R112:R116) -> 0 | U117: Yhteensä | V117: =SUM(V112:V116) -> 0 | X117: =SUM(X112:X116) -> 0 | Y117: =SUM(Y112:Y116) -> 0 | AA117: =SUM(AA112:AA116) -> 0 | AC117: =SUM(AC112:AC116) -> 0
C119: YHTEENSÄ | I119: EI METSÄVÄHENNYSTÄ | Q119: METSÄVÄHENNYSOIKEUS
B120: Hakkuutyön arvo | C120: =J120+R120 -> 0 | I120: Hakkuutyön arvo | J120: =E117 -> 0 | Q120: Hakkuutyön arvo | R120: =M117 -> 0 | AB120: Hakkuutyön arvo | AC120: =X117 -> 0
B121: Kuljetuksen arvo | C121: 0 | I121: Kuljetuksen arvo | J121: =H117 -> 0 | Q121: Kuljetuksen arvo | R121: =P117 -> 0 | AB121: Kuljetuksen arvo | AC121: =AA117 -> 0
B122: Konekustannus (muuta vuosimenoa) | C122: 0 | I122: Konekustannus | J122: =J117 -> 0 | Q122: Konekustannus | R122: =R117 -> 0 | AB122: Konekustannus | AC122: =AC117 -> 0
B123: Hakkuun määrä yhteensä | C123: 0 | I123: Hakkuun määrä | J123: =C117 -> 0 | Q123: Hakkuun määrä | R123: =K117 -> 0 | AB123: Hakkuun määrä | AC123: =V117 -> 0
B124: Kuljetuksen määrä yhteensä | C124: 0 | I124: Kuljetuksen määrä | J124: =F117 -> 0 | Q124: Kuljetuksen määrä | R124: =N117 -> 0 | AB124: Kuljetuksen määrä | AC124: =Y117 -> 0
B125: Puutavaran verollinen arvo | C125: 0 | I125: Puutavaran verollinen arvo | J125: =(D106-J120-J121-J122) -> 0 | Q125: Metsävähennykseen oikeuttava osa (verollinen osa) | R125: =(L106-R120-R121-R122) -> 0
C128: Hakattu määrä yhteensä | E128: =C123 -> 0
C129: Kuljetettu määrä yhteensä | E129: =C124 -> 0
B130: Tarkistus: | C130: =IF(E129>E128,"Kuljetettu määrä on valmistettua määrää suurempi",IF(E129=E128,"Valmistettu ja kuljetettu määrä yhtäsuuret","Valmistettu määrä on kuljetettua määrää isompi")) -> Valmistettu ja kuljetettu määrä yhtäsuuret
B132: MAATILA 5 | C132: Ei metsävähennysoikeutta | K132: Metsävähennysoikeus | U132: MAATILA 5
C133: Hankintatyötulot | D133: =Tulot!BC9 -> 0 | K133: Hankintatyötulot | L133: =Tulot!BD9 -> 0 | V133: Uinumaan jäävä hakkuumäärä
C135: HAKKUU | F135: KULJETUS | I135: KONEKULJETUS | K135: HAKKUU | N135: KULJETUS | Q135: KONEKULJETUS | V135: HAKKUU | Y135: KULJETUS | AB135: KONEKULJETUS
D137: Valmistuksen arvo | F137: Määrä | G137: Kuljetustyön arvo | I137: Konekustannus | L137: Valmistuksen arvo | N137: Määrä | O137: Kuljetustyön arvo | Q137: Konekustannus | W137: valmistuksen arvo | Y137: Määrä | Z137: Kuljetustyön arvo | AB137: Konekustannus
C138: m3 | D138: €/m3 | E138: € | F138: m3 | G138: €/m3 | H138: € | I138: €/m3 | J138: € | K138: m3 | L138: €/m3 | M138: € | N138: m3 | O138: €/m3 | P138: € | Q138: €/m3 | R138: € | V138: m3 | W138: €/m3 | X138: € | Y138: m3 | Z138: €/m3 | AA138: € | AB138: €/m3 | AC138: €
B139: Energiapuu (kokopuu) | D139: =$C$9 -> 9.1 | E139: =C139*D139 -> 0 | G139: =$D$9 -> 4.74 | H139: =F139*G139 -> 0 | I139: =$E$9 -> 0 | J139: =I139*F139 -> 0 | L139: =$C$9 -> 9.1 | M139: =K139*L139 -> 0 | N139: 0 | O139: =$D$9 -> 4.74 | P139: =N139*O139 -> 0 | Q139: =$E$9 -> 0 | R139: =Q139*N139 -> 0 | U139: Energiapuu (kokopuu) | W139: =$C$9 -> 9.1 | X139: =V139*W139 -> 0 | Z139: =$D$9 -> 4.74 | AA139: =Y139*Z139 -> 0 | AB139: =$E$9 -> 0 | AC139: =AB139*Y139 -> 0
B140: Halot ja klapit | C140: 0 | D140: =$C$10 -> 30.94 | E140: =C140*D140 -> 0 | F140: 0 | G140: =$D$10 -> 3.02 | H140: =F140*G140 -> 0 | I140: =$E$10 -> 0 | J140: =I140*F140 -> 0 | K140: 0 | L140: =$C$10 -> 30.94 | M140: =K140*L140 -> 0 | N140: 0 | O140: =$D$10 -> 3.02 | P140: =N140*O140 -> 0 | Q140: =$E$10 -> 0 | R140: =Q140*N140 -> 0 | U140: Halot ja klapit | W140: =$C$10 -> 30.94 | X140: =V140*W140 -> 0 | Z140: =$D$10 -> 3.02 | AA140: =Y140*Z140 -> 0 | AB140: =$E$10 -> 0 | AC140: =AB140*Y140 -> 0
B141: Haketus | D141: =$C$11 -> 4.83 | E141: =C141*D141 -> 0 | F141: 0 | G141: =$D$11 -> 0 | H141: =F141*G141 -> 0 | I141: =$E$11 -> 0 | J141: =I141*F141 -> 0 | L141: =$C$11 -> 4.83 | M141: =K141*L141 -> 0 | O141: =$D$11 -> 0 | P141: =N141*O141 -> 0 | Q141: =$E$11 -> 0 | R141: =Q141*N141 -> 0 | U141: Haketus | W141: =$C$11 -> 4.83 | X141: =V141*W141 -> 0 | Y141: 0 | Z141: =$D$11 -> 0 | AA141: =Y141*Z141 -> 0 | AB141: =$E$11 -> 0 | AC141: =AB141*Y141 -> 0
B142: Hake | D142: =$C$12 -> 0 | E142: =C142*D142 -> 0 | F142: 0 | G142: =$D$12 -> 3.02 | H142: =F142*G142 -> 0 | I142: =$E$12 -> 0 | J142: =I142*F142 -> 0 | K142: 0 | L142: =$C$12 -> 0 | M142: =K142*L142 -> 0 | N142: 0 | O142: =$D$12 -> 3.02 | P142: =N142*O142 -> 0 | Q142: =$E$12 -> 0 | R142: =Q142*N142 -> 0 | U142: Hake | V142: 0 | W142: =$C$12 -> 0 | X142: =V142*W142 -> 0 | Y142: 0 | Z142: =$D$12 -> 3.02 | AA142: =Y142*Z142 -> 0 | AB142: =$E$12 -> 0 | AC142: =AB142*Y142 -> 0
B143: Joulupuut | C143: 0 | D143: =$C$13 -> 0 | E143: =C143*D143 -> 0 | G143: =$D$13 -> 0 | H143: =F143*G143 -> 0 | I143: =$E$13 -> 0 | J143: =I143*F143 -> 0 | K143: 0 | L143: =$C$13 -> 0 | M143: =K143*L143 -> 0 | N143: 0 | O143: =$D$13 -> 0 | P143: =N143*O143 -> 0 | Q143: =$E$13 -> 0 | R143: =Q143*N143 -> 0 | U143: Joulupuut | W143: =$C$13 -> 0 | X143: =V143*W143 -> 0 | Y143: 0 | Z143: =$D$13 -> 0 | AA143: =Y143*Z143 -> 0 | AB143: =$E$13 -> 0 | AC143: =AB143*Y143 -> 0
B144: Yhteensä | C144: =SUM(C139:C143) -> 0 | E144: =SUM(E139:E143) -> 0 | F144: =SUM(F139:F143) -> 0 | H144: =SUM(H139:H143) -> 0 | J144: =SUM(J139:J143) -> 0 | K144: =SUM(K139:K143) -> 0 | M144: =SUM(M139:M143) -> 0 | N144: =SUM(N139:N143) -> 0 | P144: =SUM(P139:P143) -> 0 | R144: =SUM(R139:R143) -> 0 | U144: Yhteensä | V144: =SUM(V139:V143) -> 0 | X144: =SUM(X139:X143) -> 0 | Y144: =SUM(Y139:Y143) -> 0 | AA144: =SUM(AA139:AA143) -> 0 | AC144: =SUM(AC139:AC143) -> 0
C146: YHTEENSÄ | I146: EI METSÄVÄHENNYSTÄ | Q146: METSÄVÄHENNYSOIKEUS
B147: Hakkuutyön arvo | C147: =J147+R147 -> 0 | I147: Hakkuutyön arvo | J147: =E144 -> 0 | Q147: Hakkuutyön arvo | R147: =M144 -> 0 | AB147: Hakkuutyön arvo | AC147: =X144 -> 0
B148: Kuljetuksen arvo | C148: 0 | I148: Kuljetuksen arvo | J148: =H144 -> 0 | Q148: Kuljetuksen arvo | R148: =P144 -> 0 | AB148: Kuljetuksen arvo | AC148: =AA144 -> 0
B149: Konekustannus (muuta vuosimenoa) | C149: 0 | I149: Konekustannus | J149: =J144 -> 0 | Q149: Konekustannus | R149: =R144 -> 0 | AB149: Konekustannus | AC149: =AC144 -> 0
B150: Hakkuun määrä yhteensä | C150: 0 | I150: Hakkuun määrä | J150: =C144 -> 0 | Q150: Hakkuun määrä | R150: =K144 -> 0 | AB150: Hakkuun määrä | AC150: =V144 -> 0
B151: Kuljetuksen määrä yhteensä | C151: 0 | I151: Kuljetuksen määrä | J151: =F144 -> 0 | Q151: Kuljetuksen määrä | R151: =N144 -> 0 | AB151: Kuljetuksen määrä | AC151: =Y144 -> 0
B152: Puutavaran verollinen arvo | C152: 0 | I152: Puutavaran verollinen arvo | J152: =(D133-J147-J148-J149) -> 0 | Q152: Metsävähennykseen oikeuttava osa (verollinen osa) | R152: =(L133-R147-R148-R149) -> 0
C155: Hakattu määrä yhteensä | E155: =C150 -> 0
C156: Kuljetettu määrä yhteensä | E156: =C151 -> 0
B157: Tarkistus: | C157: =IF(E156>E155,"Kuljetettu määrä on valmistettua määrää suurempi",IF(E156=E155,"Valmistettu ja kuljetettu määrä yhtäsuuret","Valmistettu määrä on kuljetettua määrää isompi")) -> Valmistettu ja kuljetettu määrä yhtäsuuret
B158: Määrätarkistus: | C158: =IF(E157>E156,"Kuljetettu määrä on valmistettua määrää suurempi",IF(E157=E156,"Valmistettu ja kuljetettu määrä yhtäsuuret","Valmistettumääräonkuljetettuamäärääisompi")) -> Valmistettu ja kuljetettu määrä yhtäsuuret

Sheet Menot
B2: =Etusivu!C10 -> Matti Metsänen | F2: DEMOSSA voit testata kahta ylintä riviä
B3: =Etusivu!C16 -> 123456-7
B5: MENOT | I5: =IF(Etusivu!$C$22="kyllä","Arvonlisäverovelvollinen","Ei arvonlisäverovelvollinen") -> Arvonlisäverovelvollinen | AD5: Jos erittelet metsätalouden osuuden tässä, Käytä sarakkeella G (Metsätalouden osuus) 100%
B6: Kuitti | C6: Päiväys | F6: Menoluokka | G6: Koko summa | H6: Metsä-talouden osuus | I6: ALV:n osuus | J6: Vähennys- kelpoinen | K6: Väh.kelp. summa | L6: Vuosimenot | P6: Poistot (alv 0 %) | Z6: Tiliöinti | AB6: Maatalouteen kuuluva | AD6: Muistiinpanoihin sisältyvät muun toiminnan menot (alv 0%) | AG6: Lisää kuitti upotettuna objektina
B7: N:o | C7: pv | D7: kk | E7: Selite | G7: sis. alv | I7: alv-% | J7: alv € | K7: alv 0 % | L7: Palkat | M7: Matkat | N7: Muut | O7: Erittely | P7: koneet | S7: rakennukset | V7: ojat, tiet | AB7: meno | AD7: Maatalous | AE7: Elinkeinotoiminta | AF7: Yksityismenot | BA7: Valikkoarvot
B8: YHTEENSÄ | G8: =SUM(G13:G634) -> 1794.2 | J8: =SUM(J10:J634) -> 303.6 | K8: =SUM(K13:K634) -> 1490.6 | L8: =SUM(L13:L634) -> 0 | M8: =SUM(M9:M634) -> 44.64 | N8: =SUM(N10:N634) -> 773.47 | O8: =SUM(O10:O634) -> 0 | P8: =SUM(P13:P634) -> 717.13 | S8: =SUM(S13:S634) -> 0 | V8: =SUM(V13:V634) -> 0 | AB8: =SUM(AB13:AB634) -> 0 | AD8: =SUM(AD13:AD634) -> 0 | AE8: =SUM(AE13:AE634) -> 0 | AF8: =SUM(AF13:AF634) -> 0 | BA8: 1 | BB8: Palkat | BC8: 0.24
B9: Vuoden matkakulut ajopäiväkirjasta | K9: =M9 -> 44.64 | M9: =Ajopäiv.!L4 -> 44.64 | Z9: 201 | BA9: 2 | BB9: Matkat | BC9: 0.1
B10: Arvionvaraiset ja lainojen kulut | J10: =Arvionvaraiset!G34 -> 0 | K10: =N10 -> 0 | N10: =Arvionvaraiset!G35+Velat!L11 -> 0 | BA10: 3 | BB10: Muut | BC10: 0
B11: Hankintatyön konekustannusosuus | K11: =N11 -> 0 | N11: =SUM('Hank.työ 1'!J11:N11)+SUM('Hank.työ 2'!C8:G8) -> 0 | BA11: 4 | BB11: Erittely
L12: Palkat | M12: Matkat | N12: Muut | O12: Erittely | P12: Konepoisto | S12: Rak.poisto | V12: Oja/tie poisto | AB12: Maatalouden meno | BA12: 5 | BB12: Konepoisto
B13: 200 | C13: 1 | D13: 3 | E13: Esimerkkikirjaus, Mette 2025 | F13: Muut | G13: 44.2 | H13: 1 | I13: =IF(Etusivu!$C$22="kyllä",25.5%,0%) -> 0.255 | J13: =H13*((G13-(AD13+AE13+AF13)*(1+I13))-((G13-(AD13+AE13+AF13)*(1+I13))/(1+I13))) -> 8.98 | K13: =H13*(G13/(1+I13)) -> 35.22 | L13: =IF($F13=L$12,$K13,0) -> 0 | M13: 0 | N13: 35.22 | O13: 0 | P13: 0 | R13: =IF(P13>0,IF(Q13<1," !",""),"") ->  | S13: =IF($F13=S$12,$K13,0) -> 0 | U13: =IF(S13>0,IF(T13<1," !",""),"") ->  | V13: =IF($F13=V$12,$K13,0) -> 0 | X13: =IF(V13>0,IF(W13<1," !",""),"") ->  | Z13: 210 | AB13: =IF($F13=AB$12,$K13,0) -> 0 | AI13: OHJEITA | BA13: 6 | BB13: Rak.poisto
B14: 201 | H14: 1 | I14: =IF(Etusivu!$C$22="kyllä",25.5%,0%) -> 0.255 | J14: =H14*((G14-(AD14+AE14+AF14)*(1+I14))-((G14-(AD14+AE14+AF14)*(1+I14))/(1+I14))) -> 0 | K14: =H14*(G14/(1+I14)) -> 0 | L14: 0 | M14: 0 | N14: 0 | O14: 0 | P14: 0 | R14: =IF(P14>0,IF(Q14<1," !",""),"") ->  | S14: =IF($F14=S$12,$K14,0) -> 0 | U14: =IF(S14>0,IF(T14<1," !",""),"") ->  | V14: =IF($F14=V$12,$K14,0) -> 0 | X14: =IF(V14>0,IF(W14<1," !",""),"") ->  | AB14: =IF($F14=AB$12,$K14,0) -> 0 | BA14: 7 | BB14: Oja/tie poisto
B15: 202 | C15: 8 | D15: 9 | E15: Metsävakuutus | F15: Muut | G15: 300 | H15: 1 | I15: 0 | J15: =H15*((G15-(AD15+AE15+AF15)*(1+I15))-((G15-(AD15+AE15+AF15)*(1+I15))/(1+I15))) -> 0 | K15: =H15*(G15/(1+I15)) -> 300 | L15: =IF($F15=L$12,$K15,0) -> 0 | M15: 0 | N15: =IF($F15=N$12,$K15,0) -> 300 | O15: =IF($F15=O$12,$K15,0) -> 0 | P15: =IF($F15=P$12,$K15,0) -> 0 | R15: =IF(P15>0,IF(Q15<1," !",""),"") ->  | S15: =IF($F15=S$12,$K15,0) -> 0 | U15: =IF(S15>0,IF(T15<1," !",""),"") ->  | V15: =IF($F15=V$12,$K15,0) -> 0 | X15: =IF(V15>0,IF(W15<1," !",""),"") ->  | AB15: 0 | AI15: o Muista kirjata menon päiväys. Sen perusteella Mette laskee ALV:n oikealle kuukaudelle ja vie tulon sisältävän arvonlisveron jatkolaskentaan. | BB15: Maatalouden meno
B16: 203 | C16: 9 | D16: 10 | E16: Maanmuokkaus Mhy | F16: Muut | G16: 550 | H16: 1 | I16: =IF(Etusivu!$C$22="kyllä",25.5%,0%) -> 0.255 | J16: =H16*((G16-(AD16+AE16+AF16)*(1+I16))-((G16-(AD16+AE16+AF16)*(1+I16))/(1+I16))) -> 111.75 | K16: =H16*(G16/(1+I16)) -> 438.25 | L16: 0 | M16: 0 | N16: 438.25 | O16: 0 | P16: 0 | R16: =IF(P16>0,IF(Q16<1," !",""),"") ->  | S16: 0 | U16: =IF(S16>0,IF(T16<1," !",""),"") ->  | V16: 0 | X16: =IF(V16>0,IF(W16<1," !",""),"") ->  | AB16: 0 | AI16: o Poistoihin kirjattavien menojen kirjaaminen tapahtuu tämän taulukon kautta.
B17: 204 | C17: 10 | D17: 11 | E17: Moottorisaha | F17: Konepoisto | G17: 900 | H17: 1 | I17: =IF(Etusivu!$C$22="kyllä",25.5%,0%) -> 0.255 | J17: =H17*((G17-(AD17+AE17+AF17)*(1+I17))-((G17-(AD17+AE17+AF17)*(1+I17))/(1+I17))) -> 182.87 | K17: =H17*(G17/(1+I17)) -> 717.13 | L17: 0 | M17: 0 | N17: =IF($F17=N$12,$K17,0) -> 0 | O17: 0 | P17: 717.13 | Q17: 2 | S17: 0 | V17: 0 | AB17: 0 | AI17: o Kun arvonlisäveroprosentti poikkeaa 24%:sta. Muuta oikea prosenttimäärä ALV-sarakkeeseen itse
B18: 205 | H18: 1 | I18: =IF(Etusivu!$C$22="kyllä",25.5%,0%) -> 0.255 | J18: 0 | K18: 0 | L18: 0 | M18: 0 | N18: 0 | O18: 0 | P18: 0 | S18: 0 | V18: 0 | AB18: 0 | AI18: OHJE
B19: 206 | H19: 1 | I19: =IF(Etusivu!$C$22="kyllä",25.5%,0%) -> 0.255 | J19: 0 | K19: 0 | L19: 0 | M19: 0 | N19: =IF($F19=N$12,$K19,0) -> 0 | O19: 0 | P19: 0 | S19: 0 | V19: 0 | AB19: 0 | AI19: OHJE: 'taulukon suojauksen poitaminen
B20: 207 | H20: 1 | I20: =IF(Etusivu!$C$22="kyllä",25.5%,0%) -> 0.255 | J20: 0 | K20: 0 | L20: 0 | M20: 0 | N20: 0 | O20: 0 | P20: 0 | S20: 0 | V20: 0 | AB20: 0 | AI20: o Katso kuitin lisäämisen ohje tarkemmin Tulot välilehdeltä.
B21: 208 | H21: 1 | I21: =IF(Etusivu!$C$22="kyllä",25.5%,0%) -> 0.255 | J21: 0 | K21: 0 | L21: 0 | M21: 0 | N21: =IF($F21=N$12,$K21,0) -> 0 | O21: 0 | P21: 0 | S21: 0 | V21: 0 | AB21: 0
B22: 209 | H22: 1 | I22: =IF(Etusivu!$C$22="kyllä",25.5%,0%) -> 0.255 | J22: 0 | K22: 0 | L22: 0 | M22: 0 | N22: 0 | O22: 0 | P22: 0 | S22: 0 | V22: 0 | AB22: 0
B23: 210 | H23: 1 | I23: =IF(Etusivu!$C$22="kyllä",25.5%,0%) -> 0.255 | J23: 0 | K23: 0 | L23: 0 | M23: 0 | N23: =IF($F23=N$12,$K23,0) -> 0 | O23: 0 | P23: 0 | S23: 0 | V23: 0 | AB23: 0
B24: 211 | H24: 1 | I24: =IF(Etusivu!$C$22="kyllä",25.5%,0%) -> 0.255 | J24: 0 | K24: 0 | L24: 0 | M24: 0 | N24: 0 | O24: 0 | P24: 0 | S24: 0 | V24: 0 | AB24: 0
B25: 212 | H25: 1 | I25: =IF(Etusivu!$C$22="kyllä",25.5%,0%) -> 0.255 | J25: 0 | K25: 0 | L25: 0 | M25: 0 | N25: =IF($F25=N$12,$K25,0) -> 0 | O25: 0 | P25: 0 | S25: 0 | V25: 0 | AB25: 0
B26: 213 | H26: 1 | I26: =IF(Etusivu!$C$22="kyllä",25.5%,0%) -> 0.255 | J26: 0 | K26: 0 | L26: 0 | M26: 0 | N26: 0 | O26: 0 | P26: 0 | S26: 0 | V26: 0 | AB26: 0
B27: 214 | H27: 1 | I27: =IF(Etusivu!$C$22="kyllä",25.5%,0%) -> 0.255 | J27: 0 | K27: 0 | L27: 0 | M27: 0 | N27: =IF($F27=N$12,$K27,0) -> 0 | O27: 0 | P27: 0 | S27: 0 | V27: 0 | AB27: 0
B28: 215 | H28: 1 | I28: =IF(Etusivu!$C$22="kyllä",25.5%,0%) -> 0.255 | J28: 0 | K28: 0 | L28: 0 | M28: 0 | N28: 0 | O28: 0 | P28: 0 | S28: 0 | V28: 0 | AB28: 0
B29: 216 | H29: 1 | I29: =IF(Etusivu!$C$22="kyllä",25.5%,0%) -> 0.255 | J29: 0 | K29: 0 | L29: 0 | M29: 0 | N29: =IF($F29=N$12,$K29,0) -> 0 | O29: =IF($F29=O$12,$K29,0) -> 0 | P29: 0 | S29: 0 | V29: 0 | AB29: 0
B30: 217 | H30: 1 | I30: =IF(Etusivu!$C$22="kyllä",25.5%,0%) -> 0.255 | J30: 0 | K30: 0 | L30: 0 | M30: 0 | N30: 0 | O30: 0 | P30: 0 | S30: 0 | V30: 0 | AB30: 0
B31: 218 | H31: 1 | I31: =IF(Etusivu!$C$22="kyllä",25.5%,0%) -> 0.255 | J31: 0 | K31: 0 | L31: 0 | M31: 0 | N31: =IF($F31=N$12,$K31,0) -> 0 | O31: 0 | P31: 0 | S31: 0 | V31: 0 | AB31: 0
B32: 219 | H32: 1 | I32: =IF(Etusivu!$C$22="kyllä",25.5%,0%) -> 0.255 | J32: 0 | K32: 0 | L32: 0 | M32: 0 | N32: 0 | O32: 0 | P32: 0 | S32: 0 | V32: 0 | AB32: 0
B33: 220 | H33: 1 | I33: =IF(Etusivu!$C$22="kyllä",25.5%,0%) -> 0.255 | J33: 0 | K33: 0 | L33: 0 | M33: 0 | N33: =IF($F33=N$12,$K33,0) -> 0 | O33: 0 | P33: 0 | S33: 0 | V33: 0 | AB33: 0
B34: 221 | H34: 1 | I34: =IF(Etusivu!$C$22="kyllä",25.5%,0%) -> 0.255 | J34: 0 | K34: 0 | L34: 0 | M34: 0 | N34: 0 | O34: 0 | P34: 0 | S34: 0 | V34: 0 | AB34: 0
B35: 222 | H35: 1 | I35: =IF(Etusivu!$C$22="kyllä",25.5%,0%) -> 0.255 | J35: 0 | K35: 0 | L35: 0 | M35: 0 | N35: =IF($F35=N$12,$K35,0) -> 0 | O35: 0 | P35: 0 | S35: 0 | V35: 0 | AB35: 0
B36: 223 | H36: 1 | I36: =IF(Etusivu!$C$22="kyllä",25.5%,0%) -> 0.255 | J36: 0 | K36: 0 | L36: 0 | M36: 0 | N36: 0 | O36: 0 | P36: 0 | S36: 0 | V36: 0 | AB36: 0
B37: 224 | H37: 1 | I37: =IF(Etusivu!$C$22="kyllä",25.5%,0%) -> 0.255 | J37: 0 | K37: 0 | L37: 0 | M37: 0 | N37: =IF($F37=N$12,$K37,0) -> 0 | O37: 0 | P37: 0 | S37: 0 | V37: 0 | AB37: 0
B38: 225 | H38: 1 | I38: =IF(Etusivu!$C$22="kyllä",25.5%,0%) -> 0.255 | J38: 0 | K38: 0 | L38: 0 | M38: 0 | N38: 0 | O38: 0 | P38: 0 | S38: 0 | V38: 0 | AB38: 0
B39: 226 | H39: 1 | I39: =IF(Etusivu!$C$22="kyllä",25.5%,0%) -> 0.255 | J39: 0 | K39: 0 | L39: 0 | M39: 0 | N39: =IF($F39=N$12,$K39,0) -> 0 | O39: 0 | P39: 0 | S39: 0 | V39: 0 | AB39: 0
B40: 227 | H40: 1 | I40: =IF(Etusivu!$C$22="kyllä",25.5%,0%) -> 0.255 | J40: 0 | K40: 0 | L40: 0 | M40: 0 | N40: 0 | O40: 0 | P40: 0 | S40: 0 | V40: 0 | AB40: 0
B41: 228 | H41: 1 | I41: =IF(Etusivu!$C$22="kyllä",25.5%,0%) -> 0.255 | J41: 0 | K41: 0 | L41: 0 | M41: 0 | N41: =IF($F41=N$12,$K41,0) -> 0 | O41: 0 | P41: 0 | S41: 0 | V41: 0 | AB41: 0
B42: 229 | H42: 1 | I42: =IF(Etusivu!$C$22="kyllä",25.5%,0%) -> 0.255 | J42: 0 | K42: 0 | L42: 0 | M42: 0 | N42: 0 | O42: 0 | P42: 0 | S42: 0 | V42: 0 | AB42: 0
B43: 230 | H43: 1 | I43: =IF(Etusivu!$C$22="kyllä",25.5%,0%) -> 0.255 | J43: 0 | K43: 0 | L43: 0 | M43: 0 | N43: =IF($F43=N$12,$K43,0) -> 0 | O43: 0 | P43: 0 | S43: 0 | V43: 0 | AB43: 0
B44: 231 | H44: 1 | I44: =IF(Etusivu!$C$22="kyllä",25.5%,0%) -> 0.255 | J44: 0 | K44: 0 | L44: 0 | M44: 0 | N44: 0 | O44: 0 | P44: 0 | S44: 0 | V44: 0 | AB44: 0
B45: 232 | H45: 1 | I45: =IF(Etusivu!$C$22="kyllä",25.5%,0%) -> 0.255 | J45: 0 | K45: 0 | L45: 0 | M45: 0 | N45: =IF($F45=N$12,$K45,0) -> 0 | O45: 0 | P45: 0 | S45: 0 | V45: 0 | AB45: 0
B46: 233 | H46: 1 | I46: =IF(Etusivu!$C$22="kyllä",25.5%,0%) -> 0.255 | J46: 0 | K46: 0 | L46: 0 | M46: 0 | N46: 0 | O46: 0 | P46: 0 | S46: 0 | V46: 0 | AB46: 0
B47: 234 | H47: 1 | I47: =IF(Etusivu!$C$22="kyllä",25.5%,0%) -> 0.255 | J47: 0 | K47: 0 | L47: 0 | M47: 0 | N47: =IF($F47=N$12,$K47,0) -> 0 | O47: 0 | P47: 0 | S47: 0 | V47: 0 | AB47: 0
B48: 235 | H48: 1 | I48: =IF(Etusivu!$C$22="kyllä",25.5%,0%) -> 0.255 | J48: 0 | K48: 0 | L48: 0 | M48: 0 | N48: 0 | O48: 0 | P48: 0 | S48: 0 | V48: 0 | AB48: 0
B49: 236 | H49: 1 | I49: =IF(Etusivu!$C$22="kyllä",25.5%,0%) -> 0.255 | J49: 0 | K49: 0 | L49: 0 | M49: 0 | N49: =IF($F49=N$12,$K49,0) -> 0 | O49: 0 | P49: 0 | S49: 0 | V49: 0 | AB49: 0
B50: 237 | H50: 1 | I50: =IF(Etusivu!$C$22="kyllä",25.5%,0%) -> 0.255 | J50: 0 | K50: 0 | L50: 0 | M50: 0 | N50: 0 | O50: 0 | P50: 0 | S50: 0 | V50: 0 | AB50: 0
B51: 238 | H51: 1 | I51: =IF(Etusivu!$C$22="kyllä",25.5%,0%) -> 0.255 | J51: 0 | K51: 0 | L51: 0 | M51: 0 | N51: =IF($F51=N$12,$K51,0) -> 0 | O51: 0 | P51: 0 | S51: 0 | V51: 0 | AB51: 0
B52: 239 | H52: 1 | I52: =IF(Etusivu!$C$22="kyllä",25.5%,0%) -> 0.255 | J52: 0 | K52: 0 | L52: 0 | M52: 0 | N52: 0 | O52: 0 | P52: 0 | S52: 0 | V52: 0 | AB52: 0
B53: 240 | H53: 1 | I53: =IF(Etusivu!$C$22="kyllä",25.5%,0%) -> 0.255 | J53: 0 | K53: 0 | L53: 0 | M53: 0 | N53: =IF($F53=N$12,$K53,0) -> 0 | O53: 0 | P53: 0 | S53: 0 | V53: 0 | AB53: 0
B54: 241 | H54: 1 | I54: =IF(Etusivu!$C$22="kyllä",25.5%,0%) -> 0.255 | J54: 0 | K54: 0 | L54: 0 | M54: 0 | N54: 0 | O54: 0 | P54: 0 | S54: 0 | V54: 0 | AB54: 0
B55: 242 | H55: 1 | I55: =IF(Etusivu!$C$22="kyllä",25.5%,0%) -> 0.255 | J55: 0 | K55: 0 | L55: 0 | M55: 0 | N55: =IF($F55=N$12,$K55,0) -> 0 | O55: 0 | P55: 0 | S55: 0 | V55: 0 | AB55: 0
B56: 243 | H56: 1 | I56: =IF(Etusivu!$C$22="kyllä",25.5%,0%) -> 0.255 | J56: 0 | K56: 0 | L56: 0 | M56: 0 | N56: 0 | O56: 0 | P56: 0 | S56: 0 | V56: 0 | AB56: 0
B57: 244 | H57: 1 | I57: =IF(Etusivu!$C$22="kyllä",25.5%,0%) -> 0.255 | J57: 0 | K57: 0 | L57: 0 | M57: 0 | N57: =IF($F57=N$12,$K57,0) -> 0 | O57: 0 | P57: 0 | S57: 0 | V57: 0 | AB57: 0
B58: 245 | H58: 1 | I58: =IF(Etusivu!$C$22="kyllä",25.5%,0%) -> 0.255 | J58: 0 | K58: 0 | L58: 0 | M58: =IF($F58=M$12,$K58,0) -> 0 | N58: 0 | O58: 0 | P58: 0 | S58: 0 | V58: 0 | AB58: 0
B59: 246 | H59: 1 | I59: =IF(Etusivu!$C$22="kyllä",25.5%,0%) -> 0.255 | J59: 0 | K59: 0 | L59: =IF($F59=L$12,$K59,0) -> 0 | M59: =IF($F59=M$12,$K59,0) -> 0 | N59: =IF($F59=N$12,$K59,0) -> 0 | O59: 0 | P59: 0 | S59: 0 | V59: 0 | AB59: 0
B60: 247 | H60: 1 | I60: =IF(Etusivu!$C$22="kyllä",25.5%,0%) -> 0.255 | J60: 0 | K60: 0 | L60: 0 | M60: 0 | N60: 0 | O60: 0 | P60: 0 | S60: 0 | V60: 0 | AB60: 0
B61: 248 | H61: 1 | I61: =IF(Etusivu!$C$22="kyllä",25.5%,0%) -> 0.255 | J61: 0 | K61: 0 | L61: =IF($F61=L$12,$K61,0) -> 0 | M61: =IF($F61=M$12,$K61,0) -> 0 | N61: =IF($F61=N$12,$K61,0) -> 0 | O61: 0 | P61: 0 | S61: 0 | V61: 0 | AB61: 0
B62: 249 | H62: 1 | I62: =IF(Etusivu!$C$22="kyllä",25.5%,0%) -> 0.255 | J62: 0 | K62: 0 | L62: 0 | M62: 0 | N62: 0 | O62: 0 | P62: 0 | S62: 0 | V62: 0 | AB62: 0
B63: 250 | H63: 1 | I63: =IF(Etusivu!$C$22="kyllä",25.5%,0%) -> 0.255 | J63: 0 | K63: 0 | L63: =IF($F63=L$12,$K63,0) -> 0 | M63: =IF($F63=M$12,$K63,0) -> 0 | N63: =IF($F63=N$12,$K63,0) -> 0 | O63: 0 | P63: 0 | S63: 0 | V63: 0 | AB63: 0
B64: 251 | H64: 1 | I64: =IF(Etusivu!$C$22="kyllä",25.5%,0%) -> 0.255 | J64: 0 | K64: 0 | L64: 0 | M64: 0 | N64: 0 | O64: 0 | P64: 0 | S64: 0 | V64: 0 | AB64: 0
B65: 252 | H65: 1 | I65: =IF(Etusivu!$C$22="kyllä",25.5%,0%) -> 0.255 | J65: 0 | K65: 0 | L65: =IF($F65=L$12,$K65,0) -> 0 | M65: =IF($F65=M$12,$K65,0) -> 0 | N65: =IF($F65=N$12,$K65,0) -> 0 | O65: 0 | P65: 0 | S65: 0 | V65: 0 | AB65: 0
B66: 253 | H66: 1 | I66: =IF(Etusivu!$C$22="kyllä",25.5%,0%) -> 0.255 | J66: 0 | K66: 0 | L66: 0 | M66: 0 | N66: 0 | O66: 0 | P66: 0 | S66: 0 | V66: 0 | AB66: 0
B67: 254 | H67: 1 | I67: =IF(Etusivu!$C$22="kyllä",25.5%,0%) -> 0.255 | J67: 0 | K67: 0 | L67: =IF($F67=L$12,$K67,0) -> 0 | M67: =IF($F67=M$12,$K67,0) -> 0 | N67: =IF($F67=N$12,$K67,0) -> 0 | O67: 0 | P67: 0 | S67: 0 | V67: 0 | AB67: 0
B68: 255 | H68: 1 | I68: =IF(Etusivu!$C$22="kyllä",25.5%,0%) -> 0.255 | J68: 0 | K68: 0 | L68: 0 | M68: 0 | N68: 0 | O68: 0 | P68: 0 | S68: 0 | V68: 0 | AB68: 0
B69: 256 | H69: 1 | I69: =IF(Etusivu!$C$22="kyllä",25.5%,0%) -> 0.255 | J69: 0 | K69: 0 | L69: =IF($F69=L$12,$K69,0) -> 0 | M69: =IF($F69=M$12,$K69,0) -> 0 | N69: =IF($F69=N$12,$K69,0) -> 0 | O69: 0 | P69: 0 | S69: 0 | V69: 0 | AB69: 0
B70: 257 | H70: 1 | I70: =IF(Etusivu!$C$22="kyllä",25.5%,0%) -> 0.255 | J70: 0 | K70: 0 | L70: 0 | M70: 0 | N70: 0 | O70: 0 | P70: 0 | S70: 0 | V70: 0 | AB70: 0
B71: 258 | H71: 1 | I71: =IF(Etusivu!$C$22="kyllä",25.5%,0%) -> 0.255 | J71: 0 | K71: 0 | L71: =IF($F71=L$12,$K71,0) -> 0 | M71: =IF($F71=M$12,$K71,0) -> 0 | N71: =IF($F71=N$12,$K71,0) -> 0 | O71: 0 | P71: 0 | S71: 0 | V71: 0 | AB71: 0
B72: 259 | H72: 1 | I72: =IF(Etusivu!$C$22="kyllä",25.5%,0%) -> 0.255 | J72: 0 | K72: 0 | L72: 0 | M72: 0 | N72: 0 | O72: 0 | P72: 0 | S72: 0 | V72: 0 | AB72: 0
B73: 260 | H73: 1 | I73: =IF(Etusivu!$C$22="kyllä",25.5%,0%) -> 0.255 | J73: 0 | K73: 0 | L73: =IF($F73=L$12,$K73,0) -> 0 | M73: =IF($F73=M$12,$K73,0) -> 0 | N73: =IF($F73=N$12,$K73,0) -> 0 | O73: 0 | P73: 0 | S73: 0 | V73: 0 | AB73: 0
B74: 261 | H74: 1 | I74: =IF(Etusivu!$C$22="kyllä",25.5%,0%) -> 0.255 | J74: 0 | K74: 0 | L74: 0 | M74: 0 | N74: 0 | O74: 0 | P74: 0 | S74: 0 | V74: 0 | AB74: 0
B75: 262 | H75: 1 | I75: =IF(Etusivu!$C$22="kyllä",25.5%,0%) -> 0.255 | J75: 0 | K75: 0 | L75: =IF($F75=L$12,$K75,0) -> 0 | M75: =IF($F75=M$12,$K75,0) -> 0 | N75: =IF($F75=N$12,$K75,0) -> 0 | O75: 0 | P75: 0 | S75: 0 | V75: 0 | AB75: 0
B76: 263 | H76: 1 | I76: =IF(Etusivu!$C$22="kyllä",25.5%,0%) -> 0.255 | J76: 0 | K76: 0 | L76: 0 | M76: 0 | N76: 0 | O76: 0 | P76: 0 | S76: 0 | V76: 0 | AB76: 0
B77: 264 | H77: 1 | I77: =IF(Etusivu!$C$22="kyllä",25.5%,0%) -> 0.255 | J77: 0 | K77: 0 | L77: =IF($F77=L$12,$K77,0) -> 0 | M77: =IF($F77=M$12,$K77,0) -> 0 | N77: =IF($F77=N$12,$K77,0) -> 0 | O77: 0 | P77: 0 | S77: 0 | V77: 0 | AB77: 0
B78: 265 | H78: 1 | I78: =IF(Etusivu!$C$22="kyllä",25.5%,0%) -> 0.255 | J78: 0 | K78: 0 | L78: 0 | M78: 0 | N78: 0 | O78: 0 | P78: 0 | S78: 0 | V78: 0 | AB78: =IF($F78=AB$12,$K78,0) -> 0
B79: 266 | H79: 1 | I79: =IF(Etusivu!$C$22="kyllä",25.5%,0%) -> 0.255 | J79: 0 | K79: 0 | L79: =IF($F79=L$12,$K79,0) -> 0 | M79: =IF($F79=M$12,$K79,0) -> 0 | N79: 0 | O79: 0 | P79: 0 | S79: =IF($F79=S$12,$K79,0) -> 0 | V79: =IF($F79=V$12,$K79,0) -> 0 | AB79: 0
B80: 267 | H80: 1 | I80: =IF(Etusivu!$C$22="kyllä",25.5%,0%) -> 0.255 | J80: 0 | K80: 0 | L80: 0 | M80: 0 | N80: 0 | O80: 0 | P80: 0 | R80: =IF(P80>0,IF(Q80<1," !",""),"") ->  | S80: 0 | U80: =IF(S80>0,IF(T80<1," !",""),"") ->  | V80: 0 | X80: =IF(V80>0,IF(W80<1," !",""),"") ->  | AB80: 0
B81: 268 | H81: 1 | I81: =IF(Etusivu!$C$22="kyllä",25.5%,0%) -> 0.255 | J81: =H81*((G81-(AD81+AE81+AF81)*(1+I81))-((G81-(AD81+AE81+AF81)*(1+I81))/(1+I81))) -> 0 | K81: =H81*(G81/(1+I81)) -> 0 | L81: =IF($F81=L$12,$K81,0) -> 0 | M81: =IF($F81=M$12,$K81,0) -> 0 | N81: 0 | O81: 0 | P81: 0 | S81: 0 | V81: 0 | AB81: 0
B82: 269 | H82: 1 | I82: =IF(Etusivu!$C$22="kyllä",25.5%,0%) -> 0.255 | J82: 0 | K82: 0 | L82: 0 | M82: 0 | N82: 0 | O82: 0 | P82: 0 | S82: 0 | V82: 0 | AB82: 0
B83: 270 | H83: 1 | I83: =IF(Etusivu!$C$22="kyllä",25.5%,0%) -> 0.255 | J83: 0 | K83: 0 | L83: =IF($F83=L$12,$K83,0) -> 0 | M83: =IF($F83=M$12,$K83,0) -> 0 | N83: 0 | O83: 0 | P83: 0 | S83: 0 | V83: 0 | AB83: 0
B84: 271 | H84: 1 | I84: =IF(Etusivu!$C$22="kyllä",25.5%,0%) -> 0.255 | J84: 0 | K84: 0 | L84: 0 | M84: 0 | N84: 0 | O84: 0 | P84: 0 | S84: 0 | V84: 0 | AB84: 0
B85: 272 | H85: 1 | I85: =IF(Etusivu!$C$22="kyllä",25.5%,0%) -> 0.255 | J85: 0 | K85: 0 | L85: =IF($F85=L$12,$K85,0) -> 0 | M85: =IF($F85=M$12,$K85,0) -> 0 | N85: 0 | O85: 0 | P85: 0 | S85: 0 | V85: 0 | AB85: 0
B86: 273 | H86: 1 | I86: =IF(Etusivu!$C$22="kyllä",25.5%,0%) -> 0.255 | J86: 0 | K86: 0 | L86: 0 | M86: 0 | N86: 0 | O86: 0 | P86: 0 | S86: 0 | V86: 0 | AB86: 0
B87: 274 | H87: 1 | I87: =IF(Etusivu!$C$22="kyllä",25.5%,0%) -> 0.255 | J87: 0 | K87: 0 | L87: =IF($F87=L$12,$K87,0) -> 0 | M87: =IF($F87=M$12,$K87,0) -> 0 | N87: 0 | O87: 0 | P87: 0 | S87: 0 | V87: 0 | AB87: 0
B88: 275 | H88: 1 | I88: =IF(Etusivu!$C$22="kyllä",25.5%,0%) -> 0.255 | J88: 0 | K88: 0 | L88: 0 | M88: 0 | N88: 0 | O88: 0 | P88: 0 | S88: 0 | V88: 0 | AB88: 0
B89: 276 | H89: 1 | I89: =IF(Etusivu!$C$22="kyllä",25.5%,0%) -> 0.255 | J89: 0 | K89: 0 | L89: =IF($F89=L$12,$K89,0) -> 0 | M89: =IF($F89=M$12,$K89,0) -> 0 | N89: 0 | O89: 0 | P89: 0 | S89: 0 | V89: 0 | AB89: 0
B90: 277 | H90: 1 | I90: =IF(Etusivu!$C$22="kyllä",25.5%,0%) -> 0.255 | J90: 0 | K90: 0 | L90: 0 | M90: 0 | N90: 0 | O90: 0 | P90: 0 | S90: 0 | V90: 0 | AB90: 0
B91: 278 | H91: 1 | I91: =IF(Etusivu!$C$22="kyllä",25.5%,0%) -> 0.255 | J91: 0 | K91: 0 | L91: =IF($F91=L$12,$K91,0) -> 0 | M91: =IF($F91=M$12,$K91,0) -> 0 | N91: 0 | O91: 0 | P91: 0 | S91: 0 | V91: 0 | AB91: 0
B92: 279 | H92: 1 | I92: =IF(Etusivu!$C$22="kyllä",25.5%,0%) -> 0.255 | J92: 0 | K92: 0 | L92: 0 | M92: 0 | N92: 0 | O92: 0 | P92: 0 | S92: 0 | V92: 0 | AB92: 0
B93: 280 | H93: 1 | I93: =IF(Etusivu!$C$22="kyllä",25.5%,0%) -> 0.255 | J93: 0 | K93: 0 | L93: =IF($F93=L$12,$K93,0) -> 0 | M93: =IF($F93=M$12,$K93,0) -> 0 | N93: 0 | O93: 0 | P93: 0 | S93: 0 | V93: 0 | AB93: 0
B94: 281 | H94: 1 | I94: =IF(Etusivu!$C$22="kyllä",25.5%,0%) -> 0.255 | J94: 0 | K94: 0 | L94: 0 | M94: 0 | N94: 0 | O94: 0 | P94: 0 | S94: 0 | V94: 0 | AB94: 0
B95: 282 | H95: 1 | I95: =IF(Etusivu!$C$22="kyllä",25.5%,0%) -> 0.255 | J95: 0 | K95: 0 | L95: =IF($F95=L$12,$K95,0) -> 0 | M95: =IF($F95=M$12,$K95,0) -> 0 | N95: 0 | O95: 0 | P95: 0 | S95: 0 | V95: 0 | AB95: 0
B96: 283 | H96: 1 | I96: =IF(Etusivu!$C$22="kyllä",25.5%,0%) -> 0.255 | J96: 0 | K96: 0 | L96: 0 | M96: 0 | N96: 0 | O96: 0 | P96: 0 | S96: 0 | V96: 0 | AB96: 0
B97: 284 | H97: 1 | I97: =IF(Etusivu!$C$22="kyllä",25.5%,0%) -> 0.255 | J97: 0 | K97: 0 | L97: =IF($F97=L$12,$K97,0) -> 0 | M97: =IF($F97=M$12,$K97,0) -> 0 | N97: 0 | O97: 0 | P97: 0 | S97: 0 | V97: 0 | AB97: 0
B98: 285 | H98: 1 | I98: =IF(Etusivu!$C$22="kyllä",25.5%,0%) -> 0.255 | J98: 0 | K98: 0 | L98: 0 | M98: 0 | N98: 0 | O98: 0 | P98: 0 | S98: 0 | V98: 0 | AB98: 0
B99: 286 | H99: 1 | I99: =IF(Etusivu!$C$22="kyllä",25.5%,0%) -> 0.255 | J99: 0 | K99: 0 | L99: =IF($F99=L$12,$K99,0) -> 0 | M99: =IF($F99=M$12,$K99,0) -> 0 | N99: 0 | O99: 0 | P99: 0 | S99: 0 | V99: 0 | AB99: 0
B100: 287 | H100: 1 | I100: =IF(Etusivu!$C$22="kyllä",25.5%,0%) -> 0.255 | J100: 0 | K100: 0 | L100: 0 | M100: 0 | N100: 0 | O100: 0 | P100: 0 | S100: 0 | V100: 0 | AB100: 0
B101: 288 | H101: 1 | I101: =IF(Etusivu!$C$22="kyllä",25.5%,0%) -> 0.255 | J101: 0 | K101: 0 | L101: =IF($F101=L$12,$K101,0) -> 0 | M101: =IF($F101=M$12,$K101,0) -> 0 | N101: 0 | O101: 0 | P101: 0 | S101: 0 | V101: 0 | AB101: 0
B102: 289 | H102: 1 | I102: =IF(Etusivu!$C$22="kyllä",25.5%,0%) -> 0.255 | J102: 0 | K102: 0 | L102: 0 | M102: 0 | N102: 0 | O102: 0 | P102: 0 | S102: 0 | V102: 0 | AB102: 0
B103: 290 | H103: 1 | I103: =IF(Etusivu!$C$22="kyllä",25.5%,0%) -> 0.255 | J103: 0 | K103: 0 | L103: =IF($F103=L$12,$K103,0) -> 0 | M103: =IF($F103=M$12,$K103,0) -> 0 | N103: 0 | O103: 0 | P103: 0 | S103: 0 | V103: 0 | AB103: 0
B104: 291 | H104: 1 | I104: =IF(Etusivu!$C$22="kyllä",25.5%,0%) -> 0.255 | J104: 0 | K104: 0 | L104: 0 | M104: 0 | N104: 0 | O104: 0 | P104: 0 | S104: 0 | V104: 0 | AB104: 0
B105: 292 | H105: 1 | I105: =IF(Etusivu!$C$22="kyllä",25.5%,0%) -> 0.255 | J105: 0 | K105: 0 | L105: =IF($F105=L$12,$K105,0) -> 0 | M105: =IF($F105=M$12,$K105,0) -> 0 | N105: 0 | O105: 0 | P105: 0 | S105: 0 | V105: 0 | AB105: 0
B106: 293 | H106: 1 | I106: =IF(Etusivu!$C$22="kyllä",25.5%,0%) -> 0.255 | J106: 0 | K106: 0 | L106: 0 | M106: 0 | N106: 0 | O106: 0 | P106: 0 | S106: 0 | V106: 0 | AB106: 0
B107: 294 | H107: 1 | I107: =IF(Etusivu!$C$22="kyllä",25.5%,0%) -> 0.255 | J107: 0 | K107: 0 | L107: =IF($F107=L$12,$K107,0) -> 0 | M107: =IF($F107=M$12,$K107,0) -> 0 | N107: 0 | O107: 0 | P107: 0 | S107: 0 | V107: 0 | AB107: 0
B108: 295 | H108: 1 | I108: =IF(Etusivu!$C$22="kyllä",25.5%,0%) -> 0.255 | J108: 0 | K108: 0 | L108: 0 | M108: 0 | N108: 0 | O108: 0 | P108: 0 | S108: 0 | V108: 0 | AB108: 0
B109: 296 | H109: 1 | I109: =IF(Etusivu!$C$22="kyllä",25.5%,0%) -> 0.255 | J109: 0 | K109: 0 | L109: =IF($F109=L$12,$K109,0) -> 0 | M109: =IF($F109=M$12,$K109,0) -> 0 | N109: 0 | O109: 0 | P109: 0 | S109: 0 | V109: 0 | AB109: 0
B110: 297 | H110: 1 | I110: =IF(Etusivu!$C$22="kyllä",25.5%,0%) -> 0.255 | J110: 0 | K110: 0 | L110: 0 | M110: 0 | N110: 0 | O110: 0 | P110: 0 | S110: 0 | V110: 0 | AB110: 0
B111: 298 | H111: 1 | I111: =IF(Etusivu!$C$22="kyllä",25.5%,0%) -> 0.255 | J111: 0 | K111: 0 | L111: =IF($F111=L$12,$K111,0) -> 0 | M111: =IF($F111=M$12,$K111,0) -> 0 | N111: 0 | O111: 0 | P111: 0 | S111: 0 | V111: 0 | AB111: 0
B112: 299 | H112: 1 | I112: =IF(Etusivu!$C$22="kyllä",25.5%,0%) -> 0.255 | J112: 0 | K112: 0 | L112: 0 | M112: 0 | N112: 0 | O112: 0 | P112: 0 | S112: 0 | V112: 0 | AB112: 0
B113: 300 | H113: 1 | I113: =IF(Etusivu!$C$22="kyllä",25.5%,0%) -> 0.255 | J113: 0 | K113: 0 | L113: =IF($F113=L$12,$K113,0) -> 0 | M113: =IF($F113=M$12,$K113,0) -> 0 | N113: 0 | O113: 0 | P113: 0 | S113: 0 | V113: 0 | AB113: 0
B114: 301 | H114: 1 | I114: =IF(Etusivu!$C$22="kyllä",25.5%,0%) -> 0.255 | J114: 0 | K114: 0 | L114: 0 | M114: 0 | N114: 0 | O114: 0 | P114: 0 | S114: 0 | V114: 0 | AB114: 0
B115: 302 | H115: 1 | I115: =IF(Etusivu!$C$22="kyllä",25.5%,0%) -> 0.255 | J115: 0 | K115: 0 | L115: =IF($F115=L$12,$K115,0) -> 0 | M115: =IF($F115=M$12,$K115,0) -> 0 | N115: 0 | O115: 0 | P115: 0 | S115: 0 | V115: 0 | AB115: 0
B116: 303 | H116: 1 | I116: =IF(Etusivu!$C$22="kyllä",25.5%,0%) -> 0.255 | J116: 0 | K116: 0 | L116: 0 | M116: 0 | N116: 0 | O116: 0 | P116: 0 | S116: 0 | V116: 0 | AB116: 0
B117: 304 | H117: 1 | I117: =IF(Etusivu!$C$22="kyllä",25.5%,0%) -> 0.255 | J117: 0 | K117: 0 | L117: =IF($F117=L$12,$K117,0) -> 0 | M117: =IF($F117=M$12,$K117,0) -> 0 | N117: 0 | O117: 0 | P117: 0 | S117: 0 | V117: 0 | AB117: 0
B118: 305 | H118: 1 | I118: =IF(Etusivu!$C$22="kyllä",25.5%,0%) -> 0.255 | J118: 0 | K118: 0 | L118: 0 | M118: 0 | N118: 0 | O118: 0 | P118: 0 | S118: 0 | V118: 0 | AB118: 0
B119: 306 | H119: 1 | I119: =IF(Etusivu!$C$22="kyllä",25.5%,0%) -> 0.255 | J119: 0 | K119: 0 | L119: =IF($F119=L$12,$K119,0) -> 0 | M119: =IF($F119=M$12,$K119,0) -> 0 | N119: 0 | O119: 0 | P119: 0 | S119: 0 | V119: 0 | AB119: 0
B120: 307 | H120: 1 | I120: =IF(Etusivu!$C$22="kyllä",25.5%,0%) -> 0.255 | J120: 0 | K120: 0 | L120: 0 | M120: 0 | N120: 0 | O120: 0 | P120: 0 | S120: 0 | V120: 0 | AB120: 0
B121: 308 | H121: 1 | I121: =IF(Etusivu!$C$22="kyllä",25.5%,0%) -> 0.255 | J121: 0 | K121: 0 | L121: =IF($F121=L$12,$K121,0) -> 0 | M121: =IF($F121=M$12,$K121,0) -> 0 | N121: 0 | O121: 0 | P121: 0 | S121: 0 | V121: 0 | AB121: 0
B122: 309 | H122: 1 | I122: =IF(Etusivu!$C$22="kyllä",25.5%,0%) -> 0.255 | J122: 0 | K122: 0 | L122: =IF($F122=L$12,$K122,0) -> 0 | M122: =IF($F122=M$12,$K122,0) -> 0 | N122: =IF($F122=N$12,$K122,0) -> 0 | O122: =IF($F122=O$12,$K122,0) -> 0 | P122: =IF($F122=P$12,$K122,0) -> 0 | S122: 0 | V122: 0 | AB122: 0
B123: 310 | H123: 1 | I123: =IF(Etusivu!$C$22="kyllä",25.5%,0%) -> 0.255 | J123: 0 | K123: 0 | L123: =IF($F123=L$12,$K123,0) -> 0 | M123: 0 | N123: 0 | O123: 0 | P123: 0 | S123: 0 | V123: 0 | AB123: 0
B124: 311 | H124: 1 | I124: =IF(Etusivu!$C$22="kyllä",25.5%,0%) -> 0.255 | J124: 0 | K124: 0 | L124: 0 | M124: 0 | N124: 0 | O124: 0 | P124: 0 | S124: 0 | V124: 0 | AB124: 0
B125: 312 | H125: 1 | I125: =IF(Etusivu!$C$22="kyllä",25.5%,0%) -> 0.255 | J125: 0 | K125: 0 | L125: 0 | M125: 0 | N125: 0 | O125: 0 | P125: 0 | S125: 0 | V125: 0 | AB125: 0
B126: 313 | H126: 1 | I126: =IF(Etusivu!$C$22="kyllä",25.5%,0%) -> 0.255 | J126: 0 | K126: 0 | L126: 0 | M126: 0 | N126: 0 | O126: 0 | P126: 0 | S126: 0 | V126: 0 | AB126: 0
B127: 314 | H127: 1 | I127: =IF(Etusivu!$C$22="kyllä",25.5%,0%) -> 0.255 | J127: 0 | K127: 0 | L127: 0 | M127: 0 | N127: 0 | O127: 0 | P127: 0 | S127: 0 | V127: 0 | AB127: 0
B128: 315 | H128: 1 | I128: =IF(Etusivu!$C$22="kyllä",25.5%,0%) -> 0.255 | J128: 0 | K128: 0 | L128: 0 | M128: 0 | N128: 0 | O128: 0 | P128: 0 | S128: 0 | V128: 0 | AB128: 0
B129: 316 | H129: 1 | I129: =IF(Etusivu!$C$22="kyllä",25.5%,0%) -> 0.255 | J129: 0 | K129: 0 | L129: 0 | M129: 0 | N129: 0 | O129: 0 | P129: 0 | S129: 0 | V129: 0 | AB129: 0
B130: 317 | H130: 1 | I130: =IF(Etusivu!$C$22="kyllä",25.5%,0%) -> 0.255 | J130: 0 | K130: 0 | L130: 0 | M130: 0 | N130: 0 | O130: 0 | P130: 0 | S130: 0 | V130: 0 | AB130: 0
B131: 318 | H131: 1 | I131: =IF(Etusivu!$C$22="kyllä",25.5%,0%) -> 0.255 | J131: 0 | K131: 0 | L131: 0 | M131: 0 | N131: 0 | O131: 0 | P131: 0 | S131: 0 | V131: 0 | AB131: 0
B132: 319 | H132: 1 | I132: =IF(Etusivu!$C$22="kyllä",25.5%,0%) -> 0.255 | J132: 0 | K132: 0 | L132: 0 | M132: 0 | N132: 0 | O132: 0 | P132: 0 | S132: 0 | V132: 0 | AB132: 0
B133: 320 | H133: 1 | I133: =IF(Etusivu!$C$22="kyllä",25.5%,0%) -> 0.255 | J133: 0 | K133: 0 | L133: 0 | M133: 0 | N133: 0 | O133: 0 | P133: 0 | S133: 0 | V133: 0 | AB133: 0
B134: 321 | H134: 1 | I134: =IF(Etusivu!$C$22="kyllä",25.5%,0%) -> 0.255 | J134: 0 | K134: 0 | L134: 0 | M134: 0 | N134: 0 | O134: 0 | P134: 0 | S134: 0 | V134: 0 | AB134: 0
B135: 322 | H135: 1 | I135: =IF(Etusivu!$C$22="kyllä",25.5%,0%) -> 0.255 | J135: 0 | K135: 0 | L135: 0 | M135: 0 | N135: 0 | O135: 0 | P135: 0 | S135: 0 | V135: 0 | AB135: 0
B136: 323 | H136: 1 | I136: =IF(Etusivu!$C$22="kyllä",25.5%,0%) -> 0.255 | J136: 0 | K136: 0 | L136: 0 | M136: 0 | N136: 0 | O136: 0 | P136: 0 | S136: 0 | V136: 0 | AB136: 0
B137: 324 | H137: 1 | I137: =IF(Etusivu!$C$22="kyllä",25.5%,0%) -> 0.255 | J137: 0 | K137: 0 | L137: 0 | M137: 0 | N137: 0 | O137: 0 | P137: 0 | S137: 0 | V137: 0 | AB137: 0
B138: 325 | H138: 1 | I138: =IF(Etusivu!$C$22="kyllä",25.5%,0%) -> 0.255 | J138: 0 | K138: 0 | L138: 0 | M138: 0 | N138: 0 | O138: 0 | P138: 0 | S138: 0 | V138: 0 | AB138: 0
B139: 326 | H139: 1 | I139: =IF(Etusivu!$C$22="kyllä",25.5%,0%) -> 0.255 | J139: 0 | K139: 0 | L139: 0 | M139: 0 | N139: 0 | O139: 0 | P139: 0 | S139: 0 | V139: 0 | AB139: 0
B140: 327 | H140: 1 | I140: =IF(Etusivu!$C$22="kyllä",25.5%,0%) -> 0.255 | J140: 0 | K140: 0 | L140: 0 | M140: 0 | N140: 0 | O140: 0 | P140: 0 | S140: 0 | V140: 0 | AB140: 0
B141: 328 | H141: 1 | I141: =IF(Etusivu!$C$22="kyllä",25.5%,0%) -> 0.255 | J141: 0 | K141: 0 | L141: 0 | M141: 0 | N141: 0 | O141: 0 | P141: 0 | S141: 0 | V141: 0 | AB141: 0
B142: 329 | H142: 1 | I142: =IF(Etusivu!$C$22="kyllä",25.5%,0%) -> 0.255 | J142: 0 | K142: 0 | L142: 0 | M142: 0 | N142: 0 | O142: 0 | P142: 0 | S142: 0 | V142: 0 | AB142: =IF($F142=AB$12,$K142,0) -> 0
B143: 330 | H143: 1 | I143: =IF(Etusivu!$C$22="kyllä",25.5%,0%) -> 0.255 | J143: 0 | K143: 0 | L143: 0 | M143: 0 | N143: 0 | O143: 0 | P143: 0 | S143: =IF($F143=S$12,$K143,0) -> 0 | V143: =IF($F143=V$12,$K143,0) -> 0 | AB143: 0
B144: 331 | H144: 1 | I144: =IF(Etusivu!$C$22="kyllä",25.5%,0%) -> 0.255 | J144: 0 | K144: 0 | L144: 0 | M144: 0 | N144: 0 | O144: 0 | P144: 0 | R144: =IF(P144>0,IF(Q144<1," !",""),"") ->  | S144: 0 | U144: =IF(S144>0,IF(T144<1," !",""),"") ->  | V144: 0 | X144: =IF(V144>0,IF(W144<1," !",""),"") ->  | AB144: 0
B145: 332 | H145: 1 | I145: =IF(Etusivu!$C$22="kyllä",25.5%,0%) -> 0.255 | J145: =H145*((G145-(AD145+AE145+AF145)*(1+I145))-((G145-(AD145+AE145+AF145)*(1+I145))/(1+I145))) -> 0 | K145: =H145*(G145/(1+I145)) -> 0 | L145: 0 | M145: 0 | N145: 0 | O145: 0 | P145: 0 | S145: 0 | V145: 0 | AB145: 0
B146: 333 | H146: 1 | I146: =IF(Etusivu!$C$22="kyllä",25.5%,0%) -> 0.255 | J146: 0 | K146: 0 | L146: 0 | M146: 0 | N146: 0 | O146: 0 | P146: 0 | S146: 0 | V146: 0 | AB146: 0
B147: 334 | H147: 1 | I147: =IF(Etusivu!$C$22="kyllä",25.5%,0%) -> 0.255 | J147: 0 | K147: 0 | L147: 0 | M147: 0 | N147: 0 | O147: 0 | P147: 0 | S147: 0 | V147: 0 | AB147: 0
B148: 335 | H148: 1 | I148: =IF(Etusivu!$C$22="kyllä",25.5%,0%) -> 0.255 | J148: 0 | K148: 0 | L148: 0 | M148: 0 | N148: 0 | O148: 0 | P148: 0 | S148: 0 | V148: 0 | AB148: 0
B149: 336 | H149: 1 | I149: =IF(Etusivu!$C$22="kyllä",25.5%,0%) -> 0.255 | J149: 0 | K149: 0 | L149: 0 | M149: 0 | N149: 0 | O149: 0 | P149: 0 | S149: 0 | V149: 0 | AB149: 0
B150: 337 | H150: 1 | I150: =IF(Etusivu!$C$22="kyllä",25.5%,0%) -> 0.255 | J150: 0 | K150: 0 | L150: 0 | M150: 0 | N150: 0 | O150: 0 | P150: 0 | S150: 0 | V150: 0 | AB150: 0
B151: 338 | H151: 1 | I151: =IF(Etusivu!$C$22="kyllä",25.5%,0%) -> 0.255 | J151: 0 | K151: 0 | L151: 0 | M151: 0 | N151: 0 | O151: 0 | P151: 0 | S151: 0 | V151: 0 | AB151: 0
B152: 339 | H152: 1 | I152: =IF(Etusivu!$C$22="kyllä",25.5%,0%) -> 0.255 | J152: 0 | K152: 0 | L152: 0 | M152: 0 | N152: 0 | O152: 0 | P152: 0 | S152: 0 | V152: 0 | AB152: 0
B153: 340 | H153: 1 | I153: =IF(Etusivu!$C$22="kyllä",25.5%,0%) -> 0.255 | J153: 0 | K153: 0 | L153: 0 | M153: 0 | N153: 0 | O153: 0 | P153: 0 | S153: 0 | V153: 0 | AB153: 0
B154: 341 | H154: 1 | I154: =IF(Etusivu!$C$22="kyllä",25.5%,0%) -> 0.255 | J154: 0 | K154: 0 | L154: 0 | M154: 0 | N154: 0 | O154: 0 | P154: 0 | S154: 0 | V154: 0 | AB154: 0
B155: 342 | H155: 1 | I155: =IF(Etusivu!$C$22="kyllä",25.5%,0%) -> 0.255 | J155: 0 | K155: 0 | L155: 0 | M155: 0 | N155: 0 | O155: 0 | P155: 0 | S155: 0 | V155: 0 | AB155: 0
B156: 343 | H156: 1 | I156: =IF(Etusivu!$C$22="kyllä",25.5%,0%) -> 0.255 | J156: 0 | K156: 0 | L156: 0 | M156: 0 | N156: 0 | O156: 0 | P156: 0 | S156: 0 | V156: 0 | AB156: 0
B157: 344 | H157: 1 | I157: =IF(Etusivu!$C$22="kyllä",25.5%,0%) -> 0.255 | J157: 0 | K157: 0 | L157: 0 | M157: 0 | N157: 0 | O157: 0 | P157: 0 | S157: 0 | V157: 0 | AB157: 0
B158: 345 | H158: 1 | I158: =IF(Etusivu!$C$22="kyllä",25.5%,0%) -> 0.255 | J158: 0 | K158: 0 | L158: 0 | M158: 0 | N158: 0 | O158: 0 | P158: 0 | S158: 0 | V158: 0 | AB158: 0
B159: 346 | H159: 1 | I159: =IF(Etusivu!$C$22="kyllä",25.5%,0%) -> 0.255 | J159: 0 | K159: 0 | L159: 0 | M159: 0 | N159: 0 | O159: 0 | P159: 0 | S159: 0 | V159: 0 | AB159: 0
B160: 347 | H160: 1 | I160: =IF(Etusivu!$C$22="kyllä",25.5%,0%) -> 0.255 | J160: 0 | K160: 0 | L160: 0 | M160: 0 | N160: 0 | O160: 0 | P160: 0 | S160: 0 | V160: 0 | AB160: 0
B161: 348 | H161: 1 | I161: =IF(Etusivu!$C$22="kyllä",25.5%,0%) -> 0.255 | J161: 0 | K161: 0 | L161: 0 | M161: 0 | N161: 0 | O161: 0 | P161: 0 | S161: 0 | V161: 0 | AB161: 0
B162: 349 | H162: 1 | I162: =IF(Etusivu!$C$22="kyllä",25.5%,0%) -> 0.255 | J162: 0 | K162: 0 | L162: 0 | M162: 0 | N162: 0 | O162: 0 | P162: 0 | S162: 0 | V162: 0 | AB162: 0
B163: 350 | H163: 1 | I163: =IF(Etusivu!$C$22="kyllä",25.5%,0%) -> 0.255 | J163: 0 | K163: 0 | L163: 0 | M163: 0 | N163: 0 | O163: 0 | P163: 0 | S163: 0 | V163: 0 | AB163: 0
B164: 351 | H164: 1 | I164: =IF(Etusivu!$C$22="kyllä",25.5%,0%) -> 0.255 | J164: 0 | K164: 0 | L164: 0 | M164: 0 | N164: 0 | O164: 0 | P164: 0 | S164: 0 | V164: 0 | AB164: 0
B165: 352 | H165: 1 | I165: =IF(Etusivu!$C$22="kyllä",25.5%,0%) -> 0.255 | J165: 0 | K165: 0 | L165: 0 | M165: 0 | N165: 0 | O165: 0 | P165: 0 | S165: 0 | V165: 0 | AB165: 0
B166: 353 | H166: 1 | I166: =IF(Etusivu!$C$22="kyllä",25.5%,0%) -> 0.255 | J166: 0 | K166: 0 | L166: 0 | M166: 0 | N166: 0 | O166: 0 | P166: 0 | S166: 0 | V166: 0 | AB166: 0
B167: 354 | H167: 1 | I167: =IF(Etusivu!$C$22="kyllä",25.5%,0%) -> 0.255 | J167: 0 | K167: 0 | L167: 0 | M167: 0 | N167: 0 | O167: 0 | P167: 0 | S167: 0 | V167: 0 | AB167: 0
B168: 355 | H168: 1 | I168: =IF(Etusivu!$C$22="kyllä",25.5%,0%) -> 0.255 | J168: 0 | K168: 0 | L168: 0 | M168: 0 | N168: 0 | O168: 0 | P168: 0 | S168: 0 | V168: 0 | AB168: 0
B169: 356 | H169: 1 | I169: =IF(Etusivu!$C$22="kyllä",25.5%,0%) -> 0.255 | J169: 0 | K169: 0 | L169: 0 | M169: 0 | N169: 0 | O169: 0 | P169: 0 | S169: 0 | V169: 0 | AB169: 0
B170: 357 | H170: 1 | I170: =IF(Etusivu!$C$22="kyllä",25.5%,0%) -> 0.255 | J170: 0 | K170: 0 | L170: 0 | M170: 0 | N170: 0 | O170: 0 | P170: 0 | S170: 0 | V170: 0 | AB170: 0
B171: 358 | H171: 1 | I171: =IF(Etusivu!$C$22="kyllä",25.5%,0%) -> 0.255 | J171: 0 | K171: 0 | L171: 0 | M171: 0 | N171: 0 | O171: 0 | P171: 0 | S171: 0 | V171: 0 | AB171: 0
B172: 359 | H172: 1 | I172: =IF(Etusivu!$C$22="kyllä",25.5%,0%) -> 0.255 | J172: 0 | K172: 0 | L172: 0 | M172: 0 | N172: 0 | O172: 0 | P172: 0 | S172: 0 | V172: 0 | AB172: 0
B173: 360 | H173: 1 | I173: =IF(Etusivu!$C$22="kyllä",25.5%,0%) -> 0.255 | J173: 0 | K173: 0 | L173: 0 | M173: 0 | N173: 0 | O173: 0 | P173: 0 | S173: 0 | V173: 0 | AB173: 0
B174: 361 | H174: 1 | I174: =IF(Etusivu!$C$22="kyllä",25.5%,0%) -> 0.255 | J174: 0 | K174: 0 | L174: =IF($F174=L$12,$K174,0) -> 0 | M174: 0 | N174: 0 | O174: 0 | P174: 0 | S174: 0 | V174: 0 | AB174: 0
B175: 362 | H175: 1 | I175: =IF(Etusivu!$C$22="kyllä",25.5%,0%) -> 0.255 | J175: 0 | K175: 0 | L175: 0 | M175: 0 | N175: 0 | O175: 0 | P175: 0 | S175: 0 | V175: 0 | AB175: 0
B176: 363 | H176: 1 | I176: =IF(Etusivu!$C$22="kyllä",25.5%,0%) -> 0.255 | J176: 0 | K176: 0 | L176: 0 | M176: 0 | N176: 0 | O176: 0 | P176: 0 | S176: 0 | V176: 0 | AB176: 0
B177: 364 | H177: 1 | I177: =IF(Etusivu!$C$22="kyllä",25.5%,0%) -> 0.255 | J177: 0 | K177: 0 | L177: 0 | M177: 0 | N177: 0 | O177: 0 | P177: 0 | S177: 0 | V177: 0 | AB177: 0
B178: 365 | H178: 1 | I178: =IF(Etusivu!$C$22="kyllä",25.5%,0%) -> 0.255 | J178: 0 | K178: 0 | L178: 0 | M178: 0 | N178: 0 | O178: 0 | P178: 0 | S178: 0 | V178: 0 | AB178: 0
B179: 366 | H179: 1 | I179: =IF(Etusivu!$C$22="kyllä",25.5%,0%) -> 0.255 | J179: 0 | K179: 0 | L179: 0 | M179: 0 | N179: 0 | O179: 0 | P179: 0 | S179: 0 | V179: 0 | AB179: 0
B180: 367 | H180: 1 | I180: =IF(Etusivu!$C$22="kyllä",25.5%,0%) -> 0.255 | J180: 0 | K180: 0 | L180: 0 | M180: 0 | N180: 0 | O180: 0 | P180: 0 | S180: 0 | V180: 0 | AB180: 0
B181: 368 | H181: 1 | I181: =IF(Etusivu!$C$22="kyllä",25.5%,0%) -> 0.255 | J181: 0 | K181: 0 | L181: 0 | M181: 0 | N181: 0 | O181: 0 | P181: 0 | S181: 0 | V181: 0 | AB181: 0
B182: 369 | H182: 1 | I182: =IF(Etusivu!$C$22="kyllä",25.5%,0%) -> 0.255 | J182: 0 | K182: 0 | L182: 0 | M182: 0 | N182: 0 | O182: 0 | P182: 0 | S182: 0 | V182: 0 | AB182: 0
B183: 370 | H183: 1 | I183: =IF(Etusivu!$C$22="kyllä",25.5%,0%) -> 0.255 | J183: 0 | K183: 0 | L183: 0 | M183: 0 | N183: 0 | O183: 0 | P183: 0 | S183: 0 | V183: 0 | AB183: 0
B184: 371 | H184: 1 | I184: =IF(Etusivu!$C$22="kyllä",25.5%,0%) -> 0.255 | J184: 0 | K184: 0 | L184: 0 | M184: 0 | N184: 0 | O184: 0 | P184: 0 | S184: 0 | V184: 0 | AB184: 0
B185: 372 | H185: 1 | I185: =IF(Etusivu!$C$22="kyllä",25.5%,0%) -> 0.255 | J185: 0 | K185: 0 | L185: 0 | M185: 0 | N185: 0 | O185: 0 | P185: 0 | S185: 0 | V185: 0 | AB185: 0
B186: 373 | H186: 1 | I186: =IF(Etusivu!$C$22="kyllä",25.5%,0%) -> 0.255 | J186: 0 | K186: 0 | L186: 0 | M186: 0 | N186: 0 | O186: 0 | P186: 0 | S186: 0 | V186: 0 | AB186: 0
B187: 374 | H187: 1 | I187: =IF(Etusivu!$C$22="kyllä",25.5%,0%) -> 0.255 | J187: 0 | K187: 0 | L187: 0 | M187: 0 | N187: 0 | O187: 0 | P187: 0 | S187: 0 | V187: 0 | AB187: 0
B188: 375 | H188: 1 | I188: =IF(Etusivu!$C$22="kyllä",25.5%,0%) -> 0.255 | J188: 0 | K188: 0 | L188: 0 | M188: 0 | N188: 0 | O188: 0 | P188: 0 | S188: 0 | V188: 0 | AB188: 0
B189: 376 | H189: 1 | I189: =IF(Etusivu!$C$22="kyllä",25.5%,0%) -> 0.255 | J189: 0 | K189: 0 | L189: 0 | M189: 0 | N189: 0 | O189: 0 | P189: 0 | S189: 0 | V189: 0 | AB189: 0
B190: 377 | H190: 1 | I190: =IF(Etusivu!$C$22="kyllä",25.5%,0%) -> 0.255 | J190: 0 | K190: 0 | L190: 0 | M190: 0 | N190: 0 | O190: 0 | P190: 0 | S190: 0 | V190: 0 | AB190: 0
B191: 378 | H191: 1 | I191: =IF(Etusivu!$C$22="kyllä",25.5%,0%) -> 0.255 | J191: 0 | K191: 0 | L191: 0 | M191: 0 | N191: 0 | O191: 0 | P191: 0 | S191: 0 | V191: 0 | AB191: 0
B192: 379 | H192: 1 | I192: =IF(Etusivu!$C$22="kyllä",25.5%,0%) -> 0.255 | J192: 0 | K192: 0 | L192: 0 | M192: 0 | N192: 0 | O192: 0 | P192: 0 | S192: 0 | V192: 0 | AB192: 0
B193: 380 | H193: 1 | I193: =IF(Etusivu!$C$22="kyllä",25.5%,0%) -> 0.255 | J193: 0 | K193: 0 | L193: 0 | M193: 0 | N193: 0 | O193: 0 | P193: 0 | S193: 0 | V193: 0 | AB193: 0
B194: 381 | H194: 1 | I194: =IF(Etusivu!$C$22="kyllä",25.5%,0%) -> 0.255 | J194: 0 | K194: 0 | L194: 0 | M194: 0 | N194: 0 | O194: 0 | P194: 0 | S194: 0 | V194: 0 | AB194: 0
B195: 382 | H195: 1 | I195: =IF(Etusivu!$C$22="kyllä",25.5%,0%) -> 0.255 | J195: 0 | K195: 0 | L195: 0 | M195: 0 | N195: 0 | O195: 0 | P195: 0 | S195: 0 | V195: 0 | AB195: 0
B196: 383 | H196: 1 | I196: =IF(Etusivu!$C$22="kyllä",25.5%,0%) -> 0.255 | J196: 0 | K196: 0 | L196: 0 | M196: 0 | N196: 0 | O196: 0 | P196: 0 | S196: 0 | V196: 0 | AB196: 0
B197: 384 | H197: 1 | I197: =IF(Etusivu!$C$22="kyllä",25.5%,0%) -> 0.255 | J197: 0 | K197: 0 | L197: 0 | M197: 0 | N197: 0 | O197: 0 | P197: 0 | S197: 0 | V197: 0 | AB197: 0
B198: 385 | H198: 1 | I198: =IF(Etusivu!$C$22="kyllä",25.5%,0%) -> 0.255 | J198: 0 | K198: 0 | L198: 0 | M198: 0 | N198: 0 | O198: 0 | P198: 0 | S198: 0 | V198: 0 | AB198: 0
B199: 386 | H199: 1 | I199: =IF(Etusivu!$C$22="kyllä",25.5%,0%) -> 0.255 | J199: 0 | K199: 0 | L199: 0 | M199: 0 | N199: 0 | O199: 0 | P199: 0 | S199: 0 | V199: 0 | AB199: 0
B200: 387 | H200: 1 | I200: =IF(Etusivu!$C$22="kyllä",25.5%,0%) -> 0.255 | J200: 0 | K200: 0 | L200: 0 | M200: 0 | N200: 0 | O200: 0 | P200: 0 | S200: 0 | V200: 0 | AB200: 0
B201: 388 | H201: 1 | I201: =IF(Etusivu!$C$22="kyllä",25.5%,0%) -> 0.255 | J201: 0 | K201: 0 | L201: 0 | M201: 0 | N201: 0 | O201: 0 | P201: 0 | S201: 0 | V201: 0 | AB201: 0
B202: 389 | H202: 1 | I202: =IF(Etusivu!$C$22="kyllä",25.5%,0%) -> 0.255 | J202: 0 | K202: 0 | L202: 0 | M202: 0 | N202: 0 | O202: 0 | P202: 0 | S202: 0 | V202: 0 | AB202: 0
... 432 more rows

Sheet Poistot
T1: Maksimi
B2: =Etusivu!C10 -> Matti Metsänen | T2: Prosentteina
B3: =Etusivu!C16 -> 123456-7 | T3: Euroina
B5: POISTOJEN LASKENTA | N5: 11. Muistiinpanoihin (Poistoihin) sisältyvät muun toiminnan menot (alv 0%)
D6: Valitse poisto- tapa | E6: Menojäännös | F6: Lisäykset | G6: Vähennykset | H6: Haluttu poisto | K6: Poisto | L6: Menojäännös | R6: OHJEITA
E7: =CONCATENATE("1.1.",Etusivu!C8) -> 1.1.2025 | F7: verovuonna | G7: verovuonna | H7: % | I7: Euroina | K7: € | L7: =CONCATENATE("31.12.",Etusivu!C8) -> 31.12.2025 | N7: 11.1 Maatalous | O7: 11.2 Elinkeinotoiminta | P7: 11.3 Yksityismenot
B8: nro | C8: Koneet ja laitteet, yhteensä | E8: =SUM(E9:E68) -> 750 | F8: =SUM(F9:F68) -> 717.13 | G8: =SUM(G9:G68) -> 0 | K8: =SUM(K9:K68) -> 287.5 | L8: =SUM(L9:L68) -> 1179.63 | N8: =SUM(N9:N68) -> 0 | O8: =SUM(O9:O68) -> 0 | P8: =SUM(P9:P68) -> 0 | R8: o Kirjaa uudet poistoviennit menot välilehden kautta (Menoluokat: Konepoisto, rakennuspoisto ja oja/tiepoisto) | U8: % | V8: Euro | W8: 600 | X8: maksimi
B9: 1 | C9: Raivaussaha 2024 | D9: Maksimi | E9: 750 | F9: =SUMIF(Menot!Q$13:Q$634,B9,Menot!P$13:P$634) -> 0 | H9: 0.25 | J9: =IF(I9>X9,"!",IF(H9>0.25,"!","")) ->  | K9: =IF(D9=T$1,X9,IF(D9=T$2,U9,V9)) -> 187.5 | L9: =E9+F9-G9-K9 -> 562.5 | R9: o Kirjaa poistojen menojäännökset edellisen vuoden kirjanpidosta sarakkeelle "Menojäännös 1.1.202x". | U9: =(E9+F9-G9)*H9 -> 187.5 | V9: =IF(I9<=X9,I9,X9) -> 0 | W9: =IF(E9+F9-G9<600.01,E9+F9-G9,0) -> 0 | X9: =IF(U9>W9,U9,W9) -> 187.5
B10: 2 | C10: Moottorisaha 2025 | D10: Euroina | F10: =SUMIF(Menot!Q$13:Q$634,B10,Menot!P$13:P$634) -> 717.13 | H10: 0.25 | I10: 100 | J10: =IF(I10>X10,"!",IF(H10>0.25,"!","")) ->  | K10: =IF(D10=T$1,X10,IF(D10=T$2,U10,V10)) -> 100 | L10: =E10+F10-G10-K10 -> 617.13 | R10: o Verovuoden lisäys kirjataan Menot-taulukon kautta, jotta alv saadaan eroteltua. | U10: 179.2825 | V10: =I10 -> 100 | W10: 0 | X10: =IF(U10>W10,U10,W10) -> 179.2825
B11: 3 | D11: Maksimi | F11: =SUMIF(Menot!Q$13:Q$634,B11,Menot!P$13:P$634) -> 0 | H11: 0.25 | J11: =IF(I11>X11,"!",IF(H11>0.25,"!","")) ->  | K11: =IF(D11=T$1,X11,IF(D11=T$2,U11,V11)) -> 0 | L11: =E11+F11-G11-K11 -> 0 | R11: o Kullekin koneelle (tai muulle poistomenolle) annetaan yksillöllinen nro tämän taulukon sarakkeelta B, jota kytetään menot taulussa, poistomenoa kirjatessa. | U11: 0 | V11: 0 | W11: 0 | X11: 0
B12: 4 | D12: Maksimi | F12: =SUMIF(Menot!Q$13:Q$634,B12,Menot!P$13:P$634) -> 0 | H12: 0.25 | K12: =IF(D12=T$1,X12,IF(D12=T$2,U12,V12)) -> 0 | L12: =E12+F12-G12-K12 -> 0 | R12: o Yhtä konetta, rakennusta tai tietä käsitellään yhdellä rivillä poistot taulussa. | U12: 0 | V12: 0 | W12: 0 | X12: 0
B13: 5 | D13: Maksimi | F13: =SUMIF(Menot!Q$13:Q$634,B13,Menot!P$13:P$634) -> 0 | H13: 0.25 | J13: =IF(I13>X13,"!",IF(H13>0.25,"!","")) ->  | K13: 0 | L13: 0 | R13: o Poistojen alv, jos poistomenoihin sisältyy muun toiminnan menoja Verottajan ohjeen mukaan: jos poistoina käsiteltäviin menoihin sisältyy muun toiminnan menoja, esim. yksityismenoja, tulee vähennettävästä arvonlisäverosta ottaa kerralla pois se osuus, joka arvioidaan olevan muun toiminnan osuutta. Esimerkki: Mönkijästä arvellaan metsätaloudelle kuuluvan 45 % koko mönkijän käyttöajalle. Alv:stä vähennyskelpoista on tuo 45 %. Mönkijän menoa poistetaan vuosittain poistomenettelyssä. Yksityiskäytön osuudeksi merkitään vuosittain toteutunut todellisen käytön osuus. | U13: 0 | V13: 0 | W13: 0 | X13: 0
B14: 6 | D14: Maksimi | F14: =SUMIF(Menot!Q$13:Q$634,B14,Menot!P$13:P$634) -> 0 | H14: 0.25 | K14: 0 | L14: 0 | U14: 0 | V14: 0 | W14: 0 | X14: 0
B15: 7 | D15: Maksimi | F15: =SUMIF(Menot!Q$13:Q$634,B15,Menot!P$13:P$634) -> 0 | H15: 0.25 | K15: 0 | L15: 0 | U15: 0 | V15: 0 | W15: 0 | X15: 0
B16: 8 | D16: Maksimi | F16: =SUMIF(Menot!Q$13:Q$634,B16,Menot!P$13:P$634) -> 0 | H16: 0.25 | K16: 0 | L16: 0 | U16: 0 | V16: 0 | W16: 0 | X16: 0
B17: 9 | D17: Maksimi | F17: =SUMIF(Menot!Q$13:Q$634,B17,Menot!P$13:P$634) -> 0 | H17: 0.25 | K17: 0 | L17: 0 | U17: 0 | V17: 0 | W17: 0 | X17: 0
B18: 10 | D18: Maksimi | F18: =SUMIF(Menot!Q$13:Q$634,B18,Menot!P$13:P$634) -> 0 | H18: 0.25 | K18: 0 | L18: 0 | U18: 0 | V18: 0 | W18: 0 | X18: 0
B19: 11 | D19: Maksimi | F19: =SUMIF(Menot!Q$13:Q$634,B19,Menot!P$13:P$634) -> 0 | H19: 0.25 | K19: 0 | L19: 0 | U19: 0 | V19: 0 | W19: 0 | X19: 0
B20: 12 | D20: Maksimi | F20: =SUMIF(Menot!Q$13:Q$634,B20,Menot!P$13:P$634) -> 0 | H20: 0.25 | K20: 0 | L20: 0 | U20: 0 | V20: 0 | W20: 0 | X20: 0
B21: 13 | D21: Maksimi | F21: =SUMIF(Menot!Q$13:Q$634,B21,Menot!P$13:P$634) -> 0 | H21: 0.25 | K21: 0 | L21: 0 | U21: 0 | V21: 0 | W21: 0 | X21: 0
B22: 14 | D22: Maksimi | F22: =SUMIF(Menot!Q$13:Q$634,B22,Menot!P$13:P$634) -> 0 | H22: 0.25 | K22: 0 | L22: 0 | U22: 0 | V22: 0 | W22: 0 | X22: 0
B23: 15 | D23: Maksimi | F23: =SUMIF(Menot!Q$13:Q$634,B23,Menot!P$13:P$634) -> 0 | H23: 0.25 | K23: 0 | L23: 0 | U23: 0 | V23: 0 | W23: 0 | X23: 0
B24: 16 | D24: Maksimi | F24: =SUMIF(Menot!Q$13:Q$634,B24,Menot!P$13:P$634) -> 0 | H24: 0.25 | K24: 0 | L24: 0 | U24: 0 | V24: 0 | W24: 0 | X24: 0
B25: 17 | D25: Maksimi | F25: =SUMIF(Menot!Q$13:Q$634,B25,Menot!P$13:P$634) -> 0 | H25: 0.25 | K25: 0 | L25: 0 | U25: 0 | V25: 0 | W25: 0 | X25: 0
B26: 18 | D26: Maksimi | F26: =SUMIF(Menot!Q$13:Q$634,B26,Menot!P$13:P$634) -> 0 | H26: 0.25 | K26: 0 | L26: 0 | U26: 0 | V26: 0 | W26: 0 | X26: 0
B27: 19 | D27: Maksimi | F27: =SUMIF(Menot!Q$13:Q$634,B27,Menot!P$13:P$634) -> 0 | H27: 0.25 | K27: 0 | L27: 0 | U27: 0 | V27: 0 | W27: 0 | X27: 0
B28: 20 | D28: Maksimi | F28: =SUMIF(Menot!Q$13:Q$634,B28,Menot!P$13:P$634) -> 0 | H28: 0.25 | K28: 0 | L28: 0 | U28: 0 | V28: 0 | W28: 0 | X28: 0
B29: 21 | D29: Maksimi | F29: =SUMIF(Menot!Q$13:Q$634,B29,Menot!P$13:P$634) -> 0 | H29: 0.25 | K29: =IF(D29=T$1,X29,IF(D29=T$2,U29,V29)) -> 0 | L29: =E29+F29-G29-K29 -> 0 | U29: 0 | V29: 0 | W29: 0 | X29: 0
B30: 22 | D30: Maksimi | F30: =SUMIF(Menot!Q$13:Q$634,B30,Menot!P$13:P$634) -> 0 | H30: 0.25 | K30: 0 | L30: 0 | U30: 0 | V30: 0 | W30: 0 | X30: 0
B31: 23 | D31: Maksimi | F31: =SUMIF(Menot!Q$13:Q$634,B31,Menot!P$13:P$634) -> 0 | H31: 0.25 | K31: 0 | L31: 0 | U31: 0 | V31: 0 | W31: 0 | X31: 0
B32: 24 | D32: Maksimi | F32: =SUMIF(Menot!Q$13:Q$634,B32,Menot!P$13:P$634) -> 0 | H32: 0.25 | K32: 0 | L32: 0 | U32: 0 | V32: 0 | W32: 0 | X32: 0
B33: 25 | D33: Maksimi | F33: =SUMIF(Menot!Q$13:Q$634,B33,Menot!P$13:P$634) -> 0 | H33: 0.25 | K33: 0 | L33: 0 | U33: 0 | V33: 0 | W33: 0 | X33: 0
B34: 26 | D34: Maksimi | F34: =SUMIF(Menot!Q$13:Q$634,B34,Menot!P$13:P$634) -> 0 | H34: 0.25 | K34: 0 | L34: 0 | U34: 0 | V34: 0 | W34: 0 | X34: 0
B35: 27 | D35: Maksimi | F35: =SUMIF(Menot!Q$13:Q$634,B35,Menot!P$13:P$634) -> 0 | H35: 0.25 | K35: 0 | L35: 0 | U35: 0 | V35: 0 | W35: 0 | X35: 0
B36: 28 | D36: Maksimi | F36: =SUMIF(Menot!Q$13:Q$634,B36,Menot!P$13:P$634) -> 0 | H36: 0.25 | K36: 0 | L36: 0 | U36: 0 | V36: 0 | W36: 0 | X36: 0
B37: 29 | D37: Maksimi | F37: =SUMIF(Menot!Q$13:Q$634,B37,Menot!P$13:P$634) -> 0 | H37: 0.25 | K37: 0 | L37: 0 | U37: 0 | V37: 0 | W37: 0 | X37: 0
B38: 30 | D38: Maksimi | F38: =SUMIF(Menot!Q$13:Q$634,B38,Menot!P$13:P$634) -> 0 | H38: 0.25 | K38: 0 | L38: 0 | U38: 0 | V38: 0 | W38: 0 | X38: 0
B39: 31 | D39: Maksimi | F39: =SUMIF(Menot!Q$13:Q$634,B39,Menot!P$13:P$634) -> 0 | H39: 0.25 | K39: 0 | L39: 0 | U39: 0 | V39: 0 | W39: 0 | X39: 0
B40: 32 | D40: Maksimi | F40: =SUMIF(Menot!Q$13:Q$634,B40,Menot!P$13:P$634) -> 0 | H40: 0.25 | K40: 0 | L40: 0 | U40: 0 | V40: 0 | W40: 0 | X40: 0
B41: 33 | D41: Maksimi | F41: =SUMIF(Menot!Q$13:Q$634,B41,Menot!P$13:P$634) -> 0 | H41: 0.25 | K41: =IF(D41=T$1,X41,IF(D41=T$2,U41,V41)) -> 0 | L41: =E41+F41-G41-K41 -> 0 | U41: =(E41+F41-G41)*H41 -> 0 | V41: 0 | W41: =IF(E41+F41-G41<600.01,E41+F41-G41,0) -> 0 | X41: 0
B42: 34 | D42: Maksimi | F42: =SUMIF(Menot!Q$13:Q$634,B42,Menot!P$13:P$634) -> 0 | H42: 0.25 | K42: 0 | L42: 0 | U42: 0 | V42: =I42 -> 0 | W42: 0 | X42: 0
B43: 35 | D43: Maksimi | F43: =SUMIF(Menot!Q$13:Q$634,B43,Menot!P$13:P$634) -> 0 | H43: 0.25 | K43: 0 | L43: 0 | U43: 0 | V43: 0 | W43: 0 | X43: 0
B44: 36 | D44: Maksimi | F44: =SUMIF(Menot!Q$13:Q$634,B44,Menot!P$13:P$634) -> 0 | H44: 0.25 | K44: 0 | L44: 0 | U44: 0 | V44: 0 | W44: 0 | X44: 0
B45: 37 | D45: Maksimi | F45: =SUMIF(Menot!Q$13:Q$634,B45,Menot!P$13:P$634) -> 0 | H45: 0.25 | K45: 0 | L45: 0 | U45: 0 | V45: 0 | W45: 0 | X45: 0
B46: 38 | D46: Maksimi | F46: =SUMIF(Menot!Q$13:Q$634,B46,Menot!P$13:P$634) -> 0 | H46: 0.25 | K46: 0 | L46: 0 | U46: 0 | V46: 0 | W46: 0 | X46: 0
B47: 39 | D47: Maksimi | F47: =SUMIF(Menot!Q$13:Q$634,B47,Menot!P$13:P$634) -> 0 | H47: 0.25 | K47: 0 | L47: 0 | U47: 0 | V47: 0 | W47: 0 | X47: 0
B48: 40 | D48: Maksimi | F48: =SUMIF(Menot!Q$13:Q$634,B48,Menot!P$13:P$634) -> 0 | H48: 0.25 | K48: 0 | L48: 0 | U48: 0 | V48: 0 | W48: 0 | X48: 0
B49: 41 | D49: Maksimi | F49: =SUMIF(Menot!Q$13:Q$634,B49,Menot!P$13:P$634) -> 0 | H49: 0.25 | K49: 0 | L49: 0 | U49: 0 | V49: 0 | W49: 0 | X49: 0
B50: 42 | D50: Maksimi | F50: =SUMIF(Menot!Q$13:Q$634,B50,Menot!P$13:P$634) -> 0 | H50: 0.25 | K50: 0 | L50: 0 | U50: 0 | V50: 0 | W50: 0 | X50: 0
B51: 43 | D51: Maksimi | F51: =SUMIF(Menot!Q$13:Q$634,B51,Menot!P$13:P$634) -> 0 | H51: 0.25 | K51: 0 | L51: 0 | U51: 0 | V51: 0 | W51: 0 | X51: 0
B52: 44 | D52: Maksimi | F52: =SUMIF(Menot!Q$13:Q$634,B52,Menot!P$13:P$634) -> 0 | H52: 0.25 | K52: 0 | L52: 0 | U52: 0 | V52: 0 | W52: 0 | X52: 0
B53: 45 | D53: Maksimi | F53: =SUMIF(Menot!Q$13:Q$634,B53,Menot!P$13:P$634) -> 0 | H53: 0.25 | K53: 0 | L53: 0 | U53: 0 | V53: 0 | W53: 0 | X53: 0
B54: 46 | D54: Maksimi | F54: =SUMIF(Menot!Q$13:Q$634,B54,Menot!P$13:P$634) -> 0 | H54: 0.25 | K54: 0 | L54: 0 | U54: 0 | V54: 0 | W54: 0 | X54: 0
B55: 47 | D55: Maksimi | F55: =SUMIF(Menot!Q$13:Q$634,B55,Menot!P$13:P$634) -> 0 | H55: 0.25 | K55: 0 | L55: 0 | U55: 0 | V55: 0 | W55: 0 | X55: 0
B56: 48 | D56: Maksimi | F56: =SUMIF(Menot!Q$13:Q$634,B56,Menot!P$13:P$634) -> 0 | H56: 0.25 | K56: 0 | L56: 0 | U56: 0 | V56: 0 | W56: 0 | X56: 0
B57: 49 | D57: Maksimi | F57: =SUMIF(Menot!Q$13:Q$634,B57,Menot!P$13:P$634) -> 0 | H57: 0.25 | K57: 0 | L57: 0 | U57: 0 | V57: 0 | W57: 0 | X57: 0
B58: 50 | D58: Maksimi | F58: =SUMIF(Menot!Q$13:Q$634,B58,Menot!P$13:P$634) -> 0 | H58: 0.25 | K58: 0 | L58: 0 | U58: 0 | V58: 0 | W58: 0 | X58: 0
B59: 51 | D59: Maksimi | F59: =SUMIF(Menot!Q$13:Q$634,B59,Menot!P$13:P$634) -> 0 | H59: 0.25 | K59: 0 | L59: 0 | U59: 0 | V59: 0 | W59: 0 | X59: 0
B60: 52 | D60: Maksimi | F60: =SUMIF(Menot!Q$13:Q$634,B60,Menot!P$13:P$634) -> 0 | H60: 0.25 | K60: 0 | L60: 0 | U60: 0 | V60: 0 | W60: 0 | X60: 0
B61: 53 | D61: Maksimi | F61: =SUMIF(Menot!Q$13:Q$634,B61,Menot!P$13:P$634) -> 0 | H61: 0.25 | K61: 0 | L61: 0 | U61: 0 | V61: 0 | W61: 0 | X61: 0
B62: 54 | D62: Maksimi | F62: =SUMIF(Menot!Q$13:Q$634,B62,Menot!P$13:P$634) -> 0 | H62: 0.25 | K62: 0 | L62: 0 | U62: 0 | V62: 0 | W62: 0 | X62: 0
B63: 55 | D63: Maksimi | F63: =SUMIF(Menot!Q$13:Q$634,B63,Menot!P$13:P$634) -> 0 | H63: 0.25 | K63: 0 | L63: 0 | U63: 0 | V63: 0 | W63: 0 | X63: 0
B64: 56 | D64: Maksimi | F64: =SUMIF(Menot!Q$13:Q$634,B64,Menot!P$13:P$634) -> 0 | H64: 0.25 | K64: 0 | L64: 0 | U64: 0 | V64: 0 | W64: 0 | X64: 0
B65: 57 | D65: Maksimi | F65: =SUMIF(Menot!Q$13:Q$634,B65,Menot!P$13:P$634) -> 0 | H65: 0.25 | K65: 0 | L65: 0 | U65: 0 | V65: 0 | W65: 0 | X65: 0
B66: 58 | D66: Maksimi | F66: =SUMIF(Menot!Q$13:Q$634,B66,Menot!P$13:P$634) -> 0 | H66: 0.25 | K66: 0 | L66: 0 | U66: 0 | V66: 0 | W66: 0 | X66: 0
B67: 59 | D67: Maksimi | F67: =SUMIF(Menot!Q$13:Q$634,B67,Menot!P$13:P$634) -> 0 | H67: 0.25 | K67: 0 | L67: 0 | U67: 0 | V67: 0 | W67: 0 | X67: 0
B68: 60 | D68: Maksimi | F68: =SUMIF(Menot!Q$13:Q$634,B68,Menot!P$13:P$634) -> 0 | H68: 0.25 | K68: 0 | L68: 0 | U68: 0 | V68: 0 | W68: 0 | X68: 0
B70: nro | C70: Rakennukset, yhteensä | E70: =SUM(E71:E75) -> 0 | F70: =SUM(F71:F75) -> 0 | G70: =SUM(G71:G75) -> 0 | K70: =SUM(K71:K75) -> 0 | L70: =E70+F70-G70-K70 -> 0 | N70: =SUM(N71:N75) -> 0 | O70: =SUM(O71:O75) -> 0 | P70: =SUM(P71:P75) -> 0 | U70: =(E70+F70-G70)*H70 -> 0 | V70: =I70 -> 0 | W70: =IF(E70+F70-G70<600.01,E70+F70-G70,0) -> 0 | X70: 0
B71: 1 | D71: Maksimi | F71: =SUMIF(Menot!T$13:T$634,B71,Menot!S$13:S$634) -> 0 | H71: 0.1 | J71: =IF(I71>X71,"!",IF(H71>0.1,"!","")) ->  | K71: =IF(D71=T$1,X71,IF(D71=T$2,U71,V71)) -> 0 | L71: 0 | U71: 0 | V71: 0 | W71: 0 | X71: 0
B72: 2 | D72: Maksimi | F72: =SUMIF(Menot!T$13:T$634,B72,Menot!S$13:S$634) -> 0 | H72: 0.1 | J72: =IF(I72>X72,"!",IF(H72>0.1,"!","")) ->  | K72: =IF(D72=T$1,X72,IF(D72=T$2,U72,V72)) -> 0 | L72: 0 | U72: 0 | V72: 0 | W72: 0 | X72: 0
B73: 3 | D73: Maksimi | F73: =SUMIF(Menot!T$13:T$634,B73,Menot!S$13:S$634) -> 0 | H73: 0.1 | J73: =IF(I73>X73,"!",IF(H73>0.1,"!","")) ->  | K73: =IF(D73=T$1,X73,IF(D73=T$2,U73,V73)) -> 0 | L73: 0 | U73: 0 | V73: 0 | W73: 0 | X73: 0
B74: 4 | D74: Maksimi | F74: =SUMIF(Menot!T$13:T$634,B74,Menot!S$13:S$634) -> 0 | H74: 0.1 | J74: =IF(I74>X74,"!",IF(H74>0.1,"!","")) ->  | K74: =IF(D74=T$1,X74,IF(D74=T$2,U74,V74)) -> 0 | L74: 0 | U74: 0 | V74: 0 | W74: 0 | X74: =IF(U74>W74,U74,W74) -> 0
B75: 5 | D75: Maksimi | F75: =SUMIF(Menot!T$13:T$634,B75,Menot!S$13:S$634) -> 0 | H75: 0.1 | J75: =IF(I75>X75,"!",IF(H75>0.1,"!","")) ->  | K75: =IF(D75=T$1,X75,IF(D75=T$2,U75,V75)) -> 0 | L75: 0 | U75: 0 | V75: 0 | W75: 0 | X75: 0
B77: nro | C77: Ojat ja tiet, yhteensä | E77: =SUM(E78:E97) -> 3200 | F77: =SUM(F78:F97) -> 0 | G77: =SUM(G78:G97) -> 0 | K77: =SUM(K78:K97) -> 480 | L77: =E77+F77-G77-K77 -> 2720 | N77: =SUM(N78:N97) -> 0 | O77: =SUM(O78:O97) -> 0 | P77: =SUM(P78:P97) -> 0 | U77: =(E77+F77-G77)*H77 -> 0 | V77: =I77 -> 0 | W77: =IF(E77+F77-G77<600.01,E77+F77-G77,0) -> 0 | X77: 0
B78: 1 | C78: tien peruskorjaus Vilpotie 2019 | D78: Maksimi | E78: 3200 | F78: =SUMIF(Menot!W$13:W$634,B78,Menot!V$13:V$634) -> 0 | H78: 0.15 | J78: =IF(I78>X78,"!",IF(H78>0.15,"!","")) ->  | K78: =IF(D78=T$1,X78,IF(D78=T$2,U78,V78)) -> 480 | L78: 2720 | U78: 480 | V78: 0 | W78: 0 | X78: 480
B79: 2 | D79: Maksimi | F79: =SUMIF(Menot!W$13:W$634,B79,Menot!V$13:V$634) -> 0 | H79: 0.15 | J79: =IF(I79>X79,"!",IF(H79>0.15,"!","")) ->  | K79: 0 | L79: 0 | U79: 0 | V79: 0 | W79: 0 | X79: 0
B80: 3 | D80: Maksimi | F80: =SUMIF(Menot!W$13:W$634,B80,Menot!V$13:V$634) -> 0 | H80: 0.15 | J80: =IF(I80>X80,"!",IF(H80>0.15,"!","")) ->  | K80: 0 | L80: 0 | U80: 0 | V80: 0 | W80: 0 | X80: 0
B81: 4 | D81: Maksimi | F81: =SUMIF(Menot!W$13:W$634,B81,Menot!V$13:V$634) -> 0 | H81: 0.15 | K81: 0 | L81: 0 | U81: 0 | V81: 0 | W81: 0 | X81: 0
B82: 5 | D82: Maksimi | F82: =SUMIF(Menot!W$13:W$634,B82,Menot!V$13:V$634) -> 0 | H82: 0.15 | K82: 0 | L82: 0 | U82: 0 | V82: 0 | W82: 0 | X82: 0
B83: 6 | D83: Maksimi | F83: =SUMIF(Menot!W$13:W$634,B83,Menot!V$13:V$634) -> 0 | H83: 0.15 | K83: 0 | L83: 0 | U83: 0 | V83: 0 | W83: 0 | X83: 0
B84: 7 | D84: Maksimi | F84: =SUMIF(Menot!W$13:W$634,B84,Menot!V$13:V$634) -> 0 | H84: 0.15 | K84: 0 | L84: 0 | U84: 0 | V84: 0 | W84: 0 | X84: 0
B85: 8 | D85: Maksimi | F85: =SUMIF(Menot!W$13:W$634,B85,Menot!V$13:V$634) -> 0 | H85: 0.15 | K85: 0 | L85: 0 | U85: 0 | V85: 0 | W85: 0 | X85: 0
B86: 9 | D86: Maksimi | F86: =SUMIF(Menot!W$13:W$634,B86,Menot!V$13:V$634) -> 0 | H86: 0.15 | K86: 0 | L86: 0 | U86: 0 | V86: 0 | W86: 0 | X86: 0
B87: 10 | D87: Maksimi | F87: =SUMIF(Menot!W$13:W$634,B87,Menot!V$13:V$634) -> 0 | H87: 0.15 | K87: 0 | L87: 0 | U87: 0 | V87: 0 | W87: 0 | X87: 0
B88: 11 | D88: Maksimi | F88: =SUMIF(Menot!W$13:W$634,B88,Menot!V$13:V$634) -> 0 | H88: 0.15 | K88: 0 | L88: 0 | U88: 0 | V88: 0 | W88: 0 | X88: 0
B89: 12 | D89: Maksimi | F89: =SUMIF(Menot!W$13:W$634,B89,Menot!V$13:V$634) -> 0 | H89: 0.15 | K89: 0 | L89: 0 | U89: 0 | V89: 0 | W89: 0 | X89: 0
B90: 13 | D90: Maksimi | F90: =SUMIF(Menot!W$13:W$634,B90,Menot!V$13:V$634) -> 0 | H90: 0.15 | K90: 0 | L90: 0 | U90: 0 | V90: 0 | W90: 0 | X90: 0
B91: 14 | D91: Maksimi | F91: =SUMIF(Menot!W$13:W$634,B91,Menot!V$13:V$634) -> 0 | H91: 0.15 | K91: 0 | L91: 0 | U91: 0 | V91: 0 | W91: 0 | X91: 0
B92: 15 | D92: Maksimi | F92: =SUMIF(Menot!W$13:W$634,B92,Menot!V$13:V$634) -> 0 | H92: 0.15 | K92: 0 | L92: 0 | U92: 0 | V92: 0 | W92: 0 | X92: 0
B93: 16 | D93: Maksimi | F93: =SUMIF(Menot!W$13:W$634,B93,Menot!V$13:V$634) -> 0 | H93: 0.15 | K93: 0 | L93: 0 | U93: 0 | V93: 0 | W93: 0 | X93: 0
B94: 17 | D94: Maksimi | F94: =SUMIF(Menot!W$13:W$634,B94,Menot!V$13:V$634) -> 0 | H94: 0.15 | K94: 0 | L94: 0 | U94: 0 | V94: 0 | W94: 0 | X94: 0
B95: 18 | D95: Maksimi | F95: =SUMIF(Menot!W$13:W$634,B95,Menot!V$13:V$634) -> 0 | H95: 0.15 | K95: 0 | L95: 0 | U95: 0 | V95: 0 | W95: 0 | X95: 0
B96: 19 | D96: Maksimi | F96: =SUMIF(Menot!W$13:W$634,B96,Menot!V$13:V$634) -> 0 | H96: 0.15 | K96: 0 | L96: 0 | U96: 0 | V96: 0 | W96: 0 | X96: 0
B97: 20 | D97: Maksimi | F97: =SUMIF(Menot!W$13:W$634,B97,Menot!V$13:V$634) -> 0 | H97: 0.15 | K97: 0 | L97: 0 | U97: 0 | V97: 0 | W97: 0 | X97: 0
C99: Ohjelma poistaa enintään 600 euron menon tai menojäännöksen kerralla.

Sheet Ajopäiv.
B2: =Etusivu!C10 -> Matti Metsänen
B3: =Etusivu!C16 -> 123456-7
F4: Kilometrikustannus ja päivärahat yhteensä | L4: =SUM(I6:M6) -> 44.64
B5: AJOPÄIVÄKIRJA | I5: Matkakulu | J5: puolipäiväraha | L5: kokopäiväraha
D6: ohje | E6: Yhteensä | F6: =CONCATENATE(SUMIF(G8:G149,">3",F8:F149), " km ja ", SUMIF(G8:G149,"<4",F8:F149), " tuntia") -> 144 km ja 0 tuntia | I6: =SUM(I8:I149) -> 44.64 | K6: =SUM(K8:K149) -> 0 | M6: =SUM(M8:M149) -> 0
B7: Päiväys pv kk | D7: Selite | F7: km tai tuntia | G7: ajoneuvo- luokka | H7: lisä- henkilöt | I7: koko summa € | J7: kpl | K7: koko summa € | L7: kpl | M7: koko summa € | O7: Päivärahat | Q7: € | S7: OHJEITA
B8: 4 | C8: 6 | D8: Käynti metsässä | F8: 144 | G8: 4 | H8: 1 | I8: =(((SUMIF(O$13:O$27,G8,Q$13:Q$27))+(H8*Q$30))*F8) -> 44.64 | K8: =J8*$Q$8 -> 0 | M8: =L8*$Q$9 -> 0 | O8: Puolipäiväraha | Q8: 19 | S8: o Verottaja vahvistaa metsätalouden kilometrikorvaukset vuodenvaihteessa
I9: =(((SUMIF(O$13:O$27,G9,Q$13:Q$27))+(H9*Q$30))*F9) -> 0 | K9: =J9*$Q$8 -> 0 | M9: =L9*$Q$9 -> 0 | O9: Kokopäiväraha | Q9: 34 | S9: o Tässä ohjelmaversiossa luvut ovat verovuoden 2024 arvoja
I10: =(((SUMIF(O$13:O$27,G10,Q$13:Q$27))+(H10*Q$30))*F10) -> 0 | K10: =J10*$Q$8 -> 0 | M10: =L10*$Q$9 -> 0 | S10: o Arvot voi itse muuttaa taulukoon.
I11: =(((SUMIF(O$13:O$27,G11,Q$13:Q$27))+(H11*Q$30))*F11) -> 0 | K11: =J11*$Q$8 -> 0 | M11: =L11*$Q$9 -> 0 | O11: Kilometrikorvaukset | Q11: €/km tai €/h | S11: o Jaa matka tarvittaessa useille riveille, jos ajoneuvoluokka on matkan eri vaiheissa erilainen.
I12: 0 | K12: 0 | M12: 0 | O12: Ajoneuvoluokka | S12: o Päivärahan edellytyksenä on matka muualle, kuin omaan metsään ja sen kesto yli 6 h (puolipäiväraha)
I13: 0 | K13: 0 | M13: 0 | O13: 1 | P13: mönkijä | Q13: 15 | S13: tai yli 10 h (kokopäiväraha). Esim koulutusmatka. Etäisyys kotoa tulee lisäksi olla yli 15 km. (Yhtenäistämisohje 2024)
I14: 0 | K14: 0 | M14: 0 | O14: 2 | P14: moottorikelkka | Q14: 15
I15: 0 | K15: 0 | M15: 0 | O15: 3 | P15: Traktori | Q15: 12
I16: 0 | K16: 0 | M16: 0 | O16: 4 | P16: henkilöauto | Q16: 0.27
I17: 0 | K17: 0 | M17: 0 | O17: 5 | P17: mopo | Q17: 0.12
I18: 0 | K18: 0 | M18: 0 | O18: 6 | P18: moottoripyörä | Q18: 0.21
I19: 0 | K19: 0 | M19: 0 | O19: 7 | P19: moottorivene <50 hv
I20: 0 | K20: 0 | M20: 0 | O20: 8 | P20: moottorivene >50 hv
I21: 0 | K21: 0 | M21: 0 | O21: 9 | P21: auto + perävaunu | Q21: =Q16+0.1 -> 0.37
I22: 0 | K22: 0 | M22: 0 | O22: 10 | P22: auto + asuntovaunu | Q22: =+Q16+0.15 -> 0.42
I23: 0 | K23: 0 | M23: 0 | O23: 11 | P23: auto + taukotupa | Q23: =+Q16+0.3 -> 0.57
I24: 0 | K24: 0 | M24: 0 | O24: 12 | P24: auto + metsätie | Q24: =+Q16+0.11 -> 0.38
I25: 0 | K25: 0 | M25: 0 | O25: 13 | P25: auto + perävaunu+metsätie | Q25: =+Q16+0.1+0.11 -> 0.48
I26: 0 | K26: 0 | M26: 0 | O26: 14 | P26: auto + asuntovaunu+metsätie | Q26: =+Q16+0.14+0.11 -> 0.52
I27: 0 | K27: 0 | M27: 0 | O27: 15 | P27: auto + taukotupa+metsätie | Q27: =+Q16+0.27+0.11 -> 0.65
I28: 0 | K28: 0 | M28: 0
I29: 0 | K29: 0 | M29: 0 | Q29: euroa/km/hlö
I30: 0 | K30: 0 | M30: 0 | O30: Lisämatkustaja | Q30: 0.04
I31: 0 | K31: 0 | M31: 0
I32: 0 | K32: 0 | M32: 0
I33: 0 | K33: 0 | M33: 0
I34: 0 | K34: 0 | M34: 0
I35: 0 | K35: 0 | M35: 0
I36: 0 | K36: 0 | M36: 0
I37: 0 | K37: 0 | M37: 0
I38: 0 | K38: 0 | M38: 0
I39: 0 | K39: 0 | M39: 0
I40: 0 | K40: 0 | M40: 0
I41: 0 | K41: 0 | M41: 0
I42: 0 | K42: 0 | M42: 0
I43: 0 | K43: 0 | M43: 0
I44: 0 | K44: 0 | M44: 0
I45: 0 | K45: 0 | M45: 0
I46: 0 | K46: 0 | M46: 0
I47: 0 | K47: 0 | M47: 0
I48: 0 | K48: 0 | M48: 0
I49: 0 | K49: 0 | M49: 0
I50: 0 | K50: 0 | M50: 0
I51: 0 | K51: 0 | M51: 0
I52: 0 | K52: 0 | M52: 0
I53: 0 | K53: 0 | M53: 0
I54: 0 | K54: 0 | M54: 0
I55: 0 | K55: 0 | M55: 0
I56: 0 | K56: 0 | M56: 0
I57: 0 | K57: 0 | M57: 0
I58: 0 | K58: 0 | M58: 0
I59: 0 | K59: 0 | M59: 0
I60: 0 | K60: 0 | M60: 0
I61: 0 | K61: 0 | M61: 0
I62: 0 | K62: 0 | M62: 0
I63: 0 | K63: 0 | M63: 0
I64: 0 | K64: 0 | M64: 0
I65: 0 | K65: 0 | M65: 0
I66: 0 | K66: 0 | M66: 0
I67: 0 | K67: 0 | M67: 0
I68: 0 | K68: 0 | M68: 0
I69: 0 | K69: 0 | M69: 0
I70: 0 | K70: 0 | M70: 0
I71: 0 | K71: 0 | M71: 0
I72: 0 | K72: 0 | M72: 0
I73: 0 | K73: 0 | M73: 0
I74: 0 | K74: 0 | M74: 0
I75: =(((SUMIF(O$13:O$27,G75,Q$13:Q$27))+(H75*Q$30))*F75) -> 0 | K75: =J75*$Q$8 -> 0 | M75: =L75*$Q$9 -> 0
I76: 0 | K76: 0 | M76: 0
I77: 0 | K77: 0 | M77: 0
I78: 0 | K78: 0 | M78: 0
I79: 0 | K79: 0 | M79: 0
I80: 0 | K80: 0 | M80: 0
I81: 0 | K81: 0 | M81: 0
I82: 0 | K82: 0 | M82: 0
I83: 0 | K83: 0 | M83: 0
I84: 0 | K84: 0 | M84: 0
I85: 0 | K85: 0 | M85: 0
I86: 0 | K86: 0 | M86: 0
I87: 0 | K87: 0 | M87: 0
I88: 0 | K88: 0 | M88: 0
I89: 0 | K89: 0 | M89: 0
I90: 0 | K90: 0 | M90: 0
I91: 0 | K91: 0 | M91: 0
I92: 0 | K92: 0 | M92: 0
I93: 0 | K93: 0 | M93: 0
I94: 0 | K94: 0 | M94: 0
I95: 0 | K95: 0 | M95: 0
I96: 0 | K96: 0 | M96: 0
I97: 0 | K97: 0 | M97: 0
I98: 0 | K98: 0 | M98: 0
I99: 0 | K99: 0 | M99: 0
I100: 0 | K100: 0 | M100: 0
I101: 0 | K101: 0 | M101: 0
I102: 0 | K102: 0 | M102: 0
I103: 0 | K103: 0 | M103: 0
I104: 0 | K104: 0 | M104: 0
I105: 0 | K105: 0 | M105: 0
I106: 0 | K106: 0 | M106: 0
I107: 0 | K107: 0 | M107: 0
I108: 0 | K108: 0 | M108: 0
I109: 0 | K109: 0 | M109: 0
I110: 0 | K110: 0 | M110: 0
I111: 0 | K111: 0 | M111: 0
I112: 0 | K112: 0 | M112: 0
I113: 0 | K113: 0 | M113: 0
I114: 0 | K114: 0 | M114: 0
I115: 0 | K115: 0 | M115: 0
I116: 0 | K116: 0 | M116: 0
I117: 0 | K117: 0 | M117: 0
I118: 0 | K118: 0 | M118: 0
I119: 0 | K119: 0 | M119: 0
I120: 0 | K120: 0 | M120: 0
I121: 0 | K121: 0 | M121: 0
I122: 0 | K122: 0 | M122: 0
I123: 0 | K123: 0 | M123: 0
I124: 0 | K124: 0 | M124: 0
I125: 0 | K125: 0 | M125: 0
I126: 0 | K126: 0 | M126: 0
I127: 0 | K127: 0 | M127: 0
I128: 0 | K128: 0 | M128: 0
I129: 0 | K129: 0 | M129: 0
I130: 0 | K130: 0 | M130: 0
I131: 0 | K131: 0 | M131: 0
I132: 0 | K132: 0 | M132: 0
I133: 0 | K133: 0 | M133: 0
I134: 0 | K134: 0 | M134: 0
I135: 0 | K135: 0 | M135: 0
I136: 0 | K136: 0 | M136: 0
I137: 0 | K137: 0 | M137: 0
I138: 0 | K138: 0 | M138: 0
I139: =(((SUMIF(O$13:O$27,G139,Q$13:Q$27))+(H139*Q$30))*F139) -> 0 | K139: =J139*$Q$8 -> 0 | M139: =L139*$Q$9 -> 0
I140: 0 | K140: 0 | M140: 0
I141: 0 | K141: 0 | M141: 0
I142: 0 | K142: 0 | M142: 0
I143: 0 | K143: 0 | M143: 0
I144: 0 | K144: 0 | M144: 0
I145: 0 | K145: 0 | M145: 0
I146: 0 | K146: 0 | M146: 0
I147: 0 | K147: 0 | M147: 0
I148: 0 | K148: 0 | M148: 0
I149: 0 | K149: 0 | M149: 0

Sheet Arvionvaraiset
B2: =Etusivu!C10 -> Matti Metsänen
B3: =Etusivu!C16 -> 123456-7
B5: ARVIONVARAISET
B7: Matkapuhelinkulut | I7: Puhelin- ja tietotekniikakulut | P7: Sähkökulut | W7: Nimeä itse | AD7: Ohje
P8: Sähkön käyttöpaikka
B9: päiväys | I9: päiväys | P9: päiväys | W9: päiväys
B10: pv | C10: kk | D10: Summa (sis. alv) | E10: Alv % | F10: Alv | G10: Euroa Alv 0 % | I10: pv | J10: kk | K10: Summa (sis. alv) | L10: Alv % | M10: Alv | N10: Euroa Alv 0 % | P10: pv | Q10: kk | R10: Summa (sis. alv) | S10: Alv % | T10: Alv | U10: Euroa Alv 0 % | W10: pv | X10: kk | Y10: Summa (sis. alv) | Z10: Alv % | AA10: Alv | AB10: Euroa Alv 0 %
E11: =IF(Etusivu!$C$22="kyllä",25.5%,0%) -> 0.255 | F11: =+D11-G11 -> 0 | G11: =+D11/(1+E11) -> 0 | L11: =IF(Etusivu!$C$22="kyllä",25.5%,0%) -> 0.255 | M11: =+K11-N11 -> 0 | N11: =+K11/(1+L11) -> 0 | S11: =IF(Etusivu!$C$22="kyllä",25.5%,0%) -> 0.255 | T11: =+R11-U11 -> 0 | U11: =+R11/(1+S11) -> 0 | Z11: =IF(Etusivu!$C$22="kyllä",25.5%,0%) -> 0.255 | AA11: =+Y11-AB11 -> 0 | AB11: =+Y11/(1+Z11) -> 0
E12: =IF(Etusivu!$C$22="kyllä",25.5%,0%) -> 0.255 | F12: =+D12-G12 -> 0 | G12: =+D12/(1+E12) -> 0 | L12: =IF(Etusivu!$C$22="kyllä",25.5%,0%) -> 0.255 | M12: =+K12-N12 -> 0 | N12: =+K12/(1+L12) -> 0 | S12: =IF(Etusivu!$C$22="kyllä",25.5%,0%) -> 0.255 | T12: =+R12-U12 -> 0 | U12: =+R12/(1+S12) -> 0 | Z12: =IF(Etusivu!$C$22="kyllä",25.5%,0%) -> 0.255 | AA12: =+Y12-AB12 -> 0 | AB12: =+Y12/(1+Z12) -> 0
E13: =IF(Etusivu!$C$22="kyllä",25.5%,0%) -> 0.255 | F13: =+D13-G13 -> 0 | G13: =+D13/(1+E13) -> 0 | L13: =IF(Etusivu!$C$22="kyllä",25.5%,0%) -> 0.255 | M13: 0 | N13: 0 | S13: =IF(Etusivu!$C$22="kyllä",25.5%,0%) -> 0.255 | T13: 0 | U13: 0 | Z13: =IF(Etusivu!$C$22="kyllä",25.5%,0%) -> 0.255 | AA13: 0 | AB13: 0
E14: =IF(Etusivu!$C$22="kyllä",25.5%,0%) -> 0.255 | F14: =+D14-G14 -> 0 | G14: =+D14/(1+E14) -> 0 | L14: =IF(Etusivu!$C$22="kyllä",25.5%,0%) -> 0.255 | M14: 0 | N14: 0 | S14: =IF(Etusivu!$C$22="kyllä",25.5%,0%) -> 0.255 | T14: 0 | U14: 0 | Z14: =IF(Etusivu!$C$22="kyllä",25.5%,0%) -> 0.255 | AA14: 0 | AB14: 0
E15: =IF(Etusivu!$C$22="kyllä",25.5%,0%) -> 0.255 | F15: 0 | G15: 0 | L15: =IF(Etusivu!$C$22="kyllä",25.5%,0%) -> 0.255 | M15: 0 | N15: 0 | S15: =IF(Etusivu!$C$22="kyllä",25.5%,0%) -> 0.255 | T15: 0 | U15: 0 | Z15: =IF(Etusivu!$C$22="kyllä",25.5%,0%) -> 0.255 | AA15: 0 | AB15: 0
E16: =IF(Etusivu!$C$22="kyllä",25.5%,0%) -> 0.255 | F16: 0 | G16: 0 | L16: =IF(Etusivu!$C$22="kyllä",25.5%,0%) -> 0.255 | M16: 0 | N16: 0 | S16: =IF(Etusivu!$C$22="kyllä",25.5%,0%) -> 0.255 | T16: 0 | U16: 0 | Z16: =IF(Etusivu!$C$22="kyllä",25.5%,0%) -> 0.255 | AA16: 0 | AB16: 0
E17: =IF(Etusivu!$C$22="kyllä",25.5%,0%) -> 0.255 | F17: 0 | G17: 0 | L17: =IF(Etusivu!$C$22="kyllä",25.5%,0%) -> 0.255 | M17: 0 | N17: 0 | S17: =IF(Etusivu!$C$22="kyllä",25.5%,0%) -> 0.255 | T17: 0 | U17: 0 | Z17: =IF(Etusivu!$C$22="kyllä",25.5%,0%) -> 0.255 | AA17: 0 | AB17: 0
E18: =IF(Etusivu!$C$22="kyllä",25.5%,0%) -> 0.255 | F18: 0 | G18: 0 | L18: =IF(Etusivu!$C$22="kyllä",25.5%,0%) -> 0.255 | M18: 0 | N18: 0 | S18: =IF(Etusivu!$C$22="kyllä",25.5%,0%) -> 0.255 | T18: 0 | U18: 0 | Z18: =IF(Etusivu!$C$22="kyllä",25.5%,0%) -> 0.255 | AA18: 0 | AB18: 0
E19: =IF(Etusivu!$C$22="kyllä",25.5%,0%) -> 0.255 | F19: 0 | G19: 0 | L19: =IF(Etusivu!$C$22="kyllä",25.5%,0%) -> 0.255 | M19: 0 | N19: 0 | S19: =IF(Etusivu!$C$22="kyllä",25.5%,0%) -> 0.255 | T19: 0 | U19: 0 | Z19: =IF(Etusivu!$C$22="kyllä",25.5%,0%) -> 0.255 | AA19: 0 | AB19: 0
E20: =IF(Etusivu!$C$22="kyllä",25.5%,0%) -> 0.255 | F20: 0 | G20: 0 | L20: =IF(Etusivu!$C$22="kyllä",25.5%,0%) -> 0.255 | M20: 0 | N20: 0 | S20: =IF(Etusivu!$C$22="kyllä",25.5%,0%) -> 0.255 | T20: 0 | U20: 0 | Z20: =IF(Etusivu!$C$22="kyllä",25.5%,0%) -> 0.255 | AA20: 0 | AB20: 0
E21: =IF(Etusivu!$C$22="kyllä",25.5%,0%) -> 0.255 | F21: 0 | G21: 0 | L21: =IF(Etusivu!$C$22="kyllä",25.5%,0%) -> 0.255 | M21: 0 | N21: 0 | S21: =IF(Etusivu!$C$22="kyllä",25.5%,0%) -> 0.255 | T21: 0 | U21: 0 | Z21: =IF(Etusivu!$C$22="kyllä",25.5%,0%) -> 0.255 | AA21: 0 | AB21: 0
E22: =IF(Etusivu!$C$22="kyllä",25.5%,0%) -> 0.255 | F22: 0 | G22: 0 | L22: =IF(Etusivu!$C$22="kyllä",25.5%,0%) -> 0.255 | M22: 0 | N22: 0 | S22: =IF(Etusivu!$C$22="kyllä",25.5%,0%) -> 0.255 | T22: 0 | U22: 0 | Z22: =IF(Etusivu!$C$22="kyllä",25.5%,0%) -> 0.255 | AA22: 0 | AB22: 0
E23: =IF(Etusivu!$C$22="kyllä",25.5%,0%) -> 0.255 | F23: 0 | G23: 0 | L23: =IF(Etusivu!$C$22="kyllä",25.5%,0%) -> 0.255 | M23: 0 | N23: 0 | S23: =IF(Etusivu!$C$22="kyllä",25.5%,0%) -> 0.255 | T23: 0 | U23: 0 | Z23: =IF(Etusivu!$C$22="kyllä",25.5%,0%) -> 0.255 | AA23: 0 | AB23: 0
B24: yhteensä | F24: =SUM(F11:F23) -> 0 | G24: =SUM(G11:G23) -> 0 | I24: yhteensä | M24: =SUM(M11:M23) -> 0 | N24: =SUM(N11:N23) -> 0 | P24: yhteensä | T24: =SUM(T11:T23) -> 0 | U24: =SUM(U11:U23) -> 0 | W24: yhteensä | AA24: =SUM(AA11:AA23) -> 0 | AB24: =SUM(AB11:AB23) -> 0
B25: €/kk Alv 0% | G25: =+G24/12 -> 0 | I25: €/kk Alv 0% | N25: =+N24/12 -> 0 | P25: €/kk Alv 0% | U25: =+U24/12 -> 0 | W25: €/kk Alv 0% | AB25: =+AB24/12 -> 0
B27: Metsätalouden osuus | F27: 0.25 | I27: Metsätalouden osuus | M27: 0.1 | P27: Metsätalouden osuus | T27: 0.1 | W27: Metsätalouden osuus | AA27: 0.5
F28: =+F24*F27 -> 0 | G28: =+F27*G24 -> 0 | M28: =+M24*M27 -> 0 | N28: =+M27*N24 -> 0 | T28: =+T27*T24 -> 0 | U28: =+T27*U24 -> 0 | AA28: =+AA27*AA24 -> 0 | AB28: =+AA27*AB24 -> 0
B30: Työhuonevähennys: Jos selvitystä todellisista kuluista ei ole, mutta harjoitetun metsätalouden laajuus ja työhuonetilan tarve huomioon ottaen kuluja voidaan katsoa syntyneen, arvioituna kuluna voidaan muun selvityksen puuttuessa vähentää palkansaajan satunnaisten sivutulojen työhuonevähennyksen mukainen määrä (240 €/v). (Vuoden 2024 arvo) | N30: Euroa Alv 0 %
B33: Arvionvaraiset yhteensä
B34: Metsätaloudessa vähennyskelpoinen alv | G34: =+F28+M28+T28+AA28 -> 0
B35: Metsätaloudessa vähennyskelpoinen meno | G35: =+G28+N28+U28+AB28+N31 -> 0

Sheet Velat
B2: =Etusivu!C10 -> Matti Metsänen
B3: =Etusivu!C16 -> 123456-7
B5: VELAT JA KOROT
B6: YHTYMÄT EIVÄT TÄYTÄ TÄTÄ LOMAKETTA
B8: VELAN NIMI | C8: VELAN 1 NIMI | I8: LAINAT YHTEENSÄ
B9: Velan määrä vuoden alussa | E9: Euroa | I9: Velan määrä vuoden alussa | L9: =D9+D31+D52 -> 0 | M9: euroa
B10: Velan määrä vuoden lopussa | D10: =D9-D27 -> 0 | E10: Euroa | I10: Velan määrä vuoden lopussa | L10: =D10+D32+D53 -> 0 | M10: euroa
I11: Lainan kulut yhteensä | L11: =E27+E49+E70 -> 0 | M11: euroa
B12: LAINAN MAKSUERÄT | I12: Korot yhteensä | L12: =C27+C49+C70 -> 0 | M12: euroa
B13: Päivä | C13: Korko | D13: Lyhennys | E13: Lainan kulut | F13: Yhteensä | I13: OHJEITA
F14: =IF(C14+D14+E14>0,C14+D14+E14,"") -> 
F15: =IF(C15+D15+E15>0,C15+D15+E15,"") ->  | I15: o Metsätalouden harjoittamiseen liittyvät velat ja niistä maksetut korot ilmoitetaan esitäytetyllä veroilmoituksella tulonhankkimismenona.
F16: =IF(C16+D16+E16>0,C16+D16+E16,"") -> 
F17: =IF(C17+D17+E17>0,C17+D17+E17,"") -> 
I18: o Metsätalouden lainan kulut ovat metsätalouden muuta kulua
I19: ja ne vähennetään automaattisesti verolomakkeen kohdassa 7.3 Muut vuosimenot
F25: =IF(C25+D25+E25>0,C25+D25+E25,"") -> 
B26: YHTEENSÄ | C26: =IF(SUM(C14:C25)>0,SUM(C14:C25),"") ->  | D26: =IF(SUM(D14:D25)>0,SUM(D14:D25),"") ->  | E26: =IF(SUM(E14:E25)>0,SUM(E14:E25),"") ->  | F26: =IF(SUM(F14:F25)>0,SUM(F14:F25),"") -> 
C27: =IF(C26>0,SUM(C14:C25),0) -> 0 | D27: =IF(D26>0,SUM(D14:D25),0) -> 0 | E27: =IF(E26>0,SUM(E14:E25),0) -> 0
B30: VELAN NIMI | C30: VELAN 2 NIMI
B31: Velan määrä vuoden alussa | D31: 0 | E31: Euroa
B32: Velan määrä vuoden lopussa | D32: =D31-D49 -> 0 | E32: Euroa
B34: LAINAN MAKSUERÄT
B35: Päivä | C35: Korko | D35: Lyhennys | E35: Lainan kulut | F35: Yhteensä
F36: =IF(C36+D36>0,C36+D36+E36,"") -> 
F37: =IF(C37+D37>0,C37+D37+E37,"") -> 
F38: =IF(C38+D38>0,C38+D38+E38,"") -> 
F39: =IF(C39+D39>0,C39+D39+E39,"") -> 
F47: =IF(C47+D47>0,C47+D47+E47,"") -> 
B48: YHTEENSÄ | C48: =IF(SUM(C36:C47)>0,SUM(C36:C47),"") ->  | D48: =IF(SUM(D36:D47)>0,SUM(D36:D47),"") ->  | E48: =IF(SUM(E36:E47)>0,SUM(E36:E47),"") ->  | F48: =IF(SUM(F36:F47)>0,SUM(F36:F47),"") -> 
C49: =IF(C48>0,SUM(C36:C47),0) -> 0 | D49: =IF(D48>0,SUM(D36:D47),0) -> 0 | E49: =IF(E48>0,SUM(E36:E47),0) -> 0
B51: VELAN NIMI | C51: VELAN 3 NIMI
B52: Velan määrä vuoden alussa | D52: 0 | E52: Euroa
B53: Velan määrä vuoden lopussa | D53: =D52-D70 -> 0 | E53: Euroa
B55: LAINAN MAKSUERÄT
B56: Päivä | C56: Korko | D56: Lyhennys | E56: Lainan kulut | F56: Yhteensä
F57: =IF(C57+D57>0,C57+D57+E57,"") -> 
F58: =IF(C58+D58>0,C58+D58+E58,"") -> 
F59: =IF(C59+D59>0,C59+D59+E59,"") -> 
F60: =IF(C60+D60>0,C60+D60+E60,"") -> 
F68: =IF(C68+D68>0,C68+D68+E68,"") -> 
B69: YHTEENSÄ | C69: =IF(SUM(C57:C68)>0,SUM(C57:C68),"") ->  | D69: =IF(SUM(D57:D68)>0,SUM(D57:D68),"") ->  | E69: =IF(SUM(E57:E68)>0,SUM(E57:E68),"") ->  | F69: =IF(SUM(F57:F68)>0,SUM(F57:F68),"") -> 
C70: =IF(C69>0,SUM(C57:C68),0) -> 0 | D70: =IF(D69>0,SUM(D57:D68),0) -> 0 | E70: =IF(E69>0,SUM(E57:E68),0) -> 0

Sheet Varaukset
B2: =Etusivu!C10 -> Matti Metsänen
B3: =Etusivu!C16 -> 123456-7
B5: VARAUKSET
B6: Valitse alue
B7: Etelä-Suomi
B9: MENOVARAUS | F9: =IF(C26>E14,CONCATENATE("HUOM! Määrä voi olla enintään 15 %"," tai ",E14," €"),"") ->  | G9: TUHOVARAUS | K9: =IF(H26>J14,CONCATENATE("HUOM! Määrä voi olla enintään vakuutuskorvauksen määrä ",J14," €"),"") -> 
B10: Menovarauksen haluttu määrä | D10: Euroina tai | G10: Tuhovarauksen haluttu määrä | I10: Euroina tai | M10: =Etusivu!$C8-6 -> 2019
D11: Prosentteina | E11: 0.15 | I11: Prosentteina | J11: 0.9 | M11: =Etusivu!$C8-5 -> 2020
B12: Menovarauksen haluttu kokonaiskäyttö verovuonna | F12: =IF(E12="","",IF(E16>E12,CONCATENATE("Pakollinen tuloutus ",E16," €"),"")) ->  | G12: Tuhovarauksen haluttu kokonaiskäyttö verovuonna | K12: =IF(J12="","",IF(J16>J12,CONCATENATE("Pakollinen tuloutus ",J16," €"),"")) -> 
M13: Etelä-Suomi
B14: Menovarauksen enimmäismäärä verovuonna | E14: =IF(('2C'!S26-'2C'!S29+'2C'!S32+'2C'!S35-'2C'!B38)*0.15<0.01,0,('2C'!S26-'2C'!S29+'2C'!S32+'2C'!S35-'2C'!B38)*0.15) -> 948 | G14: Tuhovarauksen enimmäismäärä verovuonna | J14: ='2C'!B32+'2C'!F32 -> 0 | M14: Pohjois-Suomi
B15: Tehty menovaraus yhteensä, ennen varausten tuloutusta | E15: =SUM(C20:C26) -> 948 | G15: Tehty tuhovaraus yhteensä, ennen varausten tuloutusta | J15: =SUM(H20:H26) -> 0
B16: Mevovarauksen pakollinen tuloutus | E16: =IF(B7=M14,D20,D22) -> 0 | G16: Mevovarauksen pakollinen tuloutus | J16: =IF(B7=M14,I20,I22) -> 0
B17: Verovuoden tuloutettava menovaraus | E17: =SUM(D20:D26) -> 0 | G17: Verovuoden tuloutettava tuhovaraus | J17: =SUM(I20:I26) -> 0
B19: Vuosi, jolloin varaus on tehty | C19: Jäljellä vuoden alussa Lisää aiemmat varaukset itse | D19: Verovuoden käyttö Ohjelma laskee määrän | E19: Jäljelle jäävä varaus Siirrä seuraavan vuoden Metteen | G19: Vuosi, jolloin varaus on tehty | H19: Jäljellä vuoden alussa Lisää aiemmat varaukset itse | I19: Verovuoden käyttö Ohjelma laskee määrän | J19: Jäljelle jäävä varaus Siirrä seuraavan vuoden Metteen
B20: =IF($B7=$M14,Etusivu!$C8-6," ") ->  | D20: =IF(B7=M14,C20,0) -> 0 | E20: 0 | G20: =IF($B$7=$M$14,Etusivu!$C$8-6," ") ->  | I20: =IF(B7=M14,H20,0) -> 0 | J20: 0
B21: =IF(B7=M14,Etusivu!C8-5," ") ->  | D21: =IF(B7=M14,C21-E21,0) -> 0 | E21: =IF(B7=M13,0,IF(E12>=C21+C20,0,IF(C21+C20-E12>=C21,C21,C21-E12+E16))) -> 0 | G21: =IF($B$7=$M$14,Etusivu!$C$8-5," ") ->  | I21: =IF(B7=M14,H21-J21,0) -> 0 | J21: =IF(B7=M13,0,IF(J12>=H21+H20,0,IF(H21+H20-J12>=H21,H21,H21-J12+J16))) -> 0
B22: =Etusivu!C8-4 -> 2021 | D22: =C22-E22 -> 0 | E22: =IF(B7=M13,0,IF(E12>=C22+C21+C20,0,IF(C22+C21+C20-E12>=C22,C22,C22-E12))) -> 0 | G22: =Etusivu!$C$8-4 -> 2021 | I22: =H22-J22 -> 0 | J22: =IF(B7=M13,0,IF(J12>=H22+H21+H20,0,IF(H22+H21+H20-J12>=H22,H22,H22-J12))) -> 0
B23: =Etusivu!C8-3 -> 2022 | D23: =C23-E23 -> 0 | E23: =IF(E12>=C23+C22+C21+C20,0,IF(C23+C22+C21+C20-E12>=C23,C23,C23+C22+C21+C20-E12)) -> 0 | G23: =Etusivu!$C$8-3 -> 2022 | I23: =H23-J23 -> 0 | J23: =IF(J12>=H23+H22+H21+H20,0,IF(H23+H22+H21+H20-J12>=H23,H23,H23+H22+H21+H20-J12)) -> 0
B24: =Etusivu!C8-2 -> 2023 | D24: =C24-E24 -> 0 | E24: =IF(E12>=C24+C23+C22+C21+C20,0,IF(C24+C23+C22+C21+C20-E12>=C24,C24,C24+C23+C22+C21+C20-E12)) -> 0 | G24: =Etusivu!$C$8-2 -> 2023 | I24: =H24-J24 -> 0 | J24: =IF(J12>=H24+H23+H22+H21+H20,0,IF(H24+H23+H22+H21+H20-J12>=H24,H24,H24+H23+H22+H21+H20-J12)) -> 0
B25: =Etusivu!C8-1 -> 2024 | D25: =C25-E25 -> 0 | E25: =IF(E12>=C25+C24+C23+C22+C21+C20,0,IF(C25+C24+C23+C22+C21+C20-E12>=C25,C25,C25+C24+C23+C22+C21+C20-E12)) -> 0 | G25: =Etusivu!$C$8-1 -> 2024 | I25: =H25-J25 -> 0 | J25: =IF(J12>=H25+H24+H23+H22+H21+H20,0,IF(H25+H24+H23+H22+H21+H20-J12>=H25,H25,H25+H24+H23+H22+H21+H20-J12)) -> 0 | K25: =IF($B7=$M13,IF(H20>0,"Tarkista aluevalintasi",""),"") -> 
B26: =Etusivu!C8 -> 2025 | C26: =IF(E10="",IF(('2C'!S26-'2C'!S29+'2C'!S32+'2C'!S35-'2C'!B38)<0,0,(('2C'!S26-'2C'!S29+'2C'!S32+'2C'!S35-'2C'!B38)*Varaukset!E11)),E10) -> 948 | D26: =C26-E26 -> 0 | E26: =IF(E12>=C26+C25+C24+C23+C22,0,IF(C26+C25+C24+C23+C22-E12>=C26,C26,C26+C25+C24+C23+C22-E12)) -> 948 | F26: =IF($B7=$M13,IF(C20>0,"Tarkista aluevalintasi",""),"") ->  | G26: =Etusivu!$C$8 -> 2025 | H26: =IF(J10="",(Tulot!O9+Tulot!P9)*J11,J10) -> 0 | I26: =H26-J26 -> 0 | J26: =IF(J12>=H26+H25+H24+H23+H22,0,IF(H26+H25+H24+H23+H22-J12>=H26,H26,H26+H25+H24+H23+H22-J12)) -> 0 | K26: =IF(B7=M13,IF(H21>0,"Tarkista aluevalintasi",""),"") -> 
F27: =IF($B7=$M13,IF(C21>0,"Tarkista aluevalintasi",""),"") -> 
B29: OHJEITA
B31: o Valitse meno- tai tuhovarauksen haluttu määrä, Euroina tai prosentteina. Jos muuta valintaa ei tehdä, ohjelma tekee automaattisesti maksimisuuruisen eli 15 % menovarauksen ja 100 % tuhovarauksen.
B32: o Mikäli haluat tulouttaa tehtyjä meno- tai tuhovarauksia, kirjoita haluttu määrä soluun E12 tai J12. Ohjelma tulouttaa varauksia automaatisesti vanhemmasta varauksesta alkaen.
B33: o Sijoita aiemmilta vuosilta tulouttamatta olevat varaukset ko vuoden kohdalle sarakkeeseen "Jäljellä verovuoden alussa"
B34: o Sarakkeelle "Verovuoden käyttö", eli meno- tai tuhovarauksen tuloutuksen, ohjelma laskee automaattisesti sen mukaan minkä verran verovuoden halutuksi kokonaiskäytöksi on ylempänä annettu.
B35: o Jäljellejäävät menovarauksen määrät siirretään suraavan vuoden Metteen sen vuoden kohdalle, jolloin kyseinen varaus on tehty.
B36: o Tuhovaraus on korkeintaan uudistuskustannusten suuruinen.
B37: =CONCATENATE("o Vuodet ",M10," - ",M11," käytössä vain Oulun- ja Lapin läänissä, Pohjois-Suomi -valinnalla") -> o Vuodet 2019 - 2020 käytössä vain Oulun- ja Lapin läänissä, Pohjois-Suomi -valinnalla

Sheet Luovutusv.
B2: =Etusivu!C10 -> Matti Metsänen
B3: =Etusivu!C16 -> 123456-7
B5: KONEIDEN, KALUSTON JA METSÄTILAN LUOVUTUSVOITOT
B6: Luovutuksen kohde | C6: Päiväys | E6: Luovutus- | F6: Hankintameno, hankintameno- olettama tai poistamaton hankintameno | G6: Lisätään metsävähennyksen määrä metsätilan myynnissä | H6: Luovutus- | I6: ALV
C7: pv | D7: kk | E7: hinta | H7: voitto
H8: =E8-F8+G8 -> 0
H9: =E9-F9+G9 -> 0
H10: 0 | Y10: Ei
H11: 0 | Y11: Kyllä
H12: 0
H13: 0
H14: 0
H15: 0
B16: Yhteensä | E16: =SUM(E8:E15) -> 0 | F16: =SUM(F8:F15) -> 0 | G16: =SUM(G8:G15) -> 0 | H16: =SUM(H8:H15) -> 0 | I16: =SUM(I8:I15) -> 0
B19: Haluatko, että myyntivoittoon lisätty metsävähennyksen määrä siirretään puoliautomaattisesti Metsävähennyksen laskentataulukkoon? | I19: Kyllä | K19: TÄMÄ EI OLE TOIMINNASSA
B20: =IF(I19="Kyllä","Ohje: Jaa käytetty metsävähennys tiloittain viereiseen taulukkoon. Myydyille tiloille lisätään se määrä palautuvaa metsävähennystä, joka tilalla on käytetty. Loput muille metsävähennystiloille.","Ohje: Luovutusvoittoja ei lisätä ollenkaan metsävähennyksen laskentaan. Siirrä luovutusvoittoihin lisätty metsävähennys itse kohtaan 16 (Luovutusvoittoihin lisätyn metsävähennyksen määrä) ja lisää siihen aiempien vuosien luvovutusvoittoihin lisätty määrä.") -> Ohje: Jaa käytetty metsävähennys tiloittain viereiseen taulukkoon. Myydyille tiloille lisätään se määrä palautuvaa metsävähennystä, joka tilalla on käytetty. Loput muille metsävähennystiloille.
B24: OHJEITA
B26: o Metsätilan, metsätalouden koneiden, laitteiden, rakennusten ja rakennelmien myynnistä saadut voitot verotetaan luovutusvoittoina. Luovutusvoitto on pääomatuloa, mutta ei metsätalouden pääomatuloon. Luovutusvoitot ilmoitetaan verolomakkeella 9. Luovutusvoitto ei ole veronalaista tuloa, jos verovuonna luovutetun omaisuuden yhteenlasketut luovutushinnat ovat enintään 1 000 euroa.
B27: o Mikäli laitteella tai koneella on poistamatonta hankintamenoa, siirrä luovutuksen kohteen poistamaton hankintameno poistot-taulukon kyseisen kohteen sarakkeeseen "Vähennykset verovuonna".
B29: =CONCATENATE("o Mikäli luovutat metsävähennykseen oikeuttavan tilan, jonka luovutusvoittoon lisättiin käytettyä metsävähennystä, saa vastaavan summan palauttaa uudelleen käytettäväksi jäljellejäävillä metsävähennystiloilla. Metsävähennys voi olla enintään ",Vähennys!C5*100," % verovuoden lopussa omistettujen tilojen hankintamenosta.") -> o Mikäli luovutat metsävähennykseen oikeuttavan tilan, jonka luovutusvoittoon lisättiin käytettyä metsävähennystä, saa vastaavan summan palauttaa uudelleen käytettäväksi jäljellejäävillä metsävähennystiloilla. Metsävähennys voi olla enintään 60 % verovuoden lopussa omistettujen tilojen hankintamenosta.

Sheet Vähennys
B2: =Etusivu!C10 -> Matti Metsänen
B3: =Etusivu!C16 -> 123456-7
C4: Valitse metsä-vähennyksen-%
B5: METSÄVÄHENNYKSEN LASKENTA | C5: 0.6 | D5: 0.6 | E5: Kyllä
D6: 0.75 | E6: Tilakohtainen metsävähennystietojen seuranta
B7: Metsävähennystilan numero | C7: Tilat yhteensä | E7: 1 | F7: 2 | G7: 3 | H7: 4 | I7: 5 | J7: 6 | K7: 7 | L7: 8 | M7: 9 | N7: 10 | O7: 11 | P7: 12 | Q7: 13 | R7: 14 | S7: 15 | T7: 16 | U7: 17 | V7: 18
B8: Merkitse tila verovuonna myydyksi kirjoittamalla tilan kohdalle "Myyty"
B9: Tilan nimi, päivittyy automaattisesti etusivulta | E9: =Etusivu!F11 -> Mäntynen | F9: =Etusivu!F12 -> 0 | G9: =Etusivu!F13 -> 0 | H9: =Etusivu!F14 -> 0 | I9: =Etusivu!F15 -> 0 | J9: =Etusivu!F16 -> 0 | K9: =Etusivu!F17 -> 0 | L9: =Etusivu!F18 -> 0 | M9: =Etusivu!F19 -> 0 | N9: =Etusivu!H11 -> 0 | O9: =Etusivu!H12 -> 0 | P9: =Etusivu!H13 -> 0 | Q9: =Etusivu!H14 -> 0 | R9: =Etusivu!H15 -> 0 | S9: =Etusivu!H16 -> 0 | T9: =Etusivu!H17 -> 0 | U9: =Etusivu!H18 -> 0 | V9: =Etusivu!H19 -> 0 | X9: Myyty
B10: Kiinteistötunnus | E10: 790-401-1-11
B11: Tilan hankinta-ajankohta, (muodossa ppkkvvvv) | E11: 20092001
B12: Tilan hankintameno, € | C12: =SUM(E12:V12) -> 45500 | E12: 45500
B13: Metsän osuus hankintamenosta, € | C13: 45000 | E13: 45000
B14: Hankintamenon lisäykset ja vähennykset verovuoden aikana, € | C14: 0
A15: 14. | B15: =CONCATENATE("josta ",C5*100," % = metsävähennyspohja (verovuoden lopussa)") -> josta 60 % = metsävähennyspohja (verovuoden lopussa) | C15: 27000 | E15: =IF(E8="myyty",0,(E13+E14)*$C5) -> 27000 | F15: =IF(F8="myyty",0,(F13+F14)*$C5) -> 0 | G15: 0 | H15: 0 | I15: 0 | J15: 0 | K15: 0 | L15: 0 | M15: 0 | N15: 0 | O15: 0 | P15: 0 | Q15: 0 | R15: 0 | S15: 0 | T15: 0 | U15: 0 | V15: 0
A16: 15. | B16: =CONCATENATE("Ennen verovuotta ",Etusivu!C8," käytetty metsävähennys, ks. ohje alla") -> Ennen verovuotta 2025 käytetty metsävähennys, ks. ohje alla | C16: 6700 | E16: 6700
A17: 16 a. | B17: =CONCATENATE("Ennen verovuotta ",Etusivu!C8," luovutusvoittoihin lisätty metsävähennys") -> Ennen verovuotta 2025 luovutusvoittoihin lisätty metsävähennys | C17: 0
A18: 16 b. | B18: Verovuonna myyntivoittoihin lisätty metsävähennysten määrä | C18: =Luovutusv.!G16 -> 0 | E18: 0
A19: 17. | B19: Käytettävissä oleva metsävähennys tiloilta yhteensä | C19: =IF(SUM(E19:V19)<=0,0,SUM(E19:V19)) -> 20300 | E19: =IF(E8="Myyty",0,IF(E15-E16>E15,E15,E15-E16+E17)) -> 20300 | F19: =IF(F8="Myyty",0,IF(F15-F16>F15,F15,F15-F16+F17)) -> 0 | G19: =IF(G8="Myyty",0,IF(G15-G16>G15,G15,G15-G16+G17)) -> 0 | H19: 0 | I19: 0 | J19: 0 | K19: 0 | L19: 0 | M19: 0 | N19: 0 | O19: 0 | P19: 0 | Q19: 0 | R19: 0 | S19: 0 | T19: 0 | U19: 0 | V19: 0
A21: 18. | B21: Metsätalouden metsävähennyskelpoinen pääomatulo verovuonna yhteensä | C21: =SUMIF(Tulot!$K$11:$K$166,E5,Tulot!$G11:$G166)+SUMIF(Tulot!$K$11:$K$166,E5,Tulot!$O$11:$O$166)+SUMIF(Tulot!$K$11:$K$166,E5,Tulot!$P$11:$P$166)+SUMIF(Tulot!$K$11:$K$166,E5,Tulot!$Q$11:$Q$166)+'Oma käyttö'!L9+'Hank.työ 1'!R52+'Hank.työ 1'!R87+'Hank.työ 1'!R122+'Hank.työ 1'!R155+'Hank.työ 1'!R190+'Hank.työ 2'!R44+'Hank.työ 2'!R71+'Hank.työ 2'!R98+'Hank.työ 2'!R125+'Hank.työ 2'!R152 -> 15800
A22: =CONCATENATE("Vuodelle ",Etusivu!C8," käytettävissä oleva metsävähennys") -> Vuodelle 2025 käytettävissä oleva metsävähennys
B23: Metsävähennyksen enimmäismäärä tiloilta yhteensä (60 % tulosta) | C23: =IF(C36*0.6<1500,0,IF(C36*0.6<=C35,C36*0.6,C35)) -> 9480 | E23: =IF(C23<1500,"OHJETEKSTI: Ei metsävähennysoikeutta. Metsävähennyksen tulee olla vähintään 1500 €", "") -> 
B24: Tiloille kohdistettu metsävähennys yhteensä | C24: =SUM(E25:V25) -> 9480 | E24: =IF(C23>C24,CONCATENATE("Metsävähennyksestä kohdentamatta ",C23-C24,"€"),IF(C24>C23,"Metsävähennystä kohdennettu liikaa. Ks rivi 23","Kaikki metsävähennys kohdennettu tiloille")) -> Kaikki metsävähennys kohdennettu tiloille
A25: ==> | B25: Metsävähennyksen kohdistaminen tiloittain | C25: =IF($C23=0,0,IF(C21*0.6<=C19,C21*0.6-SUM(E25:V25),C19)) -> 0 | E25: 9480 | G25: 0 | H25: 0 | I25: 0 | J25: 0 | K25: 0 | L25: 0 | M25: 0 | N25: 0 | O25: 0 | P25: 0 | Q25: 0 | R25: 0 | S25: 0 | T25: 0 | U25: 0 | V25: 0
B26: Jäljelle jäävä metsävähennys vuoden lopussa | C26: =SUM(E26:V26) -> 10820 | E26: =E19-E25 -> 10820 | F26: 0 | G26: 0 | H26: 0 | I26: 0 | J26: 0 | K26: 0 | L26: 0 | M26: 0 | N26: 0 | O26: 0 | P26: 0 | Q26: 0 | R26: 0 | S26: 0 | T26: 0 | U26: 0 | V26: 0
E27: =IF(E26>E15,"Virhe, tarkista!","") ->  | F27: =IF(F26>F15,IF(F16>F15,IF(F26>((F13+F14)*0.6),"Virhe",""),"Virhe, tarkista!"),"") ->  | G27: =IF(G26>G15,IF(G16>G15,IF(G26>((G13+G14)*0.6),"Virhe",""),"Virhe, tarkista!"),"") ->  | H27: =IF(H26>H15,"Virhe, tarkista!","") -> 
B28: Korjaa, jos et halua käyttää metsävähennyksen enimmäismäärää. | C28: =C23 -> 9480 | E28: =IF(E26<0,"korjaa","") -> 
C29: =IF(C28>C23,"Virhe - Solussa C27 oleva luku ei saa olla suurempi kuin solussa C23","") ->  | E29: =IF(E26<0,"Ei sallittu","") ->  | F29: =IF(F26<0,"Ei sallittu","") ->  | G29: =IF(G26<0,"Ei sallittu","") ->  | R29: =IF(R26<0,"Ei sallittu","") ->  | S29: =IF(S26<0,"Ei sallittu","") ->  | T29: =IF(T26<0,"Ei sallittu","") ->  | U29: =IF(U26<0,"Ei sallittu","") ->  | V29: =IF(V26<0,"Ei sallittu","") -> 
B31: YHTEENVETO
A32: 14. | B32: Metsävähennyspohja yhteensä (sis. verovuoden aikana hankittujen tilojen metsävähennyspohjan) | C32: =C15 -> 27000 | E32: DEMOSSA mahdollista testata tiloja 2-5
A33: 15. | B33: =CONCATENATE("Aikaisemmin, ennen vuotta ",Etusivu!C8,", käytetty metsävähennys yhteensä") -> Aikaisemmin, ennen vuotta 2025, käytetty metsävähennys yhteensä | C33: =C16 -> 6700
A34: 16. | B34: Luovutusvoittoihin lisätty metsävähennys (kumulatiivinen yhteismäärä vuodesta 2009 alkaen) | C34: =C18+C17 -> 0
A35: 17. | B35: Käytettävissä oleva metsävähennys yhteensä (14.-(15.-16.)) | C35: =IF(C32-(C33-C34)<1500,0,C32-(C33-C34)) -> 20300
A36: 18. | B36: Metsätalouden veronalainen pääomatulo metsävähennystiloilta yht. | C36: =C21 -> 15800 | E36: =IF(C36>=1500,""," OHJETEKSTI: Tulon määrä on oltava vähintään 2500 €, jotta metsävähennyksen alaraja 1500 € täyttyy.") -> 
A37: 19. | B37: Verovuoden metsävähennys | C37: =IF(C23<1500,0,IF(C23<=C35,C28,C35)) -> 9480 | F37: =IF(C37>C23,"OHJETEKSTI: Metsävähennystä jettu liikaa. Ks rivi 23","") -> 
A38: 20. | B38: Käytetty metsävähennys yhteensä verovuoden lopussa (15.+19.) | C38: =C33+C37 -> 16180
B39: Käyttämättä oleva metsävähennys vuoden lopussa yhteensä | C39: =C35-C37 -> 10820
B42: OHJEITA
B44: o Jos tila on hankittu ennen verovuotta, anna riville 16 (kohta 15.) mahdollinen käytetyn metsävähennyksen määrä.
B45: o Tilakohtainen erittely ei ole pakollista, mutta helpottaa esim siinä tilanteessa, kun myy metsävähennystilan.
B46: o Merkitse riville 8 "Myyty", jos tila on luovutettu verovuoden aikana. Ohjelma poistaa kyseisen tilan pääomatulon metsävähennyksen laskennasta. Verovuoden aikana luovutetuilta tiloilta saadusta tulosta ei voi tehdä metsävähennystä.
B47: o Jaa ohjelman ehdottama metsävähennys haluamallasi tavalla tiloittain rivillä 25.
B48: =IF(C39>=1500,"o Metsävähennystä jää käytettäväksi tulevina vuosina","o Metsävähennystä on jääämässä käyttämättä alle 1500 €, mahdollista loppuosaa ei voi käyttää ilman uuden metsätilan hankintaa.") -> o Metsävähennystä jää käytettäväksi tulevina vuosina

Sheet Metsälahja
B2: =Etusivu!C10 -> Matti Metsänen
B3: =Etusivu!C16 -> 123456-7
B5: METSÄLAHJAVÄHENNYKSEN LASKENTA
B7: Valitse kunta luettelosta | C7: Keskimääräinen vuotuinen tuotto | F7: > | G7: Akaa | H7: 167.06 | I7: Verohallinnon päätös metsän keskimääräisestä vuotuisesta tuotosta Antopäivä 6.11.2024 Diaarinumero VH/6817/00.01.00/2024 Voimassaolo1.1.2025 - Toistaiseksi Verohallinto on varojen arvostamisesta verotuksessa annetun lain (1142/2005) 7 §:n 3 momentin, sellaisena kuin se on laissa 505/2010, nojalla vahvistanut metsän keskimääräisen vuotuisen tuoton vuodelta 2024 toimitettavaa verotusta varten seuraavasti: 1 § Metsän keskimääräinen vuotuinen tuotto hehtaaria kohti eri kunnissa vahvistetaan seuraavassa esitetyiksi määriksi: | R7: Metsätalouden yrittäjävähennyksellä vähennetty metsätalouden positiivinen puhdas pääomatulo | S7: =IF('Metsätalouden Tulos'!D16>0,'Metsätalouden Tulos'!D16,0) -> 3597.07 | V7: KÄYTÖN SEURANTA
B8: Sastamala | C8: =VLOOKUP(B8,G7:H317,2,FALSE) -> 155.5 | D8: e/ha | G8: Alajärvi | H8: 79.86 | V8: Anna metsälahjan lahjoitusvuosi
B9: Minimi pinta-ala metsälahjavähennykselle. Yli 100 ha tiloilla, pinta-ala rajoite ei ole voimassa | C9: =30000/10/C8 -> 19.29 | D9: ha | G9: Alavieska | H9: 56.92 | R9: Metsälahjavähennyspohja. | S9: =C22 -> 0 | V9: Anna metsävähennyspohja, €
B10: Lahjoitusvuosi | C10: 2025 | G10: Alavus | H10: 82.69 | R10: Metsälahjavähennyksen maksimimäärä verovuoden puhtaalla pääomatulolla, 50 % | S10: =IF(T23>1499.99,S7*0.5,0) -> 0 | T10: =IF(S10<1500,"Vähennyksen minimimäärä 1500 eur/ vuosi ei toteudu","") -> Vähennyksen minimimäärä 1500 eur/ vuosi ei toteudu | W10: =CONCATENATE("Metsälahja-vähennyksen käyttö ",Etusivu!C8) -> Metsälahja-vähennyksen käyttö 2025 | X10: Aiemmin käytetty | Y10: Metsälahja-vähennystä käyttämättä
G11: Asikkala | H11: 199.22
B12: Metsälahjavähennyksen määrän laskenta | G12: Askola | H12: 197.01 | R12: Verovuoden metsälahjavähennys | S12: =IF(S10>T23,T23,IF(S10>1500,S10,0)) -> 0 | V12: =IF(Y8>1,Y8,C10) -> 2025 | W12: =IF(V12=Etusivu!C$8,S$12,"") -> 0 | Y12: =IF(V12<Etusivu!C$8,Y9-X12,IF(V12=Etusivu!C$8,W12,"")) -> 0
B13: Lahjojen lukumäärä | D13: kpl | G13: Aura | H13: 148.75 | V13: =V12+1 -> 2026 | W13: =IF(V13=Etusivu!C$8,S$12,"") ->  | Y13: =IF(V13<Etusivu!C$8,Y12-X13,IF(V13=Etusivu!C$8,Y12-W13,"")) -> 
B14: Lahjan osuus luovutuksesta | D14: % | G14: Brändö | H14: 6.71 | R14: Viimeinen metsävähennyksen käyttövuosi | S14: =C10+15 -> 2040 | V14: =V13+1 -> 2027 | W14: =IF(V14=Etusivu!C$8,S$12,"") ->  | Y14: =IF(V14<Etusivu!C$8,Y13-X14,IF(V14=Etusivu!C$8,Y13-W14,"")) -> 
B15: Lahjan verotusarvo | D15: eur | E15: =C15/C13 ->  | G15: Eckerö | H15: 40.17 | V15: 2028 | W15: =IF(V15=Etusivu!C$8,S$12,"") ->  | Y15: =IF(V15<Etusivu!C$8,Y14-X15,IF(V15=Etusivu!C$8,Y14-W15,"")) -> 
B16: Veroluokka (1 tai 2) | E16: =LVA/C13 ->  | G16: Enonkoski | H16: 177.76 | R16: Jos metsälahjavähennystilasta luovutetaan 15 vuoden aikana yli 10 % pinta-alasta, | V16: 2029 | W16: =IF(V16=Etusivu!C$8,S$12,"") ->  | Y16: =IF(V16<Etusivu!C$8,Y15-X16,IF(V16=Etusivu!C$8,Y15-W16,"")) -> 
B17: Metsän pinta-ala | D17: ha | G17: Enontekiö | H17: 5.94 | I17: 2 § Tämä päätös tulee voimaan 1 päivänä tammikuuta 2025. Päätöstä sovelletaan vuodelta 2024 toimitettavassa verotuksessa. | R17: tuloutetaan tehdyt vähennykset 20 % korotettuna luovutusvuoden pääomatulona. | V17: =V16+1 -> 2030 | W17: =IF(V17=Etusivu!C$8,S$12,"") ->  | Y17: =IF(V17<Etusivu!C$8,Y16-X17,IF(V17=Etusivu!C$8,Y16-W17,"")) -> 
B18: Tilan lahjoitettu pinta-ala, (lahjan osuus) | C18: =C17*C14 -> 0 | D18: ha | G18: Espoo | H18: 123.08 | V18: =V17+1 -> 2031 | W18: =IF(V18=Etusivu!C$8,S$12,"") ->  | Y18: =IF(V18<Etusivu!C$8,Y17-X18,IF(V18=Etusivu!C$8,Y17-W18,"")) -> 
B19: Metsän arvo arvostamislain mukaan | C19: =C8*C18*10 -> 0 | D19: eur | G19: Eura | H19: 130.81 | N19: 1 | O19: 2 | R19: Metsälahjavähennysilmoitus tehdään lomakkeella 2L | V19: =V18+1 -> 2032 | W19: =IF(V19=Etusivu!C$8,S$12,"") ->  | Y19: =IF(V19<Etusivu!C$8,Y18-X19,IF(V19=Etusivu!C$8,Y18-W19,"")) -> 
B20: Metsän lahjoitusarvo €/ha | C20: =IFERROR(C15/C18,0) -> 0 | D20: eur/ha | G20: Eurajoki | H20: 120.16 | J20: 5000 | K20: 25000 | L20: 100 | M20: 100 | N20: 0.08 | O20: 0.19 | R20: Tarvittavat tiedot: | V20: 2033 | W20: =IF(V20=Etusivu!C$8,S$12,"") ->  | Y20: =IF(V20<Etusivu!C$8,Y19-X20,IF(V20=Etusivu!C$8,Y19-W20,"")) -> 
B21: Lahjaveron määrä | C21: =IFERROR(E21*C13,0) -> 0 | D21: eur | E21: =IF(C16=1,N27,O27) ->  | G21: Evijärvi | H21: 88.13 | J21: 25000.01 | K21: 55000 | L21: 1700 | M21: 3900 | N21: 0.1 | O21: 0.25 | R21: 2.1 Lahjana saatujen metsien vähennyspohja yhteensä | T21: =IF(S9=0,Y9,S9) -> 0 | V21: 2034 | W21: =IF(V21=Etusivu!C$8,S$12,"") ->  | Y21: =IF(V21<Etusivu!C$8,Y20-X21,IF(V21=Etusivu!C$8,Y20-W21,"")) -> 
B22: Metsälahjavähennyspohja | C22: =IFERROR(IF(C28=1,C29,IF(C30<0,0,C30)),0) -> 0 | D22: eur | E22: =IF(C16=1,N27,O27) ->  | G22: Finström | H22: 46.6 | R22: 2.2 Aiemmin käytetty metsälahjavähennys | T22: =SUM(X12:X27) -> 0 | V22: 2035 | W22: =IF(V22=Etusivu!C$8,S$12,"") ->  | Y22: =IF(V22<Etusivu!C$8,Y21-X22,IF(V22=Etusivu!C$8,Y21-W22,"")) -> 
B23: =IF(C22>1500,"Metsälahjavähennyksen maksimi verohyöty 30 % verokannalla","Ei käytettävää metsälahjavähennystä") -> Ei käytettävää metsälahjavähennystä | C23: =IF(C22>1500,C22*0.3,0) -> 0 | D23: eur | G23: Forssa | H23: 182.19 | J23: 55000.01 | K23: 200000 | L23: 4700 | M23: 11400 | N23: 0.12 | O23: 0.29 | R23: 2.3 Käytettävissä oleva vähennyspohjan määrä | T23: =IF(T21-T22<1500,0,T21-T22) -> 0 | V23: 2036 | W23: =IF(V23=Etusivu!C$8,S$12,"") ->  | Y23: =IF(V23<Etusivu!C$8,Y22-X23,IF(V23=Etusivu!C$8,Y22-W23,"")) -> 
G24: Föglö | H24: 17.69 | J24: 200000.01 | K24: 1000000 | L24: 22100 | M24: 53450 | N24: 0.15 | O24: 0.31 | R24: 3.1 Verovuoden metsätalouden pääomatulot yhteensä | T24: =S7 -> 3597.07 | V24: 2037 | W24: =IF(V24=Etusivu!C$8,S$12,"") ->  | Y24: =IF(V24<Etusivu!C$8,Y23-X24,IF(V24=Etusivu!C$8,Y23-W24,"")) -> 
B25: Huojennus lahjaverosta | C25: =IF(C23=0,IF(C21=0,0,C23/C21),C23/C21) -> 0 | G25: Geta | H25: 37.4 | J25: 999999.99 | L25: 142100 | M25: 302450 | N25: 0.17 | O25: 0.33 | R25: 3.2 Verovuoden metsälahjavähenys | T25: =S12 -> 0 | V25: 2038 | W25: =IF(V25=Etusivu!C$8,S$12,"") ->  | Y25: =IF(V25<Etusivu!C$8,Y24-X25,IF(V25=Etusivu!C$8,Y24-W25,"")) -> 
G26: Haapajärvi | H26: 61.63 | R26: 3.3 Käytetty metsälahjavähennys yhteensä | T26: =T22+T25 -> 0 | V26: 2039 | W26: =IF(V26=Etusivu!C$8,S$12,"") ->  | Y26: =IF(V26<Etusivu!C$8,Y25-X26,IF(V26=Etusivu!C$8,Y25-W26,"")) -> 
G27: Haapavesi | H27: 45.38 | N27: =IF(E15<5000,0,IF(E15<K20,L20+((E15-J20)*N20),IF(E15<K21,L21+((E15-J21)*N21),IF(E15<K23,L23+((E15-J23)*N23),IF(E15<K24,L24+((E15-J24)*N24),IF(E15>J25,L25+((E15-J25)*N25))))))) ->  | O27: =IF(E15<5000,0,IF(E15<K20,M20+((E15-J20)*O20),IF(E15<K21,M21+((E15-J21)*O21),IF(E15<K23,M23+((E15-J23)*O23),IF(E15<K24,M24+((E15-J24)*O24),IF(E15>J25,M25+((E15-J25)*O25))))))) ->  | V27: 2040 | W27: =IF(V27=Etusivu!C$8,S$12,"") ->  | Y27: =IF(V27<Etusivu!C$8,Y26-X27,IF(V27=Etusivu!C$8,Y26-W27,"")) -> 
B28: huomioidaan yli 100 ha | C28: =IF(C9>100,1,0) -> 0 | G28: Hailuoto | H28: 34.51 | Y28: =IF(V28<=Etusivu!C24,Y27-X28,0) -> 
B29: yli 100 ha:n lahjaveron arvo x 2,4 | C29: =IFERROR(IF(C28=1,(C21/C18*(C18-100)),"ei yli 100 ha käytäntöä"),0) -> ei yli 100 ha käytäntöä | G29: Halsua | H29: 47.08 | Y29: =IF(V29<=Etusivu!C26,Y28-X29,0) -> 
B30: Teoreettinen metsälahjavähennyspohja | C30: =2.4*((C8*(C18/C13)*10-30000)/(C8*(C18/C13)*10))*C21 ->  | G30: Hamina | H30: 139.13 | Y30: =IF(V30<=Etusivu!C26,Y29-X30,0) -> 
G31: Hammarland | H31: 47.28 | Y31: =IF(V31<=Etusivu!C28,Y30-X31,0) -> 
C32: =(C17/100)*(C21/(C17/100)) ->  | G32: Hankasalmi | H32: 185.38 | Y32: =IF(V32<=Etusivu!C28,Y31-X32,0) -> 
G33: Hanko | H33: 61.06 | R33: OHJEITA
G34: Harjavalta | H34: 151.69
B35: Joissain vanhoissa Exceleissä saattaa esiintyä virheilmoitus #NIMI | G35: Hartola | H35: 178.23 | R35: o Varmista lahjaveropäätöksestä että laskettu lahjaveron määrä on sama
B36: Kyseessä ei ole virhe vaan ominaisuus, jossa kyseinen Excel ei osaa tulkita kaavaa oikein. | G36: Hattula | H36: 195.3 | R36: o Metsälahjan enimmäisenä vuotena seurantaan tulee valmiiksi laskettu metsälahjavähennyspohja. Jatkossa merkitse seurantataulukkoon arvo aiemmasta Mettestä.
G37: Hausjärvi | H37: 211.83 | R37: o Metsälahjavähennystä ei myönnetä automaattisesti, vaan sitä täytyy itse hakea omaverossa tai lomakkeella L2.
G38: Heinola | H38: 166.01
G39: Heinävesi | H39: 165.41
G40: Helsinki | H40: 123.5
G41: Hirvensalmi | H41: 188.4
G42: Hollola | H42: 215.38
G43: Huittinen | H43: 166.08
G44: Humppila | H44: 173.85
G45: Hyrynsalmi | H45: 43.68
G46: Hyvinkää | H46: 180.97
G47: Hämeenkyrö | H47: 161.52
G48: Hämeenlinna | H48: 185.33
G49: Ii | H49: 29.46
G50: Iisalmi | H50: 135.86
G51: Iitti | H51: 177.77
G52: Ikaalinen | H52: 128.79
G53: Ilmajoki | H53: 91.42
G54: Ilomantsi | H54: 82.44
G55: Imatra | H55: 173.9
G56: Inari | H56: 6.99
G57: Inkoo | H57: 106.32
G58: Isojoki | H58: 82.49
G59: Isokyrö | H59: 89.85
G60: Janakkala | H60: 185.31
G61: Joensuu | H61: 118.79
G62: Jokioinen | H62: 186.69
G63: Jomala | H63: 47.68
G64: Joroinen | H64: 173.4
G65: Joutsa | H65: 166.22
G66: Juuka | H66: 90.15
G67: Juupajoki | H67: 163.87
G68: Juva | H68: 172.73
G69: Jyväskylä | H69: 179.96
G70: Jämijärvi | H70: 106.75
G71: Jämsä | H71: 169.25
G72: Järvenpää | H72: 187.42
G73: Kaarina | H73: 101.64
G74: Kaavi | H74: 115.27
G75: Kajaani | H75: 46.53
G76: Kalajoki | H76: 49.41
G77: Kangasala | H77: 164.18
G78: Kangasniemi | H78: 177.72
G79: Kankaanpää | H79: 89.52
G80: Kannonkoski | H80: 116.74
G81: Kannus | H81: 54.6
G82: Karijoki | H82: 90.98
G83: Karkkila | H83: 188.22
G84: Karstula | H84: 93.94
G85: Karvia | H85: 76.79
G86: Kaskinen | H86: 56.84
G87: Kauhajoki | H87: 89.7
G88: Kauhava | H88: 83.16
G89: Kauniainen | H89: 107.59
G90: Kaustinen | H90: 65.42
G91: Keitele | H91: 119.05
G92: Kemi | H92: 31.05
G93: Kemijärvi | H93: 25.41
G94: Keminmaa | H94: 32.75
G95: Kemiönsaari | H95: 93.93
G96: Kempele | H96: 44.25
G97: Kerava | H97: 184.87
G98: Keuruu | H98: 131.58
G99: Kihniö | H99: 91.02
G100: Kinnula | H100: 76.85
G101: Kirkkonummi | H101: 119.7
G102: Kitee | H102: 158.31
G103: Kittilä | H103: 10.17
G104: Kiuruvesi | H104: 99.03
G105: Kivijärvi | H105: 90.5
G106: Kokemäki | H106: 145.66
G107: Kokkola | H107: 65.23
G108: Kolari | H108: 19.52
G109: Konnevesi | H109: 161.61
G110: Kontiolahti | H110: 125.62
G111: Korsnäs | H111: 69.74
G112: KoskiTl | H112: 169.62
G113: Kotka | H113: 134.83
G114: Kouvola | H114: 175.01
G115: Kristiinankaupunki | H115: 75.41
G116: Kruunupyy | H116: 79.39
G117: Kuhmo | H117: 52.33
G118: Kuhmoinen | H118: 172.36
G119: Kumlinge | H119: 14.54
G120: Kuopio | H120: 142.18
G121: Kuortane | H121: 90.28
G122: Kurikka | H122: 89.09
G123: Kustavi | H123: 74.02
G124: Kuusamo | H124: 28.25
G125: Kyyjärvi | H125: 72.21
G126: Kärkölä | H126: 218.45
G127: Kärsämäki | H127: 59.23
G128: Kökar | H128: 2.21
G129: Lahti | H129: 185.48
G130: Laihia | H130: 90.27
G131: Laitila | H131: 117.38
G132: Lapinjärvi | H132: 132.06
G133: Lapinlahti | H133: 135.66
G134: Lappajärvi | H134: 85.25
G135: Lappeenranta | H135: 157.45
G136: Lapua | H136: 83.9
G137: Laukaa | H137: 181.15
G138: Lemi | H138: 173.8
G139: Lemland | H139: 43.68
G140: Lempäälä | H140: 172.09
G141: Leppävirta | H141: 161.13
G142: Lestijärvi | H142: 60.64
G143: Lieksa | H143: 78
G144: Lieto | H144: 124.76
G145: Liminka | H145: 33.09
G146: Liperi | H146: 133.5
G147: Lohja | H147: 179.69
G148: Loimaa | H148: 162.05
G149: Loppi | H149: 184.76
G150: Loviisa | H150: 102.67
G151: Luhanka | H151: 175.86
G152: Lumijoki | H152: 39.75
G153: Lumparland | H153: 36.63
G154: Luoto | H154: 70.29
G155: Luumäki | H155: 148.79
G156: Maalahti | H156: 71.87
G157: Maarianhamina | H157: 29.81
G158: Marttila | H158: 150
G159: Masku | H159: 112.28
G160: Merijärvi | H160: 57.52
G161: Merikarvia | H161: 104.58
G162: Miehikkälä | H162: 159.76
G163: Mikkeli | H163: 177.75
G164: Muhos | H164: 50.22
G165: Multia | H165: 112.22
G166: Muonio | H166: 15.21
G167: Mustasaari | H167: 74.98
G168: Muurame | H168: 183.31
G169: Mynämäki | H169: 122.27
G170: Myrskylä | H170: 181.81
G171: Mäntsälä | H171: 195.77
G172: Mänttä-Vilppula | H172: 143.92
G173: Mäntyharju | H173: 168.41
G174: Naantali | H174: 77.95
G175: Nakkila | H175: 144.28
G176: Nivala | H176: 68.63
G177: Nokia | H177: 159.31
G178: Nousiainen | H178: 125.62
G179: Nurmes | H179: 65.19
G180: Nurmijärvi | H180: 202.25
G181: Närpiö | H181: 73.66
G182: Orimattila | H182: 197.34
G183: Oripää | H183: 139.87
G184: Orivesi | H184: 161.52
G185: Oulainen | H185: 55.86
G186: Oulu | H186: 38.37
G187: Outokumpu | H187: 116.79
G188: Padasjoki | H188: 181.85
G189: Paimio | H189: 107.08
G190: Paltamo | H190: 56.15
G191: Parainen | H191: 70.09
G192: Parikkala | H192: 176.45
G193: Parkano | H193: 92.97
G194: Pedersören kunta | H194: 62.78
G195: Pelkosenniemi | H195: 18.62
G196: Pello | H196: 34.27
G197: Perho | H197: 47.65
G198: Pertunmaa | H198: 187.69
G199: Petäjävesi | H199: 159.72
G200: Pieksämäki | H200: 156
G201: Pielavesi | H201: 117.63
G202: Pietarsaari | H202: 70.43
G203: Pihtipudas | H203: 93.9
... 112 more rows

Sheet Metsätalouden Tulos
B2: =Etusivu!C10 -> Matti Metsänen
B3: =Etusivu!C16 -> 123456-7
B5: METSÄTALOUDEN TULOS
B6: Pääomatulot | I6: Pääomatulon jako | K6: Osuus tulosta | L6: Veron 30% | M6: Vero 34% | N6: Vero yht.
A7: + | B7: Puunmyyntitulot | C7: ='2C'!S26 -> 15400 | I7: Verovelvollinen | J7: =Etusivu!C26 -> 1 | K7: =D$18*Etusivu!C26 -> 3597.07 | L7: =IF(K7<30000.01,K7*C$20,(30000*C$20)) -> 1079.12 | M7: =IF(K7<30000.01,0,((K7-30000)*C$21)) -> 0 | N7: =SUM(L7:M7) -> 1079.12
A8: + | B8: Tuloutetut varaukset | C8: =Varaukset!E17+Varaukset!J17 -> 0 | I8: Puoliso | J8: =Etusivu!C27 -> 0 | K8: =D$18*Etusivu!C27 -> 0 | L8: =IF(K8<30000.01,K8*C$20,(30000*C$20)) -> 0 | M8: =IF(K8<30000.01,0,((K8-30000)*C$21)) -> 0 | N8: =SUM(L8:M8) -> 0
A9: + | B9: Metsätalouden muut tulot, tuet ja korvaukset | C9: ='2C'!S32+'2C'!S35+'2C'!L41 -> 400 | K9: Yhteensä | L9: =SUM(L7:L8) -> 1079.12 | M9: =SUM(M7:M8) -> 0 | N9: =SUM(L9:M9) -> 1079.12
B10: Menot | I10: Verotysyhtymä tulojen ja verojen jakautuminen
A11: - | B11: Vuosimenot | C11: ='2C'!S44 -> 818.11 | I11: Osakkaat | K11: Osuus tulosta | L11: Vero 30% | M11: Vero 34% | N11: Vero yht.
A12: - | B12: Hankintatyön kustannukset | C12: ='2C'!S29 -> 0 | I12: =Etusivu!F24 -> 0 | J12: =Etusivu!G24/100 -> 0 | K12: =D$18*(Etusivu!G24/100) -> 0 | L12: =IF(K12<30000.01,K12*C$20,(30000*C$20)) -> 0 | M12: =IF(K12<30000.01,0,((K12-30000)*C$21)) -> 0 | N12: =SUM(L12:M12) -> 0
A13: - | B13: Menovaraukset ja metsävähennys | C13: ='2C'!S38 -> 10428 | I13: =Etusivu!F25 -> 0 | J13: =Etusivu!G25/100 -> 0 | K13: =D$18*(Etusivu!G25/100) -> 0 | L13: 0 | M13: 0 | N13: 0
A14: - | B14: Poistot | C14: ='2C'!S50 -> 767.5 | I14: =Etusivu!F26 -> 0 | J14: =Etusivu!G26/100 -> 0 | K14: =D$18*(Etusivu!G26/100) -> 0 | L14: 0 | M14: 0 | N14: 0
A15: - | B15: Yrittäjävähennys (5 % positiivisestä tuloksesta) | C15: =-IF(D15>0,D15*0.05,0) -> -189.32 | D15: =C7+C8+C9-C11-C13-C14 -> 3786.39 | I15: =Etusivu!F27 -> 0 | J15: =Etusivu!G27/100 -> 0 | K15: =D$18*(Etusivu!G27/100) -> 0 | L15: 0 | M15: 0 | N15: 0
A16: - | B16: Metsälahjavähennys | C16: =Metsälahja!S12 -> 0 | D16: =C7+C8+C9-C11-C13-C14+C15 -> 3597.07 | I16: =Etusivu!F28 -> 0 | J16: =Etusivu!G28/100 -> 0 | K16: =D$18*(Etusivu!G28/100) -> 0 | L16: 0 | M16: 0 | N16: 0
I17: =Etusivu!F29 -> 0 | J17: =Etusivu!G29/100 -> 0 | K17: =D$18*(Etusivu!G29/100) -> 0 | L17: 0 | M17: 0 | N17: 0
A18: = | B18: Tulos ennen veroja | D18: =C7+C8+C9-C11-C12-C13-C14+C15-C16 -> 3597.07 | E18: =IF(D18<0," -"," +") -> + | I18: =Etusivu!F30 -> 0 | J18: =Etusivu!G30/100 -> 0 | K18: =D$18*(Etusivu!G30/100) -> 0 | L18: 0 | M18: 0 | N18: =SUM(L18:M18) -> 0
B20: Pääomavero-% (alle 30 000 euron tulosta) | C20: 0.3 | D20: =IF(L21>0,L21,L9) -> 1079.12 | I20: =Etusivu!F31 -> 0 | K20: Yhteensä | L20: =SUM(L12:L18) -> 0 | M20: =SUM(M12:M18) -> 0 | N20: =SUM(L20:M20) -> 0
B21: Pääomavero-% (yli 30 000 euron tulosta) | C21: 0.34 | D21: =IF(L21>0,M21,M9) -> 0 | L21: =IF(Etusivu!$C25="Kyllä",'Metsätalouden Tulos'!L20,0) -> 0 | M21: =IF(Etusivu!$C25="Kyllä",'Metsätalouden Tulos'!M20,0) -> 0 | N21: =IF(Etusivu!$C25="Kyllä",'Metsätalouden Tulos'!N20,0) -> 0
A22: - | B22: Lopullinen vero | C22: =SUM(D20:D21) -> 1079.12
A23: = | B23: Pääomatulot verojen jälkeen | D23: =D18-C22 -> 2517.95 | E23: =IF(D23<0," -"," +") -> +
A26: + | B26: Metsätalouden verovapaa ansiotulo | C26: =SUM('Hank.työ 1'!J18:N18)-SUM('Hank.työ 1'!J19:N19)+SUM('Hank.työ 2'!J18:N18)-SUM('Hank.työ 2'!J19:N19) -> 0
A27: + | B27: Metsätalouden verollinen ansiotulo | C27: =SUM('Hank.työ 1'!J19:N19)+SUM('Hank.työ 2'!J19:N19) -> 0
B28: Ansiotulojen vero %
A29: - | B29: Verot metsätalouden ansiotöistä | C29: =C27*C28 -> 0
A30: = | B30: Ansiotulot verojen jälkeen | D30: =C27+C26-C29 -> 0
A32: = | B32: Tulos ansiotöiden kanssa, verojen jälkeen | D32: =D23+D30 -> 2517.95 | E32: =IF(D32<0," -"," +") -> +
B34: Maksetut ennakkoverot | C34: =Tulot!$N$9 -> 2926
B35: Ennakonpidätyksen palautus | C35: =IF(C34>C22,IF(C22<0,C34,C34-C22),0) -> 1846.88
A36: +/- | B36: Alijäämähyvitys (+) tai Lisävero (-) | D36: =C34-C22-C29-C35 -> 0 | E36: =IF(D36<0," -"," +") -> + | I36: =IF(D36>1400,"Maksimi alijäämähyvitys on 1400 euroa/osakas. (Kuolinpesä on yksi yksikkö.) Yli menevä osuus on tulonlähteen tappiota, jota voidaan käyttää seuraavien 10 vuoden aikana. Tulonlähteen tappiota voi vaatia siirrettäväksi puolisolle.","") -> 
A38: + | B38: Verovapaat tulot yhteensä | C38: =C26 -> 0 | D38: =IF(C38>0," +"," ") -> 
A39: + | B39: Verovapaiden tulojen verohyöty | C39: =+(C26*C28) -> 0 | D39: =IF(C39>0," +"," ") -> 
A41: - | B41: Maksettava arvonlisävero | C41: =IF(ALV!F12>0,ALV!F12,0) -> 3623.4 | D41: =IF(C41>0," -"," ") -> -
A42: + | B42: Palautuva arvonlisävero | C42: =-IF(ALV!F12<0.01,ALV!F12,0) -> 0 | D42: =IF(C42>0," +"," ") -> 
B47: =IF(C51>0,"Maatalouden tulona ilmoitettavaa tuloa yhteensä, alv 0%","") ->  | C47: =Tulot!V9 -> 0 | D47: +
B48: =IF(C51>0,"Maatalouden menona ilmoitettavaa menoa ynteensä, alv 0%","") ->  | C48: =Menot!AB8 -> 0 | D48: -
B49: =IF(C51>0,"Maatalouden tulojen ja menojen sisältämä alv on mukana Metten laskemassa alv:ssä","") -> 
C51: =C48+C47 -> 0

Sheet Omavero
B2: =CONCATENATE(Etusivu!C10," ",Etusivu!C11) -> Matti Metsänen
B3: =Etusivu!C16 -> 123456-7 | C3: =IF(I7="EI","Käytät Metteä lisenssiehtojen vastaisesti. Osta lisenssi verovuodelle","") -> 
B5: OMAVERO 2C | C5: =IF(C10="Verotusyhtymä","Lomake ei täysin vastaa verotusyhtymän lomaketta","") ->  | F5: OMAVERO ALV | H5: =IF(Etusivu!C22="EI","Olet ilmoittanut etusivulla, että et ole alv-velvollinen. ALV-ilmoitusta ei täytetä","") -> 
B6: 1. TAUSTATIEDOT | F6: ILMOITUKSEN TIEDOT
B7: Nimi | C7: =Etusivu!C10 -> Matti Metsänen | F7: Asiakas | H7: =CONCATENATE(Etusivu!C10,", ",C9) -> Matti Metsänen, 123456-7 | I7: =IF(verovuosi>vuosi,"EI","") -> 
B8: Puhelinnumero | C8: =Etusivu!C32 -> 0 | F8: Verovuosi | H8: =Etusivu!C8 -> 2025
B9: Y-tunnus | C9: =Etusivu!C16 -> 123456-7 | F9: Ei toimintaa | H9: =IF(ALV!D12+ALV!E12>0,"Ei rastiteta","Rastita kohta 'Ei toimintaa verokaudella'") -> Ei rastiteta
B10: PUOLISOIDEN OSUUDET METSÄTALOUDESTA | C10: =IF(Etusivu!C25="Kyllä","Verotusyhtymä","") ->  | F10: Maksuperusteinen arvonlisävero | H10: =IF(Omavero!C50<500000,"Kyllä","Ei") -> Kyllä
B11: Verovelvollinen | C11: =Etusivu!C26 -> 1
B12: Puoliso | C12: =Etusivu!C27 -> 0 | F12: VERO KOTIMAAN MYYNNISTÄ
B13: Oma erillinen ilmoitus | C13: =Etusivu!C12 -> Ei | F13: 24 % ja 25,5 %:n vero | H13: =ALV!D12 -> 3927
F14: 14 %:n vero
B15: 2. TULOT | F15: 10 %:n vero
B16: ILMOITAN TIETOJA TULOT-VAIHEESSA | C16: =IF(C50>0,"Kyllä","Ei") -> Kyllä
B18: PUUNMYYNTITULOT | C18: =IF(C22>0,"Kyllä","Ei") -> Kyllä | F18: VÄHENNETTÄVÄ VERO
B19: Pystykaupat | C19: ='2C'!B26 -> 15400 | F19: Verokauden vähennettävä vero | H19: =ALV!E12 -> 303.6
B20: Hankintakaupat | C20: ='2C'!F26 -> 0
B21: Polttopuu- ja joulupuukaupat | C21: ='2C'!L26 -> 0 | F21: Maksettava tai palautukseen oikeuttava vero | H21: =H13-H19 -> 3623.4 | I21: =IF(H21>0,"Maksettavaa alv:ia","Palautuvaa alv:ia") -> Maksettavaa alv:ia
B22: YHTEENSÄ | C22: =SUM(C19:C21) -> 15400
B24: KORVAUKSET JA TUET | C24: =IF(C28>0,"Kyllä","Ei") -> Kyllä | F24: METSÄTALOUTTA JA MAATALOUTTA HARJOITTAVALLA EI OLE OIKEUTTA ALARAJAHUOJENNUKSEEN
B25: Vakuutuskorvaukset | C25: ='2C'!B32 -> 0
B26: Hirvivahinkokorvaukset | C26: ='2C'!F32 -> 0 | F26: OHJEITA
B27: Metsätalouden tuet | C27: ='2C'!L32 -> 400 | F27: o Tämä lomake on tehty helpottamaan tietojen tallentamista omaveroon.
B28: YHTEENSÄ | C28: =SUM(C25:C27) -> 400
B30: OMASTA METSÄSTÄ OTETTU PUUTAVARA | C30: =IF(C34>0,"Kyllä","Ei") -> Ei
B31: Maataloustoiminnan käyttö | C31: ='2C'!C35 -> 0
B32: Elinkeinotoiminnan käyttö | C32: ='2C'!F35 -> 0
B33: Yksityiskäyttö | C33: ='2C'!L35 -> 0
B34: YHTEENSÄ | C34: =SUM(C31:C33) -> 0
B36: VARAUSTEN TULOUTUS | C36: =IF(C38>0,"Kyllä","Ei") -> Ei
B37: Varausten tuloutus | C37: ='2C'!C41+'2C'!F41 -> 0
B38: YHTEENSÄ | C38: =SUM(C37:C37) -> 0
B40: MUUT PÄÄOMATULOIKSI LUETTAVAT ERÄT | C40: =IF(C42>0,"Kyllä","Ei") -> Ei
B41: Muu pääomatuloksi luettava erä metsätaloudesta | C41: ='2C'!L41 -> 0
B42: YHTEENSÄ | C42: =SUM(C41:C41) -> 0
B44: Tuloina ilmoitettavat muun toiminnan menot, jotka sisältyvät metsätalouden mustiinpanoihin | C44: =IF(C48>0,"Kyllä","Ei") -> Ei
B45: Maatalouden menot | C45: ='2C'!B56 -> 0
B46: Elinkeinotoiminnan menot | C46: ='2C'!F56 -> 0
B47: Yksityistalouden menot | C47: ='2C'!L56 -> 0
B48: YHTEENSÄ | C48: =SUM(C45:C47) -> 0
B50: TULOT YHTEENSÄ | C50: =C48+C42+C38+C34+C28+C22 -> 15800
B52: 3. MENOT
B53: ILMOITAN TIETOJA MENOT JA VARAUKSET VAIHEESSA | C53: =IF('2C'!S38+'2C'!S44>0,"Kyllä","En") -> Kyllä
B55: VUOSIMENOT | C55: =IF(C59>0,"Kyllä","Ei") -> Kyllä
B56: Palkkausmenot | C56: ='2C'!B44 -> 0
B57: Matkakulut | C57: ='2C'!F44 -> 44.64
B58: Muut vuosimenot | C58: ='2C'!L44 -> 773.47
B59: YHTEENSÄ | C59: =SUM(C56:C58) -> 818.11
B61: HANKINTATYÖ | C61: =IF(C64+C65>0,"Kyllä","Ei") -> Ei
B62: Hankintatyön tekijä | C62: =Etusivu!C36 -> 0 | D62: =COUNTBLANK(Etusivu!C36:C43) -> 8 | E62: Hankintatyön tekijä | F62: =Etusivu!C38 -> 0 | H62: Hankintatyön tekijä | I62: =Etusivu!C40 -> 0 | K62: Hankintatyön tekijä | L62: =Etusivu!C42 -> 0
B63: Henkilötunnus | C63: =Etusivu!C37 -> 0 | E63: Henkilötunnus | F63: =Etusivu!C39 -> 0 | H63: Henkilötunnus | I63: =Etusivu!C41 -> 0 | K63: Henkilötunnus | L63: =Etusivu!C43 -> 0
B64: Valmistettu määrä | C64: ='2C'!J72 -> 0 | E64: Valmistettu määrä | F64: ='2C'!M74 -> 0 | H64: Valmistettu määrä | I64: ='2C'!M76 -> 0 | K64: Valmistettu määrä | L64: ='2C'!M78 -> 0
B65: Kuljetettu määrä | C65: ='2C'!M72 -> 0 | E65: Kuljetettu määrä | F65: ='2C'!M74 -> 0 | H65: Kuljetettu määrä | I65: ='2C'!M76 -> 0 | K65: Kuljetettu määrä | L65: ='2C'!M78 -> 0
B66: Hankintatyön arvo | C66: ='2C'!O72 -> 0 | E66: Hankintatyön arvo | F66: ='2C'!O74 -> 0 | H66: Hankintatyön arvo | I66: ='2C'!O76 -> 0 | K66: Hankintatyön arvo | L66: ='2C'!O78 -> 0
B67: Veronalainen arvo | C67: ='2C'!S72 -> 0 | E67: Veronalainen arvo | F67: ='2C'!S74 -> 0 | H67: Veronalainen arvo | I67: ='2C'!S76 -> 0 | K67: Veronalainen arvo | L67: ='2C'!S78 -> 0
B68: YHTEENSÄ | C68: ='2C'!O80 -> 0
B70: METSÄVÄHENNYS | C70: =IF(C72>0,"Kyllä","Ei") -> Kyllä
B71: Metsävähennyksen seuranta
B72: Metsävähennyspohja | C72: ='2C'!R86 -> 27000
B73: Aiemmin käytetty metsävähennys | C73: ='2C'!R87 -> 6700
B74: Luovutusvoittoihin lisätty metsävähennyksen määrä | C74: ='2C'!R88 -> 0
B76: Käytettävissä olevan metsävähennyksen määrä | C76: ='2C'!R89 -> 20300
B77: Metsävähennyksen käyttö verovuonna
B78: Metsätalouden veronalainen pääomatulo metsävä- hennykseen oikeuttavista metsistä verovuonna | C78: ='2C'!R90 -> 15800
B79: Verovuoden metsävähennys | C79: ='2C'!R91 -> 9480
B80: Käytetty metsävähennys yhteensä | C80: ='2C'!R92 -> 16180
B81: Verovuoden metsävähennys | C81: =C79 -> 9480
B83: MENOVARAUKSET | C83: =IF(C90>0,"Kyllä","Ei") -> Kyllä
B84: =CONCATENATE("Verovuosi ",Etusivu!C8-5," (entiset Oulun ja Lapin läänit)") -> Verovuosi 2020 (entiset Oulun ja Lapin läänit) | C84: ='2C'!F99 -> 0
B85: =CONCATENATE("Verovuosi ",Etusivu!C8-4," (entiset Oulun ja Lapin läänit)") -> Verovuosi 2021 (entiset Oulun ja Lapin läänit) | C85: ='2C'!F100 -> 0
B86: =CONCATENATE("Verovuosi ",Etusivu!C8-3) -> Verovuosi 2022 | C86: ='2C'!F101 -> 0
B87: =CONCATENATE("Verovuosi ",Etusivu!C8-2) -> Verovuosi 2023 | C87: ='2C'!F102 -> 0
B88: =CONCATENATE("Verovuosi ",Etusivu!C8-1) -> Verovuosi 2024 | C88: ='2C'!F103 -> 0
B89: =CONCATENATE("Verovuosi ",Etusivu!C8) -> Verovuosi 2025 | C89: ='2C'!F104 -> 948
B90: YHTEENSÄ | C90: =SUM(C84:C89) -> 948
B92: TUHOVARAUKSET | C92: =IF(C99>0,"Kyllä","Ei") -> Ei
B93: =CONCATENATE("Verovuosi ",Etusivu!C8-5," (entiset Oulun ja Lapin läänit)") -> Verovuosi 2020 (entiset Oulun ja Lapin läänit) | C93: ='2C'!J99 -> 0
B94: =CONCATENATE("Verovuosi ",Etusivu!C8-4," (entiset Oulun ja Lapin läänit)") -> Verovuosi 2021 (entiset Oulun ja Lapin läänit) | C94: ='2C'!J100 -> 0
B95: =CONCATENATE("Verovuosi ",Etusivu!C8-3) -> Verovuosi 2022 | C95: ='2C'!J101 -> 0
B96: =CONCATENATE("Verovuosi ",Etusivu!C8-2) -> Verovuosi 2023 | C96: ='2C'!J102 -> 0
B97: =CONCATENATE("Verovuosi ",Etusivu!C8-1) -> Verovuosi 2024 | C97: ='2C'!J103 -> 0
B98: =CONCATENATE("Verovuosi ",Etusivu!C8) -> Verovuosi 2025 | C98: ='2C'!J104 -> 0
B99: YHTEENSÄ | C99: =SUM(C93:C98) -> 0
B101: POISTOT | C101: =IF(C108+C116+C124>0,"Kyllä","Ei") -> Kyllä
B102: POISTOT KONEISTA JA LAITTEISTA | C102: =IF(C107>0,"Avaa erittely","") -> Avaa erittely
B103: =CONCATENATE("Menojäännös 1.1.",Etusivu!C8) -> Menojäännös 1.1.2025 | C103: ='2C'!E47 -> 750
B104: Lisäykset verovuonna | C104: ='2C'!E48 -> 717.13
B105: Luovutukset verovuonna | C105: ='2C'!E49 -> 0
B106: Suurin mahdollinen poisto 25 % | C106: =IF((C103+C104-C105)<600.01,C103+C104-C105,(C103+C104-C105)*0.25) -> 366.78 | E106: =IF(C107>C106,"Huom! Poisto voi olla tätä suurempi, jos yksittäisistä poistoeristä joku poistetaan kerralla. Hyväksy silloin omaverossa suurempi luku.","") -> 
B107: Poistot | C107: ='2C'!E50 -> 287.5
B108: =CONCATENATE("MENOJÄÄNNÖS 31.12.",Etusivu!C8) -> MENOJÄÄNNÖS 31.12.2025 | C108: ='2C'!E51 -> 1179.63
B110: POISTOT RANENNUKSISTA | C110: =IF(C115>0,"Avaa erittely","") -> 
B111: =CONCATENATE("Menojäännös 1.1.",Etusivu!C8) -> Menojäännös 1.1.2025 | C111: ='2C'!H47 -> 0
B112: Lisäykset verovuonna | C112: ='2C'!H48 -> 0
B113: Luovutukset verovuonna | C113: ='2C'!H49 -> 0
B114: Suurin mahdollinen poisto 10 % | C114: =IF((C111+C112-C113)<600.01,C111+C112-C113,(C111+C112-C113)*0.1) -> 0 | E114: =IF(C115>C114,"Huom! Poisto voi olla tätä suurempi, jos yksittäisistä poistoeristä joku poistetaan kerralla. Hyväksy silloin omaverossa suurempi luku.","") -> 
B115: Poistot | C115: ='2C'!H50 -> 0
B116: =CONCATENATE("MENOJÄÄNNÖS 31.12.",Etusivu!C8) -> MENOJÄÄNNÖS 31.12.2025 | C116: ='2C'!H51 -> 0
B118: POISTOT METSÄOJISTA JA -TEISTÄ | C118: =IF(C123>0,"Avaa erittely","") -> Avaa erittely
B119: =CONCATENATE("Menojäännös 1.1.",Etusivu!C8) -> Menojäännös 1.1.2025 | C119: ='2C'!M47 -> 3200
B120: Lisäykset verovuonna | C120: ='2C'!M48 -> 0
B121: Luovutukset verovuonna | C121: ='2C'!M49 -> 0
B122: Suurin mahdollinen poisto 15 % | C122: =IF((C119+C120-C121)<600.01,C119+C120-C121,(C119+C120-C121)*0.15) -> 480 | E122: =IF(C123>C122,"Huom! Poisto voi olla tätä suurempi, jos yksittäisistä poistoeristä joku poistetaan kerralla. Hyväksy silloin omaverossa suurempi luku.","") -> 
B123: Poistot | C123: ='2C'!M50 -> 480
B124: =CONCATENATE("MENOJÄÄNNÖS 31.12.",Etusivu!C8) -> MENOJÄÄNNÖS 31.12.2025 | C124: ='2C'!M51 -> 2720
B126: TOISESTA TULOLÄHTEESTÄ SIIRRETTÄVÄT MENOT
B127: Nämä tiedot eivät tule suoraan Mettestä. Lisää tarvittaessa
B129: MENOT YHTEENSÄ | C129: =C127+C123+C115+C107+C98+C89+C81+C66+C59 -> 12013.61
B131: METSÄTALOUDEN PUHDAS PÄÄOMATULO | C131: =C50-C129 -> 3786.39

Sheet 2C
O5: 2C METSÄTALOUDEN
O6: VEROILMOITUS | T6: =Etusivu!C8 -> 2025
B7: Verohallinto | O7: Kaikki maatilat yhteensä
B8: PL 700 | O8: Metsätalouden veroilmoitusta ei tarvitse antaa,
B9: 00052 VERO | O9: =CONCATENATE("jos vuonna ",Etusivu!C8," ei ole ollut lainkaan metsä-") -> jos vuonna 2025 ei ole ollut lainkaan metsä-
O10: talouden harjoittamiseen liittyviä tuloja, vähen-
O11: nettäviä menoja eikä metsävähennyksestä ja
O12: varauksista ilmoitettavia seurantatietoja.
B13: HUOM! Älä lähetä tätä lomaketta verottajalle.
B14: Käytä sähköistä ilmoittamista tai kopioi tiedot alkuperäiselle lomakkeelle.
B19: Nimi | L19: Y-tunnus tai henkilötunnus | T19: Oma erillinen ilmotitus (puolisoiden yhteisestä metsätaloudesta annetaan eri ilmoitus)
B21: =Etusivu!C10 -> Matti Metsänen | M21: =Etusivu!C16 -> 123456-7 | R21: =IF(Etusivu!C12="Kyllä","X","") -> 
B23: I Laskelma metsätalouden pääomatulosta | R23: euro | U23: snt
B24: 1 Puun myyntitulot
B25: 1.1.Pystykaupat | F25: 1.2 Hankintakaupat | L25: 1.3 Poltto- ja joulukuusikaupat
B26: =Tulot!G9 -> 15400 | F26: =Tulot!H9 -> 0 | L26: =Tulot!I9 -> 0 | R26: + | S26: =B26+F26+L26 -> 15400
B27: 2 Hankintatyön arvo
F28: 2.1 Hankintakaupat | L28: 2.2 Poltto- ja joulukuusikaupat | W28: =IF(F29>F26,"Hankintatyön arvo ei saa olla hankintakauppatuloa suurempi. Tarkista hankintakaupan summat!",0) -> 0
F29: =SUM('Hank.työ 1'!J18:N18)+'Hank.työ 1'!X7 -> 0 | L29: =SUM('Hank.työ 2'!J18:N18)+'Hank.työ 2'!X7 -> 0 | R29: - | S29: =B29+F29+L29 -> 0 | W29: =IF(L29>L26,"Hankintatyön arvo ei saa olla hankintakauppatuloa suurempi. Tarkista Poltto- ja joulupuiden summat!",0) -> 0
B30: 3 Vakuutus- ja hirvivahinkokorvaukset, metsätalouden tuet
B31: 3.1 Vakuutuskorvaukset | F31: 3.2 Hirvivahinkokorvaukset | L31: 3.3 Metsätalouden tuet
B32: =Tulot!O9 -> 0 | F32: =Tulot!P9 -> 0 | L32: =Tulot!Q9 -> 400 | R32: + | S32: =L32+F32+B32 -> 400
B33: 4 Omasta metsästä otettu puutavara
B34: 4.1 Maataloustoiminnan käyttö | F34: 4.2 Elinkeinotoiminnan käyttö | L34: 4.3 Yksityiskäyttö
C35: ='Oma käyttö'!F9+'Oma käyttö'!I9 -> 0 | F35: ='Oma käyttö'!G9+'Oma käyttö'!J9 -> 0 | L35: ='Oma käyttö'!H9+'Oma käyttö'!K9 -> 0 | R35: + | S35: =L35+F35+C35 -> 0
B36: 5 Metsävähennys ja varaukset
B37: 5.1 Metsävähennys | F37: 5.2 Menovaraus | L37: 5.3 Tuhovaraus
B38: =Vähennys!C37 -> 9480 | F38: =Varaukset!E26 -> 948 | L38: =Varaukset!H26 -> 0 | R38: - | S38: =L38+F38+B38 -> 10428
B39: 6 Muut pääomatuloksi luettavat erät
F40: 6.1 Varausten tuloutus | L40: 6.2 Muut
F41: =Varaukset!E17+Varaukset!J17 -> 0 | L41: =Tulot!R9 -> 0 | R41: + | S41: =B41+L41+F41 -> 0
B42: 7 Vuosimenot
B43: 7.1 Palkkausmenot | F43: 7.2 Matkakulut | L43: 7.3 Muut vuosimenot
B44: =Menot!L8 -> 0 | F44: =Menot!M8 -> 44.64 | L44: =Menot!N8 +Menot!O8 -> 773.47 | R44: - | S44: =L44+F44+B44 -> 818.11
B45: 8 Metsätalouden poistot
E46: Koneet ja kalusto | H46: Rakennukset | M46: Ojat ja tiet
B47: =CONCATENATE("8.1 Menojäännös 1.1.",Etusivu!C8) -> 8.1 Menojäännös 1.1.2025 | E47: =Poistot!E8 -> 750 | H47: =Poistot!E70 -> 0 | M47: =Poistot!E77 -> 3200
B48: 8.2 Lisäykset verovuonna | E48: =Poistot!F8 -> 717.13 | H48: =Poistot!F70 -> 0 | M48: =Poistot!F77 -> 0
B49: 8.3 Luovutukset verovuonna | E49: =Poistot!G8 -> 0 | H49: =Poistot!G70 -> 0 | M49: =Poistot!G77 -> 0
B50: 8.4 Poistot | E50: =Poistot!K8 -> 287.5 | H50: =Poistot!K70 -> 0 | M50: =Poistot!K77 -> 480 | R50: - | S50: =SUM(E50:Q50) -> 767.5
B51: =CONCATENATE("8.5 Menojäännös 31.12.",Etusivu!C8) -> 8.5 Menojäännös 31.12.2025 | E51: =Poistot!L8 -> 1179.63 | H51: =Poistot!L70 -> 0 | M51: =Poistot!L77 -> 2720
B52: 9 Toisesta tulonlähteestä siirrettävät menot
R53: - | S53: 0 | W53: OHJE:
B54: 10 Metsätalouden muistiinpanoihin sisältyneet muun toiminnan menot
B55: 10.1 Maatalouden menot | F55: 10.2 Elinkeinotoiminnan menot | L55: 10.3 Yksityismenot | S55: =SUM(B56:Q56) -> 0
B56: =Menot!AD8+Poistot!N8+Poistot!N70+Poistot!N77 -> 0 | F56: =Menot!AE8+Poistot!O8+Poistot!O70+Poistot!O77 -> 0 | L56: =Menot!AF8+Poistot!P8+Poistot!P70+Poistot!P77 -> 0 | R56: +
B58: 11. Metsätalouden puhdas pääomatulo | R58: = | S58: =IF(S26-S29+S32+S35-S38+S41-S44-S50-S53+S55>=0,S26-S29+S32+S35-S38+S41-S44-S50-S53+S55,0) -> 3786.39
B60: 12. Metsätalouden tappiollinen pääomatulo | R60: = | S60: =IF(S26-S29+S32+S35-S38+S41-S44-S50-S53+S55<0,S26-S29+S32+S35-S38+S41-S44-S50-S53+S55,0) -> 0 | AB60: Tätä lisälomaketta käytetään vain jos hankintatyöntekijöitä on enemmän kuin 4
O64: 2C METSÄTALOUDEN | AO64: 2C METSÄTALOUDEN
O65: VEROILMOITUS | AO65: VEROILMOITUS
O66: Kaikki maatilat yhteensä | AO66: Kaikki maatilat yhteensä
B67: Y-tunnus tai henkilötunnus | AB67: Y-tunnus tai henkilötunnus
B68: =Etusivu!C16 -> 123456-7 | AB68: =B68 -> 123456-7
B69: II Tehty hankintatyö | AB69: II Tehty hankintatyö
B70: Hankintatyön tekijä | G70: Henkilötunnus | J70: Valmistettu määrä m3 | M70: Kuljetettu määrä m3 | O70: Hankintatyön arvo | S70: Hankintatyön veronalainen arvo 1) | AB70: Hankintatyön tekijä | AG70: Henkilötunnus | AJ70: Valmistettu määrä m3 | AM70: Kuljetettu määrä m3 | AO70: Hankintatyön arvo | AS70: Hankintatyön veronalainen arvo 1)
O71: euro | Q71: snt | S71: euro | U71: snt | AO71: euro | AQ71: snt | AS71: euro | AU71: snt
B72: =Etusivu!C36 -> 0 | G72: =Etusivu!C37 -> 0 | J72: =SUM('Hank.työ 1'!J12:N12)+SUM('Hank.työ 2'!J12:N12) -> 0 | M72: =SUM('Hank.työ 1'!J15:N15)+SUM('Hank.työ 2'!J15:N15) -> 0 | O72: =SUM('Hank.työ 1'!J18:N18)+SUM('Hank.työ 2'!J18:N18) -> 0 | S72: =SUM('Hank.työ 1'!J19:N19)+SUM('Hank.työ 2'!J19:N19) -> 0 | AO72: =SUM('Hank.työ 1'!AD18:AF18)+SUM('Hank.työ 2'!AD18:AF18) -> 0 | AS72: =SUM('Hank.työ 1'!AD19:AF19)+SUM('Hank.työ 2'!AD19:AF19) -> 0
B74: =Etusivu!C38 -> 0 | G74: =Etusivu!C39 -> 0 | O74: 0 | AO74: 0
B76: =Etusivu!C40 -> 0 | G76: =Etusivu!C41 -> 0
B78: =Etusivu!C42 -> 0 | G78: =Etusivu!C43 -> 0
B80: 13 Hankintatyön arvot yhteensä | O80: =SUM(O72:R79) -> 0 | S80: ----- | U80: --- | AB80: 13 Hankintatyön arvot yhteensä | AO80: =SUM(AO72:AR79) -> 0 | AS80: ----- | AU80: ---
B81: 1) Katso laskentakaava täyttöohjeessa | AB81: 1) Katso laskentakaava täyttöohjeessa
B83: III Metsävähennyksen seuranta (vuonna 1993 ja sen jälkeen vastikkeellisesti hankitut metsät) | AB83: III Metsävähennyksen seuranta (vuonna 1993 ja sen jälkeen vastikkeellisesti hankitut metsät)
B84: Kaikki metsävähennyskiinteistöt yhteensä | AB84: Kaikki metsävähennyskiinteistöt yhteensä
T85: euro | U85: snt | AT85: euro | AU85: snt
B86: 14 Metsävähennyspohja. 2) | R86: =Vähennys!C32 -> 27000 | AB86: 14 Metsävähennyspohja. 2)
B87: 15 Aikaisemmin käytetty metsävähennys | R87: =Vähennys!C33 -> 6700 | AB87: 15 Aikaisemmin käytetty metsävähennys
B88: 16 Luovutusvoittoihin lisättyjen metsävähennysten määrä | R88: =Vähennys!C34 -> 0 | AB88: 16 Luovutusvoittoihin lisättyjen metsävähennysten määrä
B89: 17 Käytettävissä olevan metsävähennyksen määrä = kohta 14 - (kohta 15 - kohta 16) | R89: =IF(R86-R87+R88>0,R86-R87+R88,0) -> 20300 | AB89: 17 Käytettävissä olevan metsävähennyksen määrä = kohta 14 - (kohta 15 - kohta 16)
B90: 18 Metsätalouden veronalainen pääomatulo metsävähennykseen oikeuttavista metsistä verovuonna | R90: =Vähennys!C36 -> 15800 | AB90: 18 Metsätalouden veronalainen pääomatulo metsävähennykseen oikeuttavista metsistä verovuonna
B91: 19 Verovuoden metsävähennys 3) | R91: =Vähennys!C37 -> 9480 | AB91: 19 Verovuoden metsävähennys 3)
B92: 20 Käytetty metsävähennys yhteensä = kohta 15 + kohta 19 | R92: =Vähennys!C38 -> 16180 | AB92: 20 Käytetty metsävähennys yhteensä = kohta 15 + kohta 19
B93: 2) Verovuoden lopussa omistettujen metsien metsävähennyspohja yhteensä, ks. Lisätiedot täyttöohjeessa | AB93: 2) Verovuoden lopussa omistettujen metsien metsävähennyspohja yhteensä, ks. Lisätiedot täyttöohjeessa
B94: 3) Metsävähennyksen määrä on enintään 60 % pääomatulosta, joka on saatu metsävähennykseen oikeuttavasta metsästä. Metsävähennyksen määrän on kuitenkin oltava vähintään 1 500 euroa ja korkeintaan kohdan 17 mukainen määrä. Siirretään lomakkeen kohtaan 5.1 | AB94: 3) Metsävähennyksen määrä on enintään 60 % pääomatulosta, joka on saatu metsävähennykseen oikeuttavasta metsästä. Metsävähennyksen määrän on kuitenkin oltava vähintään 1 500 euroa ja korkeintaan kohdan 17 mukainen määrä. Siirretään lomakkeen kohtaan 5.1
B95: IV Tulouttamattomat varaukset | AB95: IV Tulouttamattomat varaukset
B96: Kuutena edellisenä vuotena tehtyjen varausten jäljellä oleva määrä verovuoden lopussa | AB96: Kuutena edellisenä vuotena tehtyjen varausten jäljellä oleva määrä verovuoden lopussa
E97: 21 Menovaraus | I97: 22 Tuhovaraus | AE97: 21 Menovaraus | AI97: 22 Tuhovaraus
F98: Euroa | G98: snt | K98: Euroa | O98: snt | AF98: Euroa | AG98: snt | AK98: Euroa | AO98: snt
B99: =CONCATENATE("Verovuosi ",Etusivu!C8-5) -> Verovuosi 2020 | F99: =Varaukset!E21 -> 0 | J99: =Varaukset!J21 -> 0 | P99: (Entiset Oulun ja Lapin läänit) | AB99: =CONCATENATE("Verovuosi ",Etusivu!C8-5) -> Verovuosi 2020 | AP99: (Entiset Oulun ja Lapin läänit)
B100: =CONCATENATE("Verovuosi ",Etusivu!C8-4) -> Verovuosi 2021 | F100: =Varaukset!E22 -> 0 | J100: =Varaukset!J22 -> 0 | P100: (Entiset Oulun ja Lapin läänit) | AB100: =CONCATENATE("Verovuosi ",Etusivu!C8-4) -> Verovuosi 2021 | AP100: (Entiset Oulun ja Lapin läänit)
B101: =CONCATENATE("Verovuosi ",Etusivu!C8-3) -> Verovuosi 2022 | F101: =Varaukset!E23 -> 0 | J101: =Varaukset!J23 -> 0 | AB101: =CONCATENATE("Verovuosi ",Etusivu!C8-3) -> Verovuosi 2022
B102: =CONCATENATE("Verovuosi ",Etusivu!C8-2) -> Verovuosi 2023 | F102: =Varaukset!E24 -> 0 | J102: =Varaukset!J24 -> 0 | AB102: =CONCATENATE("Verovuosi ",Etusivu!C8-2) -> Verovuosi 2023
B103: =CONCATENATE("Verovuosi ",Etusivu!C8-1) -> Verovuosi 2024 | F103: =Varaukset!E25 -> 0 | J103: =Varaukset!J25 -> 0 | AB103: =CONCATENATE("Verovuosi ",Etusivu!C8-1) -> Verovuosi 2024
B104: =CONCATENATE("Verovuosi ",Etusivu!C8) -> Verovuosi 2025 | F104: =Varaukset!E26 -> 948 | J104: =Varaukset!J26 -> 0 | AB104: =CONCATENATE("Verovuosi ",Etusivu!C8) -> Verovuosi 2025
B106: Veroilmoitusta täydentäviä tietoja antaa | P106: Puhelinnumero | AB106: Veroilmoitusta täydentäviä tietoja antaa | AP106: Puhelinnumero
B107: =IF(Etusivu!C31="","",Etusivu!C31) ->  | P107: =IF(Etusivu!C32=0,"",Etusivu!C32) ->  | AB107: =IF(Etusivu!C31="","",Etusivu!C31) ->  | AP107: =IF(Etusivu!C32=0,"",Etusivu!C32) -> 
B109: Päiväys | F109: Allekirjoitus | AB109: Päiväys | AF109: Allekirjoitus
B111: =Etusivu!$C29 -> 28022026 | AB111: =Etusivu!$C29 -> 28022026
B113: Tiedot luetaann optisesti lomakkeen täyttökentistä. | AB113: Tiedot luetaann optisesti lomakkeen täyttökentistä.
B114: HUOM! Älä lähetä tätä lomaketta verottajalle. Käytä sähköistä ilmoittamista tai kopioi tiedot alkuperäiselle lomakkeelle. | AB114: HUOM! Älä lähetä tätä lomaketta verottajalle. Käytä sähköistä ilmoittamista tai kopioi tiedot alkuperäiselle lomakkeelle.

Sheet ALV
B2: =IF(Etusivu!C22="kyllä",CONCATENATE(Etusivu!C10," ",Etusivu!C11),"EI ALV-VELVOLLINEN") -> Matti Metsänen
B3: =Etusivu!C16 -> 123456-7
B5: ALV-ILMOITUKSEN KOOSTETIEDOT | M5: ALV-TIETOJEN SÄHKÖINEN ILMOITTAMINEN
B6: ALV-ilmoituksen tiedot OmaVero -palvelua varten | M6: ALV-ilmoituksen siirtotiedosto www.ilmoitin.fi -palvelua varten
B7: Käytä yhtä alla olevista koostetietoalueista
C8: Alv-ilmoitus kerran vuodessa | M8: Tunnus | N8: Tieto | O8: tunnus-tietopari | P8: Kommentit | Q8: Kuvaus
C9: Kerran vuodessa alv-ilmoitusvelvolliset voivat käyttää arvionvaraiset välilehteä. | M9: 000 | N9: VSRALVKV | O9: =IF(N9=0,"",CONCATENATE(M9,":",N9)) -> 000:VSRALVKV | P9: Yksilöi verolomakkeen | Q9: VSRALVKV = kausiveroilmoituslomake
M10: 198 | P10: lisää itse | Q10: Siirtotiedoston luontiaika muodossa PPKKVVVVHHMMSS
D11: Vero kotimaan myynnistä alv 25,5 % | E11: Kohdekauden vähennettävä vero | F11: Maksettava vero / palautukseen oikeuttava vero (-) | G11: viimeinen maksu- päivä | H11: ilmoitettu | I11: maksettu | M11: 010 | N11: =Etusivu!C16 -> 123456-7 | O11: 010:123456-7 | Q11: Verovelvollisen henkilö- tai Y-tunnus
C12: =CONCATENATE("Vuosi ",verovuosi) -> Vuosi 2025 | D12: =SUM(D20:D23) -> 3927 | E12: =Menot!J8 -> 303.6 | F12: =D12-E12 -> 3623.4 | G12: 2026-02-28 | M12: 014 | N12: 1356307-2_FM | O12: 014:1356307-2_FM | Q12: Ohjelmatoimittajan y-tynnus ja ohjelman koodi
M13: 048 | N13: =versio -> Mette 25.10 Mette Järjestelmät Oy | O13: 048:Mette 25.10 Mette Järjestelmät Oy | P13: Ohjelmaversio | Q13: Tieto lähettävästä ohjelmistosta
M14: 050 | N14: =Etusivu!I20 -> V | O14: 050:V | P14: K Q tai V | Q14: Verokauden pituus (K=kuukausi, Q=4x/vuosi, V=vuosittain)
M15: 052 | N15: =IF(Etusivu!I20="V",0,IF(LARGE(ALV!H20:H23,1)>=1,LARGE(ALV!H20:H23,1),IF(LARGE(ALV!H29:H40,1)>=1,LARGE(ALV!H29:H40,1),0))) -> 0 | Q15: Verokausi
C16: Kausiveroilmoitus 4 kertaa vuodessa | M16: 053 | N16: =verovuosi -> 2025 | O16: 053:2025 | Q16: Verokauden vuosi. Varmista, että ilmoitusvuosi on oikea.
C17: Älä käytä arvionvaraiset välilehteä, jos olet alv-kausiveroilmoitusvelvollinen 4 krt/v. | H17: =IF(Etusivu!C23="4 kertaa vuodessa", "KÄYTÄ NÄITÄ TIETOJA", " ") ->  | M17: 301 | N17: =IF(Etusivu!I20="V",D12,IF(Etusivu!I20="Q",SUMIF(H20:H23,N15,D20:D23),IF(Etusivu!I20="K",SUMIF(H29:H40,N15,D29:D40),5))) -> 3927 | O17: =IF(N17=0,"",CONCATENATE(M17,":",TEXT(N17,"0,00"))) -> 301:3927,00 | Q17: Suoritettava 25,5 %:n vero kotimaan myynnistä
M18: 307 | N18: =IF(Etusivu!I20="V",E12,IF(Etusivu!I20="Q",SUMIF(H20:H23,N15,E20:E23),IF(Etusivu!I20="K",SUMIF(H29:H40,N15,E29:E40),5))) -> 303.6 | O18: 307:303,60 | Q18: Kohdekauden vähennettävä vero
D19: Vero kotimaan myynnistä alv 24 tai 25,5 % | E19: Kohdekauden vähennettävä vero | F19: Maksettava vero / palautukseen oikeuttava vero (-) | G19: viimeinen maksu- päivä | H19: Viimeksi ilmoitettu kausi | I19: maksettu | M19: 308 | N19: =+N17-N18 -> 3623.4 | O19: 308:3623,40 | Q19: Maksettava vero / Palautukseen oikeuttava vero (-)
B20: 1 | C20: tammi-maaliskuu | D20: =SUM(D29:D31) -> 3927 | E20: =SUM(E29:E31) -> 8.98 | F20: =SUM(F29:F31) -> 3918.02 | G20: 2025-05-12 | H20: 1 | M20: 315 | P20: lisää itse | Q20: Alarajahuojennukseen oikeuttava liikevaihto
B21: 2 | C21: Huhti-kesäkuu | D21: =SUM(D32:D34) -> 0 | E21: =SUM(E32:E34) -> 0 | F21: =SUM(F32:F34) -> 0 | G21: 2025-08-12 | H21: 0 | M21: 316 | P21: lisää itse | Q21: Alarajahuojennukseen oikeuttava vero
B22: 3 | C22: Heinä-syyskuu | D22: =SUM(D35:D37) -> 0 | E22: =SUM(E35:E37) -> 0 | F22: =SUM(F35:F37) -> 0 | G22: 2025-11-12 | H22: 0 | M22: 317 | P22: lisää itse | Q22: Alarajahuojennuksen määrä
B23: 4 | C23: Loka-Joulukuu | D23: =SUM(D38:D40) -> 0 | E23: =SUM(E38:E40) -> 294.62 | F23: =SUM(F38:F40) -> -294.62 | G23: 2026-02-12 | H23: 0 | M23: 336 | O23: =IF(N23=0,"",CONCATENATE(M23,":",TEXT(N23,"0"))) ->  | P23: lisää itse | Q23: Alarajahuojennuksen hakuperuste/kausi. Sallitut arvo 1, 2, 3
M24: 337 | O24: =IF(N24=0,"",CONCATENATE(M24,":",TEXT(N24,"0"))) ->  | P24: lisää itse | Q24: Maksuperusteinen arvonlisävero =vuosiilmoitus. Sallittu arvo 1
C25: Kausiveroilmoitus kuukausittain | M25: 056 | O25: =IF(N25=0,"",CONCATENATE(M25,":",N25)) ->  | P25: lisää itse 1 jos ei toimintaa | Q25: Ei toimintaa
C26: Älä käytä arvionvaraiset välilehteä, jos olet alv-kausiveroilmoitusvelvollinen 12 krt/v | H26: =IF(Etusivu!C23="kuukausittain", "KÄYTÄ NÄITÄ TIETOJA", " ") ->  | M26: 042 | N26: =Etusivu!C32 -> 0 | O26: =IF(N26=0,"",CONCATENATE(M26,":",N26)) ->  | Q26: Yhteyshenkilön puhelinnumero
M27: 999 | N27: 1 | O27: =IF(N27=0,"",CONCATENATE(M27,":",N27)) -> 999:1 | Q27: Lomakkeen loppumerkki
D28: Vero kotimaan myynnistä alv 24 tai 25,5 % | E28: Kohdekauden vähennettävä vero | F28: Maksettava vero / palautukseen oikeuttava vero (-) | G28: viimeinen maksu- päivä | H28: Viimeksi ilmoitettu kk | I28: maksettu
B29: 1 | C29: Tammikuu | D29: =SUMIF(Tulot!D$11:D$165,B29,Tulot!M$11:M$165)+SUMIF(Luovutusv.!D$8:D$15,B29,Luovutusv.!I$8:I$15) -> 0 | E29: =SUMIF(Menot!D$13:D$634,B29,Menot!J$13:J$634) -> 0 | F29: =D29-E29 -> 0 | G29: 2025-03-12 | H29: 1
B30: 2 | C30: Helmikuu | D30: =SUMIF(Tulot!D$11:D$165,B30,Tulot!M$11:M$165)+SUMIF(Luovutusv.!D$8:D$15,B30,Luovutusv.!I$8:I$15) -> 0 | E30: =SUMIF(Menot!D$13:D$634,B30,Menot!J$13:J$634) -> 0 | F30: =D30-E30 -> 0 | G30: 2025-04-12 | H30: 0
B31: 3 | C31: Maaliskuu | D31: =SUMIF(Tulot!D$11:D$165,B31,Tulot!M$11:M$165)+SUMIF(Luovutusv.!D$8:D$15,B31,Luovutusv.!I$8:I$15) -> 3927 | E31: =SUMIF(Menot!D$13:D$634,B31,Menot!J$13:J$634) -> 8.98 | F31: 3918.02 | G31: 2025-05-12 | H31: 0
B32: 4 | C32: Huhtikuu | D32: =SUMIF(Tulot!D$11:D$165,B32,Tulot!M$11:M$165)+SUMIF(Luovutusv.!D$8:D$15,B32,Luovutusv.!I$8:I$15) -> 0 | E32: =SUMIF(Menot!D$13:D$634,B32,Menot!J$13:J$634) -> 0 | F32: 0 | G32: 2025-06-12 | H32: 0
B33: 5 | C33: Toukokuu | D33: =SUMIF(Tulot!D$11:D$165,B33,Tulot!M$11:M$165)+SUMIF(Luovutusv.!D$8:D$15,B33,Luovutusv.!I$8:I$15) -> 0 | E33: =SUMIF(Menot!D$13:D$634,B33,Menot!J$13:J$634) -> 0 | F33: 0 | G33: 2025-07-12 | H33: 0
B34: 6 | C34: Kesäkuu | D34: =SUMIF(Tulot!D$11:D$165,B34,Tulot!M$11:M$165)+SUMIF(Luovutusv.!D$8:D$15,B34,Luovutusv.!I$8:I$15) -> 0 | E34: =SUMIF(Menot!D$13:D$634,B34,Menot!J$13:J$634) -> 0 | F34: 0 | G34: 2025-08-12 | H34: 0
B35: 7 | C35: Heinäkuu | D35: =SUMIF(Tulot!D$11:D$165,B35,Tulot!M$11:M$165)+SUMIF(Luovutusv.!D$8:D$15,B35,Luovutusv.!I$8:I$15) -> 0 | E35: =SUMIF(Menot!D$13:D$634,B35,Menot!J$13:J$634) -> 0 | F35: 0 | G35: 2025-09-12 | H35: 0
B36: 8 | C36: Elokuu | D36: =SUMIF(Tulot!D$11:D$165,B36,Tulot!M$11:M$165)+SUMIF(Luovutusv.!D$8:D$15,B36,Luovutusv.!I$8:I$15) -> 0 | E36: =SUMIF(Menot!D$13:D$634,B36,Menot!J$13:J$634) -> 0 | F36: 0 | G36: 2025-10-12 | H36: 0
B37: 9 | C37: Syyskuu | D37: =SUMIF(Tulot!D$11:D$165,B37,Tulot!M$11:M$165)+SUMIF(Luovutusv.!D$8:D$15,B37,Luovutusv.!I$8:I$15) -> 0 | E37: =SUMIF(Menot!D$13:D$634,B37,Menot!J$13:J$634) -> 0 | F37: 0 | G37: 2025-11-12 | H37: 0
B38: 10 | C38: Lokakuu | D38: =SUMIF(Tulot!D$11:D$165,B38,Tulot!M$11:M$165)+SUMIF(Luovutusv.!D$8:D$15,B38,Luovutusv.!I$8:I$15) -> 0 | E38: =SUMIF(Menot!D$13:D$634,B38,Menot!J$13:J$634) -> 111.75 | F38: -111.75 | G38: 2025-12-12 | H38: 0
B39: 11 | C39: Marraskuu | D39: =SUMIF(Tulot!D$11:D$165,B39,Tulot!M$11:M$165)+SUMIF(Luovutusv.!D$8:D$15,B39,Luovutusv.!I$8:I$15) -> 0 | E39: =SUMIF(Menot!D$13:D$634,B39,Menot!J$13:J$634) -> 182.87 | F39: -182.87 | G39: 2026-01-12 | H39: 0
B40: 12 | C40: Joulukuu | D40: =SUMIF(Tulot!D$11:D$165,B40,Tulot!M$11:M$165)+SUMIF(Luovutusv.!D$8:D$15,B40,Luovutusv.!I$8:I$15) -> 0 | E40: =SUMIF(Menot!D$13:D$634,B40,Menot!J$13:J$634) -> 0 | F40: 0 | G40: 2026-02-12 | H40: 0
B43: Lomake hakee alv-tulot lomakkeista "Tulot" ja "Luovutusvoitot"
B44: Lomake hakee alv-menot lomakkeista "Menot" ja "Arvionvaraiset" (Arvionvaraisista haetaan vain vuosi-ilmoitusosaan)
C46: Ilmoita tiedot verottajalle sähköisesti osoitteessa www.vero.fi/omavero
C47: Jos tässä taulukossa ei näy alv-arvoja tarkista, että olet kirjannut tulo-, meno- ja arvionvaraisiin kirjauksiin kuukauden numeron.
C48: Tarkista lomakkeelle kerätyt tiedot sarakkeelta N. Lisää tarvittaessa puuttuva tieto tai korjaa virheellinen tieto.
C49: Lopuksi luo siirtotiedosto painamalla "Luo siirtotiedosto" nappia.
C50: Makro EI toimi Mac versioissa eikä OpenOffice Calcissa. (Solussa O4 ohje siirtotiedoston manuaaliseen tekemiseen.)
C52: Huom! Siirtotiedoston luova makro toimii vain Windows Excelissä
C54: Ohje

Sheet Sähköinen ilmoittaminen
B2: =IF(Etusivu!C22="kyllä",CONCATENATE(Etusivu!C10," ",Etusivu!C11),"EI ALV-VELVOLLINEN") -> Matti Metsänen
B3: =Etusivu!C16 -> 123456-7
B5: LOMAKKEEN 2C TIETOJEN SÄHKÖINEN ILMOITTAMINEN | M5: OHJEITA
B6: Tunnus | C6: Tieto | D6: Kommentit | E6: Kuvaus | F6: tunnus-tietopari | H6: Älä muuta näitä alla olevien solujen kaavoja | M6: o Tällä lomakkeella luodaan 2C -lomakkeen tietojen siirtotiedosto www.ilmoitin.fi -palvelua varten
B7: 000 | C7: VSY02C25 | D7: Yksilöi verolomakkeen | E7: VSY02C25 = metsätalouden veroilmoituslomake 2025 | F7: =IF(C7=0,"",CONCATENATE(B7,":",C7)) -> 000:VSY02C25 | M7: o Tarkista lomakkeelle kerätyt tiedot sarakkeelta C. Lisää tarvittaessa puuttuva tieto tai korjaa virheellinen tieto.
B8: 198 | D8: =H8 -> 2025-10-16T19:25:29.490 | E8: Lähetyspäivä ja -aika, ilmoittaja täyttää, PPKKVVVVHHMMSS | H8: =NOW() -> 2025-10-16T19:25:29.490 | I8: =H8 -> 2025-10-16T19:25:29.490 | M8: o Siirtotiedoston luontiaika tulee kirjoittaa itse soluun C8. Solun oikealla puolella olevassa solussa on malli, millaisena aika tulee kirjoittaa.
B9: 048 | C9: =Etusivu!B4 -> Mette 25.10 Mette Järjestelmät Oy | E9: Tieto lähettävästä ohjelmistosta | F9: 048:Mette 25.10 Mette Järjestelmät Oy | M9: o Miksi käyttäjän on kirjoitettava aika itse? Verohallinnon järjestelmä vaatii ajan ilmoittamisen tietyssä muodossa, jota Excel ei osaa tehdä teksimuotoisena. Malli on tehty erikoismuotoiluna, jota ei voi käyttää tiedoston lähetyksessä.
B10: 014 | C10: 1356307-2_FM | E10: Ilmoituksen tuottaneen ohjelmiston yksilöivä tieto | F10: 014:1356307-2_FM | M10: o Voit antaa siirtotiedostolle haluamasi nimen. Rajoitteita nimeämiselle ei ole
B11: 010 | C11: =Etusivu!C16 -> 123456-7 | E11: Verovelvollisen henkilö- tai Y-tunnus | F11: 010:123456-7 | M11: o Siirtotiedoston luova makro toimii vain Windows Excelissä
B12: 600 | C12: =IF(COUNTBLANK('2C'!T21)=0,1,0) -> 0 | E12: Oma erillinen ilmoitus (1=kyllä) | M12: o Makro EI toimi Mac versioissa eikä OpenOffice Calcissa.
B13: 603 | C13: ='2C'!B26 -> 15400 | E13: Puun myyntitulot, pystykaupat | F13: =IF(C13=0,"",CONCATENATE(B13,":",K13)) -> 603:15400,00 | H13: =ROUNDDOWN(C13,0) -> 15400 | I13: =(C13-H13)*100 -> 0 | K13: =CONCATENATE(H13,",",IF(I13=0,"00",IF(I13<10,CONCATENATE("0",I13),I13))) -> 15400,00 | M13: o Solussa F6 ohje siirtotiedoston manuaaliseen tekemiseen
B14: 604 | C14: ='2C'!F26 -> 0 | E14: Puun myyntitulot, hankintakaupat | H14: 0 | I14: 0 | K14: 0,00
B15: 613 | C15: ='2C'!L26 -> 0 | E15: Puun myyntitulot, poltto- ja joulupuukaupat | H15: 0 | I15: 0 | K15: 0,00
B16: 690 | C16: ='2C'!S26 -> 15400 | E16: Puun myyntitulot yhteensä (603+604+613) | F16: 690:15400,00 | H16: 15400 | I16: 0 | K16: 15400,00
B17: 605 | C17: ='2C'!F29 -> 0 | E17: Hankintatyön arvo, hankintakaupat | H17: 0 | I17: 0 | K17: 0,00
B18: 625 | C18: ='2C'!L29 -> 0 | E18: Hankintatyön arvo, poltto- ja joulupuukaupat | H18: 0 | I18: 0 | K18: 0,00 | M18: Ohje sähköisen ilmoittamisen käyttöön
B19: 691 | C19: ='2C'!S29 -> 0 | E19: Hankintatyön arvo yhteensä (606+625) | H19: 0 | I19: 0 | K19: 0,00
B20: 607 | C20: ='2C'!B32 -> 0 | E20: Vakuutuskorvaukset | H20: 0 | I20: 0 | K20: 0,00
B21: 608 | C21: ='2C'!F32 -> 0 | E21: Hirvivahinkokorvaukset | H21: 0 | I21: 0 | K21: 0,00
B22: 609 | C22: ='2C'!L32 -> 400 | E22: Metsätalouden tuet | F22: 609:400,00 | H22: 400 | I22: 0 | K22: 400,00
B23: 610 | C23: ='2C'!S32 -> 400 | E23: Vakuutus- ja hirvivahinkokorvaukset, metsätalouden tuet yhteensä (607+608+609) | F23: 610:400,00 | H23: 400 | I23: 0 | K23: 400,00
B24: OT2 | E24: Otsikko | H24: 0 | I24: 0 | K24: 0,00
B25: 611 | C25: ='2C'!C35 -> 0 | E25: Maataloustoiminnan käyttö | H25: 0 | I25: 0 | K25: 0,00
B26: 612 | C26: ='2C'!F35 -> 0 | E26: Elinkeinotoiminnan käyttö | H26: 0 | I26: 0 | K26: 0,00
B27: 692 | C27: ='2C'!L35 -> 0 | E27: Yksityiskäyttö | H27: 0 | I27: 0 | K27: 0,00
B28: 614 | C28: ='2C'!S35 -> 0 | E28: Omasta metsästä otettu puutavara yhteensä (611+612+692) | H28: 0 | I28: 0 | K28: 0,00
B29: 615 | C29: ='2C'!B38 -> 9480 | E29: Metsävähennys | F29: 615:9480,00 | H29: 9480 | I29: 0 | K29: 9480,00
B30: 616 | C30: ='2C'!F38 -> 948 | E30: Menovaraus | F30: 616:948,00 | H30: =ROUNDDOWN(C30,0) -> 948 | I30: =(C30-H30)*100 -> 0 | K30: 948,00
B31: 617 | C31: ='2C'!L38 -> 0 | E31: Tuhovaraus | H31: =ROUNDDOWN(C31,0) -> 0 | I31: =(C31-H31)*100 -> 0 | K31: 0,00
B32: 618 | C32: ='2C'!S38 -> 10428 | E32: Metsävähennys ja varaukset yhteensä (615+616+617) | F32: 618:10428,00 | H32: 10428 | I32: 0 | K32: 10428,00
B33: 619 | C33: ='2C'!F41 -> 0 | E33: Varausten tuloutus | H33: 0 | I33: 0 | K33: 0,00
B34: 620 | C34: ='2C'!L41 -> 0 | E34: Muut pääomatuloksi luettavat erät | H34: 0 | I34: 0 | K34: 0,00
B35: 651 | C35: ='2C'!S41 -> 0 | E35: Muut pääomatuloksi luettavat erät yhteensä (619+620) | H35: 0 | I35: 0 | K35: 0,00
B36: 622 | C36: ='2C'!B44 -> 0 | E36: Palkkausmenot | H36: 0 | I36: 0 | K36: 0,00
B37: 623 | C37: ='2C'!F44 -> 44.64 | E37: Matkakulut | F37: 623:44,64 | H37: 44 | I37: 64 | K37: 44,64
B38: 624 | C38: ='2C'!L44 -> 773.47 | E38: Muut vuosimenot | F38: 624:773,47 | H38: 773 | I38: 47 | K38: 773,47
B39: 693 | C39: ='2C'!S44 -> 818.11 | E39: Vuosimenot yhteensä (622+623+624) | F39: 693:818,11 | H39: 818 | I39: 11 | K39: 818,11
B40: 660 | C40: ='2C'!E47 -> 750 | E40: Menojäännös verovuoden alussa. Koneet ja kalusto | F40: 660:750,00 | H40: 750 | I40: 0 | K40: 750,00
B41: 670 | C41: ='2C'!H47 -> 0 | E41: Menojäännös verovuoden alussa. Rakennukset | H41: 0 | I41: 0 | K41: 0,00
B42: 680 | C42: ='2C'!M47 -> 3200 | E42: Menojäännös verovuoden alussa. Ojat ja tiet | F42: 680:3200,00 | H42: 3200 | I42: 0 | K42: 3200,00
B43: 661 | C43: ='2C'!E48 -> 717.13 | E43: Lisäykset verovuonna: Koneet ja kalusto | F43: 661:717,13 | H43: 717 | I43: 13 | K43: 717,13
B44: 671 | C44: ='2C'!H48 -> 0 | E44: Lisäykset verovuonna: Rakennukset | H44: 0 | I44: 0 | K44: 0,00
B45: 681 | C45: ='2C'!M48 -> 0 | E45: Lisäykset verovuonna: Ojat ja tiet | F45: =IF(C45=0,"",CONCATENATE(B45,":",K45)) ->  | H45: 0 | I45: 0 | K45: 0,00
B46: 645 | C46: ='2C'!E49 -> 0 | E46: Luovutukset verovuonna: Koneet ja kalusto | H46: 0 | I46: 0 | K46: 0,00
B47: 646 | C47: ='2C'!H49 -> 0 | E47: Luovutukset verovuonna: Rakennukset | H47: 0 | I47: 0 | K47: 0,00
B48: 682 | C48: ='2C'!M49 -> 0 | E48: Luovutukset verovuonna: Ojat ja tiet | H48: 0 | I48: 0 | K48: 0,00
B49: 642 | C49: ='2C'!E50 -> 287.5 | E49: Poistot: Koneet ja kalusto | F49: 642:287,50 | H49: 287 | I49: 50 | K49: 287,50
B50: 643 | C50: ='2C'!H50 -> 0 | E50: Poistot: Rakennukset | H50: 0 | I50: 0 | K50: 0,00
B51: 644 | C51: ='2C'!M50 -> 480 | E51: Poistot: Ojat ja tiet | F51: 644:480,00 | H51: 480 | I51: 0 | K51: 480,00
B52: 694 | C52: ='2C'!S50 -> 767.5 | E52: Poistot yhteensä (642+643+644) | F52: 694:767,50 | H52: 767 | I52: 50 | K52: 767,50
B53: 626 | C53: ='2C'!E51 -> 1179.63 | E53: Menojäännös verovuoden lopussa. Koneet ja kalusto | F53: 626:1179,63 | H53: 1179 | I53: 63 | K53: 1179,63
B54: 627 | C54: ='2C'!H51 -> 0 | E54: Menojäännös verovuoden lopussa. Rakennukset | H54: 0 | I54: 0 | K54: =CONCATENATE(H54,",",IF(I54=0,"00",IF(I54<10,CONCATENATE("0",I54),I54))) -> 0,00
B55: 628 | C55: ='2C'!M51 -> 2720 | E55: Menojäännös verovuoden lopussa. Ojat ja tiet | F55: 628:2720,00 | H55: 2720 | I55: 0 | K55: =CONCATENATE(H55,",",IF(I55=0,"00",IF(I55<10,CONCATENATE("0",I55),I55))) -> 2720,00
B56: 630 | C56: ='2C'!S53 -> 0 | E56: Toisesta tulolähteestä siirrettävät menot | H56: 0 | I56: 0 | K56: 0,00
B57: 631 | C57: ='2C'!B56 -> 0 | E57: Maatalouden menot | H57: 0 | I57: 0 | K57: 0,00
B58: 632 | C58: ='2C'!F56 -> 0 | E58: Elinkeinotoiminnan menot | H58: 0 | I58: 0 | K58: 0,00
B59: 633 | C59: ='2C'!L56 -> 0 | E59: Yksityismenot | H59: 0 | I59: 0 | K59: 0,00
B60: 634 | C60: ='2C'!S55 -> 0 | E60: Metsätalouden muistiinpanoihin sisältyneet muun toiminnan menot yhteensä (631+632+633) | H60: 0 | I60: 0 | K60: 0,00
B61: 635 | C61: ='2C'!S58 -> 3786.39 | E61: 15. Metsätalouden puhdas pääomatulo (690+691+610+614-618+651-693-694-630+634) | F61: 635:3786,39 | H61: 3786 | I61: 39 | K61: 3786,39
B62: 636 | C62: =IF('2C'!S60<0,ABS('2C'!S60),0) -> 0 | E62: 16. Metsätalouden tappiollinen pääomatulo -(690+691+610+614-618+651-693-694-630+634) | H62: 0 | I62: 0 | K62: 0,00
B63: 001 | C63: =4-(COUNTBLANK(Etusivu!C36)+COUNTBLANK(Etusivu!C38)+COUNTBLANK(Etusivu!C40)+COUNTBLANK(Etusivu!C42)) -> 0 | E63: Osatietoryhmä 700-705 alkaa | F63: =IF(C63=0,"",CONCATENATE(B63,":",C63)) -> 
B64: 700 | C64: ='2C'!B72 -> 0 | E64: Hankintatyön tekijän nimi | F64: =IF(C64=0,"",CONCATENATE(B64,":",C64)) -> 
B65: 701 | C65: ='2C'!G72 -> 0 | E65: Hankintatyön tekijän henkilötunnus | F65: =IF(C65=0,"",CONCATENATE(B65,":",C65)) -> 
B66: 702 | C66: ='2C'!J72 -> 0 | E66: Valmistettu määrä m3 | F66: =IF(C66=0,"",CONCATENATE(B66,":",C66)) -> 
B67: 703 | C67: ='2C'!M72 -> 0 | E67: Kuljetettu määrä m3 | F67: =IF(C67=0,"",CONCATENATE(B67,":",C67)) -> 
B68: 704 | C68: ='2C'!O72 -> 0 | E68: Hankintatyön arvo | F68: =IF(C68=0,"",CONCATENATE(B68,":",K68)) ->  | H68: =ROUNDDOWN(C68,0) -> 0 | I68: =(C68-H68)*100 -> 0 | K68: =CONCATENATE(H68,",",IF(I68=0,"00",IF(I68<10,CONCATENATE("0",I68),I68))) -> 0,00
B69: 705 | C69: ='2C'!S73 -> 0 | E69: Hankintatyön veronalainen arvo | F69: =IF(C69=0,"",CONCATENATE(B69,":",K69)) ->  | H69: =ROUNDDOWN(C69,0) -> 0 | I69: =(C69-H69)*100 -> 0 | K69: =CONCATENATE(H69,",",IF(I69=0,"00",IF(I69<10,CONCATENATE("0",I69),I69))) -> 0,00
B70: 009 | C70: =IF(C$63>0,1,"") ->  | D70: Juokseva numero osatietoryhmien määrän mukaan | E70: Osatietoryhmä 700-705 loppuu | F70: =IF(C70="","",CONCATENATE(B70,":",C70)) -> 
B71: 700 | C71: ='2C'!B74 -> 0 | E71: Hankintatyön tekijän nimi | F71: =IF(C71=0,"",CONCATENATE(B71,":",C71)) -> 
B72: 701 | C72: ='2C'!G74 -> 0 | E72: Hankintatyön tekijän henkilötunnus | F72: =IF(C72=0,"",CONCATENATE(B72,":",C72)) -> 
B73: 702 | C73: ='2C'!J74 -> 0 | E73: Valmistettu määrä m3 | F73: =IF(C73=0,"",CONCATENATE(B73,":",C73)) -> 
B74: 703 | C74: ='2C'!M74 -> 0 | E74: Kuljetettu määrä m3 | F74: =IF(C74=0,"",CONCATENATE(B74,":",C74)) -> 
B75: 704 | C75: ='2C'!O74 -> 0 | E75: Hankintatyön arvo | F75: =IF(C75=0,"",CONCATENATE(B75,":",K75)) ->  | H75: =ROUNDDOWN(C75,0) -> 0 | I75: =(C75-H75)*100 -> 0 | K75: =CONCATENATE(H75,",",IF(I75=0,"00",IF(I75<10,CONCATENATE("0",I75),I75))) -> 0,00
